Workbook

Sheet PRESENTACION

Sheet SINOPSIS
A11: Ministerio de Educación y Cultura
A12: Dirección de Educación
A13: Área de Investigación y Estadística
A15: CUADROS
A17: Cuadro 1.3.1
A18: ='1.3.1'!A6:F6 -> INDICADORES ESCOGIDOS
A20: Cuadro I-1.1.1
A21: ='I-1.1.1'!A6:F6 -> UNIVERSO CUBIERTO POR EL ANUARIO ESTADÍSTICO DE EDUCACIÓN 2010 POR FORMA DE ADMINISTRACIÓN, MATRÍCULA Y FUENTE DE INFORMACIÓN SEGÚN TIPO DE OFERTA Y NIVEL EDUCATIVO.
A23: Cuadro I-1.2.1
A24: ='I-1.2.1'!A6:G6 -> TASA DE ANALFABETISMO Y PORCENTAJE DE POBLACIÓN POR ÁREA DEMOGRÁFICA SEGÚN AÑO
A26: Cuadro I-1.2.2
A27: ='I-1.2.2'!A6:I6 -> TASA DE ANALFABETISMO SEGÚN TRAMOS DE EDAD.
A29: Cuadro I-1.2.3
A30: ='I-1.2.3'!A6:I6 -> PORCENTAJE DE POBLACIÓN DE 25 AÑOS O MÁS POR TRAMOS DE EDAD SEGÚN NIVEL EDUCATIVO MÁXIMO ALCANZADO.
A32: Cuadro I-1.2.4
A33: ='I-1.2.4'!A6:X6 -> ASISTENCIA A ALGÚN ESTABLECIMIENTO EDUCATIVO POR EDADES SIMPLES SEGÚN AÑO LECTIVO.
A35: Cuadro I-1.2.5
A36: ='I-1.2.5'!A6:E6 -> ASISTENCIA A ALGÚN ESTABLECIMIENTO EDUCATIVO POR EDADES SIMPLES SEGÚN AÑO LECTIVO y PERTENENCIA DE LOS HOGARES A LOS QUINTILES EXTREMOS DE INGRESOS.
A38: Cuadro I-1.2.6
A39: ='I-1.2.6'!A6:E6 -> DIFERENCIA DE ASISTENCIA ENTRE 2009 Y 2010 POR EDADES SIMPLES SEGÚN 1º QUINTIL Y QUINTIL MAYOR DE INGRESOS DE LOS HOGARES
A41: Cuadro I-1.2.7
A42: ='I-1.2.7'!A6:U6 -> ASISTENCIA A ALGÚN ESTABLECIMIENTO EDUCATIVO POR EDADES SIMPLES SEGÚN GRANDES ÁREAS Y AÑO LECTIVO.
A44: Cuadro I-1.2.8
A45: ='I-1.2.8'!A6:L6 -> MATRÍCULA DEL SISTEMA EDUCATIVO POR AÑO LECTIVO (2001-2010) SEGÚN NIVEL, FORMA DE ADMINISTRACIÓN Y MODALIDAD.
A47: Cuadro I-1.2.9
A48: ='I-1.2.9'!A6:K6 -> MATRICULA POR NIVEL Y FORMA DE ADMINISTRACIÓN SEGÚN GRANDES ÁREAS Y DEPARTAMENTO.
A50: Cuadro I-1.2.10
A51: ='I-1.2.10'!A6:G6 -> JÓVENES DE 15 A 20 AÑOS DE EDAD POR ASISTENCIA A ALGÚN ESTABLECIMIENTO DE EDUCACIÓN Y ACTIVIDAD SEGÚN NIVEL EDUCATIVO MÁXIMO ALCANZADO
A53: Cuadro I-2.1.1
A54: ='I-2.1.1'!$A$6 -> TASA NETA DE MATRICULACIÓN ENTRE LOS NIÑOS DE 3 A 5 AÑOS POR AÑO LECTIVO Y TRAMOS DE EDAD
A56: Cuadro I-2.2.1
A57: ='I-2.2.1'!A6:D6 -> MATRÍCULA EN EDUCACIÓN PRIMARIA ESPECIAL SEGÚN REGIÓN Y FORMA DE ADMINISTRACIÓN
A59: Cuadro I-2.2.2
A60: ='I-1.2.3'!A6:I6 -> PORCENTAJE DE POBLACIÓN DE 25 AÑOS O MÁS POR TRAMOS DE EDAD SEGÚN NIVEL EDUCATIVO MÁXIMO ALCANZADO.
A62: Cuadro I-2.2.3
A63: ='I-2.2.3'!A6:D6 -> PORCENTAJE DE ASISTENCIA INSUFICIENTE Y ABANDONO INTERMITENTE DE 1º A 6º GRADO EN EDUCACIÓN PRIMARIA COMÚN PÚBLICA SEGÚN REGIONES Y CONTEXTO 1er QUINTIL Y QUINTIL MAYOR (AÑO 2010)
A65: Cuadro I-2.3.1
A66: ='I-2.3.1'!A6:E6 -> NO APROBADOS Y DESVINCULADOS EN EDUCACIÓN MEDIA BÁSICA PÚBLICA POR GRANDES ÁREAS SEGÚN MODALIDAD Y GRADO (Turno diurno)
A68: Cuadro I-2.3.2
A69: ='I-2.3.2'!A6:E6 -> NO APROBADOS Y DESVINCULADOS EN EDUCACIÓN MEDIA TECNOLÓGICA SUPERIOR PÚBLICA POR GRANDES ÁREAS SEGÚN MODALIDAD Y GRADO (Turno diurno)
A71: I-2.5.1
A72: ='I-2.5.1'!A6 -> EVOLUCIÓN DE LA MATRÍCULA DE LAS INSTITUCIONES UNIVERSITARIAS (2000 – 2010)
A74: I-2.5.2
A75: ='I-2.5.2'!A6:M6 -> INGRESOS A INSTITUCIONES UNIVERSITARIAS POR AÑO LECTIVO SEGÚN ÁREA DE CONOCIMIENTO - (2000 - 2010)
A77: I-2.5.3
A78: ='I-2.5.3'!A6:I6 -> EGRESOS DE INSTITUCIONES UNIVERSITARIAS POR NIVEL ACADÉMICO SEGÚN ÁREA DE CONOCIMIENTO
A80: I-2.5.4
A81: ='I-2.5.4'!A6:M6 -> EGRESOS DE INSTITUCIONES UNIVERSITARIAS POR AÑO LECTIVO SEGÚN ÁREA DE CONOCIMIENTO - (2000 - 2010)
A83: I-2.5.5
A84: ='I-2.5.5'!A6 -> INGRESOS A INSTITUCIONES UNIVERSITARIAS POR NIVEL ACADÉMICO SEGÚN ÁREA DE CONOCIMIENTO
A86: I-2.5.6
A87: ='I-2.5.6'!A6:D6 -> INGRESOS, MATRÍCULA Y EGRESOS SEGÚN FORMA DE ADMINISTRACIÓN EN CANTIDADES ABSOLUTAS Y PORCENTAJES
A89: I-2.6.1
A90: ='I-2.6.1'!A6:L6 -> ALUMNOS MATRICULADOS EN EL PROGRAMA NACIONAL DE JÓVENES Y ADULTOS POR MODALIDAD, NIVEL Y SEXO SEGÚN GRANDES ÁREAS
A92: I-2.6.2
A93: ='I-2.6.2'!A7:H7 -> ALUMNOS INGRESADOS Y MATRICULADOS EN CECAP POR SEXO SEGÚN GRANDES ÁREAS
A95: I-2.6.3
A96: ='I-2.6.3'!A6:G6 -> ALUMNOS MATRICULADOS EN CURSOS DE EDUCACIÓN TÉCNICA (CETP-UTU) PARA JÓVENES Y ADULTOS POR SEXO Y GRANDES ÁREAS SEGÚN TIPO DE CURSO
A98: I-2.6.4
A99: ='I-2.6.4'!A6:E6 -> ALUMNOS MATRICULADOS DEL COCAP SEGÚN TIPO DE CURSO Y ÁREA DE FORMACIÓN
A101: I-2.6.5
A102: ='I-2.6.5'!A7:E7 -> FUNCIONARIOS PARTICIPANTES EN LOS CURSOS DE LA ENAP "DR. AQUILES LANZA", CANTIDAD DE CURSOS Y HORAS TIPO DE CURSO
A104: I-2.6.6
A105: ='I-2.6.6'!A7 -> ALUMNOS INGRESADOS Y MATRICULADOS EN CARRERAS NO TERCIARIAS EN UNIVERSIDADES E INSTITUTOS UNIVERSITARIOS
A107: I-2.7.1
A108: ='I-2.7.1'!A6:D6 -> ESTABLECIMIENTOS DE EDUCACIÓN TÉCNICO PROFESIONAL POR TIPO DE ESTABLECIMIENTO SEGÚN GRANDES ÁREAS.
A110: I-2.7.2
A111: ='I-2.7.2'!A5:K5 -> ALUMNOS MATRICULADOS EN EDUCACIÓN TÉCNICA POR GRANDES ÁREAS Y SEXO SEGÚN NIVEL Y TIPO DE CURSO
A113: I-2.7.3
A114: ='I-2.7.3'!A7:G7 -> ALUMNOS MATRICULADOS EN EDUCACIÓN MEDIA, TÉCNICA Y TERCIARIA POR NIVEL DEL CURSO SEGÚN SECTORES DE ESTUDIO
A116: I-3.1.1
A117: ='I-3.1.1'!A6:H6 -> ESCUELAS POR GRANDES ÁREAS, MAESTROS Y ALUMNOS DEL PROGRAMA MAESTROS COMUNITARIOS SEGÚN AÑO LECTIVO
A119: I-3.1.2
A120: ='I-3.1.2'!A6:D6 -> MAESTROS Y ESCUELAS DEL PROGRAMA MAESTROS COMUNITARIOS SEGÚN REQUERIMIENTO
A122: I-3.1.3
A123: ='I-3.1.3'!A6:E6 -> EDUCACIÓN FÍSICA ESCOLAR SEGÚN AÑO LECTIVO - (2005 - 2010)
A125: I-3.1.4
A126: ='I-3.1.4'!A6:E6 -> EDUCACIÓN FÍSICA ESCOLAR SEGÚN GRANDES ÁREAS – Año 2010
A128: I-3.1.5
A129: ='I-3.1.5'!A5:F5 -> CANTIDAD DE BECAS OTORGADAS POR MODALIDAD Y CICLO SEGÚN DEPARTAMENTO - 2010
A131: I-3.1.6
A132: ='I-3.1.6'!A8:K8 -> CANTIDAD DE COMPUTADORAS PORTÁTILES ENTREGADAS POR AÑO LECTIVO Y DESTINATARIO SEGÚN DEPARTAMENTO
A134: I-3.1.7
A135: ='I-3.1.7'!A6:D6 -> PORCENTAJE DE HOGARES EN VIVIENDAS UBICADAS EN ASENTAMIENTOS IRREGULARES SEGÚN TENENCIA Y CANTIDAD DE XO
A137: I-3.3.1
A138: ='I-3.3.1'!A6:G6 -> GASTO EN MILLONES DE PESOS CONSTANTES DE 2006 POR AÑO LECTIVO SEGÚN ÁMBITO DEL GASTO (2004 - 2010)
A140: I-4.4.1
A141: ='I-4.4.1'!A6:G6 -> SERCE (2008): PORCENTAJE DE ESTUDIANTES POR TIPO DE PRUEBA, GRADO Y NIVEL DE DESEMPEÑO SEGÚN PAÍS Y REGIÓN
A143: I-4.4.2
A144: ='I-4.4.2'!A6:J6 -> PORCENTAJE DE ESTUDIANTES EN EL MAYOR NIVEL DE RENDIMIENTO DE LAS PRUEBAS DE COMPETENCIAS DE PISA POR TIPO DE COMPETENCIA Y AÑOS DE LA PRUEBA SEGÚN PAISES DEL MERCOSUR Y PROMEDIO DE LA OCDE
A146: I-4.4.3
A147: ='I-4.4.3'!A6:J6 -> PORCENTAJE DE ESTUDIANTES CON EL MENOR NIVEL DE RENDIMIENTO DE LAS PRUEBAS DE COMPETENCIAS DE PISA POR TIPO DE COMPETENCIA Y AÑOS DE LA PRUEBA SEGÚN PAISES DEL MERCOSUR Y PROMEDIO DE LA OCDE
A149: I-4.5.1
A150: ='I-4.5.1'!A6:E6 -> INDICADORES Y VALORES PARA LA META NACIONAL 3 (2008 - 2010)
A153: GRÁFICOS
A155: Gráfico I-1.2.1
A156: EVOLUCIÓN COMPARADA DE LA TASA DE ANALFABETISMO TOTAL Y RURAL
A158: Gráfico I-1.2.2
A159: NIVEL EDUCATIVO MÁXIMO ALCANZADO POR LA POBLACIÓN DE 25 A 29 AÑOS EN LOS QUINTILES EXTREMOS DE INGRESO
A161: Gráfico I-1.2.3
A162: EVOLUCIÓN RECIENTE DEL NIVEL EDUCATIVO MÁXIMO ALCANZADO POR LA POBLACIÓN DE 25 A 29 AÑOS EN EL 1ª QUINTIL DE INGRESO (Todo el país, Año 2010)
A164: Gráfico I-1.2.4
A165: EVOLUCIÓN RECIENTE DEL NIVEL EDUCATIVO MÁXIMO ALCANZADO POR LA POBLACIÓN DE 25 A 29 AÑOS EN EL QUINTIL MAYOR DE INGRESO (Todo el país, Año 2010)
A167: Gráfico I-1.2.5
A168: ASISTENCIA A ALGÚN ESTABLECIMIENTO EDUCATIVO POR EDADES SIMPLES SEGÚN QUINTILES DE INGRESO DE LOS HOGARES (Todo el país, Año 2010)
A170: Gráfico I-1.2.6
A171: ASISTENCIA A ALGÚN ESTABLECIMIENTO EDUCATIVO POR EDADES SIMPLES SEGÚN GRANDES ÁREAS (Todo el país, Año 2010)
A173: Gráfico I-1.2.7
A174: ASISTENCIA A ALGÚN ESTABELCIMIENTO EDUCATIVO POR EDADES SIMPLES SEGÚN SEXO (Todo el país, Año 2010)
A176: Gráfico I-1.2.8
A177: MATRICULADOS POR NIVEL EDUCATIVO SEGÚN AÑO LECTIVO (2001-2010)
A179: Gráfico I-1.2.9
A180: PORCENTAJE DE HOMBRES Y MUJERES EN LA MATRÍCULA POR NIVEL EDUCATIVO. AÑO 2010.
A182: Gráfico I-1.2.10
A183: MATRÍCULA POR NIVEL EDUCATIVO SEGÚN GRANDES ÁREAS. AÑO 2010.
A185: Gráfico I-1.2.11
A186: MATRÍCULA POR NIVEL EDUCATIVO SEGÚN FORMA DE ADMINISTRACIÓN. AÑO 2010.
A188: Gráfico I-1.2.12
A189: PORCENTAJE DE LA POBLACIÓN ENTRE 4 A 11 AÑOS POR ASISTENCIA A ALGÚN ESTABLECIMIENTO EDUCATIVO Y GRUPOS DE EDADES SEGÚN NIVEL EDUCATIVO (Todo el país, Año 2010)
A191: Gráfico I-1.2.13
A192: PORCENTAJE DE LA POBLACIÓN ENTRE 12 A 17 AÑOS POR ASISTENCIA A ALGÚN ESTABLECIMIENTO EDUCATIVO Y GRUPOS DE EDADES SEGÚN NIVEL (Todo el país, Año 2010)
A194: Gráfico I-1.2.14
A195: PORCENTAJE DE LA POBLACIÓN ENTRE 12 A 24 AÑOS POR ASISTENCIA A ALGÚN ESTABLECIMIENTO EDUCATIVO Y GRUPOS DE EDADES SEGÚN NIVEL (Todo el país, Año 2010)
A197: Gráfico I-1.2.15
A198: CULMINACIÓN DE CICLOS EDUCATIVOS PARA EDADES SELECCIONADAS POR QUINTILES DE INGRESO (Todo el país, Año 2010)
A200: Gráfico I-1.2.16
A201: CULMINACIÓN DE CICLOS EDUCATIVOS POR EDADES SELECCIONADAS SEGÚN REGIÓN(Todo el país, Año 2010)
A203: Gráfico I-1.2.17
A204: CULMINACIÓN DE CICLOS EDUCATIVOS POR EDADES SELECCIONADAS SEGÚN SEXO (Todo el país, Años 2006 - 2010)
A206: Gráfico I-1.2.18
A207: CULMINACIÓN DE CICLOS EDUCATIVOS POR EDADES SELECCIONADAS SEGÚN SEXO (Todo el país, Año 2010)
A209: Gráfico I-1.3.1
A210: TASA DE ALFABETISMO SEGÚN ASCENDENCIA. (Todo el país, Año 2010)
A212: Gráfico I-1.3.2
A213: CULMINACIÓN DE CICLOS EDUCATIVOS SEGÚN ASCENDENCIA. (Todo el país, Año 2010)
A215: Gráfico I-1.3.3
A216: ASISTENCIA A ALGÚN ESTABLECIMIENTO EDUCATIVO POR EDADES SIMPLES SEGÚN ASCENDENCIA Y GRANDES ÁREAS. (Todo el país, Año 2010)
A218: Gráfico I-2.1.1
A219: MATRÍCULA DE NIÑOS DE 0 A 5 AÑOS DE EDAD SEGÚN TIPO DE CENTRO AÑO 2010.
A221: Gráfico I-2.1.2
A222: MATRÍCULA DE NIÑOS DE 0 A 5 AÑOS DE EDAD POR MODALIDAD SEGÚN GRANDES. ÁREAS AÑO 2010.
A224: Gráfico I-2.1.3
A225: MATRÍCULA DE EDUCACIÓN INICIAL (ÓRBITA ANEP) POR GRANDES ÁREAS. AÑOS 2000 - 2010.
A227: Gráfico I-2.1.4
A228: MATRÍCULA DE EDUCACIÓN INICIAL (ÓRBITA ANEP) POR FORMA DE ADMINISTRACIÓN. AÑOS 2000 - 2010.
A230: Gráfico I-2.2.1
A231: RAZÓN PÚBLICO-PRIVADO Y MATRÍCULA DE EDUCACIÓN PRIMARIA COMÚN POR FORMA DE ADMINISTRACIÓN (2000-2010)
A233: Gráfico I-2.2.2
A234: MATRÍCULA DE ENSEÑANZA PRIMARIA COMÚN POR GRANDES ÁREAS SEGÚN FORMA DE ADMINISTRACIÓN. AÑO 2010.
A236: Gráfico I-2.2.3
A237: PORCENTAJE DE NO PROMOVIDOS EN PRIMER AÑO Y DE PRIMERO A SEXTO (Escuela públicas, 2000-2010)
A239: Gráfico I-2.2.4
A240: DIFERENCIA EN EL PORCENTAJE DE NO APROBACIÓN DE 1º A 6º GRADO ENTRE EL PRIMER Y QUINTO QUINTIL DE ESCUELAS CLASIFICADAS POR CONTEXTO SOCIOCULTURAL, SEGÚN REGIÓN. AÑO 2010.
A242: Gráfico I-2.3.1
A243: MATRÍCULA DE EDUCACIÓN MEDIA POR MODALIDAD DE ENSEÑANZA. AÑOS (2000-2010)
A245: Gráfico I-2.3.2
A246: MATRÍCULA DE EDUCACIÓN MEDIA POR CICLO(2000-2010)
A248: Gráfico I-2.3.3
A249: MATRÍCULA DE EDUCACIÓN MEDIA BÁSICA POR MODALIDAD DE ENSEÑANZA Y RAZÓN GENERAL / TECNOLÓGICA (2000-2010)
A251: Gráfico I-2.3.4
A252: MATRÍCULA DE EDUCACIÓN MEDIA BÁSICA POR FORMA DE ADMINISTRACIÓN Y RAZÓN PÚBLICO / PRIVADO(2000-2010)
A254: Gráfico I-2.3.5
A255: MATRÍCULA DE EDUCACIÓN MEDIA BÁSICA GENERAL POR REGIÓN SEGÚN FORMA DE ADMINISTRACIÓN. AÑO 2010.
A257: Gráfico I-2.3.6
A258: PORCENTAJE DE NO APROBACIÓN, DESVINCULACIÓN Y ENVÍO A EXÁMENES EN CICLO BÁSICO DE EDUCACIÓN MEDIA BÁSICA GENERAL PÚBLICA (2002-2010)
A260: Gráfico I-2.3.7
A261: APROBADOS, NO APROBADOS Y DESVINCULADOS EN EDUCACIÓN MEDIA BÁSICA DEL CETP. AÑO 2010.
A263: Gráfico I-2.3.8
A264: MATRÍCULA DE SEGUNDO CICLO DE ENSEÑANZA MEDIA POR MODALIDAD. (2000-2010)
A266: Gráfico I-2.3.9
A267: MATRÍCULA SEGUNDO CICLO DE SECUNDARIA POR FORMA DE ADMINISTRACIÓN. (2000-2010)
A269: Gráfico I-2.3.10
A270: MATRÍCULA DEL CONSEJO DE EDUCACIÓN TÉCNICO PROFESIONAL POR NIVEL. (2000-2010)
A272: Gráfico I-2.4.1
A273: MATRÍCULA DE FORMACIÓN DOCENTE POR AÑO LECTIVO SEGÚN TIPO DE OFERTA. (2000-2010).
A275: Gráfico I-2.4.2
A276: MATRÍCULA DE FORMACIÓN DOCENTE POR AÑO LECTIVO SEGÚN GRANDES ÁREAS (2000-2010).
A278: Gráfico I-2.4.3
A279: EGRESOS DE FORMACIÓN DOCENTE POR AÑO LECTIVO SEGÚN CURSO (2000-2010)
A281: Gráfico I-2.4.4
A282: MATRÍCULA DE NIVEL TERCIARIO NO UNIVERSITARIO DEL ÁREA DE SEGURIDAD Y DEFENSA POR MINISTREIOS SEGÚN AÑO (2000-2010.
A284: Gráfico I-2.4.5
A285: MATRÍCULA DE NIVEL TERCIARIO NO UNIVERSITARIO DEL ÁREA DE SEGURIDAD Y DEFENSA POR INSTSITUCIÓN SEGÚN AÑO (2000-2010).
A287: Gráfico I-2.4.6
A288: EGRESO DE NIVEL TERCIARIO NO UNIVERSITARIO DEL ÁREA DE SEGURIDAD Y DEFENSA POR MINISTERIO SEGÚN AÑO (2000-2010).
A290: Gráfico I-2.5.1
A291: EVOLUCIÓN COMPARADA DE LA MATRÍCULA DE GRADO Y POSTGRADO POR AÑO SEGÚN UNIVERSIDADES E INSTITUTOS UNIVERSITARIOS PRIVADOS (2000-2010).
A293: Gráfico I-2.5.2
A294: EVOLUCIÓN COMPARADA DEL INGRESO DE GRADO EN UDELAR Y EN UNIVERSIDADES E INSTITUTOS UNIVERSITARIOS PRIVADOS (2000-2010).
A296: Gráfico I-2.5.3
A297: EVOLUCIÓN COMPARADA DEL INGRESO Y DEL EGRESO EN CARRERAS DE GRADO EN LA UDELAR. AÑOS 2000-2010.
A299: Gráfico I-2.5.4
A300: EVOLUCIÓN COMPARADA DEL EGRESO DE GRADO EN UDELAR Y EN UNIVERSIDADES E INSTITUTOS UNIVERSITARIOS PRIVADOS. AÑOS 2000-2010.
A302: Gráfico I-2.5.5
A303: EVOLUCIÓN COMPARADA DEL INGRESO Y DEL EGRESO DE GRADO EN LAS UNIVERSIDADES E INSTITUTOS UNIVERSITARIOS PRIVADOS (2000-20109).
A305: Gráfico I-2.5.6
A306: EVOLUCIÓN COMPARADA DEL INGRESO Y DEL EGRESO DE POSTGRADO EN UDELAR Y EN UNIVERIDADES E INSTITUTOS UNIVERSITARIOS PRIVADOS POR AÑO (2000-2010).
A308: Gráfico I-2.5.7
A309: EVOLUCIÓN COMPARADA DEL INGRESO Y EGRESO DE POSTGRADO EN UDELAR (2000-2010).
A311: Gráfico I-2.5.8
... 29 more rows

Sheet 1.3.1
A1: Ministerio de Educación y Cultura
A2: Dirección de Educación
A3: Área de Investigación y Estadística
A5: Cuadro I-0.0.0
A6: INDICADORES ESCOGIDOS
A8: INICIAL
A9: Cantidad de Jardines de Infantes (Supervisados por CEIP, públicos y privados) | D9: 218
A10: Cantidad de Centros CAIF[1] | D10: 382
A11: Cantidad de Centros Educativos en la Primera Infancia (RNG) | D11: 527
A12: Cantidad de alumnos en Jardines de Infantes (Supervisados por CEIP) | D12: 109819
A13: Cantidad de alumnos en Centros CAIF | D13: 49180
A14: Cantidad de alumnos en Centros Educativos en la Primera Infancia (RNG) | D14: 21444
A15: EDUCACIÓN PRIMARIA
A16: Cantidad de establecimientos | D16: 2548
A17: Cantidad de alumnos | D17: 342286
A18: % de alumnos de educación pública | D18: 84.5
A19: % de alumnos de educación pública en Montevideo | D19: 73.3
A20: % de alumnos de educación pública en el Resto del País | D20: 90.6
A21: % de alumnos de educación pública Urbana | D21: 93.8
A22: Razón Público/Privado en Educación Primaria | D22: 5.5
A23: % de alumnos que no aprobaron en 1ero | D23: 13.9
A24: % de alumnos que no aprobaron de 1ero a 6to | D24: 6.2
A25: % de alumnos que no aprobaron de 1ero a 6to en escuelas rurales | D25: 1.4
A26: % de alumnos que no aprobaron de 1ero a 6to en escuelas urbanas | D26: 6.7
A27: % de personas de 14 a 15 que culminaron primaria | D27: 95.6
A28: % de personas de 15 a 20 que no culminaron educación media básica, no estudian, no trabajan ni buscan trabajo | D28: 9.1
A29: EDUCACIÓN MEDIA
A30: Cantidad de establecimientos dependientes del CES | D30: 527
A31: Cantidad de establecimientos dependientes del CETP (UTU) | D31: 96
A32: % de establecimientos dependientes del CES en Montevideo | D32: 34
A33: % de establecimientos dependientes del CETP (UTU) en Montevideo | D33: 32.3
A34: Cantidad de alumnos en Educación Media Básica | D34: 177619
A35: Cantidad de alumnos en Educación Media Superior | D35: 145358
A36: Razón Público/Privado en Educación Media Básica[2] | D36: 5.2
A37: Razón Público/Privado en Educación Media Superior | D37: 5.9
A38: % de no aprobación de 1º a 3º año diurno público en Educación Media Básica General | D38: 27.8
A39: % de no aprobación de 1º a 3º año diurno público en Educación Media Básica Tecnológica | D39: 20.3
A40: % de desvinculación de 1º a 3º año diurno público en Educación Media Básica General | D40: 4.1
A41: % de desvinculación de 1º a 3º año diurno público en Educación Media Básica Tecnológica | D41: 20.5
A42: % de personas de 17 a 18 años que culminaron ciclo básico | D42: 58.2
A43: % de personas de 21 a 22 años que culminaron segundo ciclo | D43: 31.2
A44: EDUCACIÓN TERCIARIA
A45: Cantidad de matriculados en cursos de grado en universidades e institutos universitarios | D45: 131013
A46: Cantidad de matriculados en ofertas terciarias de Formación Docente | D46: 20191
A47: Cantidad de matriculados en ofertas terciarias del Ministerio del Interior y del Ministerio de Defensa Nacional | D47: 603
A48: Cantidad de ingresos en cursos de grado en universidades e institutos universitarios | D48: 23597
A49: Cantidad de egresos en cursos de grado en universidades e institutos universitarios | D49: 6017
A50: LOGRO EDUCATIVO Y ASISTENCIA
A51: % personas de 25 años o más con primaria completa o menos como nivel máximo alcanzado | D51: 40.4
A52: % personas de 25 a 29 años con primaria completa o menos como nivel máximo alcanzado | D52: 20.6
A53: Tasa de analfabetismo (Uruguay) | D53: 2
A54: Tasa de analfabetismo (MERCOSUR) | D54: 8
A55: Tasa de analfabetismo (UNASUR) | D55: 8.1
A56: % de jóvenes de 15 a 20 años que no asiste a ningún establecimiento, no trabaja, ni busca trabajo | D56: 12.4
A57: CONTEXTO DE LA EDUCACIÓN
A58: Cantidad de alumnos atendidos por el Programa Maestros Comunitarios | D58: 16749
A59: Cantidad de alumnos atendidos por los CECAP’s | D59: 1127
A60: Alumnos atendidos por el Programa de Educación Física Escolar | D60: 308260
A61: Razón alumnos/docente en el Programa Maestros Comunitarios | D61: 30.3
A62: Razón alumnos/educadores en los CECAP’s | D62: 8.4
A63: Razón alumnos/docente en el Programa de Educación Física Escolar | D63: 315.5
A64: GASTO
A65: Gasto público en educación como porcentaje de gasto del Gobierno Central | D65: 18.9
A66: Gasto público en educación como % del PBI (Uruguay) | D66: 4.2
A67: PRUEBAS DE RENDIMIENTO INTERNACIONALES
B68: LECTURA | C68: MATEMÁTICAS | D68: CIENCIAS
A69: Posición de Uruguay en SERCE 3er Grado | B69: 6 to | C69: 3 ero | D69: -
A70: Posición de Uruguay en SERCE 6to Grado | B70: 3 ero | C70: 2 do | D70: 2 do
A71: % de jóvenes (15 años de edad) que en Uruguay obtuvieron el mayor desempeño en PISA 2009 | B71: 1.8 | C71: 2.5 | D71: 1.5
A72: % de jóvenes (15 años de edad) que en Uruguay obtuvieron el peor desempeño en PISA 2009 | B72: 42.1 | C72: 47 | D72: 42.6
A74: Notas: CAIF incluye Centros Diurnos, y sólo en Montevideo, el Proyecto Nuestros Niños de la IMM.
A75: La relación matriculados en educación pública, matriculados en educación privada, se realiza sin incorporar en el sector público la matrícula del CETP (UTU), por no contar con información sobre la matrícula técnico-vocacional en educación media del sector privado.

Sheet I-1.1.1
A1: Ministerio de Educación y Cultura
A2: Dirección de Educación
A3: Área de Investigación y Estadística
A5: Cuadro I-1.1.1
A6: UNIVERSO CUBIERTO POR EL ANUARIO ESTADÍSTICO DE EDUCACIÓN 2010 POR FORMA DE ADMINISTRACIÓN, MATRÍCULA Y FUENTE DE INFORMACIÓN SEGÚN TIPO DE OFERTA Y NIVEL EDUCATIVO.
A8: Nivel | C8: Descripción | E8: Matriculados en 2010 | F8: Fuentes
A9: (Edad teórica) | C9: (Oferta por forma de administración) | F9: de información
A12: EDUCACIÓN EN LA PRIMERA INFANCIA | C12: PÚBLICO: centros de educación infantil gestionados por organismos públicos (por ej. intendencias). | E12: 50685 | F12: ·Área de Educación en la primera infancia y Área de Investigación y Estadística de la Dirección de Educación del Ministerio de Educación y Cultura – Registro Nacional de Centros de Educación en la Primera Infancia;
A13: 0 a 3 años (a) | C13: PRIVADO: Centros de Educación Infantil Privados bajo supervisión del MEC. En todos los casos la matrícula reportada excluye a los niños matriculados en centros que hayan sido habilitados por ANEP. | F13: ·Sistema de Información Para la Infancia (SIPI) de INAU.
C14: PÚBLICO/PRIVADO: CAIF (modalidad diaria).
A17: EDUCACIÓN INICIAL | C17: PUBLICO: Establecimientos del Consejo de Educación Inicial y Primaria (CEIP). Jardines y clases jardineras en escuelas de educación común. | E17: 109819 | F17: ·Área de Educación en la primera infancia, Área de Investigación y Estadística de la Dirección de Educación del Ministerio de Educación y Cultura y Departamento de Estadística Educativa del CEIP;
A18: 3 a 5 años | C18: PRIVADO: jardines de infantes privados, jardines en colegios privados y clases jardineras en colegios privados (bajo supervisión de ANEP)
A19: (4 y 5 años obligatorio)
A22: EDUCACIÓN PRIMARIA | C22: PUBLICO: Establecimientos del Consejo de Educación Inicial y Primaria | E22: 342356 | F22: ·Sistema de Información Para la Infancia (SIPI) de INAU y Departamento de Estadística Educativa del CEIP.
A23: 6 a 11 años (obligatorio) | C23: PRIVADO: Establecimientos privados bajo supervisión de ANEP
A26: EDUCACIÓN MEDIA (b) | C26: PUBLICO: establecimientos del Consejo de Educación Secundaria, del Consejo de Educación Técnico Profesional, del Ciclo Básico Rural (7º, 8º y 9º) y los Habilitados Liceo Militar y Escuela Naval. | D26: MEDIA BÁSICA | E26: 177619 | F26: ·Departamento de Estadística del CES (oficiales, habilitados privados y habilitados militares) a través de bedelías informáticas en establecimientos públicos y de planilla estadística enviadas por establecimientos a los habilitados privados;
C27: PRIVADO: liceos habilitados privados bajo supervisión de ANEP. | D27: 12 a 14 años (obligatorio) | F27: ·Departamento de Estadística del CETP; y
D28: MEDIA SUPERIOR | E28: 145358 | F28: ·Departamento de estadística del CEIP (para 7º, 8º y 9º) a través de planillas estadísticas.
D29: 15 a 17 años (obligatorio)
D30: OTROS CURSOS DE EDUCACIÓN TÉCNICA | E30: 11912
A33: EDUCACIÓN TERCIARIA | C33: INSTIT. TERCIARIOS NO UNIVERSITARIOS | E33: 128159 | F33: ·División de Estadística de la Dirección General de Planeamiento de la UdelaR, Oficina de información para la gestión de la Dirección de Formación y Perfeccionamiento Docente, unidades de planeamiento y/o asuntos estudiantiles de universidades e institutos universitarios y no universitarios públicos y privados. Todos contestan formulario estadístico enviado por Área de Investigación y Estadística del MEC.
C34: Públicos: Carreras del Consejo de Formación en Educación, Instituto Superior de Educación Física, Escuela Municipal de Arte Dramático, Centro de Formación del INAU, Centro de Diseño Industrial, Esc. Nacional de Policía, Esc. Militar, Esc. Militar de Aeronáutica y Esc. Naval.
C35: Privados: CIEP.
C36: INSTIT. UNIVERSITARIOS PRIVADOS (Autónomo del Sur, Asociación Cristiana de Jóvenes, CLAEH, Crandon, BIOS, Mariano Soler, Instituto Universitario CEDIIAP).
C37: UNIVERSIDADES (Universidad de la República, Universidad Católica, Universidad ORT, Universidad de Montevideo, Universidad de la Empresa).
A40: EDUCACIÓN DE JÓVENES Y ADULTOS SIN NIVEL EDUCATIVO | C40: Centros de Capacitación y Producción (CECAP) y Consejo De Capacitación Profesional (COCAP) del Ministerio de Educación y Cultura | E40: 2006 | F40: ·Área de Educación No Formal de la Dirección de Educación del MEC, Gerencia de Programas Especiales de CODICEN, Oficina Nacional del Servicio Civil e información brindada por las instituciones universitarias.
C41: Dirección Sectorial de Educación de Jóvenes y Adultos de la ANEP | E41: 7618
C42: Escuela de Funcionarios Públicos de la Oficina Nacional del Servicio Civil | E42: 5540
C43: Educación no terciaria en universidades e instituciones universitarias privadas | E43: 4578
C44: Cursos técnicos de Nivel I y II sin continuidad educativa del CETP (UTU) | E44: 11912
A47: Nota: | B47: (a) Esta definición etaria responde a la lógica de los hechos: prácticamente la mitad de los niños atendidos en Centros de Educación Infantil Privados tienen 3 años (también existe una porción minoritaria de niños de 4 y 5 años). En términos teóricos, este nivel atendería a niños de 0 a 36 meses (o hasta 2 años cumplidos y 11 meses). Algo similar sucede en el caso del nivel “Educación Inicial”, donde la enorme mayoría de los niños tienen 4 o 5 años y cuya definición teórica apuntaría a aquellos de 3, 4 y 5.
B48: (b) Media Básica incluye Ciclo Básico Rural, Educación Media Básica General (CEM) y Educación Media Tecnológica Básica(CETP); y Media Superior incluye Ciclo Superior de Secundaria, Bachillerato Tecnológico y Educación Media Tecnológica, Otros Cursos de Educación Técnica, incluyen a los demás cursos de las ofertas de Nivel I y II del CETP.

Sheet I-1.2.1
A1: Ministerio de Educación y Cultura
A2: Dirección de Educación
A3: Área de Investigación y Estadística
A5: Cuadro I-1.2.1
A6: TASA DE ANALFABETISMO Y PORCENTAJE DE POBLACIÓN POR ÁREA DEMOGRÁFICA SEGÚN AÑO
A7: EDADES | C7: Fuente | D7: TASA | F7: % de población rural | G7: % de analfabetos rurales sobre total país
D8: Total del país | E8: Área Rural
A10: 1963 | C10: CENSO | D10: 8.8 | E10: 15.4 | F10: 19.2 | G10: 2.96
A11: 1975 | C11: CENSO | D11: 5.7 | E11: 10.3 | F11: 17 | G11: 1.75
A12: 1985 | C12: CENSO | D12: 4.3 | E12: 8.4 | F12: 12.7 | G12: 1.06
A13: 1996 | C13: CENSO | D13: 3.1 | E13: 6.2 | F13: 9.2 | G13: 0.57
A14: 2006 | C14: ENHA | D14: 2.2 | E14: 3 | F14: 6.4 | G14: 0.19
A15: 2007 | C15: ECH | D15: 2.1 | E15: 3.4 | F15: 6.6 | G15: 0.21
A16: 2008 | C16: ECH | D16: 1.9 | E16: 3.1 | F16: 6.2 | G16: 0.19
A17: 2009 | C17: ECH | D17: 1.8 | E17: 3.4 | F17: 7.9 | G17: 0.27
A18: 2010 | C18: ECH | D18: 2 | E18: 3.2 | F18: 5.8 | G18: 0.19
A21: Fuente: | B21: § 1963 a 1996: Censos de Población. INE.
B22: § 2006: Encuesta Nacional de Hogares Ampliada (ENHA) 2006. Condiciones de vida de la población residente en el área rural. Enero-marzo 2006. INE.
B23: § 2007, 2008, 2009 y 2010: Elaboración propia con base en las ECH de 2007 a 2010 y las Proyecciones Poblacionales del INE (Área Socio Demográfica).
A24: NOTA: | B24: Las tasas fueron calculadas sobre población con 15 y más años de edad. La evolución de la población rural con base en el total poblacional.

Sheet I-1.2.2
A1: Ministerio de Educación y Cultura
A2: Dirección de Educación
A3: Área de Investigación y Estadística
A5: Cuadro I-1.2.2
A6: TASA DE ANALFABETISMO SEGÚN TRAMOS DE EDAD.
A7: TASA DE ANALFABETISMO | C7: TRAMOS DE EDAD
C8: TOTAL | D8: 15 a 20 años | E8: 21 a 39 años | F8: 40 a 49 años | G8: 50 a 59 años | H8: 60 a 64 años | I8: 65 y más años
A10: 2006 | C10: 2.2 | D10: 1.2 | E10: 1.4 | F10: 1.4 | G10: 2.1 | H10: 2.6 | I10: 4.7
A11: 2007 | C11: 2.1 | D11: 1.2 | E11: 1.3 | F11: 1.5 | G11: 1.8 | H11: 2.3 | I11: 4.7
A12: 2008 | C12: 1.9 | D12: 0.9 | E12: 1.3 | F12: 1.3 | G12: 1.9 | H12: 2 | I12: 4
A13: 2009 | C13: 1.8 | D13: 0.9703610116 | E13: 1.148700028 | F13: 1.132360342 | G13: 1.479978308 | H13: 2.332974732 | I13: 4.225762514
A14: 2010 | C14: 2 | D14: 1.2 | E14: 1.3 | F14: 1.3 | G14: 1.8 | H14: 2.1 | I14: 4.5
A16: Fuentes: Elaboración propia en base a la Encuesta Continua de Hogares 2010.
A17: Nota: Población con 15 y más años para todo el país (Año 2006-2010)

Sheet I-1.2.3
A1: Ministerio de Educación y Cultura
A2: Dirección de Educación
A3: Área de Investigación y Estadística
A5: Cuadro I-1.2.3
A6: PORCENTAJE DE POBLACIÓN DE 25 AÑOS O MÁS POR TRAMOS DE EDAD SEGÚN NIVEL EDUCATIVO MÁXIMO ALCANZADO.
A7: NIVEL EDUCATIVO MÁXIMO ALCANZADO | C7: TRAMOS DE EDAD
C8: TOTAL | D8: 25 a 29 años | E8: 30 a 39 años | F8: 40 a 49 años | G8: 50 a 59 años | H8: 60 a 69 años | I8: 70 y más años
A10: TOTAL | C10: 100 | D10: 100 | E10: 100 | F10: 100 | G10: 100 | H10: 100 | I10: 100
A12: Sin instrucción | C12: 1.7 | D12: 0.2 | E12: 0.4 | F12: 0.5 | G12: 1 | H12: 2.1 | I12: 6
A13: Primaria incompleta | C13: 13.2 | D13: 3.7 | E13: 4 | F13: 6.6 | G13: 12.1 | H13: 22.5 | I13: 31.3
A14: Primaria completa | C14: 25.5 | D14: 16.7 | E14: 20 | F14: 25 | G14: 26.3 | H14: 28.7 | I14: 34.4
A16: HASTA PRIMARIA COMPLETA | C16: 40.4 | D16: 20.6 | E16: 24.4 | F16: 32.1 | G16: 39.4 | H16: 53.3 | I16: 71.7
A18: Ciclo Básico Liceo o UTU incompleto | C18: 1.6 | D18: 0.9 | E18: 1.2 | F18: 2 | G18: 2.379716232 | H18: 1.7791892 | I18: 1.051515494
A19: Ciclo Básico Liceo o UTU completo | C19: 2.3 | D19: 1.5 | E19: 1.4 | F19: 2.1 | G19: 3.275500004 | H19: 2.823582562 | I19: 2.492083239
A20: Ciclo Superior de Secundaria incompleto | C20: 9.8 | D20: 14.9 | E20: 12.9 | F20: 11.4 | G20: 9.034552767 | H20: 7.176218127 | I20: 4.090703461
A21: Ciclo Superior de Secundaria completo | C21: 9.5 | D21: 11.9 | E21: 13.6 | F21: 11.5 | G21: 9.473145859 | H21: 6.109568291 | I21: 3.691472518
A22: UTU Bachillerato Tecnológico y Cursos Superiores incompleto | C22: 13.1 | D22: 18.7 | E22: 18 | F22: 14.3 | G22: 12.74967906 | H22: 9.977212028 | I22: 5.672924678
A23: UTU Bachillerato Tecnológico y Cursos Superiores completo | C23: 7.4 | D23: 7.5 | E23: 8.6 | F23: 8.6 | G23: 8.831012509 | H23: 6.564331176 | I23: 3.810506673
A24: Terciaria Incompleta | C24: 6.6 | D24: 16.3 | E24: 8.9 | F24: 6.7 | G24: 4.60755217 | H24: 3.950358097 | I24: 2.675016964
A25: Terciaria Completa | C25: 9.2 | D25: 7.7 | E25: 11.1 | F25: 11.3 | G25: 10.2777498 | H25: 8.339866328 | I25: 4.806887582
A28: Fuentes: Elaboración propia en base a la Encuesta Continua de Hogares 2010.
A29: Nota: Todo el país (Año 2010)

Sheet I-1.2.4
A1: Ministerio de Educación y Cultura
A2: Dirección de Educación
A3: Área de Investigación y Estadística
A5: Cuadro I-1.2.4
A6: ASISTENCIA A ALGÚN ESTABLECIMIENTO EDUCATIVO POR EDADES SIMPLES SEGÚN AÑO LECTIVO.
A7: AÑO LECTIVO | B7: EDADES SIMPLES
B8: 0 | C8: 1 | D8: 2 | E8: 3 | F8: 4 | G8: 5 | H8: 6 | I8: 7 | J8: 8 | K8: 9 | L8: 10 | M8: 11 | N8: 12 | O8: 13 | P8: 14 | Q8: 15 | R8: 16 | S8: 17 | T8: 18 | U8: 19 | V8: 20 | W8: 21 | X8: 22
A10: 2006 | B10: s/d | C10: s/d | D10: s/d | E10: 46.3 | F10: 76.5 | G10: 95.2 | H10: 99.3 | I10: 99.6 | J10: 99.8 | K10: 99.8 | L10: 99.6 | M10: 99.6 | N10: 98.5 | O10: 95.2 | P10: 90.2 | Q10: 82.1 | R10: 76.6 | S10: 66.9 | T10: 55 | U10: 47 | V10: 40.5 | W10: 35.6 | X10: 34.3
A11: 2007 | B11: s/d | C11: s/d | D11: s/d | E11: 49.4 | F11: 78.9 | G11: 94.7 | H11: 99.3 | I11: 99.5 | J11: 99.7 | K11: 99.9 | L11: 99.8 | M11: 99.9 | N11: 99.8 | O11: 95 | P11: 88.7 | Q11: 82.1 | R11: 74.6 | S11: 65.5 | T11: 53.4 | U11: 46.3 | V11: 39.3 | W11: 37.1 | X11: 31.5
A12: 2008 | B12: s/d | C12: s/d | D12: s/d | E12: 49.9 | F12: 81.2 | G12: 96.4 | H12: 99 | I12: 99.1 | J12: 99.1 | K12: 99.3 | L12: 99.1 | M12: 99.1 | N12: 97.5 | O12: 94.3 | P12: 89.7 | Q12: 82.6 | R12: 73.3 | S12: 67.7 | T12: 52.8 | U12: 45.3 | V12: 42.2 | W12: 39 | X12: 33.5
A13: 2009 | B13: s/d | C13: s/d | D13: s/d | E13: 58.5 | F13: 86.61292945 | G13: 97.29827825 | H13: 98.86998197 | I13: 98.73929063 | J13: 98.75429914 | K13: 98.80778639 | L13: 98.94769485 | M13: 98.99786129 | N13: 97.95674751 | O13: 94.53801912 | P13: 91.02397863 | Q13: 83.82740185 | R13: 77.65199244 | S13: 70.21852525 | T13: 53.32166726 | U13: 44.9237894 | V13: 41.41130166 | W13: 37.58595256 | X13: 32.66290256
A14: 2010 | B14: 7.9 | C14: 24 | D14: 41.1 | E14: 61.3146386 | F14: 86.13443502 | G14: 97.33751141 | H14: 99.30623555 | I14: 99.00229597 | J14: 98.76006257 | K14: 99.22375578 | L14: 99.33265998 | M14: 98.54880558 | N14: 98.27346525 | O14: 95.55692687 | P14: 91.21820356 | Q14: 82.08162442 | R14: 78.07026208 | S14: 66.42554752 | T14: 49.22313138 | U14: 44.17699187 | V14: 40.54790591 | W14: 36.0866821 | X14: 32.08390572
A16: Fuentes: Elaboración propia en base a la ENHA 2006 y las ECH 2007 a 2010.
A17: Nota: Todo el país (Años 2006 a 2010)

Sheet I-1.2.5
A1: Ministerio de Educación y Cultura
A2: Dirección de Educación
A3: Área de Investigación y Estadística
A5: Cuadro I-1.2.5
A6: ASISTENCIA A ALGÚN ESTABLECIMIENTO EDUCATIVO POR EDADES SIMPLES SEGÚN AÑO LECTIVO y PERTENENCIA DE LOS HOGARES A LOS QUINTILES EXTREMOS DE INGRESOS.
A7: AÑO LECTIVO | C7: EDADES SIMPLES
C8: 12 | D8: 13 | E8: 14
A9: 1er Quintil
A10: 2006 | C10: 97.5 | D10: 93 | E10: 83.7
A11: 2007 | C11: 98.5 | D11: 92.6 | E11: 81.9
A12: 2008 | C12: 96.9 | D12: 90.2 | E12: 81.8
A13: 2009 | C13: 97.54878503 | D13: 91.21748179 | E13: 83.51193106
A14: 2010 | C14: 97.8 | D14: 92.6 | E14: 83.7
A16: Mayor
A17: 2006 | C17: 100 | D17: 99.2 | E17: 99.3
A18: 2007 | C18: 99.1 | D18: 100 | E18: 100
A19: 2008 | C19: 98.3 | D19: 98.1 | E19: 99.3
A20: 2009 | C20: 97.95674751 | D20: 94.53801912 | E20: 91.02397863
A21: 2010 | C21: 99.3 | D21: 99.2 | E21: 99.5
A23: Fuentes: | B23: Elaboración propia en base a la ENHA 2006 y las ECH 2007 a 2010.
A24: Nota: | B24: Todo el país (Años 2006 a 2010)

Sheet I-1.2.6
A1: Ministerio de Educación y Cultura
A2: Dirección de Educación
A3: Área de Investigación y Estadística
A5: Cuadro I-1.2.6
A6: DIFERENCIA DE ASISTENCIA ENTRE 2009 Y 2010 POR EDADES SIMPLES SEGÚN 1º QUINTIL Y QUINTIL MAYOR DE INGRESOS DE LOS HOGARES
A7: AÑO LECTIVO | C7: EDADES SIMPLES
C8: 12 | D8: 13 | E8: 14
A10: 1er Quintil | C10: 0.2 | D10: 1.3 | E10: 0.2
A11: Quintil mayor | C11: 1.4 | D11: 4.6 | E11: 8.5
A13: Fuentes: | B13: Elaboración propia en base a la ENHA 2006 y a las ECH 2007 a 2010.
A14: Nota: | B14: Todo el país (Años 2006 a 2010)

Sheet I-1.2.7
A1: Ministerio de Educación y Cultura
A2: Dirección de Educación
A3: Área de Investigación y Estadística
A5: Cuadro I-1.2.7
A6: ASISTENCIA A ALGÚN ESTABLECIMIENTO EDUCATIVO POR EDADES SIMPLES SEGÚN GRANDES ÁREAS Y AÑO LECTIVO.
A7: AÑO LECTIVO | B7: EDADES SIMPLES
B8: 3 | C8: 4 | D8: 5 | E8: 6 | F8: 7 | G8: 8 | H8: 9 | I8: 10 | J8: 11 | K8: 12 | L8: 13 | M8: 14 | N8: 15 | O8: 16 | P8: 17 | Q8: 18 | R8: 19 | S8: 20 | T8: 21 | U8: 22
A9: Montevideo
A10: 2006 | B10: 53.7 | C10: 79.4 | D10: 95.8 | E10: 99.1 | F10: 99.5 | G10: 99.7 | H10: 99.8 | I10: 99.6 | J10: 99.6 | K10: 99.1 | L10: 96.8 | M10: 93.3 | N10: 86.1 | O10: 79.1 | P10: 72.9 | Q10: 62.7 | R10: 55.1 | S10: 51.3 | T10: 47.9 | U10: 46
A11: 2007 | B11: 59.6 | C11: 82.5 | D11: 94.5 | E11: 99.1 | F11: 99.1 | G11: 99.6 | H11: 100 | I11: 99.8 | J11: 99.9 | K11: 99.2 | L11: 96.5 | M11: 90.7 | N11: 85.5 | O11: 80.3 | P11: 70.4 | Q11: 60.5 | R11: 56.9 | S11: 49.2 | T11: 49.1 | U11: 42.6
A12: 2008 | B12: 61.5 | C12: 86.5 | D12: 96.5 | E12: 99.1 | F12: 98.9 | G12: 99 | H12: 99.4 | I12: 98.8 | J12: 98.9 | K12: 98.1 | L12: 96.2 | M12: 92.8 | N12: 87.3 | O12: 79.1 | P12: 74.1 | Q12: 57.6 | R12: 54.2 | S12: 51.5 | T12: 48.5 | U12: 45.9
A13: 2009 | B13: 67.2 | C13: 86.48777013 | D13: 95.49903335 | E13: 98.56396867 | F13: 98.49979081 | G13: 97.91038105 | H13: 99.37256232 | I13: 99.21032471 | J13: 99.30379373 | K13: 98.46398908 | L13: 96.67880866 | M13: 93.4525763 | N13: 88.59483302 | O13: 81.82604933 | P13: 74.78852042 | Q13: 60.94116364 | R13: 51.03289156 | S13: 50.7980944 | T13: 52.02669167 | U13: 41.98231009
A14: 2010 | B14: 72.17054264 | C14: 88.98148148 | D14: 95.59054203 | E14: 99.01456461 | F14: 98.39847097 | G14: 99.18397626 | H14: 98.47762169 | I14: 99.34920458 | J14: 98.20684659 | K14: 97.94633078 | L14: 96.85470452 | M14: 93.56001254 | N14: 85.87642565 | O14: 82.0582644 | P14: 70.91592442 | Q14: 56.75409297 | R14: 52.63506429 | S14: 50.45584788 | T14: 48.62321553 | U14: 44.17418385
A16: Resto del país
A17: 2006 | B17: 41.9 | C17: 74.8 | D17: 94.8 | E17: 99.4 | F17: 99.6 | G17: 99.8 | H17: 99.8 | I17: 99.6 | J17: 99.5 | K17: 98.2 | L17: 94.4 | M17: 88.4 | N17: 79.7 | O17: 75.1 | P17: 63 | Q17: 49.6 | R17: 41.8 | S17: 33.1 | T17: 25.9 | U17: 24.5
A18: 2007 | B18: 43.3 | C18: 76.9 | D18: 94.8 | E18: 99.5 | F18: 99.8 | G18: 99.7 | H18: 99.9 | I18: 99.8 | J18: 99.8 | K18: 98.5 | L18: 94.2 | M18: 87.7 | N18: 80.2 | O18: 71.5 | P18: 62.5 | Q18: 48.9 | R18: 38.9 | S18: 32.7 | T18: 27.9 | U18: 23
A19: 2008 | B19: 42.8 | C19: 78 | D19: 96.3 | E19: 98.9 | F19: 99.2 | G19: 99.1 | H19: 99.2 | I19: 99.3 | J19: 99.1 | K19: 97.1 | L19: 93.4 | M19: 88.1 | N19: 79.9 | O19: 69.9 | P19: 63.6 | Q19: 49.7 | R19: 39.1 | S19: 35.2 | T19: 31.2 | U19: 23
A20: 2009 | B20: 52.5 | C20: 86.69337913 | D20: 98.38000799 | E20: 99.06344194 | F20: 98.88076828 | G20: 99.26139797 | H20: 98.48504425 | I20: 98.80577052 | J20: 98.8365582 | K20: 97.68395288 | L20: 93.39238619 | M20: 89.69421067 | N20: 80.90657573 | O20: 75.26312531 | P20: 67.40899084 | Q20: 48.51849306 | R20: 40.51847553 | S20: 34.02627512 | T20: 26.62788751 | U20: 24.53848596
A21: 2010 | B21: 58.02469136 | C21: 86.31280751 | D21: 98.44274162 | E21: 99.46854402 | F21: 99.2169016 | G21: 98.42153544 | H21: 99.61813405 | I21: 99.25320267 | J21: 98.77177003 | K21: 98.72338114 | L21: 95.44851515 | M21: 91.68223814 | N21: 81.29686235 | O21: 77.15231788 | P21: 64.77768557 | Q21: 45.58448953 | R21: 39.41109462 | S21: 34.81613949 | T21: 28.91136228 | U21: 23.65918304
A23: Fuentes: Elaboración propia en base a la ENHA 2006 y las ECH 2007 a 2010.
A24: Nota: Todo el país (Años 2006 a 2010)

Sheet I-1.2.8
A1: Ministerio de Educación y Cultura
A2: Dirección de Educación
A3: Área de Investigación y Estadística
A5: Cuadro I-1.2.8
A6: MATRÍCULA DEL SISTEMA EDUCATIVO POR AÑO LECTIVO (2001-2010) SEGÚN NIVEL, FORMA DE ADMINISTRACIÓN Y MODALIDAD.
A7: NIVEL / FORMA DE ADMINISTRACIÓN / MODALIDAD | D7: AÑO LECTIVO
D8: 2001 | E8: 2002 | F8: 2003 | G8: 2004 | H8: 2005 | I8: 2006 | J8: 2007 | K8: 2008 | L8: 2009 | M8: 2010
A10: TOTAL SISTEMA | D10: =D12+D20+D30+D50+D56+D65 -> 919203 | E10: 943130 | F10: 949606 | G10: 954690 | H10: 937573 | I10: 947477 | J10: 949746 | K10: 969834 | L10: 986125 | M10: 965908
A12: Total Educación Pre Primaria | D12: =D14+D16 -> 144150 | E12: =E14+E16 -> 144319 | F12: 133964 | G12: 140628 | H12: 133640 | I12: 141065 | J12: 141307 | K12: 157582 | L12: 173003 | M12: =M14+M16 -> 160504
B14: Total Primera Infancia1 | D14: =11339+27014 -> 38353 | E14: 38096 | F14: 30345 | G14: 35413 | H14: 28069 | I14: 34429 | J14: 34429 | K14: 47928 | L14: 61112 | M14: 50685
B16: Total Educación Inicial2 | D16: =D17+D18 -> 105797 | E16: =E17+E18 -> 106223 | F16: 103619 | G16: 105215 | H16: 105571 | I16: 106636 | J16: 106878 | K16: 109654 | L16: 111891 | M16: 109819
B17: Inicial pública | D17: 87155 | E17: 86906 | F17: 85628 | G17: 84612 | H17: 83546 | I17: 81833 | J17: 81176 | K17: 82649 | L17: 83854 | M17: 81875
B18: Inicial privada | D18: 18642 | E18: 19317 | F18: 17991 | G18: 20603 | H18: 22025 | I18: 24803 | J18: 25702 | K18: 27005 | L18: 28037 | M18: 27944
A20: Total Educación Primaria | D20: =D22+D26 -> 358231 | E20: =E22+E26 -> 365004 | F20: 365495 | G20: 367428 | H20: 365840 | I20: 365879 | J20: 360653 | K20: 354852 | L20: 349271 | M20: 342356
B22: Primaria Común | D22: =D23+D24 -> 349549 | E22: =E23+E24 -> 353826 | F22: 354843 | G22: 355568 | H22: 354777 | I22: 353528 | J22: 348579 | K22: 342498 | L22: 336865 | M22: 330548
B23: Primaria Común pública | D23: 304452 | E23: 307756 | F23: 311141 | G23: 311350 | H23: 309286 | I23: 306030 | J23: 300143 | K23: 292542 | L23: 286092 | M23: 279445
B24: Primaria Común privada | D24: 45097 | E24: 46070 | F24: 43702 | G24: 44218 | H24: 45491 | I24: 47498 | J24: 48436 | K24: 49956 | L24: 50773 | M24: 51103
B26: Primaria Especial | D26: =D27 -> 8682 | E26: =E27+E28 -> 11178 | F26: =F27+F28 -> 10652 | G26: 11860 | H26: 11063 | I26: 12351 | J26: 12074 | K26: 12354 | L26: 12406 | M26: 11808
B27: Primaria Especial pública | D27: 8682 | E27: 9076 | F27: 8884 | G27: 8553 | H27: 8379 | I27: 8221 | J27: 7913 | K27: 7778 | L27: 7535 | M27: 7416
B28: Primaria Especial privada | D28: ... | E28: 2102 | F28: 1768 | G28: 3307 | H28: 2684 | I28: 4130 | J28: 4161 | K28: 4576 | L28: 4871 | M28: 4392
A30: Total Educación Media | D30: =D32+D42 -> 277487 | E30: =E32+E42 -> 295399 | F30: 306417 | G30: 306778 | H30: 302311 | I30: 300681 | J30: 298925 | K30: 310128 | L30: 320420 | M30: 322977
B32: Total Educación Media Básica | D32: =D34+D36+D40 -> 157389 | E32: =E34+E36+E40 -> 162664 | F32: 164180 | G32: 161736 | H32: 158131 | I32: 160028 | J32: 160367 | K32: 171502 | L32: =L34+L36+L40 -> 177015 | M32: =M34+M36+M40 -> 177619
B34: Ciclo Básico Rural (7mo, 8vo y 9no) | D34: 1037 | E34: 1498 | F34: 1771 | G34: 1869 | H34: 1797 | I34: 1818 | J34: 1784 | K34: 2028 | L34: 1991 | M34: 1934
B36: Total Media Básica General | D36: =D37+D38 -> 142102 | E36: =E37+E38 -> 146588 | F36: 147146 | G36: 144374 | H36: 140743 | I36: 142350 | J36: 142420 | K36: 151798 | L36: 155409 | M36: 155444
A37: Media Básica General Pública | D37: 120226 | E37: 125367 | F37: 127162 | G37: 123869 | H37: 120487 | I37: 121195 | J37: 120960 | K37: 127681 | L37: 130013 | M37: 130073
A38: Media Básica General Privada3 | D38: 21876 | E38: 21221 | F38: 19984 | G38: 20505 | H38: 20256 | I38: 21155 | J38: 21460 | K38: 24117 | L38: 25396 | M38: 25371
B40: Media Básica Tecnológica | D40: ='[1]CB MEDIA'!C4 -> 14250 | E40: ='[1]CB MEDIA'!D4 -> 14578 | F40: ='[1]CB MEDIA'!E4 -> 15263 | G40: ='[1]CB MEDIA'!F4 -> 15493 | H40: ='[1]CB MEDIA'!G4 -> 15591 | I40: ='[1]CB MEDIA'!H4 -> 15860 | J40: ='[1]CB MEDIA'!I4 -> 16163 | K40: ='[1]CB MEDIA'!J4 -> 17676 | L40: ='[1]CB MEDIA'!K4 -> 19615 | M40: ='[1]CB MEDIA'!L4 -> 20241
B42: Total Educación Media Superior | D42: =D44+D48 -> 120098 | E42: =E44+E48 -> 132735 | F42: 142237 | G42: 145042 | H42: 144180 | I42: 140653 | J42: 138558 | K42: 138626 | L42: 143405 | M42: 145358
B44: Total Media Superior General | D44: =D45+D46 -> 112639 | E44: =E45+E46 -> 122617 | F44: 129454 | G44: 127356 | H44: 124512 | I44: 119418 | J44: 112877 | K44: 110507 | L44: 112664 | M44: 113327
A45: Media Superior General Pública | D45: 99008 | E45: 108589 | F45: 115157 | G45: 112669 | H45: 108459 | I45: 103938 | J45: 97136 | K45: 94506 | L45: 96319 | M45: 96902
A46: Media Superior General Privada3 | D46: 13631 | E46: 14028 | F46: 14297 | G46: 14687 | H46: 16053 | I46: 15480 | J46: 15741 | K46: 16001 | L46: 16345 | M46: 16425
B48: Total Media Superior Tecnológica | D48: ='[1]CS MEDIA'!C4 -> 7459 | E48: ='[1]CS MEDIA'!D4 -> 10118 | F48: ='[1]CS MEDIA'!E4 -> 12783 | G48: ='[1]CS MEDIA'!F4 -> 17686 | H48: ='[1]CS MEDIA'!G4 -> 19668 | I48: ='[1]CS MEDIA'!H4 -> 21235 | J48: ='[1]CS MEDIA'!I4 -> 25681 | K48: ='[1]CS MEDIA'!J4 -> 28119 | L48: ='[1]CS MEDIA'!K4 -> 30741 | M48: ='[1]CS MEDIA'!L4 -> 32031
A50: Total Educación Técnica | D50: =D52+D54 -> 37304 | E50: =E52+E54 -> 36416 | F50: 37219 | G50: 32372 | H50: 27146 | I50: 28840 | J50: 24419 | K50: 19957 | L50: =L52+L54 -> 16769 | M50: =M52+M54 -> 11912
B52: Nivel Básico Tecnológico | D52: 20149 | E52: 20154 | F52: 21719 | G52: 20724 | H52: 18180 | I52: 19336 | J52: 18539 | K52: 16387 | L52: 13653 | M52: 9800
B54: Nivel Superior Tecnológico | D54: 17155 | E54: 16262 | F54: 15500 | G54: 11648 | H54: 8966 | I54: 9504 | J54: 5880 | K54: 3570 | L54: 3116 | M54: 2112
A56: Total Educación Terciaria No Universitaria | D56: =D58+D63 -> 22353 | E56: 22231 | F56: 26649 | G56: 27834 | H56: 26233 | I56: 27263 | J56: 28395 | K56: 29465 | L56: 28130 | M56: =M58+M63 -> 28263
B58: Terciaria No Universitaria Pública | D58: =D59+D60+D61+D62 -> 19470 | E58: =E59+E60+E61+E62 -> 21758 | F58: 25405 | G58: 27389 | H58: 25928 | I58: 27132 | J58: 28242 | K58: 29290 | L58: 28034 | M58: =M59+M60+M61+M62 -> 28215
B59: Formación docente | D59: 14788 | E59: 16610 | F59: 19298 | G59: 20968 | H59: 20435 | I59: 21175 | J59: 21992 | K59: 22108 | L59: 20391 | M59: 20191
B60: Terciaria Tecnológica (CETP) | D60: 2314 | E60: 2564 | F60: 3514 | G60: 3671 | H60: 4024 | I60: 3961 | J60: 3896 | K60: 4650 | L60: 4964 | M60: 6158
B61: Terciaria Policial o Militar | D61: 591 | E61: 620 | F61: 623 | G61: 653 | H61: 679 | I61: 724 | J61: 652 | K61: 557 | L61: 649 | M61: 603
B62: Otras terciaria pública4 | D62: 1777 | E62: 1964 | F62: 1970 | G62: 2097 | H62: 790 | I62: 1272 | J62: 1702 | K62: 1975 | L62: 2030 | M62: 1263
B63: Terciaria No Universitaria Privada5 | D63: 2883 | E63: 473 | F63: 1244 | G63: 445 | H63: 305 | I63: 131 | J63: 153 | K63: 175 | L63: 96 | M63: 48
A65: Total Educación Universitaria6 | D65: =D67+D69 -> 79678 | E65: =E67+E69 -> 79761 | F65: 79862 | G65: 79650 | H65: 82403 | I65: 83749 | J65: 96047 | K65: 97850 | L65: 98532 | M65: =M67+M69 -> 99896
B67: Universitaria Pública (UdelaR) 7 | D67: 70156 | E67: 70156 | F67: 70156 | G67: 70156 | H67: 70156 | I67: 70156 | J67: 81774 | K67: 81774 | L67: 81774 | M67: 81774
B69: Universitaria Privada | D69: 9522 | E69: 9605 | F69: 9706 | G69: 9494 | H69: 12247 | I69: 13593 | J69: 14273 | K69: 16076 | L69: 16758 | M69: 18122
A72: Fuentes:
A73: Departamentos de Estadística (u oficinas productoras de información) del CEIP, CES y CETP y de la Universidad de la República, Dirección de Formación y Perfeccionamiento Docente, e instituciones privadas de educación terciaria.
A75: Nota:
A76: 1. Los datos de primera infancia de 2006 fueron corregidos para 2007, ya que por error se contabilizaron centros pertenecientes al censo 2007 que eran reportados por primaria.
A77: 2. En el caso de CAÍF solo se tomaron niños de 2 a 5 años que son los que asisten a inicial, no se tomaron los niños de 0 a 2.
A78: 3. Los datos de secundaria privada corresponden a la educación secundaria habilitada, que se componen en su gran mayoría por liceos privados a los que se suma el Liceo Militar y el bachillerato de la Escuela Naval.
A79: 4. La baja significativa de matriculados en la categoría “Otras terciaria pública” responde a que el ISEF no reportó información para el año 2005 y sí lo había hecho en 2004 (1181 matriculados). En 2006 y 2007 reportó en UdelaR porque pasó a formar parte de Terciaria Universitaria, al igual que el C.D.I para el año 2010.
A80: 5. Algunas instituciones de educación terciaria no universitaria privada fueron reportadas en distintos niveles a lo largo de la serie o bien no reportaron en algunos de los años, lo que explica la irregularidad de la evolución de la matrícula en este nivel.
A81: 6. Los datos de enseñanza terciaria universitaria pública corresponden a carreras cortas y de grado (excluyen carreras de postgrado).
A82: 7. Los datos de UdelaR del 2000 a 2006 corresponde a una proyección realizada del Censo 1999 de carreras de grado. El dato de 2007-2010 corresponde al Censo 2007 (en ambos casos no incluyen carreras de postgrado)

Sheet I-1.2.9
A1: Ministerio de Educación y Cultura
A2: Dirección de Educación
A3: Área de Investigación y Estadística
A5: Cuadro I-1.2.9
A6: MATRICULA POR NIVEL Y FORMA DE ADMINISTRACIÓN SEGÚN GRANDES ÁREAS Y DEPARTAMENTO.
A7: GRANDES ÁREAS / DEPARTAMENTO | C7: NIVEL / FORMA DE ADMINISTRACIÓN
C8: EDUCACIÓN INICIAL | F8: EDUCACIÓN PRIMARIA | I8: EDUCACIÓN MEDIA
C9: Total | D9: FORMA DE ADMINISTRACIÓN | F9: Total | G9: FORMA DE ADMINISTRACIÓN | I9: Total | J9: FORMA DE ADMINISTRACIÓN
D10: Pública | E10: Privada | G10: Pública | H10: Privada | J10: Pública | K10: Privada
A12: TOTAL | C12: 109819 | D12: 81875 | E12: 27944 | F12: 342356 | G12: 286861 | H12: 55495 | I12: 322977 | J12: 281181 | K12: 41796
C13: 100 | D13: 74.55449421 | E13: 25.44550579 | F13: 100 | G13: 83.7902651 | H13: 16.2097349 | I13: 100 | J13: 87.05914043 | K13: 12.94085957
A14: MONTEVIDEO | C14: 40760 | D14: 24014 | E14: 16746 | F14: 122062 | G14: 88439 | H14: 33623 | I14: 122450 | J14: 93936 | K14: 28514
C15: 100 | D15: 58.91560353 | E15: 41.08439647 | F15: 100 | G15: 72.45416264 | H15: 27.54583736 | I15: 100 | J15: 76.71376072 | K15: 23.28623928
A16: RESTO DEL PAÍS | C16: 69059 | D16: 57861 | E16: 11198 | F16: 220294 | G16: 198422 | H16: 21872 | I16: 200527 | J16: 187245 | K16: 13282
C17: 100 | D17: 83.7848796 | E17: 16.2151204 | F17: 100 | G17: 90.07144997 | H17: 9.928550029 | I17: 100 | J17: 93.37645305 | K17: 6.623546954
A18: Artigas | C18: 2580 | D18: 2505 | E18: 75 | F18: 9666 | G18: 9429 | H18: 237 | I18: 8782 | J18: 8782 | K18: 0
A19: Canelones | C19: 16803 | D19: 13027 | E19: 3776 | F19: 53843 | G19: 46620 | H19: 7223 | I19: 48568 | J19: 43953 | K19: 4615
A20: Cerro Largo | C20: 2964 | D20: 2656 | E20: 308 | F20: 10264 | G20: 9678 | H20: 586 | I20: 9083 | J20: 8775 | K20: 308
A21: Colonia | C21: 4144 | D21: 3559 | E21: 585 | F21: 11648 | G21: 10921 | H21: 727 | I21: 11757 | J21: 11691 | K21: 66
A22: Durazno | C22: 1911 | D22: 1722 | E22: 189 | F22: 6785 | G22: 6217 | H22: 568 | I22: 6154 | J22: 5824 | K22: 330
A23: Flores | C23: 866 | D23: 677 | E23: 189 | F23: 2707 | G23: 2323 | H23: 384 | I23: 2739 | J23: 2487 | K23: 252
A24: Florida | C24: 2294 | D24: 2057 | E24: 237 | F24: 6986 | G24: 6599 | H24: 387 | I24: 6546 | J24: 6206 | K24: 340
A25: Lavalleja | C25: 2164 | D25: 1779 | E25: 385 | F25: 6053 | G25: 5404 | H25: 649 | I25: 5845 | J25: 5632 | K25: 213
A26: Maldonado | C26: 6086 | D26: 4046 | E26: 2040 | F26: 18005 | G26: 13985 | H26: 4020 | I26: 16168 | J26: 13426 | K26: 2742
A27: Paysandú | C27: 4082 | D27: 3571 | E27: 511 | F27: 13921 | G27: 12457 | H27: 1464 | I27: 11568 | J27: 10663 | K27: 905
A28: Río Negro | C28: 2177 | D28: 1891 | E28: 286 | F28: 6760 | G28: 6181 | H28: 579 | I28: 5551 | J28: 5511 | K28: 40
A29: Rivera | C29: 4127 | D29: 3678 | E29: 449 | F29: 12817 | G29: 12152 | H29: 665 | I29: 11869 | J29: 11167 | K29: 702
A30: Rocha | C30: 2444 | D30: 2189 | E30: 255 | F30: 7679 | G30: 7185 | H30: 494 | I30: 7195 | J30: 6901 | K30: 294
A31: Salto | C31: 4959 | D31: 4169 | E31: 790 | F31: 15609 | G31: 14275 | H31: 1334 | I31: 13359 | J31: 12558 | K31: 801
A32: San José | C32: 3329 | D32: 3054 | E32: 275 | F32: 11012 | G32: 10402 | H32: 610 | I32: 10408 | J32: 9927 | K32: 481
A33: Soriano | C33: 3038 | D33: 2717 | E33: 321 | F33: 10040 | G33: 8950 | H33: 1090 | I33: 9024 | J33: 8729 | K33: 295
A34: Tacuarembó | C34: 3404 | D34: 2961 | E34: 443 | F34: 10969 | G34: 10308 | H34: 661 | I34: 10360 | J34: 9767 | K34: 593
A35: Treinta y Tres | C35: 1687 | D35: 1603 | E35: 84 | F35: 5530 | G35: 5336 | H35: 194 | I35: 5551 | J35: 5246 | K35: 305
A37: Fuente: | B37: Departamentos de Estadísticas del C.E.P., C.E.S. y C.E.T.P.
A38: Notas: | B38: * Educación Inicial solo incluye órbita ANEP
B39: * Educación Primaria incluye común y especial.
B40: * Educación media incluye enseñanza secundaria, ciclo básico rural (7º, 8º y 9º) y enseñanza técnica. En el caso de enseñanza secundaria, se cuentan como privadas las instituciones habilitadas que incluye al Liceo Militar y la Escuela Naval. En el caso de enseñanza técnica se consideran únicamente a los alumnos del Consejo de Educación Técnico Profesional de cursos de nivel medio (no considera los de nivel terciario).

Sheet I-1.2.10
A1: Ministerio de Educación y Cultura
A2: Dirección de Educación
A3: Área de Investigación y Estadística
A5: Cuadro I-1.2.10
A6: JÓVENES DE 15 A 20 AÑOS DE EDAD POR ASISTENCIA A ALGÚN ESTABLECIMIENTO DE EDUCACIÓN Y ACTIVIDAD SEGÚN NIVEL EDUCATIVO MÁXIMO ALCANZADO
A7: NIVEL EDUCATIVO MÁXIMO ALCANZADO | C7: ASISTENCIA A ALGÚN ESTABLECIMIENTO DE EDUCACIÓN Y ACTIVIDAD
C8: TOTAL | D8: Asiste y trabaja o busca trabajo | E8: Asiste y no trabaja ni busca trabajo | F8: No Asiste y trabaja o busca trabajo | G8: No asiste, no trabaja y no busca trabajo
A10: TOTAL | C10: 100 | D10: 13.24804049 | E10: 48.19797076 | F10: 26.16248317 | G10: 12.39150558
C11: =D11+E11+F11+G11 -> 0.1520725139 | D11: 0 | E11: 0 | F11: 0.004207539912 | G11: 0.147864974
A12: Sin instrucción | C12: =D12+E12+F12+G12 -> 0.01081938834 | D12: 0 | E12: 0 | F12: 0 | G12: 0.01081938834
A13: Primaria incompleta | C13: 2.764954799 | D13: 0.1196143489 | E13: 0.5370624158 | F13: 0.9010146182 | G13: 1.207263416
A14: Primaria completa | C14: 10.69105838 | D14: 0 | E14: 0 | F14: 6.60824197 | G14: 4.082816407
A15: Ciclo Básico Liceo o UTU incompleto | C15: 1.408023178 | D15: 0.3059482593 | E15: 0.6551740719 | F15: 0.3005385651 | G15: 0.1463622812
A16: Ciclo Básico Liceo o UTU completo | C16: 0.4532121562 | D16: 0 | E16: 0 | F16: 0.3543349683 | G16: 0.09887718792
A17: Ciclo Superior de Secundaria incompleto | C17: 29.62558906 | D17: 3.47061935 | E17: 14.38197249 | F17: 8.212216292 | G17: 3.560780919
A18: Ciclo Superior de Secundaria completo | C18: 6.487124928 | D18: 0 | E18: 0 | F18: 4.899980766 | G18: 1.587144162
A19: UTU Bachillerato Tecnológico y Cursos Superiores incompleto | C19: 37.68362906 | D19: 6.965582324 | E19: 26.39840594 | F19: 3.48534574 | G19: 0.8342950567
A20: UTU Bachillerato Tecnológico y Cursos Superiores completo | C20: 1.917135507 | D20: 0 | E20: 0 | F20: 1.266168975 | G20: 0.650966532
A21: Terciaria Incompleta | C21: 8.738759858 | D21: 2.386276207 | E21: 6.225355838 | F21: 0.08895941527 | G21: 0.03816839777
A22: Terciaria Completa | C22: 0.06762117715 | D22: 0 | E22: 0 | F22: 0.04147432198 | G22: 0.02614685516
A24: Fuentes: Elaboración propia en base a la ECH 2010.
A25: Nota: Todo el país (Año 2010)

Sheet I-2.1.1
A1: Ministerio de Educación y Cultura
A2: Dirección de Educación
A3: Área de Investigación y Estadística
A5: Cuadro I-2.1.1
A6: TASA NETA DE MATRICULACIÓN ENTRE LOS NIÑOS DE 3 A 5 AÑOS POR AÑO LECTIVO Y TRAMOS DE EDAD
A7: Tramos de edad | C7: Año Lectivo
C8: 2008 | D8: 2009 | E8: 2010
A10: 3 a 5 años | C10: 76.8 | D10: 81.2 | E10: 81.9
A12: 4 y 5 años | C12: 88.9 | D12: 92 | E12: 91.9
A15: Fuentes: | B15: Elaboración propia en base en las ECH 2008, 2009 y 2010 del INE.

Sheet I-2.2.1
A1: Ministerio de Educación y Cultura
A2: Dirección de Educación
A3: Área de Investigación y Estadística
A5: Cuadro I-2.2.1
A6: MATRÍCULA EN EDUCACIÓN PRIMARIA ESPECIAL SEGÚN REGIÓN Y FORMA DE ADMINISTRACIÓN
A7: REGIÓN Y FORMA DE ADMINISTRACIÓN | C7: Cantidad absoluta | D7: Porcentaje
A9: TOTAL | C9: =C12+C13 -> 11808 | D9: 100
A11: REGIÓN
A12: Montevideo | C12: ='II-2.2.2'!H11+'II-2.2.5'!G13 -> 5543 | D12: =C12/(C12+C13)*100 -> 46.94275068
A13: Resto del país | C13: ='II-2.2.2'!H12+'II-2.2.5'!G14 -> 6265 | D13: =100-D12 -> 53.05724932
A15: FORMA DE ADMINISTRACIÓN
A16: Público | C16: ='II-2.2.2'!H10 -> 7416 | D16: =C16/(C16+C17)*100 -> 62.80487805
A17: Privado | C17: ='II-2.2.5'!G11 -> 4392 | D17: =100-D16 -> 37.19512195
A19: Fuentes: Elaboración propia en base a información del Departamento de Estadística del CEP

Sheet I-2.2.2
A1: Ministerio de Educación y Cultura
A2: Dirección de Educación
A3: Área de Investigación y Estadística
A5: Cuadro I-2.2.2
A6: MATRÍCULA EN EDUCACIÓN PRIMARIA PÚBLICA COMÚN POR AÑO LECTIVO SEGÚN ÁREAS DEMOGRÁFICAS (2000 – 2010)
A7: ÁREAS DEMOGRÁFICAS | C7: AÑO LECTIVO
C8: 2000 | D8: 2001 | E8: 2002 | F8: 2003 | G8: 2004 | H8: 2005 | I8: 2006 | J8: 2007 | K8: 2008 | L8: 2009 | M8: 2010
A10: Urbana | C10: 285077 | D10: 288168 | E10: 291484 | F10: 294182 | G10: 293879 | H10: 292143 | I10: 285826 | J10: 280554 | K10: 273491 | L10: 267638 | M10: ='II-2.2.3'!D12 -> 262192
A11: Rural | C11: 16105 | D11: 16284 | E11: 16272 | F11: 16959 | G11: 17471 | H11: 17143 | I11: 20204 | J11: 19589 | K11: 19051 | L11: 18454 | M11: ='II-2.2.3'!J12 -> 17253
A14: % Urbana | C14: 94.7 | D14: 94.7 | E14: 94.7 | F14: 94.5 | G14: 94.4 | H14: 94.5 | I14: 93.4 | J14: 93.5 | K14: 93.5 | L14: 93.54962739 | M14: =M10/(M10+M11)*100 -> 93.82597649
A16: Fuentes: Elaboración propia en base al Departamento de Estadística del CEIP.

Sheet I-2.2.3
A1: Ministerio de Educación y Cultura
A2: Dirección de Educación
A3: Área de Investigación y Estadística
A5: Cuadro I-2.2.3
A6: PORCENTAJE DE ASISTENCIA INSUFICIENTE Y ABANDONO INTERMITENTE DE 1º A 6º GRADO EN EDUCACIÓN PRIMARIA COMÚN PÚBLICA SEGÚN REGIONES Y CONTEXTO 1er QUINTIL Y QUINTIL MAYOR (AÑO 2010)
C7: ASISTENCIA | D7: ABANDONO
C8: INSUFICIENTE | D8: INTERMITENTE
A10: TOTAL | C10: 7.2 | D10: 1.2
A12: MONTEVIDEO | C12: 9.6 | D12: 0
A13: RESTO DEL PAÍS | C13: 6.2 | D13: 1
A16: 1Quintil-Urbano | C16: 11.8 | D16: 2.1
A17: 1Quintil-Rural | C17: 8 | D17: 1.3
A19: 5Quintil-Urbano | C19: 3.6 | D19: 0.7
A20: 5Quintil-Rural | C20: 3.8 | D20: 0.8
A23: Fuentes: | B23: Monitor Educativo de Enseñanza Estado de Situación 2010 y Elaboración propia en base a datos de CEIP.

Sheet I-2.3.1
A1: Ministerio de Educación y Cultura
A2: Dirección de Educación
A3: Área de Investigación y Estadística
A5: Cuadro I-2.3.1
A6: NO APROBADOS Y DESVINCULADOS EN EDUCACIÓN MEDIA BÁSICA PÚBLICA POR GRANDES ÁREAS SEGÚN MODALIDAD Y GRADO (Turno diurno)
B7: GRADO | C7: GRANDES ÁREAS
C8: TOTAL | D8: Montevideo | E8: Interior | F8: Desvinculados
A9: Educación Media Básica General (CES) | B9: Primero | C9: 29.4 | D9: 42.9 | E9: 24 | F9: 4.7
B10: Segundo | C10: 25.4 | D10: 35.7 | E10: 20.8 | F10: 3.6
B11: Tercero | C11: 27.8 | D11: 37.1 | E11: 23 | F11: 3.7
A12: Educación Media Básica Tecnológica (CETP) | B12: Primero | C12: 20.3960396 | D12: 20.65637066 | E12: 20.35134239 | F12: 23.26732673
B13: Segundo | C13: 21.26530612 | D13: 23.45844504 | E13: 20.87144921 | F13: 17.10204082
B14: Tercero | C14: 18.73096447 | D14: 20.32667877 | E14: 18.47152552 | F14: 19.92385787
A15: Fuentes: Departamento de Estadística del CES
A16: Nota: No incluye liceos extra edad.
A17: La información del CETP refiere al último dato disponible (último dato disponible 2009)
A18: La información del CETP no incluye Formación Profesional Básica Plan 2007 y Ciclo Básico Tecnológico Agrario
A19: Def: CETP- "Aprobado" es la categoría que reúne a los alumnos con fallo final de aprobación (Total o Parcial) del curso realizado durante el año t y que lo habilita a cursar el grado (semestre/ módulo) siguiente en t + 1. / "Desvinculado" reúne a los alumnos que abandonaron durante el período interanual del año t y, no se encontraron en la matrícula del año t + 1. / "Repite" reúne a los alumnos que abandonar o no aprobaron el curso en el año t, y se encuentran en el mismo grado (módulo) y nivel en el año t + 1 (esta categoría incluye los cambios de orientación)
A23: Def: CES- "Desvinculados" Son los alumnos con más de 50 inasistencias, que se desconoce su destino.

Sheet I-2.3.2
A1: Ministerio de Educación y Cultura
A2: Dirección de Educación
A3: Área de Investigación y Estadística
A5: Cuadro I-2.3.2
A6: NO APROBADOS Y DESVINCULADOS EN EDUCACIÓN MEDIA TECNOLÓGICA SUPERIOR PÚBLICA POR GRANDES ÁREAS SEGÚN MODALIDAD Y GRADO (Turno diurno)
B7: GRADO | C7: GRANDES ÁREAS
C8: TOTAL | D8: Montevideo | E8: Interior | F8: Desvinculados
A9: Educación Media Profesional | B9: Primero | C9: 8.911521324 | D9: 10.96946339 | E9: 7.362784471 | F9: 35.9898154
B10: Segundo | C10: 7.992895204 | D10: 10.9159943 | E10: 5.423445974 | F10: 22.09147425
A11: Bachillerato Profesional | B11: Primero | C11: 11.61048689 | D11: 11.35135135 | E11: 13.41463415 | F11: 30.71161049
A12: Educación Media Tecnológica | B12: Primero | C12: 14.76878289 | D12: 16.79572764 | E12: 13.30505206 | F12: 32.69510693
B13: Segundo | C13: 15.97701149 | D13: 21.51211362 | E13: 11.28803963 | F13: 17.60536398
B14: Tercero | C14: 14.12202807 | D14: 21.64226607 | E14: 7.96875 | F14: 15.95531366
A15: Fuentes: Departamento de Estadística del CES.
A16: Nota: No incluye EMP Especialización, Bachillerato Figari y Curso de Articulación.
A17: La información del CETP refiere al último dato disponible (último dato disponible 2009)
A18: El Bachillerato Profesional es un año único opcional post Educación Media Profesional (EMP) para culminación
A19: de la Educación Media Superior (titulación de Técnico Medio, Bachiller Profesional)
A20: Def: CETP- "Aprobado" es la categoría que reúne a los alumnos con fallo final de aprobación (Total o Parcial) del curso realizado durante el año t y que lo habilita a cursar el grado (semestre/ módulo) siguiente en t + 1. / "Desvinculado" reúne a los alumnos que abandonaron durante el período interanual del año t y, no se encontraron en la matrícula del año t + 1. / "Repite" reúne a los alumnos que abandonar o no aprobaron el curso en el año t, y se encuentran en el mismo grado (módulo) y nivel en el año t + 1 (esta categoría incluye los cambios de orientación)

Sheet I-2.5.1
A1: Ministerio de Educación y Cultura
A2: Dirección de Educación
A3: Área de Investigación y Estadística
A5: Cuadro I-2.5.1
A6: EVOLUCIÓN DE LA MATRÍCULA DE LAS INSTITUCIONES UNIVERSITARIAS (2000 – 2010)
A7: INSTITUCIONES | B7: AÑO LECTIVO
A8: UNIVERSITARIAS | B8: 2000 | C8: 2001 | D8: 2002 | E8: 2003 | F8: 2004 | G8: 2005 | H8: 2006 | I8: 2007 | J8: 2008 | K8: 2009 | L8: 2010
A10: TOTAL | B10: =B12+B22 -> 78634 | C10: =C12+C22 -> 79678 | D10: 79761 | E10: 79862 | F10: 79650 | G10: 85019 | H10: 86802 | I10: 131000 | J10: 132905 | K10: 133699 | L10: 135288
A12: Total Universidades | B12: =SUM(B14,B16) -> 78419 | C12: =SUM(C14,C16) -> 79340 | D12: 79353 | E12: 79449 | F12: 79057 | G12: 83621 | H12: 85153 | I12: 129122 | J12: 130136 | K12: 131409 | L12: 132726
A14: UdelaR | B14: 70156 | C14: 70156 | D14: 70156 | E14: 70156 | F14: 70156 | G14: 70156 | H14: 70156 | I14: 112891 | J14: 112891 | K14: 112891 | L14: 112891
A16: Universidades privadas | B16: 8263 | C16: 9184 | D16: 9197 | E16: 9293 | F16: =SUM(F17:F20) -> 8901 | G16: 13465 | H16: 14997 | I16: 16231 | J16: 17245 | K16: 18518 | L16: 19835
A17: Univ. Católica del Uruguay | B17: 4057 | C17: 4180 | D17: 3591 | E17: 3849 | F17: 3286 | G17: 5580 | H17: 5911 | I17: 6401 | J17: 7126 | K17: 7227 | L17: 7996
A18: Univ. ORT Uruguay | B18: 3445 | C18: 3572 | D18: 3900 | E18: 3777 | F18: 3827 | G18: 5674 | H18: 5863 | I18: 6118 | J18: 6442 | K18: 7202 | L18: 7199
A19: Univ. de Montevideo | B19: 575 | C19: 775 | D19: 749 | E19: 824 | F19: 916 | G19: 1300 | H19: 1612 | I19: 1956 | J19: 1938 | K19: 2025 | L19: 2175
A20: Univ. de la Empresa | B20: 0 | C20: 609 | D20: 909 | E20: 790 | F20: 872 | G20: 911 | H20: 1611 | I20: 1756 | J20: 1739 | K20: 2064 | L20: 2465
A22: Total Inst. Universitarios | B22: =SUM(B23:B32) -> 215 | C22: =SUM(C23:C32) -> 338 | D22: 408 | E22: 413 | F22: 593 | G22: 1398 | H22: 1649 | I22: 1878 | J22: 2769 | K22: 2290 | L22: 2562
A23: I.U. Autónomo del Sur | B23: 215 | C23: 211 | D23: 218 | E23: 184 | F23: 195 | G23: 318 | H23: 428 | I23: 414 | J23: 428 | K23: 515 | L23: 605
A24: I.U. Asoc. Cristiana de Jóvenes | B24: 0 | C24: 93 | D24: 140 | E24: 141 | F24: 184 | G24: 407 | H24: 508 | I24: 449 | J24: 352 | K24: 346 | L24: 427
A25: I.U. CLAEH | B25: 0 | C25: 0 | D25: 0 | E25: 39 | F25: 91 | G25: 283 | H25: 412 | I25: 483 | J25: 483 | K25: 740 | L25: 651
A26: I.U. Monseñor Mariano Soler | B26: 0 | C26: 0 | D26: 0 | E26: 0 | F26: 59 | G26: 65 | H26: 50 | I26: 83 | J26: 54 | K26: 50 | L26: 42
A27: I.U. Asoc. Psico. del Uru. | B27: 0 | C27: 0 | D27: 0 | E27: 0 | F27: 35 | G27: 25 | H27: 31 | I27: 29 | J27: 34 | K27: 38 | L27: 40
A28: I.U. Crandon | B28: 0 | C28: 0 | D28: 0 | E28: 0 | F28: 29 | G28: 60 | H28: 59 | I28: 72 | J28: 21 | K28: 89 | L28: 78
A29: I.U. San Francisco de Asís | B29: 0 | C29: 0 | D29: 0 | E29: 0 | F29: 0 | G29: 83 | H29: 161 | I29: 202 | J29: 202 | K29: 237 | L29: 380
A30: I.U. Bios | B30: 0 | C30: 0 | D30: 0 | E30: 0 | F30: 0 | G30: 157 | H30: 0 | I30: 146 | J30: 178 | K30: 112 | L30: 109
A31: I.U. Maldonado – P. del Este | B31: n/c | C31: n/c | D31: n/c | E31: n/c | F31: n/c | G31: n/c | H31: n/c | I31: n/c | J31: 1017 | K31: n/c | L31: n/c
A32: I.U. CEDIIAP | B32: 0 | C32: 34 | D32: 50 | E32: 49 | F32: 0 | G32: 0 | H32: 0 | I32: 0 | J32: 0 | K32: 163 | L32: 230
A34: Fuentes: Oficinas productoras de cada una de las instituciones
A35: Nota: UdelaR incluye tecnicaturas y grado, no incluye matrícula de postgrados
A36: Las Universidades privadas incluyen grado y postgrado.
A37: Para el instituto CEDIIAP no se incluye información de los años anteriores por no haber reportado información en el períodos 2004-2008.
A38: El Instituto Universitario "Instituto de Estudios para la Salud y el Desarrollo Florence Ninghtingale" (INSADE), que registrara actividad en los años 2000 a 2003 de la serie presentada, luego no reportó información, por lo cual fue retirado de la tabla. Sin embargo la matrícula correspondiente a dichos años sigue incluida en el ítem "Total de Institutos Universitarios".

Sheet I-2.5.2
A1: Ministerio de Educación y Cultura
A2: Dirección de Educación
A3: Área de Investigación y Estadística
A5: Cuadro I-2.5.2
A6: INGRESOS A INSTITUCIONES UNIVERSITARIAS POR AÑO LECTIVO SEGÚN ÁREA DE CONOCIMIENTO - (2000 - 2010)
A7: INSTITUCIONES | C7: AÑO LECTIVO
A8: UNIVERSITARIAS
C9: 2000 | D9: 2001 | E9: 2002 | F9: 2003 | G9: 2004 | H9: 2005 | I9: 2006 | J9: 2007 | K9: 2008 | L9: 2009 | M9: 2010
A11: TOTAL | C11: 18131 | D11: 19265 | E11: 20090 | F11: 21169 | G11: 21558 | H11: 21964 | I11: 22798 | J11: 23014 | K11: 23566 | L11: =SUM(L13:L31) -> 24981 | M11: =SUM(M13:M31) -> 26253
A13: Formación de personal docente y ciencias de la educación | C13: 315 | D13: 505 | E13: 542 | F13: 588 | G13: 515 | H13: 766 | I13: 911 | J13: 901 | K13: 941 | L13: 709 | M13: 800
A14: Artes | C14: 488 | D14: 539 | E14: 574 | F14: 642 | G14: 710 | H14: 809 | I14: 744 | J14: 752 | K14: 746 | L14: 839 | M14: 1219
A15: Humanidades | C15: 568 | D15: 663 | E15: 709 | F15: 803 | G15: 899 | H15: 967 | I15: 1038 | J15: 889 | K15: 909 | L15: 791 | M15: 541
A16: Ciencias sociales y del comportamiento | C16: 2965 | D16: 2466 | E16: 3152 | F16: 2933 | G16: 3126 | H16: 3353 | I16: 2987 | J16: 3057 | K16: 4830 | L16: 5692 | M16: 5936
A17: Periodismo e información | C17: 945 | D17: 838 | E17: 1118 | F17: 1174 | G17: 972 | H17: 1170 | I17: 1219 | J17: 1036 | K17: 1038 | L17: 1049 | M17: 816
A18: Enseñanza comercial y administración | C18: 2546 | D18: 4252 | E18: 3903 | F18: 4132 | G18: 3942 | H18: 3828 | I18: 4292 | J18: 4885 | K18: 3127 | L18: 3253 | M18: 4176
A19: Derecho | C19: 2378 | D19: 2033 | E19: 2047 | F19: 2087 | G19: 1828 | H19: 2000 | I19: 1837 | J19: 1754 | K19: 1850 | L19: 1855 | M19: 2031
A20: Ciencias de la vida | C20: 474 | D20: 492 | E20: 515 | F20: 633 | G20: 815 | H20: 785 | I20: 955 | J20: 939 | K20: 818 | L20: 581 | M20: 650
A21: Ciencias físicas | C21: 505 | D21: 374 | E21: 545 | F21: 540 | G21: 653 | H21: 624 | I21: 771 | J21: 653 | K21: 687 | L21: 760 | M21: 636
A22: Matemáticas y estadística | C22: 107 | D22: 142 | E22: 113 | F22: 131 | G22: 324 | H22: 244 | I22: 328 | J22: 329 | K22: 238 | L22: 218 | M22: 155
A23: Informática | C23: 792 | D23: 701 | E23: 749 | F23: 790 | G23: 813 | H23: 843 | I23: 917 | J23: 962 | K23: 1186 | L23: 1248 | M23: 1319
A24: Ingeniería y profesiones afines | C24: 720 | D24: 676 | E24: 672 | F24: 752 | G24: 767 | H24: 570 | I24: 701 | J24: 633 | K24: 671 | L24: 686 | M24: 856
A25: Industria y producción | C25: 43 | D25: 151 | E25: 172 | F25: 214 | G25: 247 | H25: 114 | I25: 141 | J25: 104 | K25: 111 | L25: 115 | M25: 116
A26: Arquitectura y construcción | C26: 788 | D26: 704 | E26: 756 | F26: 645 | G26: 602 | H26: 628 | I26: 648 | J26: 665 | K26: 646 | L26: 832 | M26: 770
A27: Agricultura, silvicultura y pesca | C27: 210 | D27: 225 | E27: 176 | F27: 252 | G27: 283 | H27: 398 | I27: 362 | J27: 414 | K27: 436 | L27: 638 | M27: 806
A28: Veterinaria | C28: 295 | D28: 320 | E28: 317 | F28: 381 | G28: 411 | H28: 508 | I28: 484 | J28: 525 | K28: 519 | L28: 533 | M28: 508
A29: Medicina | C29: 3673 | D29: 3817 | E29: 3573 | F29: 3960 | G29: 4135 | H29: 3633 | I29: 3572 | J29: 3562 | K29: 3888 | L29: 4823 | M29: 4361
A30: Servicios sociales | C30: 311 | D30: 367 | E30: 457 | F30: 498 | G30: 508 | H30: 724 | I30: 573 | J30: 626 | K30: 594 | L30: 87 | M30: 146
A31: Servicios personales | C31: 8 | D31: 0 | E31: 0 | F31: 14 | G31: 8 | H31: 0 | I31: 318 | J31: 328 | K31: 331 | L31: 272 | M31: 411
A33: Fuente: Elaboración propia en base información de las oficinas productoras de las instituciones
A34: Nota: Las áreas corresponden a la clasificación CINE 1997 de UNESCO.
A35: Al total 2010 se deben sumar 104 estudiantes más que ingresaron al Ciclo Inicial y no pueden ser clasificables por área.

Sheet I-2.5.3
A1: Ministerio de Educación y Cultura
A2: Dirección de Educación
A3: Área de Investigación y Estadística
A5: Cuadro I-2.5.3
A6: EGRESOS DE INSTITUCIONES UNIVERSITARIAS POR NIVEL ACADÉMICO SEGÚN ÁREA DE CONOCIMIENTO
A7: INSTITUCIONES UNIVERSITARIAS | C7: NIVEL ACADÉMICO
C8: TOTAL | D8: % | E8: Carrera corta o tecnicatura | F8: Carrera de grado, licenciatura | G8: Postgrado de especialización | H8: Maestría | I8: Doctorado
A10: TOTAL | C10: =SUM(E10:I10) -> 7223 | D10: =SUM(D12:D30) -> 100 | E10: 551 | F10: 5466 | G10: 516 | H10: 651 | I10: 39
A12: Formación de personal docente y ciencias de la educación | C12: =SUM(E12:I12) -> 235 | D12: =(C12*100)/$C$10 -> 3.253495777 | E12: 26 | F12: 49 | G12: 111 | H12: 48 | I12: 1
A13: Artes | C13: 211 | D13: 2.921223868 | E13: 72 | F13: 139 | G13: 0 | H13: 0 | I13: 0
A14: Humanidades | C14: 66 | D14: 0.9137477502 | E14: 4 | F14: 57 | G14: 0 | H14: 5 | I14: 0
A15: Ciencias sociales y del comportamiento | C15: 746 | D15: 10.32811851 | E15: 65 | F15: 572 | G15: 71 | H15: 32 | I15: 6
A16: Periodismo e información | C16: 201 | D16: 2.782777239 | E16: 11 | F16: 190 | G16: 0 | H16: 0 | I16: 0
A17: Enseñanza comercial y administración | C17: 1280 | D17: 17.72116849 | E17: 179 | F17: 787 | G17: 216 | H17: 98 | I17: 0
A18: Derecho | C18: 786 | D18: 10.88190503 | E18: 0 | F18: 771 | G18: 0 | H18: 15 | I18: 0
A19: Ciencias de la vida | C19: 166 | D19: 2.298214038 | E19: 4 | F19: 128 | G19: 0 | H19: 25 | I19: 9
A20: Ciencias físicas | C20: 158 | D20: 2.187456735 | E20: 6 | F20: 125 | G20: 2 | H20: 8 | I20: 17
A21: Matemáticas y estadística | C21: 14 | D21: 0.1938252804 | E21: 0 | F21: 11 | G21: 0 | H21: 3 | I21: 0
A22: Informática | C22: 250 | D22: 3.461165721 | E22: 6 | F22: 216 | G22: 15 | H22: 12 | I22: 1
A23: Ingeniería y profesiones afines | C23: 222 | D23: 3.07351516 | E23: 19 | F23: 189 | G23: 0 | H23: 12 | I23: 2
A24: Industria y producción | C24: 27 | D24: 0.3738058978 | E24: 0 | F24: 27 | G24: 0 | H24: 0 | I24: 0
A25: Arquitectura y construcción | C25: 341 | D25: 4.721030043 | E25: 0 | F25: 336 | G25: 4 | H25: 0 | I25: 1
A26: Agricultura, silvicultura y pesca | C26: 279 | D26: 3.862660944 | E26: 58 | F26: 155 | G26: 42 | H26: 24 | I26: 0
A27: Veterinaria | C27: 105 | D27: 1.453689603 | E27: 0 | F27: 91 | G27: 0 | H27: 14 | I27: 0
A28: Medicina | C28: 1962 | D28: 27.16322858 | E28: 95 | F28: 1455 | G28: 55 | H28: 355 | I28: 2
A29: Servicios sociales | C29: 123 | D29: 1.702893535 | E29: 0 | F29: 123 | G29: 0 | H29: 0 | I29: 0
A30: Servicios personales | C30: 51 | D30: 0.706077807 | E30: 6 | F30: 45 | G30: 0 | H30: 0 | I30: 0
A32: Fuente: Elaboración propia en base información de las oficinas productoras de las instituciones
A33: Nota: Las áreas corresponden a la clasificación CINE 1997 de UNESCO.

Sheet I-2.5.4
A1: Ministerio de Educación y Cultura
A2: Dirección de Educación
A3: Área de Investigación y Estadística
A5: Cuadro I-2.5.4
A6: EGRESOS DE INSTITUCIONES UNIVERSITARIAS POR AÑO LECTIVO SEGÚN ÁREA DE CONOCIMIENTO - (2000 - 2010)
A7: INSTITUCIONES | C7: AÑO LECTIVO
A8: UNIVERSITARIAS
C9: 2000 | D9: 2001 | E9: 2002 | F9: 2003 | G9: 2004 | H9: 2005 | I9: 2006 | J9: 2007 | K9: 2008 | L9: 2009 | M9: 2010
A11: TOTAL | C11: 4646 | D11: 4402 | E11: 5902 | F11: 5697 | G11: 6177 | H11: 5514 | I11: 6151 | J11: 6381 | K11: 7018 | L11: =SUM(L13:L31) -> 7185 | M11: =SUM(M13:M31) -> 7223
A13: Formación de personal docente y ciencias de la educación | C13: 66 | D13: 61 | E13: 81 | F13: 120 | G13: 113 | H13: 136 | I13: 291 | J13: 372 | K13: 399 | L13: 275 | M13: 235
A14: Artes | C14: 40 | D14: 33 | E14: 39 | F14: 60 | G14: 46 | H14: 42 | I14: 104 | J14: 120 | K14: 181 | L14: 184 | M14: 211
A15: Humanidades | C15: 80 | D15: 33 | E15: 74 | F15: 33 | G15: 73 | H15: 64 | I15: 76 | J15: 75 | K15: 92 | L15: 90 | M15: 66
A16: Ciencias sociales y del comportamiento | C16: 381 | D16: 534 | E16: 739 | F16: 671 | G16: 655 | H16: 634 | I16: 689 | J16: 641 | K16: 923 | L16: 720 | M16: 746
A17: Periodismo e información | C17: 120 | D17: 78 | E17: 208 | F17: 249 | G17: 289 | H17: 174 | I17: 191 | J17: 213 | K17: 234 | L17: 242 | M17: 201
A18: Enseñanza comercial y administración | C18: 914 | D18: 865 | E18: 1328 | F18: 1509 | G18: 1205 | H18: 918 | I18: 1032 | J18: 1071 | K18: 1135 | L18: 1289 | M18: 1280
A19: Derecho | C19: 500 | D19: 613 | E19: 686 | F19: 676 | G19: 816 | H19: 781 | I19: 838 | J19: 777 | K19: 886 | L19: 806 | M19: 786
A20: Ciencias de la vida | C20: 97 | D20: 62 | E20: 72 | F20: 73 | G20: 107 | H20: 108 | I20: 141 | J20: 137 | K20: 183 | L20: 169 | M20: 166
A21: Ciencias físicas | C21: 110 | D21: 94 | E21: 153 | F21: 118 | G21: 162 | H21: 140 | I21: 105 | J21: 125 | K21: 143 | L21: 154 | M21: 158
A22: Matemáticas y estadística | C22: 9 | D22: 4 | E22: 6 | F22: 9 | G22: 10 | H22: 12 | I22: 5 | J22: 13 | K22: 27 | L22: 19 | M22: 14
A23: Informática | C23: 285 | D23: 234 | E23: 257 | F23: 194 | G23: 237 | H23: 277 | I23: 235 | J23: 215 | K23: 242 | L23: 260 | M23: 250
A24: Ingeniería y profesiones afines | C24: 133 | D24: 124 | E24: 187 | F24: 201 | G24: 224 | H24: 214 | I24: 200 | J24: 204 | K24: 194 | L24: 257 | M24: 222
A25: Industria y producción | C25: 0 | D25: 12 | E25: 8 | F25: 16 | G25: 10 | H25: 26 | I25: 16 | J25: 31 | K25: 33 | L25: 24 | M25: 27
A26: Arquitectura y construcción | C26: 233 | D26: 136 | E26: 294 | F26: 208 | G26: 308 | H26: 437 | I26: 324 | J26: 303 | K26: 280 | L26: 275 | M26: 341
A27: Agricultura, silvicultura y pesca | C27: 226 | D27: 145 | E27: 164 | F27: 161 | G27: 213 | H27: 123 | I27: 126 | J27: 111 | K27: 164 | L27: 301 | M27: 279
A28: Veterinaria | C28: 112 | D28: 49 | E28: 107 | F28: 89 | G28: 91 | H28: 118 | I28: 94 | J28: 55 | K28: 70 | L28: 91 | M28: 105
A29: Medicina | C29: 1323 | D29: 1311 | E29: 1476 | F29: 1276 | G29: 1578 | H29: 1243 | I29: 1537 | J29: 1726 | K29: 1532 | L29: 1874 | M29: 1962
A30: Servicios sociales | C30: 17 | D30: 14 | E30: 23 | F30: 18 | G30: 33 | H30: 48 | I30: 51 | J30: 47 | K30: 106 | L30: 88 | M30: 123
A31: Servicios personales | C31: 0 | D31: 0 | E31: 0 | F31: 16 | G31: 7 | H31: 19 | I31: 96 | J31: 145 | K31: 194 | L31: 67 | M31: 51
A33: Fuente: Elaboración propia en base a información brindada por las oficinas productoras de las instituciones
A34: Nota: Las áreas corresponden a la clasificación CINE 1997 de UNESCO.

Sheet I-2.5.5
A1: Ministerio de Educación y Cultura
A2: Dirección de Educación
A3: Área de Investigación y Estadística
A5: Cuadro I-2.5.5
A6: INGRESOS A INSTITUCIONES UNIVERSITARIAS POR NIVEL ACADÉMICO SEGÚN ÁREA DE CONOCIMIENTO
C7: NIVEL ACADÉMICO
A8: INSTITUCIONES UNIVERSITARIAS | C8: TOTAL | E8: Carrera corta o tecnicatura | F8: Carrera de grado, licenciatura | G8: Postgrado de especialización | H8: Maestría | I8: Doctorado
A11: TOTAL | C11: =SUM(E11:I11) -> 26253 | D11: =SUM(D13:D31) -> 100 | E11: 4129 | F11: 19364 | G11: 1169 | H11: 1478 | I11: 113
A13: Formación de personal docente y ciencias de la educación | C13: =SUM(E13:I13) -> 800 | D13: =(C13*100)/$C$11 -> 3.047270788 | E13: 103 | F13: 343 | G13: 230 | H13: 103 | I13: 21
A14: Artes | C14: 1219 | D14: =(C14*100)/$C$11 -> 4.643278863 | E14: 16 | F14: 1203 | G14: 0 | H14: 0 | I14: 0
A15: Humanidades | C15: 541 | D15: 2.06071687 | E15: 75 | F15: 466 | G15: 0 | H15: 0 | I15: 0
A16: Ciencias sociales y del comportamiento | C16: 5936 | D16: 22.61074925 | E16: 1014 | F16: 4453 | G16: 277 | H16: 175 | I16: 17
A17: Periodismo e información | C17: 816 | D17: 3.108216204 | E17: 66 | F17: 737 | G17: 9 | H17: 4 | I17: 0
A18: Enseñanza comercial y administración | C18: 4176 | D18: 15.90675351 | E18: 1988 | F18: 1553 | G18: 430 | H18: 194 | I18: 11
A19: Derecho | C19: 2031 | D19: 7.736258713 | E19: 0 | F19: 1898 | G19: 32 | H19: 101 | I19: 0
A20: Ciencias de la vida | C20: 650 | D20: 2.475907515 | E20: 60 | F20: 501 | G20: 0 | H20: 78 | I20: 11
A21: Ciencias físicas | C21: 636 | D21: 2.422580277 | E21: 14 | F21: 574 | G21: 4 | H21: 17 | I21: 27
A22: Matemáticas y estadística | C22: 155 | D22: 0.5904087152 | E22: 0 | F22: 149 | G22: 0 | H22: 4 | I22: 2
A23: Informática | C23: 1319 | D23: 5.024187712 | E23: 106 | F23: 1147 | G23: 28 | H23: 31 | I23: 7
A24: Ingeniería y profesiones afines | C24: 856 | D24: 3.260579743 | E24: 97 | F24: 667 | G24: 0 | H24: 86 | I24: 6
A25: Industria y producción | C25: 116 | D25: 0.4418542643 | E25: 0 | F25: 116 | G25: 0 | H25: 0 | I25: 0
A26: Arquitectura y construcción | C26: 770 | D26: 2.932998134 | E26: 0 | F26: 740 | G26: 30 | H26: 0 | I26: 0
A27: Agricultura, silvicultura y pesca | C27: 806 | D27: 3.070125319 | E27: 172 | F27: 507 | G27: 75 | H27: 47 | I27: 5
A28: Veterinaria | C28: 508 | D28: 1.93501695 | E28: 0 | F28: 496 | G28: 0 | H28: 6 | I28: 6
A29: Medicina | C29: 4361 | D29: 16.61143488 | E29: 234 | F29: 3467 | G29: 54 | H29: 606 | I29: 0
A30: Servicios sociales | C30: 146 | D30: 0.5561269188 | E30: 0 | F30: 120 | G30: 0 | H30: 26 | I30: 0
A31: Servicios personales | C31: 411 | D31: 1.565535367 | E31: 184 | F31: 227 | G31: 0 | H31: 0 | I31: 0
A33: Fuente: Elaboración propia en base información de las oficinas productoras de las instituciones
A34: Nota: Las áreas corresponden a la clasificación CINE 1997 de UNESCO.
A35: Al total de las Carreras Cortas o Tecnicaturas y en el total de Carreras de Grado se deben sumar 104 estudiantes más que ingresaron al Ciclo Inicial y no pueden ser clasificables por área.

Sheet I-2.5.6
A1: Ministerio de Educación y Cultura
A2: Dirección de Educación
A3: Área de Investigación y Estadística
A5: Cuadro I-2.5.6
A6: INGRESOS, MATRÍCULA Y EGRESOS SEGÚN FORMA DE ADMINISTRACIÓN EN CANTIDADES ABSOLUTAS Y PORCENTAJES
A7: FORMA DE ADMINISTRACIÓN | B7: INGRESOS | C7: MATRÍCULA | D7: EGRESOS
A9: VALORES ABSOLUTOS
A10: TOTAL | B10: =SUM(B11:B12) -> 23597 | C10: =SUM(C11:C12) -> 131013 | D10: =SUM(D11:D12) -> 6017
A11: Universidad de la República | B11: 19467 | C11: 112891 | D11: 4784
A12: Instituciones Universitarias Privadas | B12: 4130 | C12: 18122 | D12: 1233
A14: PORCENTAJES
A15: TOTAL | B15: 1 | C15: 1 | D15: 1
A16: Universidad de la República | B16: =B11/B10*100% -> 0.8249777514 | C16: =C11/C10*100% -> 0.8616778488 | D16: =D11/D10*100% -> 0.795080605
A17: Instituciones Universitarias Privadas | B17: =B12/B10*100% -> 0.1750222486 | C17: =C12/C10*100% -> 0.1383221512 | D17: =D12/D10*100% -> 0.204919395
A19: Fuentes: Elaboración propia en base a información brindada por las oficinas productoras de las instituciones.
A20: Nota: Se toma en cuenta solo las ofertas de grado.

Sheet I-2.6.1
A1: Ministerio de Educación y Cultura
A2: Dirección de Educación
A3: Área de Investigación y Estadística
A5: Cuadro I-2.6.1
A6: ALUMNOS MATRICULADOS EN EL PROGRAMA NACIONAL DE JÓVENES Y ADULTOS POR MODALIDAD, NIVEL Y SEXO SEGÚN GRANDES ÁREAS
A7: GRANDES ÁREAS | C7: ALUMNOS MATRICULADOS EN EDUCACIÓN PRIMARIA | J7: ALUMNOS MATRICULADOS EN TALLERES
C8: TOTAL | D8: PRIMER TRAMO: NIVEL I | G8: PRIMER TRAMO: NIVEL II | J8: TOTAL | K8: SEXO
D9: Total | E9: SEXO | G9: TOTAL | H9: SEXO
E10: Masculino | F10: Femenino | H10: Masculino | I10: Femenino | K10: Masculino | L10: Femenino
A12: TOTAL | C12: 2803 | D12: 1484 | E12: 729 | F12: 755 | G12: 1319 | H12: 571 | I12: 748 | J12: 4815 | K12: 1762 | L12: 3053
A13: Montevideo | C13: 1144 | D13: 632 | E13: 319 | F13: 313 | G13: 512 | H13: 258 | I13: 254 | J13: 4151 | K13: 1398 | L13: 2753
A14: Resto del País | C14: 1659 | D14: 852 | E14: 410 | F14: 442 | G14: 807 | H14: 313 | I14: 494 | J14: 664 | K14: 364 | L14: 300
A15: Fuentes: ANEP - CODICEN - Programa de Educación de Jóvenes y Adultos.

Sheet I-2.6.2
A1: Ministerio de Educación y Cultura
A2: Dirección de Educación
A3: Área de Investigación y Estadística
A6: Cuadro I-2.6.2
A7: ALUMNOS INGRESADOS Y MATRICULADOS EN CECAP POR SEXO SEGÚN GRANDES ÁREAS
A8: NIVEL EDUCATIVO MÁXIMO | D8: INGRESADOS | G8: MATRICULADOS
A9: ALCANZADO | C9: TOTAL | D9: Masculino | E9: Femenino | F9: TOTAL | G9: Masculino | H9: Femenino
A11: TOTAL | C11: =C13+C14 -> 958 | D11: 513 | E11: 445 | F11: 1127 | G11: 592 | H11: 535
A13: Montevideo | C13: =D13+E13 -> 325 | D13: 152 | E13: 173 | F13: =G13+H13 -> 348 | G13: 162 | H13: 186
A14: Resto del país | C14: =D14+E14 -> 633 | D14: 361 | E14: 272 | F14: =G14+H14 -> 779 | G14: 430 | H14: 349
A15: Fuente: Área de Educación No Formal de la Dirección de Educación - MEC

Sheet I-2.6.3
A1: Ministerio de Educación y Cultura
A2: Dirección de Educación
A3: Área de Investigación y Estadística
A5: Cuadro I-2.6.3
A6: ALUMNOS MATRICULADOS EN CURSOS DE EDUCACIÓN TÉCNICA (CETP-UTU) PARA JÓVENES Y ADULTOS POR SEXO Y GRANDES ÁREAS SEGÚN TIPO DE CURSO
A7: NIVEL EDUCATIVO MÁXIMO | C7: TOTAL | D7: SEXO | F7: GRANDES ÁREAS
A8: ALCANZADO | D8: Masculino | E8: Femenino | F8: Montevideo | G8: Resto del País
A9: TOTAL | C9: =C10+C11 -> 11912 | D9: =D10+D11 -> 6217 | E9: =E10+E11 -> 5695 | F9: =F10+F11 -> 5556 | G9: =G10+G11 -> 6356
A10: Nivel Básico | C10: =D10+E10 -> 9800 | D10: 4712 | E10: 5088 | F10: 4439 | G10: 5361
A11: Nivel Superior | C11: =D11+E11 -> 2112 | D11: 1505 | E11: 607 | F11: 1117 | G11: 995
A13: Fuente: D.E. - U.T.U
A14: Nota: Todo el país (Año 2010)

Sheet I-2.6.4
A1: Ministerio de Educación y Cultura
A2: Dirección de Educación
A3: Área de Investigación y Estadística
A5: Cuadro I-2.6.4
A6: ALUMNOS MATRICULADOS DEL COCAP SEGÚN TIPO DE CURSO Y ÁREA DE FORMACIÓN
A7: NIVEL EDUCATIVO MÁXIMO | C7: TOTAL | D7: SEXO
A8: ALCANZADO | D8: Masculino | E8: Femenino
A10: TOTAL | C10: =C12+C13 -> 879 | D10: =D12+D13 -> 870 | E10: =E12+E13 -> 9
A12: Cursos Abiertos (Industrial) | C12: =D12+E12 -> 789 | D12: 780 | E12: 9
A13: Cursos Cerrados (Industrial) | C13: =D13+E13 -> 90 | D13: 90 | E13: 0
A15: Fuente: COCAP

Sheet I-2.6.5
A1: Ministerio de Educación y Cultura
A2: Dirección de Educación
A3: Área de Investigación y Estadística
A6: Cuadro I-1.6.5
A7: FUNCIONARIOS PARTICIPANTES EN LOS CURSOS DE LA ENAP "DR. AQUILES LANZA", CANTIDAD DE CURSOS Y HORAS TIPO DE CURSO
A8: GRANDES ÁREAS | C8: FUNCIONARIOS PARTICIPANTES | D8: CANTIDAD DE CURSOS | E8: HORAS
A9: TOTAL | C9: =SUM(C10:C12) -> 5540 | D9: =SUM(D10:D12) -> 292 | E9: =SUM(E10:E12) -> 11840
A10: Maestría en Políticas y Gestión Pública | C10: 20 | D10: 1 | E10: 530
A11: Programas de Formación: Programa de Dirección Media, Diploma en Gestión Humana y Programa de Desarrollo Administrativo | C11: 180 | D11: 9 | E11: 3398
A12: Cursos y Seminarios | C12: 5340 | D12: 282 | E12: 7912
A13: Fuentes: Oficina Nacional del Servicio Civil - Escuela Nacional de Administración Pública "Dr. Aquiles Lanza"

Sheet I-2.6.6
A1: Ministerio de Educación y Cultura
A2: Dirección de Educación
A3: Área de Investigación y Estadística
A6: Cuadro I-2.6.6
A7: ALUMNOS INGRESADOS Y MATRICULADOS EN CARRERAS NO TERCIARIAS EN UNIVERSIDADES E INSTITUTOS UNIVERSITARIOS
A8: UNIVERSIDADES E INSTITUTOS UNIVERSITARIOS | D8: INGRESADOS | G8: MATRICULADOS
C9: TOTAL | D9: SEXO | F9: TOTAL | G9: SEXO
D10: Masculino | E10: Femenino | G10: Masculino | H10: Femenino
A11: TOTAL | C11: =C12+C13 -> 1032 | D11: 664 | E11: 368 | F11: 4578 | G11: 3180 | H11: 1398
A12: Universidad ORT Uruguay | C12: =D12+E12 -> 784 | D12: 545 | E12: 239 | F12: =G12+H12 -> 4248 | G12: 3020 | H12: 1228
A13: Universidad de la Empresa | C13: =D13+E13 -> 248 | D13: 119 | E13: 129 | F13: =G13+H13 -> 330 | G13: 160 | H13: 170
A14: Fuente: Procesamiento propio en base a datos proporcionados por el Área de Educación No Formal, Dirección de Educación, MEC.

Sheet I-2.7.1
A1: Ministerio de Educación y Cultura
A2: Dirección de Educación
A3: Área de Investigación y Estadística
A5: Cuadro I-2.7.1
A6: ESTABLECIMIENTOS DE EDUCACIÓN TÉCNICO PROFESIONAL POR TIPO DE ESTABLECIMIENTO SEGÚN GRANDES ÁREAS.
B7: GRANDES ÁREAS
B8: TOTAL | C8: Montevideo | D8: Resto del País
A9: TOTAL | B9: =C9+D9 -> 117 | C9: =SUM(C10:C21) -> 27 | D9: =SUM(D10:D21) -> 90
A10: Ed Básica | B10: =C10+D10 -> 1 | C10: 0 | D10: 1
A11: Ed Básica y Superior | B11: 12 | C11: 0 | D11: 12
A12: Ed Superior | B12: 6 | C12: 1 | D12: 5
A13: Terciaria | B13: 1 | C13: 1 | D13: 0
A14: Ed J y A. | B14: 3 | C14: 2 | D14: 1
A15: Ed Superior y Terciaria | B15: 4 | C15: 1 | D15: 3
A16: Ed Superior y J y A. | B16: 13 | C16: 4 | D16: 9
A17: Ed Básica Superior y J y A. | B17: 25 | C17: 5 | D17: 20
A18: Ed Superior Terciaria y J y A. | B18: 14 | C18: 9 | D18: 5
A19: Ed Básica, Superior y Terciaria | B19: 4 | C19: 1 | D19: 3
A20: Ed Básica, Superior J y A. y Terciaria | B20: 31 | C20: 2 | D20: 29
A21: Ed Terciaria y J y A. | B21: 3 | C21: 1 | D21: 2

Sheet I-2.7.2
A1: Ministerio de Educación y Cultura Dirección de Educación Área de Investigación y Estadística
A4: Cuadro I-2.7.2
A5: ALUMNOS MATRICULADOS EN EDUCACIÓN TÉCNICA POR GRANDES ÁREAS Y SEXO SEGÚN NIVEL Y TIPO DE CURSO
A6: NIVEL | C6: GRANDES ÁREAS
A7: DEL CURSO | C7: TOTAL | F7: MONTEVIDEO | I7: RESTO DEL PAÍS
D8: Sexo | G8: Sexo | J8: Sexo
C9: Total | D9: Masculino | E9: Femenino | F9: Total | G9: Masculino | H9: Femenino | I9: Total | J9: Masculino | K9: Femenino
A11: TOTAL | C11: =D11+E11 -> 70342 | D11: =SUM(D12:D15) -> 39967 | E11: =SUM(E12:E15) -> 30375 | F11: =G11+H11 -> 27080 | G11: =SUM(G12:G15) -> 15995 | H11: =SUM(H12:H15) -> 11085 | I11: =J11+K11 -> 43262 | J11: =SUM(J12:J15) -> 23972 | K11: =SUM(K12:K15) -> 19290
A12: Educación Media Básica | C12: =D12+E12 -> 20241 | D12: =G12+J12 -> 12407 | E12: =H12+K12 -> 7834 | F12: =G12+H12 -> 3279 | G12: 2036 | H12: 1243 | I12: =J12+K12 -> 16962 | J12: 10371 | K12: 6591
A13: Nivel Básico | C13: =D13+E13 -> 9800 | D13: =G13+J13 -> 5088 | E13: 4712 | F13: =G13+H13 -> 4439 | G13: 2479 | H13: 1960 | I13: =J13+K13 -> 5361 | J13: 2609 | K13: 2752
A14: Nivel Superior | C14: =D14+E14 -> 33858 | D14: 18503 | E14: 15355 | F14: =G14+H14 -> 15080 | G14: 8774 | H14: 6306 | I14: =J14+K14 -> 18778 | J14: 9729 | K14: 9049
A15: Terciaria no universitaria | C15: =D15+E15 -> 6443 | D15: 3969 | E15: 2474 | F15: =G15+H15 -> 4282 | G15: 2706 | H15: 1576 | I15: =J15+K15 -> 2161 | J15: 1263 | K15: 898
A16: Fuente: Elaboración propia en base a información del Departamento de Estadísticas CETP - U.T.U
A17: Nota: La presente clasificación de niveles refiere a la adoptada por UTU y no la expuesta en los apartados del Anuario.
A18: De esta manera el lector encontrara discrepancias en las magnitudes producto de la diferencia en los criterios de clasificación. Por ejemplo en
A19: Terciaria no Universitaria la clasificación de UTU añade los cursos de articulación entre niveles (285 alumnos) que en el anuario se presentan en
A20: educación media Superior, constatándose la diferencia con el Capítulo 5.
A21: También es preciso aclarar que la adopción de diferentes clasificaciones no modifica la magnitud global de la matrícula.
A22: de la matrícula de UTU

Sheet I-2.7.3
A1: Ministerio de Educación y Cultura Dirección de Educación Área de Investigación y Estadística
A6: Cuadro I-2.7.3
A7: ALUMNOS MATRICULADOS EN EDUCACIÓN MEDIA, TÉCNICA Y TERCIARIA POR NIVEL DEL CURSO SEGÚN SECTORES DE ESTUDIO
A8: ÁREAS DE ESTUDIO | C8: TOTAL | D8: NIVEL DEL CURSO
D9: EDUCACIÒN MEDIA BÀSICA | E9: EDUCACIÓN TÉCNICA | G9: EDUCACIÓNTERCIARIA
E10: NIVEL BASICO | F10: NIVEL SUPERIOR
A11: TOTAL | C11: =SUM(D11:G11) -> 70342 | D11: =SUM(D12:D21) -> 20241 | E11: =SUM(E12:E21) -> 9800 | F11: =SUM(F12:F21) -> 33858 | G11: =SUM(G12:G21) -> 6443
A12: Ciclo Básico | C12: =SUM(D12:G12) -> 16232 | D12: 16232 | E12: - | F12: - | G12: -
A13: Programas de Articulación entre Niveles | C13: =SUM(D13:G13) -> 239 | D13: - | E13: - | F13: - | G13: 239
A14: Agricultura y pesca | C14: 2425 | D14: 153 | E14: 123 | F14: 1821 | G14: 328
A15: Industria | C15: =SUM(D15:G15) -> 13712 | D15: 1910 | E15: 4616 | F15: 5136 | G15: 2050
A16: Mantenimiento y Reparación de Vehículos | C16: 3041 | D16: 486 | E16: 815 | F16: 1732 | G16: 8
A17: Construcción | C17: 3662 | D17: 18 | E17: 683 | F17: 2719 | G17: 242
A18: Comercio, Adm., Informát.y Comunic. | C18: 13584 | D18: - | E18: - | F18: 11504 | G18: 2080
A19: Informática | C19: 7254 | D19: 135 | E19: 321 | F19: 6404 | G19: 394
A20: Servicios | C20: 8865 | D20: 1307 | E20: 1969 | F20: 4487 | G20: 1102
A21: Artes y Artesanías | C21: 1328 | D21: 0 | E21: 1273 | F21: 55 | G21: 0
A22: Fuentes:Departamento de Estadísticas CETP - U.T.U

Sheet I-3.1.1
A1: Ministerio de Educación y Cultura
A2: Dirección de Educación
A3: Área de Investigación y Estadística
A5: Cuadro I-3.1.1
A6: ESCUELAS POR GRANDES ÁREAS, MAESTROS Y ALUMNOS DEL PROGRAMA MAESTROS COMUNITARIOS SEGÚN AÑO LECTIVO
A7: AÑO LECTIVO | C7: Escuelas | F7: Maestros comunitarios | H7: Alumnos
C8: Total | D8: Montevideo | E8: Resto del país | H8: atendidos
A10: 2005 | C10: 255 | D10: 97 | E10: 158 | F10: 437 | H10: 9292
A11: 2006 | C11: 252 | D11: 95 | E11: 157 | F11: 433 | H11: 14884
A12: 2007 | C12: 334 | D12: 101 | E12: 233 | F12: 553 | H12: 18163
A13: 2008 | C13: 334 | D13: 100 | E13: 234 | F13: 533 | H13: 16802
A14: 2009 | C14: 337 | D14: 101 | E14: 236 | F14: 553 | H14: 16166
A15: 2010 | C15: 337 | D15: 101 | E15: 236 | F15: 553 | H15: 16749
A16: Fuente: Coordinación Técnica, Programa INFAMILIA / CEP INFAMILIA

Sheet I-3.1.2
A1: Ministerio de Educación y Cultura
A2: Dirección de Educación
A3: Área de Investigación y Estadística
A5: Cuadro I-3.1.2
A6: MAESTROS Y ESCUELAS DEL PROGRAMA MAESTROS COMUNITARIOS SEGÚN REQUERIMIENTO
A7: AÑO LECTIVO | C7: Maestros | D7: Escuelas
C8: comunitarios
A10: Total | C10: =SUM(C12:C14) -> 551 | D10: =SUM(D12:D14) -> 328
A12: Requerimiento 1 | C12: 263 | D12: 134
A13: Requerimiento 2 | C13: 168 | D13: 112
A14: Requerimiento 3 | C14: 120 | D14: 82
A16: Fuente: Coordinación Técnica, Programa INFAMILIA / CEP INFAMILIA

Sheet I-3.1.3
A1: Ministerio de Educación y Cultura
A2: Dirección de Educación
A3: Área de Investigación y Estadística
A5: Cuadro I-3.1.3
A6: EDUCACIÓN FÍSICA ESCOLAR SEGÚN AÑO LECTIVO - (2005 - 2010)
A7: AÑO LECTIVO | C7: Escuelas | D7: Profesores | E7: Alumnos atendidos
A9: 2005 | C9: 160 | D9: 157 | E9: 67462
A10: 2006 | C10: 248 | D10: 238 | E10: 86473
A11: 2007 | C11: 245 | D11: 248 | E11: 88023
A12: 2008 | C12: 605 | D12: 605 | E12: 213858
A13: 2009 | C13: 1004 | D13: 973 | E13: 325164
A14: 2010 | C14: 1016 | D14: 977 | E14: 308260
A16: Fuente: Coordinación Técnica, Programa INFAMILIA / CEP INFAMILIA
A17: Nota: Todo el país (Año 2009)

Sheet I-3.1.4
A1: Ministerio de Educación y Cultura
A2: Dirección de Educación
A3: Área de Investigación y Estadística
A5: Cuadro I-3.1.4
A6: EDUCACIÓN FÍSICA ESCOLAR SEGÚN GRANDES ÁREAS – Año 2010
A7: AÑO LECTIVO | C7: Escuelas | D7: Profesores | E7: Alumnos atendidos
A9: Todo el país | C9: =SUM(C11:C12) -> 1016 | D9: =SUM(D11:D12) -> 977 | E9: =SUM(E11:E12) -> 308260
A11: Montevideo | C11: 283 | D11: 308 | E11: 94978
A12: Resto del país | C12: 733 | D12: 669 | E12: 213282
A15: Fuente: Coordinación Técnica, Programa INFAMILIA / CEP INFAMILIA

Sheet I-3.1.5
A1: Ministerio de Educación y Cultura
A2: Dirección de Educación
A3: Área de Investigación y Estadística
A4: Cuadro I-3.1.5
A5: CANTIDAD DE BECAS OTORGADAS POR MODALIDAD Y CICLO SEGÚN DEPARTAMENTO - 2010
A6: DEPARTAMENTO | B6: TOTAL | C6: EDUCACIÓN SECUNDARIA | D6: EDUCACIÓN TÉCNICO PROFESIONAL | E6: EDUCACIÓN PRIMARIA | F6: OTROS
A7: TOTAL | B7: =SUM(C7:F7) -> 1405 | C7: =C8+C9 -> 1027 | D7: =D8+D9 -> 336 | E7: =E8+E9 -> 27 | F7: =F8+F9 -> 15
A8: Montevideo | B8: 464 | C8: 370 | D8: 80 | E8: 0 | F8: 14
A9: Resto del país | B9: 941 | C9: 657 | D9: 256 | E9: 27 | F9: 1
A10: Artigas | B10: 65 | C10: 45 | D10: 17 | E10: 3 | F10: 0
A11: Canelones | B11: 145 | C11: 119 | D11: 26 | E11: 0 | F11: 0
A12: Cerro Largo | B12: 59 | C12: 40 | D12: 17 | E12: 2 | F12: 0
A13: Colonia | B13: 38 | C13: 20 | D13: 17 | E13: 1 | F13: 0
A14: Durazno | B14: 42 | C14: 33 | D14: 9 | E14: 0 | F14: 0
A15: Flores | B15: 24 | C15: 13 | D15: 11 | E15: 0 | F15: 0
A16: Florida | B16: 36 | C16: 16 | D16: 20 | E16: 0 | F16: 0
A17: Lavalleja | B17: 34 | C17: 18 | D17: 16 | E17: 0 | F17: 0
A18: Maldonado | B18: 38 | C18: 36 | D18: 2 | E18: 0 | F18: 0
A19: Paysandú | B19: 64 | C19: 31 | D19: 27 | E19: 6 | F19: 0
A20: Río Negro | B20: 38 | C20: 23 | D20: 15 | E20: 0 | F20: 0
A21: Rivera | B21: 64 | C21: 42 | D21: 15 | E21: 7 | F21: 0
A22: Rocha | B22: 36 | C22: 26 | D22: 9 | E22: 1 | F22: 0
A23: Salto | B23: 75 | C23: 60 | D23: 15 | E23: 0 | F23: 0
A24: San José | B24: 40 | C24: 28 | D24: 10 | E24: 1 | F24: 1
A25: Soriano | B25: 46 | C25: 23 | D25: 23 | E25: 0 | F25: 0
A26: Tacuarembó | B26: 59 | C26: 50 | D26: 4 | E26: 5 | F26: 0
A27: Treinta y Tres | B27: 38 | C27: 34 | D27: 3 | E27: 1 | F27: 0
A28: Fuentes: Becas, Dirección de Educación, MEC
A29: Nota: Todo el país (Año 2010)

Sheet I-3.1.6
A1: Ministerio de Educación y Cultura
A2: Dirección de Educación
A3: Área de Investigación y Estadística
A7: Cuadro I-3.1.6
A8: CANTIDAD DE COMPUTADORAS PORTÁTILES ENTREGADAS POR AÑO LECTIVO Y DESTINATARIO SEGÚN DEPARTAMENTO
A9: DEPARTAMENTO | C9: AÑO LECTIVO
C10: 2007 | D10: 2008 | E10: 2009 | F10: 2010
F11: Pública | H11: Privada | I11: Stock | K11: TOTAL
F12: Primaria | G12: Educación Media | I12: Público | J12: Privado | K12: 2010
A15: TOTAL | C15: 6853 | D15: 166423 | E15: 167983 | F15: 325651 | G15: 99497 | H15: 15357 | I15: 10499 | J15: 4966 | K15: 455970
A17: Florida (Urbano) | C17: 6853 | D17: - | E17: - | F17: - | G17: - | H17: - | I17: - | J17: - | K17: -
A19: Artigas | C19: - | D19: 1759 | E19: 1759 | F19: 10605 | G19: 3155 | H19: 1 | I19: 129 | J19: 0 | K19: 13890
A20: Canelones | C20: - | D20: 44613 | E20: 44613 | F20: 51097 | G20: 16011 | H20: 2923 | I20: 1318 | J20: 1196 | K20: 72545
A21: Cerro Largo | C21: - | D21: 2130 | E21: 2130 | F21: 11268 | G21: 3004 | H21: 170 | I21: 279 | J21: 48 | K21: 14769
A22: Colonia | C22: - | D22: 2151 | E22: 2151 | F22: 12599 | G22: 3727 | H22: 40 | I22: 376 | J22: 106 | K22: 16848
A23: Durazno | C23: - | D23: 1209 | E23: 1209 | F23: 8035 | G23: 1862 | H23: 463 | I23: 110 | J23: 60 | K23: 10530
A24: Flores | C24: - | D24: 1440 | E24: 1440 | F24: 7888 | G24: 2570 | H24: 132 | I24: 224 | J24: 102 | K24: 10916
A25: Florida | C25: - | D25: 527 | E25: 527 | F25: 2568 | G25: 803 | H25: 21 | I25: 39 | J25: 0 | K25: 3431
A26: Lavalleja | C26: - | D26: 1132 | E26: 1132 | F26: 6159 | G26: 2054 | H26: 423 | I26: 126 | J26: 94 | K26: 8856
A27: Maldonado | C27: - | D27: 2986 | E27: 2986 | F27: 16539 | G27: 4702 | H27: 534 | I27: 382 | J27: 90 | K27: 22247
A28: Montevideo | C28: - | D28: 90664 | E28: 90664 | F28: 98612 | G28: 32692 | H28: 9831 | I28: 5810 | J28: 2786 | K28: 149731
A29: Paysandú | C29: - | D29: 2450 | E29: 2450 | F29: 14422 | G29: 3524 | H29: 40 | I29: 214 | J29: 0 | K29: 18200
A30: Rio Negro | C30: - | D30: 1161 | E30: 1161 | F30: 7262 | G30: 2139 | H30: 5 | I30: 208 | J30: 0 | K30: 9614
A31: Rivera | C31: - | D31: 2486 | E31: 2486 | F31: 13993 | G31: 4304 | H31: 64 | I31: 99 | J31: 212 | K31: 18672
A32: Rocha | C32: - | D32: 1432 | E32: 1432 | F32: 8193 | G32: 2577 | H32: 77 | I32: 137 | J32: 110 | K32: 11094
A33: Salto | C33: - | D33: 2827 | E33: 2827 | F33: 16375 | G33: 4463 | H33: 408 | I33: 207 | J33: 50 | K33: 21503
A34: San José | C34: - | D34: 2269 | E34: 2269 | F34: 11979 | G34: 2788 | H34: 154 | I34: 356 | J34: 0 | K34: 15277
A35: Soriano | C35: - | D35: 1702 | E35: 1702 | F35: 10231 | G35: 2382 | H35: 31 | I35: 90 | J35: 0 | K35: 12734
A36: Tacuarembó | C36: - | D36: 2082 | E36: 2082 | F36: 11755 | G36: 3688 | H36: 30 | I36: 238 | J36: 52 | K36: 15763
A37: Treinta y Tres | C37: - | D37: 2963 | E37: 2963 | F37: 6071 | G37: 3052 | H37: 10 | I37: 157 | J37: 60 | K37: 9350
A40: Fuentes: | B40: Departamento de Evaluación Educativa, Plan Ceibal
A41: Nota: | B41: Los datos 2007-2009 no incluyen entregas en Secundaria, no incluyen equipos suministrados en calidad de “stock” y tampoco los equipos de recambio. Tampoco incluyen los equipos entregados al sector privado.
B42: Para 2010 los equipos entregados en “stock” incluyen, para el sector privado los “Equipos en Aula Ceibal” (Laboratorios Móviles).
B43: Entre los entregados se incluyen los averiados, pero no se incluyen los en “stock”.

Sheet I-3.1.7
A1: Ministerio de Educación y Cultura
A2: Dirección de Educación
A3: Área de Investigación y Estadística
A5: Cuadro I-3.1.7
A6: PORCENTAJE DE HOGARES EN VIVIENDAS UBICADAS EN ASENTAMIENTOS IRREGULARES SEGÚN TENENCIA Y CANTIDAD DE XO
A8: TENENCIA Y CANTIDAD DE XO | B8: TOTAL | C8: VIVIENDA UBICADA EN ASENTAMIENTO IRREGULAR
C9: Sí | D9: No
A11: No tienen | B11: 100 | C11: 4 | D11: 96
A12: Tienen 1 | B12: 100 | C12: 8.1 | D12: 91.9
A13: Tienen 2 | B13: 100 | C13: 11.3 | D13: 88.7
A14: Tienen 3 | B14: 100 | C14: 13.3 | D14: 86.7
A15: Tienen 4 | B15: 100 | C15: 14.6 | D15: 85.4
A16: Tienen 5 | B16: 100 | C16: 25 | D16: 75
A17: Tienen 6 | B17: 100 | C17: 38.4 | D17: 61.6
A20: Fuentes: Elaboración propia en base a la ECH 2009.
A21: Nota: Todo el país (Año 2009)

Sheet I-3.3.1
A1: Ministerio de Educación y Cultura
A2: Dirección de Educación
A3: Área de Investigación y Estadística
A5: Cuadro I-3.3.1
A6: GASTO EN MILLONES DE PESOS CONSTANTES DE 2006 POR AÑO LECTIVO SEGÚN ÁMBITO DEL GASTO (2004 - 2010)
A7: ÁMBITO DEL GASTO | B7: AÑO LECTIVO
B8: 2004 | C8: 2005 | D8: 2006 | E8: 2007 | F8: 2008 | G8: 2009 | H8: 2010
A10: TOTAL | B10: 13806 | C10: 14406 | D10: 15866 | E10: 18883 | F10: 22388 | G10: =G12+G15+G19+G20+G23+G24 -> 25023 | H10: =H12+H15+H19+H20+H23+H24 -> 25608.20163
A12: Inst. básicas del sist. educación formal | B12: 12883 | C12: 13314 | D12: 14345 | E12: 16157 | F12: 19010 | G12: 22020 | H12: 22218.74291
A13: ANEP | B13: 10337 | C13: 10702 | D13: 11455 | E13: 12881 | F13: 15223 | G13: 17662 | H13: 17771.8124
A14: UDELAR | B14: 2546 | C14: 2612 | D14: 2890 | E14: 3276 | F14: 3787 | G14: 4357 | H14: 4446.93051
A15: Administración Central e Inciso 21 | B15: 656 | C15: 733 | D15: 1079 | E15: 1152 | F15: 1327 | G15: 1294 | H15: 1523.082115
A16: Educación policial y militar | B16: 391 | C16: 436 | D16: 482 | E16: 569 | F16: 608 | G16: 628 | H16: 694.2412637
A17: Otros Administración Central1 | B17: 69 | C17: 91 | D17: 185 | E17: 159 | F17: 257 | G17: 164 | H17: 263.1640961
A18: Partidas del inciso 21 con destino a educación2 | B18: 196 | C18: 206 | D18: 412 | E18: 424 | F18: 462 | G18: 502 | H18: 565.6767556
A19: Educación no formal inicial (CAIF) y CENFORES | B19: 141 | C19: 191 | D19: 240 | E19: 281 | F19: 473 | G19: 540 | H19: 535.6258651
A20: Ciencia y Tecnología | B20: 126 | C20: 168 | D20: 202 | E20: 299 | F20: 291 | G20: 206 | H20: 229.9738005
A21: MEC3 | B21: 109 | C21: 125 | D21: 147 | E21: 240 | F21: 161 | G21: 79 | H21: 84.64402293
A22: PEDECIBA, Instituto Pasteur, ANII4 | B22: 17 | C22: 43 | D22: 55 | E22: 59 | F22: 129 | G22: 127 | H22: 145.3297776
A23: Plan Ceibal | B23: 0 | C23: 0 | D23: 0 | E23: 497 | F23: 1203 | G23: 801 | H23: 908.9556789
A24: Incentivo a la demanda educativa en secundaria | B24: 0 | C24: 0 | D24: 0 | E24: 0 | F24: 84 | G24: 162 | H24: 191.8212572
A27: Fuentes: Elaborado en base a datos del MEF.
A28: Nota: 1 Se incluyen gastos en Dirección de Educación del MEC, ISEF, capacitación laboral, Centro de Diseño Industrial, escuelas de formación artística y otros componentes considerados en MIDES-DINEM (2006), "Identificación y análisis del Gasto Público Social en Uruguay. 2002-2005". Además, se incluye el subsidio al boleto estudiantil que realiza el MTOP.
A29: 2 Incluye subsidios a escuelas para niños con capacidades especiales, rentas afectadas al Fondo de Solidaridad y al Fondo de Reconversión Laboral.
A30: 3 Se considera la Dirección Nacional de Ciencia y Tecnología (DINACYT) y el Clemente Estable. La baja de recursos se explica por la finalización del Programa de Desarrollo Tecnológico (PDT) y el traspaso de algunos programas a la ANII.
A31: 4 Del presupuesto de la ANII se toma en cuenta sólo el componente 2, de Fortalecimiento y orientación de la investigación.

Sheet I-4.4.1
A1: Ministerio de Educación y Cultura
A2: Dirección de Educación
A3: Área de Investigación y Estadística
A5: Cuadro I-4.4.1
A6: SERCE (2008): PORCENTAJE DE ESTUDIANTES POR TIPO DE PRUEBA, GRADO Y NIVEL DE DESEMPEÑO SEGÚN PAÍS Y REGIÓN
A7: Países | C7: Porcentaje de estudiantes con nivel de desempeño IV en LECTURA según grado por país | E7: Porcentaje de estudiantes con nivel de desempeño IV en MATEMÁTICA según grado por país | G7: Porcentaje de estudiantes con nivel de desempeño IV en CIENCIAS por país
C8: 3º Grado | D8: 6º Grado | E8: 3º Grado | F8: 6º Grado | G8: 6º Grado
C9: Nivel IV | D9: Nivel IV | E9: Nivel IV | F9: Nivel IV | G9: Nivel IV
A11: TOTAL AL y C | C11: 8.4 | D11: 20.3 | E11: 11.2 | F11: 11.4 | G11: n/c
A13: Argentina | C13: 9.5 | D13: 17.7 | E13: 10.9 | F13: 11.9 | G13: 13.9
A14: Brasil | C14: 8.4 | D14: 19.2 | E14: 10.5 | F14: 12.3 | G14: 13.9
A15: Chile | C15: 7.1 | D15: 22.5 | E15: 12.1 | F15: 8.8 | G15: n/c
A16: Colombia | C16: 17.8 | D16: 29.3 | E16: 14 | F16: 13.5 | G16: n/c
A17: Costa Rica | C17: 8.5 | D17: 17.8 | E17: 6.7 | F17: 5.5 | G17: 14.6
A18: Cuba | C18: 18.2 | D18: 34.6 | E18: 13.7 | F18: 19 | G18: n/c
A19: Ecuador | C19: 44.3 | D19: 50.7 | E19: 54.4 | F19: 51.1 | G19: 65
A20: El Salvador | C20: 2.1 | D20: 5.7 | E20: 4.1 | F20: 4.3 | G20: n/c
A21: Guatemala | C21: 5.4 | D21: 9.5 | E21: 3.6 | F21: 3.5 | G21: 8.9
A22: México | C22: 1.9 | D22: 5 | E22: 2.1 | F22: 2 | G22: n/c
A23: Nicaragua | C23: 12.1 | D23: 24.4 | E23: 15.6 | F23: 19.6 | G23: n/c
A24: Nuevo León | C24: 1.7 | D24: 5.2 | E24: 2 | F24: 1.8 | G24: n/c
A25: Panamá | C25: 0.6 | D25: 1.4 | E25: 0.1 | F25: 0.2 | G25: 18.7
A26: Paraguay | C26: 18.4 | D26: 28.3 | E26: 23.1 | F26: 23.4 | G26: 9.2
A27: Perú | C27: 3.9 | D27: 9.6 | E27: 2.8 | F27: 2.3 | G27: 8.5
A28: R. Dominicana | C28: 5.5 | D28: 7.2 | E28: 9.2 | F28: 4.7 | G28: 6.7
A29: Uruguay | C29: 3.7 | D29: 9.46 | E29: 4.8 | F29: 9.3 | G29: 1.4
A31: Puesto Uruguay | C31: 6to | D31: 3ro | E31: 3ro | F31: 2do | G31: 2do
A33: Fuentes: Datos SERCE 2008.

Sheet I-4.4.2
A1: Ministerio de Educación y Cultura
A2: Dirección de Educación
A3: Área de Investigación y Estadística
A5: Cuadro I-4.4.2
A6: PORCENTAJE DE ESTUDIANTES EN EL MAYOR NIVEL DE RENDIMIENTO DE LAS PRUEBAS DE COMPETENCIAS DE PISA POR TIPO DE COMPETENCIA Y AÑOS DE LA PRUEBA SEGÚN PAISES DEL MERCOSUR Y PROMEDIO DE LA OCDE
A7: PAÍSES | C7: TIPO DE COMPETENCIA
C8: MATEMÁTICAS | F8: CIENCIAS | I8: LECTURA
C9: AÑO DE LA PRUEBA | F9: AÑO DE LA PRUEBA | I9: AÑO DE LA PRUEBA
C10: 2006 | D10: 2009 | F10: 2006 | G10: 2009 | I10: 2006 | J10: 2009
A12: TOTAL OCDE | C12: 10.8 | D12: 12.7 | F12: 8.8 | G12: 8.5 | I12: 8.1 | J12: 8
A13: Argentina | C13: 1 | D13: 0.9 | F13: 0.4 | G13: 0.6 | I13: 0.9 | J13: 1
A14: Brasil | C14: 1 | D14: 0.8 | F14: 0.5 | G14: 0.6 | I14: 1.1 | J14: 1.3
A15: Chile | C15: 1.4 | D15: 1.3 | F15: 1.9 | G15: 1.1 | I15: 3.5 | J15: 1.3
A16: Uruguay | C16: 3.2 | D16: 2.5 | F16: 1.4 | G16: 1.5 | I16: 3.1 | J16: 1.8
A19: Fuentes: | B19: Para PISA 2009: Uruguay en PISA 2009. Primeros resultados en Ciencias, Matemática y Lectura del Programa Internacional de Evaluación de Estudiantes. Informe Ejecutivo.
B20: Para PISA 2006: Uruguay en PISA 2006. Primeros resultados en Ciencias, Matemática y Lectura del Programa Internacional de Evaluación de Estudiantes. Informe Ejecutivo.
A21: Nota: | B21: En todos los casos se suman los Niveles 5 y 6, pero para PISA 2006 en Lectura se toma sólo el Nivel 5 (nivel máximo).

Sheet I-4.4.3
A1: Ministerio de Educación y Cultura
A2: Dirección de Educación
A3: Área de Investigación y Estadística
A5: Cuadro I-4.4.3
A6: PORCENTAJE DE ESTUDIANTES CON EL MENOR NIVEL DE RENDIMIENTO DE LAS PRUEBAS DE COMPETENCIAS DE PISA POR TIPO DE COMPETENCIA Y AÑOS DE LA PRUEBA SEGÚN PAISES DEL MERCOSUR Y PROMEDIO DE LA OCDE
A7: PAÍSES | C7: TIPO DE COMPETENCIA
C8: MATEMÁTICAS | F8: CIENCIAS | I8: LECTURA
C9: AÑO DE LA PRUEBA | F9: AÑO DE LA PRUEBA | I9: AÑO DE LA PRUEBA
C10: 2006 | D10: 2009 | F10: 2006 | G10: 2009 | I10: 2006 | J10: 2009
A12: TOTAL OCDE | C12: 26.4 | D12: 22 | F12: 19.3 | G12: 18 | I12: 23.1 | J12: 19.7
A14: Argentina | C14: 64.1 | D14: 63.6 | F14: 56.2 | G14: 52.4 | I14: 57.9 | J14: 51.6
A15: Brasil | C15: 72.5 | D15: 69.1 | F15: 61 | G15: 54.2 | I15: 55.5 | J15: 49.6
A16: Chile | C16: 55.1 | D16: 51.1 | F16: 39.8 | G16: 32.3 | I16: 36.3 | J16: 30.6
A17: Uruguay | C17: 46.1 | D17: 47 | F17: 42.1 | G17: 42.6 | I17: 46.6 | J17: 42.1
A20: Fuentes: | B20: Para PISA 2009: Uruguay en PISA 2009. Primeros resultados en Ciencias, Matemática y Lectura del Programa Internacional de Evaluación de Estudiantes. Informe Ejecutivo.
B21: Para PISA 2006: Uruguay en PISA 2006. Primeros resultados en Ciencias, Matemática y Lectura del Programa Internacional de Evaluación de Estudiantes. Informe Ejecutivo.
A22: Nota: | B22: En todos los casos se suman los Niveles <1 y 1.

Sheet I-4.5.1
A1: Ministerio de Educación y Cultura
A2: Dirección de Educación
A3: Área de Investigación y Estadística
A5: Cuadro I-4.5.1
A6: INDICADORES Y VALORES PARA LA META NACIONAL 3 (2008 - 2010)
C7: 2008 | D7: 2009 | E7: 2010
A8: Asistencia al sistema educativo del grupo 3 a 5 por edad simple:
B9: 3 años | C9: 0.538 | D9: 0.585 | E9: 0.613
B10: 4 años | C10: 0.83 | D10: 0.866 | E10: 0.861
B11: 5 años | C11: 0.969 | D11: 0.973 | E11: 0.973
A12: Tasa neta de asistencia al primer ciclo de secundaria del grupo de 12 a 14 años | C12: 0.692 | D12: 0.731 | E12: 0.734
A13: Tasa neta de asistencia al segundo ciclo de secundaria del grupo de 15 a 17 años | C13: 0.532 | D13: 0.476 | E13: 0.432
A14: Fuente: Procesamiento propio en base a la ECH 2008-2010.

Sheet G I-1.2.1
A1: Ministerio de Educación y Cultura
A2: Dirección de Educación
A3: Área de Investigación y Estadística
A6: Gráfico I-1.2.1
A23: Fuente: Censos de Población 1963, 1975, 1985 y 1996, ENHA 2006 y ECH de 2007 a 2010 del INE.

Sheet G I-1.2.2
A1: Ministerio de Educación y Cultura
A2: Dirección de Educación
A3: Área de Investigación y Estadística
A5: Gráfico I-1.2.2
A32: Fuente: Elaboración propia en base a la ECH del INE (2009).
A33: NOTA: Las categorías de nivel educativo denotan acceso al ciclo y no necesariamente culminación del mismo.

Sheet G I-1.2.3
A1: Ministerio de Educación y Cultura
A2: Dirección de Educación
A3: Área de Investigación y Estadística
A5: Gráficos I-1.2.3
A33: Fuente: Elaboración propia en base a la ENHA 2006 y de las ECH 2007, 2008, 2009 y 2010 del INE.
A34: NOTA: Las categorías de nivel educativo denotan acceso al ciclo y no necesariamente culminación del mismo.

Sheet G I-1.2.4
A1: Ministerio de Educación y Cultura
A2: Dirección de Educación
A3: Área de Investigación y Estadística
A5: Gráfico I-1.2.4
A33: Fuente: Elaboración propia en base a la ENHA 2006 y de las ECH 2007, 2008, 2009 y 2010 del INE.
A34: NOTA: Las categorías de nivel educativo denotan acceso al ciclo y no necesariamente culminación del mismo.

Sheet G I-1.2.5
A1: Ministerio de Educación y Cultura
A2: Dirección de Educación
A3: Área de Investigación y Estadística
A5: Gráfico I-1.2.5
A31: Fuente: Elaboración propia en base a Encuesta Continua de Hogares 2010.

Sheet G I-1.2.6
A1: Ministerio de Educación y Cultura
A2: Dirección de Educación
A3: Área de Investigación y Estadística
A5: Gráfico I-1.2.6
A33: Fuente: Elaboración propia en base a Encuesta Continua de Hogares 2010.

Sheet G I-1.2.7
A1: Ministerio de Educación y Cultura
A2: Dirección de Educación
A3: Área de Investigación y Estadística
A5: Gráfico I-1.2.7
A33: Fuente: Elaboración propia en base a Encuesta Continua de Hogares 2010.

Sheet G I-1.2.8
A1: Ministerio de Educación y Cultura
A2: Dirección de Educación
A3: Área de Investigación y Estadística
A5: Gráfico I-1.2.8
A34: Fuentes: Departamentos de Estadística u oficinas productoras de información del CEP, CES, CETP, UdelaR, DFPD, INAU, y restantes instituciones públicas y privadas de educación terciaria.

Sheet G I-1.2.9
A1: Ministerio de Educación y Cultura
A2: Dirección de Educación
A3: Área de Investigación y Estadística
A5: Gráfico I-1.2.9
A36: Fuentes: Elaboración propia en base a datos del CEP, CES, CETP , UdelaR e instituciones privadas de educación terciaria.

Sheet G I-1.2.10
A1: Ministerio de Educación y Cultura
A2: Dirección de Educación
A3: Área de Investigación y Estadística
A5: Gráfico I-1.2.10
A37: Fuentes: Elaboración propia en base a datos del CEP, CES, CETP , UdelaR, DFPD e instituciones privadas de educación terciaria.
A38: Notas: Ya que no se cuenta con el valor de matrícula de UdelaR, se toman en cuenta los valores de ingreso para Montevideo-Interior.

Sheet G I-1.2.11
A1: Ministerio de Educación y Cultura
A2: Dirección de Educación
A3: Área de Investigación y Estadística
A5: Gráfico I-1.2.11
A35: Fuentes: Elaboración propia en base a datos del CEP, CES, CETP , UdelaR, DFPD e instituciones privadas de educación terciaria.

Sheet G I-1.2.12
A1: Ministerio de Educación y Cultura
A2: Dirección de Educación
A3: Área de Investigación y Estadística
A5: Gráfico I-1.2.12
A33: Fuente: Elaboración propia en base a Encuesta Continua de Hogares 2010.

Sheet G I-1.2.13
A1: Ministerio de Educación y Cultura
A2: Dirección de Educación
A3: Área de Investigación y Estadística
A5: Gráfico I-1.2.13
A32: Fuente: Elaboración propia en base a Encuesta Continua de Hogares 2010.

Sheet G I-1.2.14
A1: Ministerio de Educación y Cultura
A2: Dirección de Educación
A3: Área de Investigación y Estadística
A5: Gráfico I-1.2.14
A32: Fuente: Elaboración propia en base a Encuesta Continua de Hogares 2010.

Sheet G I-1.2.15
A1: Ministerio de Educación y Cultura
A2: Dirección de Educación
A3: Área de Investigación y Estadística
A5: Gráfico I-1.2.15
A32: Fuente: Elaboración propia en base a Encuesta Continua de Hogares 2010.

Sheet G I-1.2.16
A1: Ministerio de Educación y Cultura
A2: Dirección de Educación
A3: Área de Investigación y Estadística
A5: Gráfico I-1.2.16
A31: Fuente: Elaboración propia en base a Encuesta Continua de Hogares 2010.

Sheet G I-1.2.17
A1: Ministerio de Educación y Cultura
A2: Dirección de Educación
A3: Área de Investigación y Estadística
A5: Gráfico I-1.2.17
A31: Fuente: Elaboración propia en base a Encuesta Continua de Hogares 2010.

Sheet G I-1.2.18
A1: Ministerio de Educación y Cultura
A2: Dirección de Educación
A3: Área de Investigación y Estadística
A5: Gráfico I-1.2.18
A33: Fuente: Elaboración propia en base a la ENHA 2006 y las ECH 2007 a 2010.

Sheet G I-1.2.19
A1: Ministerio de Educación y Cultura
A2: Dirección de Educación
A3: Área de Investigación y Estadística
A5: Gráfico I-1.2.19
A21: Fuente: Elaboración propia en base a la ENHA 2006 y las ECH 2007, 2008, 2009 y 2010.

Sheet G I-1.3.1
A1: Ministerio de Educación y Cultura
A2: Dirección de Educación
A3: Área de Investigación y Estadística
A5: Gráfico I-1.3.1
A20: Fuente: Elaboración propia en base a Encuesta Continua de Hogares 2010.

Sheet G I-1.3.2
A1: Ministerio de Educación y Cultura
A2: Dirección de Educación
A3: Área de Investigación y Estadística
A5: Gráfico I-1.3.2
A20: Fuente: Elaboración propia en base a Encuesta Continua de Hogares 2010.

Sheet G I-1.3.3
A1: Ministerio de Educación y Cultura
A2: Dirección de Educación
A3: Área de Investigación y Estadística
A5: Gráfico I-1.3.3
A25: Fuente: Elaboración propia en base a Encuesta Continua de Hogares 2010.

Sheet G I-2.1.1
A1: Ministerio de Educación y Cultura
A2: Dirección de Educación
A3: Área de Investigación y Estadística
A5: Gráfico I-2.1.1
A34: Fuente: Elaboración propia en base a datos del Departamento de Estadística del CEIP, Sistema de Información para la Infancia de INAU
A35: Programa Nuestros Niños de la IMM y Área de Investigación y Estadística, MEC (Centros CEIP).

Sheet G I-2.1.2
A1: Ministerio de Educación y Cultura
A2: Dirección de Educación
A3: Área de Investigación y Estadística
A5: Gráfico I-2.1.2
A31: Fuente: Elaboración propia en base a datos del Departamento de Estadística del CEP, Sistema de Información para la Infancia de INAU y Primera Infancia MEC

Sheet G I-2.1.3
A1: Ministerio de Educación y Cultura
A2: Dirección de Educación
A3: Área de Investigación y Estadística
A5: Gráfico I-2.1.3
A30: Fuente: Elaboración propia en base a información del Departamento de Estadística del CEP

Sheet G I-2.1.4
A1: Ministerio de Educación y Cultura
A2: Dirección de Educación
A3: Área de Investigación y Estadística
A5: Gráfico I-2.1.4
A29: Fuente: Departamento de Estadística del CEP.

Sheet G I-2.2.1
A1: Ministerio de Educación y Cultura
A2: Dirección de Educación
A3: Área de Investigación y Estadística
A5: Gráfico I-2.2.1
A30: Fuente: Elaboración propia en base a datos del Departamento de Estadística del CEP

Sheet G I-2.2.2
A1: Ministerio de Educación y Cultura
A2: Dirección de Educación
A3: Área de Investigación y Estadística
A5: Gráfico I-2.2.2
A29: Fuente: Departamento de Estadística del CEIP

Sheet G I-2.2.3
A1: Ministerio de Educación y Cultura
A2: Dirección de Educación
A3: Área de Investigación y Estadística
A5: Gráfico I-2.2.3
A30: Fuente: Monitor Educativo de Enseñanza Primaria. ANEP

Sheet G I-2.2.4
A1: Ministerio de Educación y Cultura
A2: Dirección de Educación
A3: Área de Investigación y Estadística
A5: Gráfico I-2.2.4
A30: Fuente: Monitor Educativo de Enseñanza Primaria. ANEP

Sheet G I-2.3.1
A1: Ministerio de Educación y Cultura
A2: Dirección de Educación
A3: Área de Investigación y Estadística
A5: Gráfico I-2.3.1
A30: Fuente: Departamentos de Estadísticas del CEIP, CES y CETP
A31: Nota: Incluye Ciclo Básico Rural, Media General y Media Técnica.
A32: Enseñanza técnica incluye educación de Jóvenes y Adultos y excuye educación Terciaria

Sheet G I-2.3.2
A1: Ministerio de Educación y Cultura
A2: Dirección de Educación
A3: Área de Investigación y Estadística
A5: Gráfico I-2.3.2
A30: Fuente: Departamentos de Estadísticas del CEIP, CES y CETP
A31: Nota: Incluye Ciclo Básico Rural, enseñanza secundaria y enseñanza técnica
A32: El cambio en la tendencia en Bachillerato se explica por el peso de la matrícula del CEPT en 2009.
A33: En dicho año se transformó la estructura de la Educación Superior con la subsiguiente incorporación de
A34: Bachillerato Figari, Bachillerato Profesional, EMP Especialización y Articulación en tanto se eliminó
A35: el Bachillerato Tecnológico.

Sheet G I-2.3.3
A1: Ministerio de Educación y Cultura
A2: Dirección de Educación
A3: Área de Investigación y Estadística
A5: Gráfico I-2.3.3
A33: Fuente: Departamentos de Estadística del CES y del CETP
A34: Nota: Media Básica General incluye Ciclo Básico Rural

Sheet G I-2.3.4
A1: Ministerio de Educación y Cultura
A2: Dirección de Educación
A3: Área de Investigación y Estadística
A5: Gráfico I-2.3.4
A34: Fuente: Departamento de Estadística del CES.
A35: Nota: La matrícula de la oferta pública no incluye la correspondiente a enseñanza técnica.

Sheet G I-2.3.5
A1: Ministerio de Educación y Cultura
A2: Dirección de Educación
A3: Área de Investigación y Estadística
A5: Gráfico I-2.3.5
A25: Fuente: Departamento de Estadística del CES.
A26: Nota: La matrícula de la oferta pública no incluye la correspondiente a enseñanza técnica, por no contarse con información sobre la oferta técnica privada.

Sheet G I-2.3.6
A1: Ministerio de Educación y Cultura
A2: Dirección de Educación
A3: Área de Investigación y Estadística
A5: Gráfico I-2.3.6
A34: Fuente: Departamento de Estadística del CES.
A35: Nota: La matrícula de la oferta pública no incluye la correspondiente a enseñanza técnica, ni liceos de extraedad y Plan 2003
A36: y Plan 2003 (TEMS)

Sheet G I-2.3.7
A1: Ministerio de Educación y Cultura
A2: Dirección de Educación
A3: Área de Investigación y Estadística
A5: Gráfico I-2.3.7
A34: Fuente: CETP
A35: Nota:
A36: Def: CETP- "Aprobado" es la categoría que reúne a los alumnos con fallo final de aprobación (Total o Parcial) del curso realizado durante el año t y que lo habilita a cursar el grado (semestre/ módulo) siguiente en t + 1. / "Desvinculado" reúne a los alumnos que abandonaron durante el período interanual del año t y, no se encontraron en la matrícula del año t + 1. / "Repite" reúne a los alumnos que abandonar o no aprobaron el curso en el año t, y se encuentran en el mismo grado (módulo) y nivel en el año t + 1 (esta categoría incluye los cambios de orientación)

Sheet G I-2.3.8
A1: Ministerio de Educación y Cultura
A2: Dirección de Educación
A3: Área de Investigación y Estadística
A5: Gráfico I-2.3.8
A35: Fuente: Departamentos de Estadística del CES y del CETP.

Sheet G I-2.3.9
A1: Ministerio de Educación y Cultura
A2: Dirección de Educación
A3: Área de Investigación y Estadística
A5: Gráfico I-2.3.9
A35: Fuente: Departamento de Estadística del CES.
A36: Nota: La matrícula de la oferta pública no incluye la correspondiente a enseñanza técnica
A37: Matrícula de enseñanza privada incluye educación militar habilitada (Liceo Militar y Escuela Naval)

Sheet G I-2.3.10
A1: Ministerio de Educación y Cultura
A2: Dirección de Educación
A3: Área de Investigación y Estadística
A5: Gráfico I-2.3.10
A33: Fuente: Elaboración propia en base a información del Departamento de Estadística del CETP.
A34: Nota: No incluye educación Terciaria.

Sheet G I-2.4.1
A1: Ministerio de Educación y Cultura
A2: Dirección de Educación
A3: Área de Investigación y Estadística
A5: Gráfico I-1.4.1
A34: Fuente: Dirección de Formación y Perfeccionamiento Docente

Sheet G I-2.4.2
A1: Ministerio de Educación y Cultura
A2: Dirección de Educación
A3: Área de Investigación y Estadística
A5: Gráfico I-2.4.2
A32: Fuente: Dirección de Formación y Perfeccionamiento Docente

Sheet G I-2.4.3
A1: Ministerio de Educación y Cultura
A2: Dirección de Educación
A3: Área de Investigación y Estadística
A5: Gráfico I-2.4.3
A34: Fuente: Dirección de Formación y Perfeccionamiento Docente
A35: Nota: La serie presentada fue ajustada por la fuente, de manera que no coincide exactamente con la presentada
A36: en años anteriores.

Sheet G I-2.4.4
A1: Ministerio de Educación y Cultura
A2: Dirección de Educación
A3: Área de Investigación y Estadística
A5: Gráfico I-2.4.4
A34: Fuente: Elaboración propia en base a información proporcionada por las oficinas productoras de estadísticas de cada una de las instituciones

Sheet G I-2.4.5
A1: Ministerio de Educación y Cultura
A2: Dirección de Educación
A3: Área de Investigación y Estadística
A5: Gráfico I-2.4.5
A34: Fuente: Elaboración propia en base a información proporcionada por las oficinas productoras de estadísticas de cada una de las instituciones

Sheet G I-2.4.6
A1: Ministerio de Educación y Cultura
A2: Dirección de Educación
A3: Área de Investigación y Estadística
A5: Gráfico I-2.4.6
A34: Fuente: Elaboración propia en base a información proporcionada por las oficinas productoras de estadísticas de cada una de las instituciones

Sheet G I-2.5.1
A1: Ministerio de Educación y Cultura
A2: Dirección de Educación
A3: Área de Investigación y Estadística
A5: Gráfico I-2.5.1
A33: Fuente: Elaboración propia en base información de las oficinas productoras de las instituciones.

Sheet G I-2.5.2
A1: Ministerio de Educación y Cultura
A2: Dirección de Educación
A3: Área de Investigación y Estadística
A5: Gráfico I-2.5.2
A33: Fuente: Elaboración propia en base información de las oficinas productoras de las instituciones.
A34: Nota: Los ingresos a cursos de grado para UdelaR correspondientes al período 2000-2010 son extraídos de Estadísticas Básicas 2010 - Dirección General de Planeamiento -UdelaR.

Sheet G I-2.5.3
A1: Ministerio de Educación y Cultura
A2: Dirección de Educación
A3: Área de Investigación y Estadística
A5: Gráfico I-2.5.3
A34: Fuente: Estadísticas Básicas 2009 - Dirección General de Planeamiento -UdelaR.
A35: Nota: Los ingresos y egresos a cursos de grado para UdelaR correspondientes al período 2000-2010 son extraídos de Estadísticas Básicas 2010 - Dirección General de Planeamiento -UdelaR.

Sheet G I-2.5.4
A1: Ministerio de Educación y Cultura
A2: Dirección de Educación
A3: Área de Investigación y Estadística
A5: Gráfico I-2.5.4
A34: Fuente: Elaboración propia en base información de las oficinas productoras de las instituciones.
A35: Nota: Los egresos a cursos de grado para UdelaR correspondientes al período 2000-2010 son extraídos de Estadísticas Básicas 2010 - Dirección General de Planeamiento -UdelaR.

Sheet G I-2.5.5
A1: Ministerio de Educación y Cultura
A2: Dirección de Educación
A3: Área de Investigación y Estadística
A5: Gráfico I-2.5.5
A34: Fuente: Elaboración propia en base información de las oficinas productoras de las instituciones.

Sheet G I-2.5.6
A1: Ministerio de Educación y Cultura
A2: Dirección de Educación
A3: Área de Investigación y Estadística
A5: Gráfico I-2.5.6
A34: Fuente: Elaboración propia en base información de las oficinas productoras de las instituciones.

Sheet G I-2.5.7
A1: Ministerio de Educación y Cultura
A2: Dirección de Educación
A3: Área de Investigación y Estadística
A5: Gráfico I-2.5.7
A29: Fuente: Elaboración propia en base información de las oficinas productoras de las instituciones.
A30: Nota: Los ingresos a cursos de postgrado para el período 2001-2010 y para los egresos 2001-2009 son extraídos de Estadísticas Básicas 2010 - Dirección General de Planeamiento -UdelaR.

Sheet G I-2.5.8
A1: Ministerio de Educación y Cultura
A2: Dirección de Educación
A3: Área de Investigación y Estadística
A5: Gráfico I-2.5.8
A29: Fuente: Elaboración propia en base información de las oficinas productoras de las instituciones.

Sheet G I-3.2.1
A1: Ministerio de Educación y Cultura
A2: Dirección de Educación
A3: Área de Investigación y Estadística
A5: Gráfico I-3.2.1
A30: Fuente: Banco Central del Uruguay
A31: Nota: 2006-2010 datos preliminares del BCU

Sheet G I-3.2.2
A1: Ministerio de Educación y Cultura
A2: Dirección de Educación
A3: Área de Investigación y Estadística
A5: Gráfico I-3.2.2
A31: Nota: Los valores medios anuales fueron estimados por el Método del Ingreso de 2006 sobre los datos de las personas.
A32: Fuente: Incidencia de la pobreza e indigencia, INE.

Sheet G I-3.3.1
A1: Ministerio de Educación y Cultura
A2: Dirección de Educación
A3: Área de Investigación y Estadística
A5: Gráfico I-3.3.1
A33: Fuente: Elaborado en base a datos del MEF en base a CGN..

Sheet G I-3.3.2
A1: Ministerio de Educación y Cultura
A2: Dirección de Educación
A3: Área de Investigación y Estadística
A5: Gráfico I-3.3.2
A36: Fuente: Elaborado en base a datos del MEF en base a CGN.

Sheet G I-3.3.3
A1: Ministerio de Educación y Cultura
A2: Dirección de Educación
A3: Área de Investigación y Estadística
A5: Gráfico I-3.3.3
A31: Fuente: Gerencia General de Programación y Presupuesto, Unidad de Programación y Control Presupuestal del CODICEN
A32: Nota: Datos al 1º de enero de cada año a valores constantes del 1º de enero de 1997. La información corresponde al salario nominal más la partida de alimentación
A34: Fuente: Gerencia General de Programación y Presupuesto, Unidad de Programación y Control Presupuestal del CODICEN
A35: Nota: Datos al 1º de enero de cada año a valores constantes del 1º de enero de 1997. La información corresponde al salario nominal más la partida de alimentación.

Sheet G I-4.1.1
A1: Ministerio de Educación y Cultura
A2: Dirección de Educación
A3: Área de Investigación y Estadística
A5: Gráfico I-4.1.1
A32: Fuente: Indicadores Educativos del Mercosur 20000-2008 y Unidades Productoras de Estadísticas Oficiales de los Países.
A33: Nota: La Tasa de Analfabetismo se mide con base en personas con 15 y más años de edad, con excepción de Argentina, en que refiere a personas con 10 y más años de edad.
A34: Los datos de Paraguay para 2010 fueron provistos por las oficinas de estadística nacional, a solicitud del Área de Investigación y Estadística de la Dirección de Educación del Ministerio de Educación y Cultura. Y el dato de Argentina del 2010 fue tomado del Censo Nacional de Población, Hogares y Viviendas 2010.
A35: Brasil y Chile no actualizaron la información para el 2010, por lo que se replica el último dato disponible: año 2009.

Sheet G I-4.1.2
A1: Ministerio de Educación y Cultura
A2: Dirección de Educación
A3: Área de Investigación y Estadística
A5: Gráfico I-4.1.2
A30: Fuente: Datos UNESCO
A31: Nota: Los porcentajes por región, son promedios ponderados, teniendo en cuenta el tamaño poblacional relativo de los países. Los cálculos se realizaron con el último dato disponible de UNESCO (año 2000 en adelante).

Sheet G I-4.1.3
A1: Ministerio de Educación y Cultura
A2: Dirección de Educación
A3: Área de Investigación y Estadística
A5: Gráfico I-4.1.3
A30: Fuente: Datos UNESCO
A31: Nota: Los porcentajes por región son promedios ponderados, teniendo en cuenta el tamaño poblacional relativo de los países. Los cálculos se realizaron con el último dato disponible de UNESCO (año 2000 en adelante).

Sheet G I 4.2.1
A1: Ministerio de Educación y Cultura
A2: Dirección de Educación
A3: Área de Investigación y Estadística
A5: Gráfico I-4.2.1
A31: Fuente: Indicadores Educativos del Mercosur 2000 - 2008.

Sheet G I 4.2.2
A1: Ministerio de Educación y Cultura
A2: Dirección de Educación
A3: Área de Investigación y Estadística
A5: Gráfico I-4.2.2
A31: Fuente: Indicadores Educativos del Mercosur 2000 - 2008.

Sheet G I-4.2.3
A1: Ministerio de Educación y Cultura
A2: Dirección de Educación
A3: Área de Investigación y Estadística
A5: Gráfico I-4.2.3
A30: Fuente: Indicadores Educativos del Mercosur 2000 - 2008.

Sheet G I-4.3.1
A1: Ministerio de Educación y Cultura
A2: Dirección de Educación
A3: Área de Investigación y Estadística
A5: Gráfico I-4.3.1
A31: Fuente: Instituto de Estadística de la Organización de las Naciones Unidas para la Educación, la Ciencia y la Cultura (UNESCO) y, para Uruguay, Área de Investigación y Estadística de la Dirección de Educación del MEC, en base a datos del MEF, en base a CGN.

Sheet G I-4.3.2
A1: Ministerio de Educación y Cultura
A2: Dirección de Educación
A3: Área de Investigación y Estadística
A5: Gráfico I-4.3.2
A31: Fuente: Instituto de Estadística de la Organización de las Naciones Unidas para la Educación, la Ciencia y la Cultura (UNESCO) y, para Uruguay, Área de Investigación y Estadística de la Dirección de Educación del MEC, en base a datos del MEF, en base a CGN.
A32: Nota: Los porcentajes por región, son promedios ponderados. Los cálculos se realizaron con base en el último dato disponible en la fuente (año 2000 en adelante).

Sheet G I-4.4.1
A1: Ministerio de Educación y Cultura
A2: Dirección de Educación
A3: Área de Investigación y Estadística
A5: Gráfico I-4.4.1
A31: Fuente: Elaboración propia con base en Uruguay en PISA 2009. Primeros resultados en Ciencias, Matemática y Lectura del Programa Internacional de Evaluación de Estudiantes. Informe Ejecutivo.

Sheet PRIMERA INFANCIA E INICIAL
A11: CANTIDAD DE ESTABLECIMIENTOS DE EDUCACIÓN INICIAL Y PRIMERA INFANCIA
A12: Cuadro Nº II-1.1.1
A13: =' II-1.1.1'!A5:H5 -> CANTIDAD DE ESTABLECIMIENTOS DE EDUCACIÓN INICIAL POR FORMA DE ADMINISTRACIÓN Y MODALIDAD SEGÚN DEPARTAMENTO. AÑO 2010.
A15: Cuadro Nº II-1.1.2
A16: ='II-1.1.2'!A6:G6 -> CANTIDAD DE ESTABLECIMIENTOS DE PRIMERA INFANCIA POR FORMA DE ADMINISTRACIÓN SEGÚN DEPARTAMENTO. AÑO 2010.
A18: ALUMNOS MATRICULADOS EN EDUCACIÓN INICIAL Y PRIMERA INFANCIA
A19: Cuadro Nº II-1.2.1
A20: ='II-1.2.1'!A5:S5 -> ALUMNOS MATRICULADOS EN EDUCACIÓN INICIAL POR FORMA DE ADMINISTRACIÓN, MODALIDAD Y SEXO SEGÚN DEPARTAMENTO. AÑO 2010.
A22: Cuadro Nº II-1.2.2
A23: ='II-1.2.2'!A6:I6 -> ALUMNOS MATRICULADOS EN PRIMERA INFANCIA POR FORMA DE ADMINISTRACIÓN Y SEXO SEGÚN DEPARTAMENTO. AÑO 2010.
A25: Cuadro Nº II-1.2.3
A26: ='II-1.2.3 '!A7:I7 -> ALUMNOS MATRICULADOS EN PRIMERA INFANCIA POR FORMA DE ADMINISTRACIÓN SEGÚN EDAD. AÑO 2010.
A28: Cuadro Nº II-1.2.4
A29: ='II-1.2.4'!A5:D5 -> ALUMNOS MATRICULADOS EN EDUCACIÓN INICIAL PÚBLICA EN CLASE JARDINERA POR ÁREA DEMOGRÁFICA SEGÚN DEPARTAMENTO. AÑO 2010.
A31: Cuadro Nº II-1.2.5
A32: ='II-1.2.5'!A5:P5 -> ALUMNOS MATRICULADOS EN EDUCACIÓN INICIAL PRIVADA POR MODALIDAD Y NIVEL SEGÚN DEPARTAMENTO. AÑO 2010.
A34: Cuadro Nº II-1.2.6
A35: ='II-1.2.6'!A6:I6 -> ALUMNOS MATRICULADOS EN PRIMERA INFANCIA POR EDAD SEGÚN DEPARTAMENTO. AÑO 2010.
A37: PERSONAL DOCENTE EN EDUCACIÓN INICIAL
A38: Cuadro Nº II-1.3.1
A39: ='II-1.3.1'!A5:F5 -> PERSONAL DOCENTE DE EDUCACIÓN INICIAL PÚBLICA SEGÚN DEPARTAMENTO. AÑO 2010.
A41: Cuadro Nº II-1.3.2
A42: ='II-1.3.2'!A5:E5 -> PERSONAL DOCENTE DE EDUCACIÓN INICIAL PRIVADA SEGÚN DEPARTAMENTO. AÑO 2010.

Sheet II-1.1.1
A1: CONSEJO DE EDUCACIÓN PRIMARIA | G1: ESTABLECIMIENTOS
A3: Cuadro Nº II-1.1.1
A5: CANTIDAD DE ESTABLECIMIENTOS DE EDUCACIÓN INICIAL POR FORMA DE ADMINISTRACIÓN Y MODALIDAD SEGÚN DEPARTAMENTO. AÑO 2010.
A6: DEPARTAMENTO | C6: TOTAL | D6: FORMA DE ADMINISTRACIÓN
D7: PÚBLICA | H7: PRIVADA
D8: Total | E8: Jardines de Infantes | F8: JICI | G8: Guarderías | H8: Jardines de Infantes
A11: TOTAL.......................... | C11: =+C13+C14 -> 218 | D11: =+D13+D14 -> 155 | E11: =SUM(E13:E14) -> 139 | F11: =SUM(F13:F14) -> 14 | G11: =SUM(G13:G14) -> 2 | H11: =SUM(H13:H14) -> 63
A13: MONTEVIDEO................... | C13: =+D13+H13 -> 86 | D13: =+E13+F13+G13 -> 48 | E13: 44 | F13: 3 | G13: 1 | H13: 38
A14: RESTO DEL PAÍS.......................... | C14: =+D14+H14 -> 132 | D14: =+E14+F14+G14 -> 107 | E14: =SUM(E16:E33) -> 95 | F14: =SUM(F16:F33) -> 11 | G14: =SUM(G16:G33) -> 1 | H14: =SUM(H16:H33) -> 25
A16: Artigas......................... | C16: =+D16+H16 -> 3 | D16: =+E16+F16+G16 -> 3 | E16: 3 | F16: 0 | G16: 0 | H16: 0
A17: Canelones..................... | C17: 40 | D17: 33 | E17: 30 | F17: 2 | G17: 1 | H17: 7
A18: Cerro Largo.................. | C18: 7 | D18: 6 | E18: 5 | F18: 1 | G18: 0 | H18: 1
A19: Colonia......................... | C19: 7 | D19: 6 | E19: 5 | F19: 1 | G19: 0 | H19: 1
A20: Durazno........................ | C20: 4 | D20: 4 | E20: 3 | F20: 1 | G20: 0 | H20: 0
A21: Flores........................... | C21: 1 | D21: 1 | E21: 1 | F21: 0 | G21: 0 | H21: 0
A22: Florida........................ | C22: 4 | D22: 2 | E22: 2 | F22: 0 | G22: 0 | H22: 2
A23: Lavalleja....................... | C23: 6 | D23: 5 | E23: 4 | F23: 1 | G23: 0 | H23: 1
A24: Maldonado..................... | C24: 11 | D24: 7 | E24: 7 | F24: 0 | G24: 0 | H24: 4
A25: Paysandú...................... | C25: 3 | D25: 2 | E25: 1 | F25: 1 | G25: 0 | H25: 1
A26: Río Negro..................... | C26: 4 | D26: 4 | E26: 3 | F26: 1 | G26: 0 | H26: 0
A27: Rivera....................... | C27: 5 | D27: 5 | E27: 4 | F27: 1 | G27: 0 | H27: 0
A28: Rocha......................... | C28: 7 | D28: 7 | E28: 7 | F28: 0 | G28: 0 | H28: 0
A29: Salto........................ | C29: 9 | D29: 4 | E29: 4 | F29: 0 | G29: 0 | H29: 5
A30: San José...................... | C30: 6 | D30: 6 | E30: 5 | F30: 1 | G30: 0 | H30: 0
A31: Soriano...................... | C31: 5 | D31: 4 | E31: 4 | F31: 0 | G31: 0 | H31: 1
A32: Tacuarembó.................... | C32: 7 | D32: 6 | E32: 6 | F32: 0 | G32: 0 | H32: 1
A33: Treinta y Tres.............. | C33: 3 | D33: 2 | E33: 1 | F33: 1 | G33: 0 | H33: 1
A34: Fuente: D.E.E. - C.E.P.

Sheet II-1.1.2
A1: MINISTERIO DE EDUCACIÓN Y CULTURA | G1: Establecimientos
A2: Dirección de Educación – Área de Educación en la Primera Infancia
A4: Cuadro Nº II-1.1.2
A6: CANTIDAD DE ESTABLECIMIENTOS DE PRIMERA INFANCIA POR FORMA DE ADMINISTRACIÓN SEGÚN DEPARTAMENTO. AÑO 2010.
A7: DEPARTAMENTO
C8: TOTAL | D8: CAIF | E8: NUESTROS NIÑOS | F8: DIURNOS-INAU | G8: PRIVADOS
A11: TOTAL.......................... | C11: =+C13+C14 -> 909 | D11: =SUM(D13:D14) -> 324 | E11: =SUM(E13:E14) -> 18 | F11: 40 | G11: =SUM(G13:G14) -> 527
A13: MONTEVIDEO..................... | C13: =+D13++E13+F13+G13 -> 402 | D13: 75 | E13: 18 | F13: 10 | G13: 299
A14: RESTO DEL PAÍS.......................... | C14: =+D14++E14+F14+G14 -> 507 | D14: =SUM(D16:D33) -> 249 | E14: =SUM(E16:E33) -> 0 | F14: 30 | G14: 228
A16: Artigas......................... | C16: =+D16++E16+F16+G16 -> 18 | D16: 14 | E16: 0 | F16: 2 | G16: 2
A17: Canelones.................... | C17: =+D17++E17+F17+G17 -> 130 | D17: 45 | E17: 0 | F17: 2 | G17: 83
A18: Cerro Largo................... | C18: 26 | D18: 19 | E18: 0 | F18: 1 | G18: 6
A19: Colonia...................... | C19: 36 | D19: 13 | E19: 0 | F19: 2 | G19: 21
A20: Durazno........................ | C20: 22 | D20: 14 | E20: 0 | F20: 3 | G20: 5
A21: Flores......................... | C21: 8 | D21: 5 | E21: 0 | F21: 1 | G21: 2
A22: Florida...................... | C22: 18 | D22: 9 | E22: 0 | F22: 2 | G22: 7
A23: Lavalleja.................... | C23: 14 | D23: 5 | E23: 0 | F23: 1 | G23: 8
A24: Maldonado...................... | C24: 31 | D24: 7 | E24: 0 | F24: 3 | G24: 21
A25: Paysandú...................... | C25: 47 | D25: 22 | E25: 0 | F25: 2 | G25: 23
A26: Río Negro...................... | C26: 18 | D26: 11 | E26: 0 | F26: 2 | G26: 5
A27: Rivera....................... | C27: 22 | D27: 14 | E27: 0 | F27: 1 | G27: 7
A28: Rocha......................... | C28: 16 | D28: 9 | E28: 0 | F28: 1 | G28: 6
A29: Salto........................... | C29: 31 | D29: 20 | E29: 0 | F29: 1 | G29: 10
A30: San José....................... | C30: 17 | D30: 9 | E30: 0 | F30: 2 | G30: 6
A31: Soriano......................... | C31: 24 | D31: 12 | E31: 0 | F31: 1 | G31: 11
A32: Tacuarembó...................... | C32: 18 | D32: 12 | E32: 0 | F32: 2 | G32: 4
A33: Treinta y Tres.................. | C33: 11 | D33: 9 | E33: 0 | F33: 1 | G33: 1
A34: Fuente: Procesamiento propio en base a datos proporcionados por:
A35: Registro Nacional de Centros Educativos en la Primera Infancia. MEC
A36: Para CAIF Y CENTROS DIURNOS: SIPI de INAU.
A37: Para Programa Nuestros Niños: IMM.

Sheet II-1.2.1
A1: CONSEJO DE EDUCACIÓN PRIMARIA | Q1: ALUMNOS MATRICULADOS
A3: Cuadro Nº II-1.2.1
A5: ALUMNOS MATRICULADOS EN EDUCACIÓN INICIAL POR FORMA DE ADMINISTRACIÓN, MODALIDAD Y SEXO SEGÚN DEPARTAMENTO. AÑO 2010.
A6: CANTIDAD DE ESTABLECIMIENTOS DE PRIMERA INFANCIA POR FORMA DE ADMINISTRACIÓN SEGÚN DEPARTAMENTO. AÑO 2010. | B6: FORMA DE ADMINISTRACIÓN
B7: TOTAL | F7: PÚBLICA | O7: PRIVADA
F8: Total Público | G8: Clases Jardineras | I8: Jardines de Infantes | K8: JICI | M8: Guarderías | O8: Total Privada | P8: Jardines de Infantes | R8: Clases Jardineras
B9: TOTAL | C9: SEXO | G9: SEXO | I9: SEXO | K9: SEXO | M9: SEXO | P9: SEXO | R9: SEXO
C10: M | D10: F | G10: M | H10: F | I10: M | J10: F | K10: M | L10: F | M10: M | N10: F | P10: M | Q10: F | R10: M | S10: F
A11: TOTAL.......................... | B11: =+B13+B14 -> 109819 | C11: =+C13+C14 -> 55988 | D11: =+D13+D14 -> 53831 | F11: =+F13+F14 -> 81875 | G11: =G13+G14 -> 25195 | H11: =H13+H14 -> 23720 | I11: =+I13+I14 -> 15290 | J11: =J13+J14 -> 14842 | K11: =K13+K14 -> 1307 | L11: =L13+L14 -> 1290 | M11: =+M13+M14 -> 111 | N11: =N13+N14 -> 120 | O11: =+O13+O14 -> 27944 | P11: =+P13+P14 -> 2977 | Q11: =+Q13+Q14 -> 2800 | R11: =+R13+R14 -> 11108 | S11: =+S13+S14 -> 11059
A13: MONTEVIDEO..................... | B13: =+C13+D13 -> 40760 | C13: =+G13+I13+K13+M13+P13+R13 -> 20700 | D13: =+H13+J13+L13+N13+Q13+S13 -> 20060 | F13: =+G13+H13+I13+J13+K13+L13+M13+N13 -> 24014 | G13: 6206 | H13: 5950 | I13: 5494 | J13: 5364 | K13: 402 | L13: 404 | M13: 93 | N13: 101 | O13: =+P13+Q13+R13+S13 -> 16746 | P13: 2048 | Q13: 1904 | R13: 6457 | S13: 6337
A14: RESTO DEL PAÍS.......................... | B14: =SUM(B16:B33) -> 69059 | C14: =SUM(C16:C33) -> 35288 | D14: =SUM(D16:D33) -> 33771 | F14: =SUM(F16:F33) -> 57861 | G14: 18989 | H14: 17770 | I14: 9796 | J14: 9478 | K14: 905 | L14: 886 | M14: 18 | N14: 19 | O14: 11198 | P14: =SUM(P16:P33) -> 929 | Q14: 896 | R14: 4651 | S14: 4722
A16: Artigas......................... | B16: =+C16+D16 -> 2580 | C16: =+G16+I16+K16+M16+P16+R16 -> 1334 | D16: =+H16+J16+L16+N16+Q16+S16 -> 1246 | F16: =+G16+H16+I16+J16+K16+L16+M16+N16 -> 2505 | G16: 1020 | H16: 958 | I16: 275 | J16: 252 | K16: 0 | L16: 0 | M16: 0 | N16: 0 | O16: =+P16+Q16+R16+S16 -> 75 | P16: 0 | Q16: 0 | R16: 39 | S16: 36
A17: Canelones...................... | B17: 16803 | C17: 8559 | D17: 8244 | F17: 13027 | G17: 3625 | H17: 3389 | I17: 2896 | J17: 2792 | K17: 147 | L17: 141 | M17: 18 | N17: 19 | O17: 3776 | P17: 287 | Q17: 295 | R17: 1586 | S17: 1608
A18: Cerro Largo..................... | B18: 2964 | C18: 1467 | D18: 1497 | F18: 2656 | G18: 889 | H18: 889 | I18: 324 | J18: 342 | K18: 101 | L18: 111 | M18: 0 | N18: 0 | O18: 308 | P18: 55 | Q18: 51 | R18: 98 | S18: 104
A19: Colonia........................... | B19: 4144 | C19: 2073 | D19: 2071 | F19: 3559 | G19: 1254 | H19: 1229 | I19: 481 | J19: 480 | K19: 51 | L19: 64 | M19: 0 | N19: 0 | O19: 585 | P19: 15 | Q19: 21 | R19: 272 | S19: 277
A20: Durazno....................... | B20: 1911 | C20: 944 | D20: 967 | F20: 1722 | G20: 547 | H20: 540 | I20: 256 | J20: 273 | K20: 53 | L20: 53 | M20: 0 | N20: 0 | O20: 189 | P20: 0 | Q20: 0 | R20: 88 | S20: 101
A21: Flores......................... | B21: 866 | C21: 402 | D21: 464 | F21: 677 | G21: 222 | H21: 235 | I21: 108 | J21: 112 | K21: 0 | L21: 0 | M21: 0 | N21: 0 | O21: 189 | P21: 0 | Q21: 0 | R21: 72 | S21: 117
A22: Florida......................... | B22: 2294 | C22: 1182 | D22: 1112 | F22: 2057 | G22: 700 | H22: 675 | I22: 356 | J22: 326 | K22: 0 | L22: 0 | M22: 0 | N22: 0 | O22: 237 | P22: 70 | Q22: 60 | R22: 56 | S22: 51
A23: Lavalleja........................ | B23: 2164 | C23: 1107 | D23: 1057 | F23: 1779 | G23: 446 | H23: 431 | I23: 405 | J23: 389 | K23: 57 | L23: 51 | M23: 0 | N23: 0 | O23: 385 | P23: 41 | Q23: 32 | R23: 158 | S23: 154
A24: Maldonado........................ | B24: 6086 | C24: 3137 | D24: 2949 | F24: 4046 | G24: 1321 | H24: 1238 | I24: 742 | J24: 745 | K24: 0 | L24: 0 | M24: 0 | N24: 0 | O24: 2040 | P24: 148 | Q24: 116 | R24: 926 | S24: 850
A25: Paysandú.......................... | B25: 4082 | C25: 2103 | D25: 1979 | F25: 3571 | G25: 1399 | H25: 1281 | I25: 333 | J25: 330 | K25: 122 | L25: 106 | M25: 0 | N25: 0 | O25: 511 | P25: 64 | Q25: 62 | R25: 185 | S25: 200
A26: Río Negro........................ | B26: 2177 | C26: 1096 | D26: 1081 | F26: 1891 | G26: 558 | H26: 540 | I26: 345 | J26: 294 | K26: 67 | L26: 87 | M26: 0 | N26: 0 | O26: 286 | P26: 0 | Q26: 0 | R26: 126 | S26: 160
A27: Rivera.......................... | B27: 4127 | C27: 2148 | D27: 1979 | F27: 3678 | G27: 1215 | H27: 1096 | I27: 634 | J27: 560 | K27: 80 | L27: 93 | M27: 0 | N27: 0 | O27: 449 | P27: 0 | Q27: 0 | R27: 219 | S27: 230
A28: Rocha.......................... | B28: 2444 | C28: 1275 | D28: 1169 | F28: 2189 | G28: 606 | H28: 555 | I28: 546 | J28: 482 | K28: 0 | L28: 0 | M28: 0 | N28: 0 | O28: 255 | P28: 0 | Q28: 0 | R28: 123 | S28: 132
A29: Salto............................ | B29: 4959 | C29: 2547 | D29: 2412 | F29: 4169 | G29: 1641 | H29: 1470 | I29: 523 | J29: 535 | K29: 0 | L29: 0 | M29: 0 | N29: 0 | O29: 790 | P29: 154 | Q29: 159 | R29: 229 | S29: 248
A30: San José....................... | B30: 3329 | C30: 1694 | D30: 1635 | F30: 3054 | G30: 1039 | H30: 951 | I30: 429 | J30: 468 | K30: 97 | L30: 70 | M30: 0 | N30: 0 | O30: 275 | P30: 0 | Q30: 0 | R30: 129 | S30: 146
A31: Soriano........................ | B31: 3038 | C31: 1572 | D31: 1466 | F31: 2717 | G31: 1052 | H31: 972 | I31: 350 | J31: 343 | K31: 0 | L31: 0 | M31: 0 | N31: 0 | O31: 321 | P31: 18 | Q31: 30 | R31: 152 | S31: 121
A32: Tacuarembó..................... | B32: 3404 | C32: 1780 | D32: 1624 | F32: 2961 | G32: 932 | H32: 830 | I32: 623 | J32: 576 | K32: 0 | L32: 0 | M32: 0 | N32: 0 | O32: 443 | P32: 32 | Q32: 31 | R32: 193 | S32: 187
A33: Treinta y Tres................ | B33: 1687 | C33: 868 | D33: 819 | F33: 1603 | G33: 523 | H33: 491 | I33: 170 | J33: 179 | K33: 130 | L33: 110 | M33: 0 | N33: 0 | O33: 84 | P33: 45 | Q33: 39 | R33: 0 | S33: 0
A34: Fuente: Procesamiento propio en base a datos proporcionados por el D.E.E. — C.E.I.P.
A35: Nota: Jardines de Infantes incluye Jardines de Tiempo Completo.
A36: Educación pública y privada no incluye educación Inicial Especial.

Sheet II-1.2.2
A1: MINISTERIO DE EDUCACIÓN Y CULTURA | J1: Alumnos Matriculados
A2: Dirección de Educación – Área de Educación en la Primera Infancia
A4: Cuadro Nº II-1.2.2
A6: ALUMNOS MATRICULADOS EN PRIMERA INFANCIA POR FORMA DE ADMINISTRACIÓN Y SEXO SEGÚN DEPARTAMENTO. AÑO 2010.
A7: DEPARTAMENTO | F7: FORMA DE ADMINISTRACIÓN
C8: TOTAL | F8: Privados Subvencionados | H8: Centros Privados
C10: SEXO | F10: SEXO
C11: TOTAL | D11: MASCULINO | E11: FEMENINO | F11: M | G11: F | H11: M | I11: F
A12: TOTAL.......................... | C12: =+C14+C15 -> 49180 | D12: =+F12+H12 -> 25212 | E12: =+G12+I12 -> 23968 | F12: =F14+F15 -> 14131 | G12: =G14+G15 -> 13605 | H12: =+H14+H15 -> 11081 | I12: =I14+I15 -> 10363
A14: MONTEVIDEO..................... | C14: =+D14+E14 -> 21657 | D14: =+F14+H14 -> 11222 | E14: =+G14+I14 -> 10435 | F14: =3387+618 -> 4005 | G14: =3133+604 -> 3737 | H14: 7217 | I14: 6698
A15: RESTO DEL PAÍS.......................... | C15: =SUM(C17:C34) -> 27523 | D15: 13990 | E15: 13533 | F15: 10126 | G15: 9868 | H15: 3864 | I15: 3665
A17: Artigas......................... | C17: =+D17+E17 -> 1162 | D17: =+F17+H17 -> 616 | E17: =+G17+I17 -> 546 | F17: 567 | G17: 493 | H17: 49 | I17: 53
A18: Canelones...................... | C18: 6320 | D18: 3194 | E18: 3126 | F18: 1814 | G18: 1836 | H18: 1380 | I18: 1290
A19: Cerro Largo..................... | C19: 1743 | D19: 889 | E19: 854 | F19: 798 | G19: 740 | H19: 91 | I19: 114
A20: Colonia........................... | C20: 1646 | D20: 846 | E20: 800 | F20: 525 | G20: 510 | H20: 321 | I20: 290
A21: Durazno....................... | C21: 1497 | D21: 771 | E21: 726 | F21: 625 | G21: 617 | H21: 146 | I21: 109
A22: Flores......................... | C22: 483 | D22: 253 | E22: 230 | F22: 217 | G22: 198 | H22: 36 | I22: 32
A23: Florida......................... | C23: 938 | D23: 468 | E23: 470 | F23: 363 | G23: 351 | H23: 105 | I23: 119
A24: Lavalleja........................ | C24: 616 | D24: 311 | E24: 305 | F24: 195 | G24: 198 | H24: 116 | I24: 107
A25: Maldonado........................ | C25: 1481 | D25: 769 | E25: 712 | F25: 348 | G25: 316 | H25: 421 | I25: 396
A26: Paysandú.......................... | C26: 2562 | D26: 1309 | E26: 1253 | F26: 1003 | G26: 983 | H26: 306 | I26: 270
A27: Río Negro........................ | C27: 978 | D27: 468 | E27: 510 | F27: 347 | G27: 383 | H27: 121 | I27: 127
A28: Rivera.......................... | C28: 1393 | D28: 714 | E28: 679 | F28: 603 | G28: 576 | H28: 111 | I28: 103
A29: Rocha.......................... | C29: 783 | D29: 402 | E29: 381 | F29: 367 | G29: 358 | H29: 35 | I29: 23
A30: Salto............................ | C30: 2160 | D30: 1085 | E30: 1075 | F30: 784 | G30: 773 | H30: 301 | I30: 302
A31: San José....................... | C31: 980 | D31: 508 | E31: 472 | F31: 396 | G31: 380 | H31: 112 | I31: 92
A32: Soriano........................ | C32: 1184 | D32: 595 | E32: 589 | F32: 443 | G32: 421 | H32: 152 | I32: 168
A33: Tacuarembó..................... | C33: 1002 | D33: 496 | E33: 506 | F33: 445 | G33: 450 | H33: 51 | I33: 56
A34: Treinta y Tres................ | C34: 595 | D34: 296 | E34: 299 | F34: 286 | G34: 285 | H34: 10 | I34: 14
A35: Fuente: Procesamiento propio en base a datos proporcionados por: | B35: Fuente: Procesamiento propio en base a datos proporcionados por:
B36: Registro Nacional de Centros Educativos en la Primera Infancia. MEC
B37: Para CAIF: SIPI de INAU. IMM.
B38: Para Programa Nuestros Niños: IMM.
A39: Nota: Privados Subvencionados incluye CAIF (régimen de Educación Inicial), y sólo en Montevideo agrega además el Proyecto Nuestros Niños de la IMM.
A40: El presente cuadro no incluye la matrícula de Centros Diurnos de INAU, por no
A41: contarse con la desagregación por sexo.

Sheet II-1.2.3
A1: MINISTERIO DE EDUCACIÓN Y CULTURA | I1: ALUMNOS MATRICULADOS
A2: Dirección de Educación – Área de Educación en la Primera Infancia
A4: Cuadro Nº II-1.2.3
A7: ALUMNOS MATRICULADOS EN PRIMERA INFANCIA POR FORMA DE ADMINISTRACIÓN SEGÚN EDAD. AÑO 2010.
A8: EDAD | F8: FORMA DE ADMINISTRACIÓN
F9: Privados Subvencionados
C10: TOTAL (1) | E10: TOTAL
F11: CAIF | H11: Proyecto "Nuestros Niños" | I11: Privados
G12: INAU Centros Diurnos
A14: TOTAL.......................... | C14: =SUM(C16:C21)+G16+G19 -> 50685 | E14: =SUM(E16:E21) -> 66453 | F14: =SUM(F16:F21) -> 43787 | G14: =G16+G19 -> 1505 | H14: =SUM(H16:H21) -> 1222 | I14: =SUM(I16:I21) -> 21444
A16: 0 a 11 meses......................... | C16: =H16+I16 -> 857 | E16: =F16+H16+I16 -> 6815 | F16: 5958 | G16: 627 | H16: 31 | I16: 826
A17: 1 año...................... | C17: =H17+I17 -> 3434 | E17: =F17+H17+I17 -> 14749 | F17: 11315 | H17: 122 | I17: 3312
A18: 2 años...................... | C18: =+F18+H18+I18 -> 18889 | E18: =F18+H18+I18 -> 18889 | F18: 12157 | H18: 517 | I18: 6215
A19: 3 años...................... | C19: =+F19+H19+I19 -> 18662 | E19: 18662 | F19: 11695 | G19: 878 | H19: 520 | I19: 6447
A20: 4 años...................... | C20: =+F20+H20+I20 -> 5665 | E20: 5665 | F20: 2546 | H20: 24 | I20: 3095
A21: 5 años...................... | C21: =+F21+H21+I21 -> 1673 | E21: 1673 | F21: 116 | H21: 8 | I21: 1549
A23: Fuente: Procesamiento propio en base a datos proporcionados por:
A24: Registro Nacional de Centros Educativos en la Primera Infancia. MEC
A25: Para CAIF Y CENTROS DIURNOS: SIPI de INAU.
A26: Para Programa Nuestros Niños: IMM.
A27: (1). Refiere al total sin considerar experiencia oportuna de los centros CAIF (0 y 1 año)
A28: Nota: La categoría 5 años de CAIF incluye 13 niños/as de 6 años y más.
A29: Los datos pertenecientes a INAU Centros Diurnos debido a que los mismos no presentan una
A30: desagregación por edades simples, sino que se consolidan en rangos de edades de 0 a 2 y 3 a 4 años
A31: solo se suman para el total de matrícula.

Sheet II-1.2.4
A1: CONSEJO DE EDUCACIÓN PRIMARIA | C1: ALUMNOS MATRICULADOS
A3: Cuadro Nº II-1.2.4
A5: ALUMNOS MATRICULADOS EN EDUCACIÓN INICIAL PÚBLICA EN CLASE JARDINERA POR ÁREA DEMOGRÁFICA SEGÚN DEPARTAMENTO. AÑO 2010.
A6: CANTIDAD DE ESTABLECIMIENTOS DE PRIMERA INFANCIA POR FORMA DE ADMINISTRACIÓN SEGÚN DEPARTAMENTO. AÑO 2010. | B6: TOTAL | C6: ÁREA DEMOGRÁFICA
C7: URBANA | D7: RURAL
A9: TOTAL ............................... | B9: =+C9+D9 -> 48915 | C9: =C11+C12 -> 44266 | D9: =SUM(D11:D12) -> 4649
A11: MONTEVIDEO..................... | B11: =+C11+D11 -> 12156 | C11: 12156 | D11: 0
A12: RESTO DEL PAÍS.......................... | B12: =+C12+D12 -> 36759 | C12: =SUM(C14:C31) -> 32110 | D12: =SUM(D14:D31) -> 4649
A14: Artigas............................ | B14: =+C14+D14 -> 1978 | C14: 1754 | D14: 224
A15: Canelones....................... | B15: 7014 | C15: 6280 | D15: 734
A16: Cerro Largo..................... | B16: 1778 | C16: 1556 | D16: 222
A17: Colonia......................... | B17: 2483 | C17: 2109 | D17: 374
A18: Durazno....................... | B18: 1087 | C18: 934 | D18: 153
A19: Flores.......................... | B19: 457 | C19: 387 | D19: 70
A20: Florida........................ | B20: 1375 | C20: 1158 | D20: 217
A21: Lavalleja....................... | B21: 877 | C21: 744 | D21: 133
A22: Maldonado....................... | B22: 2559 | C22: 2381 | D22: 178
A23: Paysandú...................... | B23: 2680 | C23: 2383 | D23: 297
A24: Río Negro....................... | B24: 1098 | C24: 930 | D24: 168
A25: Rivera......................... | B25: 2311 | C25: 1969 | D25: 342
A26: Rocha.......................... | B26: 1161 | C26: 1067 | D26: 94
A27: Salto......................... | B27: 3111 | C27: 2703 | D27: 408
A28: San José........................ | B28: 1990 | C28: 1641 | D28: 349
A29: Soriano........................ | B29: 2024 | C29: 1826 | D29: 198
A30: Tacuarembó...................... | B30: 1762 | C30: 1403 | D30: 359
A31: Treinta y Tres................. | B31: 1014 | C31: 885 | D31: 129
A33: Fuente: Procesamiento propio en base a datos proporcionados
A34: por el D.E.E. — C.E.I.P.
A35: Nota: No se presentan datos por Área Demográfica para las Modalidades Privadas, (Clases Jardineras y Jardines de Infantes en Colegios) porque no se registran establecimientos de dichas modalidades en áreas rurales.

Sheet II-1.2.5
A1: CONSEJO DE EDUCACIÓN PRIMARIA | N1: ALUMNOS MATRICULADOS
A3: Cuadro Nº II-1.2.5
A5: ALUMNOS MATRICULADOS EN EDUCACIÓN INICIAL PRIVADA POR MODALIDAD Y NIVEL SEGÚN DEPARTAMENTO. AÑO 2010.
A6: DEPARTAMENTO | F6: MODALIDAD
F7: JARDINES DE INFANTES | L7: CLASES JARDINERAS
C8: TOTAL | F8: NIVEL | L8: NIVEL
E9: Total | F9: Nursery | G9: 2 años | H9: 3 años | I9: 4 años | J9: 5 años | K9: Total | L9: Nursery | M9: 2 años | N9: 3 años | O9: 4 años | P9: 5 años
A12: TOTAL......................... | C12: =+C14+C15 -> 27944 | E12: =+E14+E15 -> 5777 | F12: =SUM(F14:F15) -> 752 | G12: =SUM(G14:G15) -> 1438 | H12: =SUM(H14:H15) -> 1483 | I12: =SUM(I14:I15) -> 1241 | J12: =SUM(J14:J15) -> 863 | K12: =+K14+K15 -> 22167 | L12: =SUM(L14:L15) -> 934 | M12: =SUM(M14:M15) -> 2795 | N12: =SUM(N14:N15) -> 4563 | O12: =SUM(O14:O15) -> 6302 | P12: =SUM(P14:P15) -> 7573
A14: MONTEVIDEO.................... | C14: =+E14+K14 -> 16746 | E14: =SUM(F14:J14) -> 3952 | F14: 552 | G14: 991 | H14: 966 | I14: 830 | J14: 613 | K14: =+L14+M14+N14+O14+P14 -> 12794 | L14: 582 | M14: 1484 | N14: 2555 | O14: 3708 | P14: 4465
A15: RESTO DEL PAÍS.......................... | C15: =SUM(C17:C34) -> 11198 | E15: =SUM(E17:E34) -> 1825 | F15: 200 | G15: 447 | H15: 517 | I15: 411 | J15: 250 | K15: =SUM(K17:K34) -> 9373 | L15: 352 | M15: 1311 | N15: 2008 | O15: 2594 | P15: 3108
A17: Artigas....................... | C17: =+E17+K17 -> 75 | E17: =SUM(F17:J17) -> 0 | F17: 0 | G17: 0 | H17: 0 | I17: 0 | J17: 0 | K17: =+L17+M17+N17+O17+P17 -> 75 | L17: 0 | M17: 19 | N17: 27 | O17: 14 | P17: 15
A18: Canelones..................... | C18: 3776 | E18: 582 | F18: 13 | G18: 126 | H18: 152 | I18: 166 | J18: 125 | K18: 3194 | L18: 121 | M18: 384 | N18: 668 | O18: 914 | P18: 1107
A19: Cerro Largo................... | C19: 308 | E19: 106 | F19: 22 | G19: 23 | H19: 37 | I19: 24 | J19: 0 | K19: 202 | L19: 0 | M19: 41 | N19: 30 | O19: 51 | P19: 80
A20: Colonia....................... | C20: 585 | E20: 36 | F20: 13 | G20: 0 | H20: 9 | I20: 8 | J20: 6 | K20: 549 | L20: 83 | M20: 83 | N20: 124 | O20: 134 | P20: 125
A21: Durazno....................... | C21: 189 | E21: 0 | F21: 0 | G21: 0 | H21: 0 | I21: 0 | J21: 0 | K21: 189 | L21: 0 | M21: 0 | N21: 52 | O21: 56 | P21: 81
A22: Flores......................... | C22: 189 | E22: 0 | F22: 0 | G22: 0 | H22: 0 | I22: 0 | J22: 0 | K22: 189 | L22: 0 | M22: 29 | N22: 42 | O22: 63 | P22: 55
A23: Florida........................ | C23: 237 | E23: 130 | F23: 27 | G23: 39 | H23: 35 | I23: 28 | J23: 1 | K23: 107 | L23: 0 | M23: 6 | N23: 23 | O23: 31 | P23: 47
A24: Lavalleja...................... | C24: 385 | E24: 73 | F24: 31 | G24: 22 | H24: 20 | I24: 0 | J24: 0 | K24: 312 | L24: 0 | M24: 45 | N24: 52 | O24: 96 | P24: 119
A25: Maldonado..................... | C25: 2040 | E25: 264 | F25: 18 | G25: 61 | H25: 82 | I25: 65 | J25: 38 | K25: 1776 | L25: 38 | M25: 248 | N25: 388 | O25: 485 | P25: 617
A26: Paysandú....................... | C26: 511 | E26: 126 | F26: 14 | G26: 24 | H26: 33 | I26: 24 | J26: 31 | K26: 385 | L26: 3 | M26: 31 | N26: 49 | O26: 136 | P26: 166
A27: Río Negro.................... | C27: 286 | E27: 0 | F27: 0 | G27: 0 | H27: 0 | I27: 0 | J27: 0 | K27: 286 | L27: 0 | M27: 57 | N27: 59 | O27: 76 | P27: 94
A28: Rivera........................ | C28: 449 | E28: 0 | F28: 0 | G28: 0 | H28: 0 | I28: 0 | J28: 0 | K28: 449 | L28: 22 | M28: 85 | N28: 110 | O28: 118 | P28: 114
A29: Rocha......................... | C29: 255 | E29: 0 | F29: 0 | G29: 0 | H29: 0 | I29: 0 | J29: 0 | K29: 255 | L29: 31 | M29: 37 | N29: 47 | O29: 56 | P29: 84
A30: Salto........................ | C30: 790 | E30: 313 | F30: 38 | G30: 96 | H30: 97 | I30: 59 | J30: 23 | K30: 477 | L30: 46 | M30: 58 | N30: 92 | O30: 127 | P30: 154
A31: San José...................... | C31: 275 | E31: 0 | F31: 0 | G31: 0 | H31: 0 | I31: 0 | J31: 0 | K31: 275 | L31: 0 | M31: 60 | N31: 61 | O31: 85 | P31: 69
A32: Soriano....................... | C32: 321 | E32: 48 | F32: 13 | G32: 22 | H32: 10 | I32: 3 | J32: 0 | K32: 273 | L32: 0 | M32: 52 | N32: 78 | O32: 63 | P32: 80
A33: Tacuarembó.................... | C33: 443 | E33: 63 | F33: 11 | G33: 17 | H33: 18 | I33: 9 | J33: 8 | K33: 380 | L33: 8 | M33: 76 | N33: 106 | O33: 89 | P33: 101
A34: Treinta y Tres................ | C34: 84 | E34: 84 | F34: 0 | G34: 17 | H34: 24 | I34: 25 | J34: 18 | K34: 0 | L34: 0 | M34: 0 | N34: 0 | O34: 0 | P34: 0
A36: Fuente: Procesamiento propio en base a datos proporcionados por el D.E.E. — C.E.I.P.

Sheet II-1.2.6
A1: MINISTERIO DE EDUCACIÓN Y CULTURA | K1: ALUMNOS MATRICULADOS
A2: Dirección de Educación – Área de Educación en la Primera Infancia
A4: Cuadro Nº II-1.2.6
A6: ALUMNOS MATRICULADOS EN PRIMERA INFANCIA POR EDAD SEGÚN DEPARTAMENTO. AÑO 2010.
A7: DEPARTAMENTO | D7: E D A D
C8: TOTAL | D8: 0 a 11 meses | E8: 1 año | F8: 2 años | G8: 3 años | H8: 4 años | I8: 5 años
A10: TOTAL.......................... | C10: =+C12+C13 -> 66453 | D10: 6815 | E10: 14749 | F10: 18889 | G10: 18662 | H10: 5665 | I10: 1673
A12: MONTEVIDEO..................... | C12: =+D12+E12+F12+G12+H12+I12 -> 25757 | D12: 1971 | E12: 5062 | F12: 7433 | G12: 7629 | H12: 2638 | I12: 1024
A13: RESTO DEL PAÍS.......................... | C13: =SUM(C15:C32) -> 40696 | D13: 4844 | E13: 9687 | F13: 11456 | G13: 11033 | H13: 3027 | I13: 649
A15: Artigas......................... | C15: =+D15+E15+F15+G15+H15+I15 -> 1902 | D15: 251 | E15: 509 | F15: 513 | G15: 520 | H15: 106 | I15: 3
A16: Canelones.................... | C16: 8784 | D16: 898 | E16: 1985 | F16: 2371 | G16: 2479 | H16: 798 | I16: 253
A17: Cerro Largo................... | C17: 2706 | D17: 338 | E17: 645 | F17: 762 | G17: 755 | H17: 178 | I17: 28
A18: Colonia...................... | C18: 2367 | D18: 269 | E18: 584 | F18: 697 | G18: 672 | H18: 143 | I18: 2
A19: Durazno........................ | C19: 2264 | D19: 285 | E19: 528 | F19: 580 | G19: 605 | H19: 238 | I19: 28
A20: Flores......................... | C20: 729 | D20: 75 | E20: 177 | F20: 185 | G20: 194 | H20: 77 | I20: 21
A21: Florida...................... | C21: 1362 | D21: 151 | E21: 318 | F21: 446 | G21: 362 | H21: 81 | I21: 4
A22: Lavalleja.................... | C22: 914 | D22: 131 | E22: 230 | F22: 258 | G22: 240 | H22: 49 | I22: 6
A23: Maldonado...................... | C23: 1893 | D23: 141 | E23: 374 | F23: 560 | G23: 507 | H23: 213 | I23: 98
A24: Paysandú...................... | C24: 3765 | D24: 487 | E24: 853 | F24: 1038 | G24: 1009 | H24: 323 | I24: 55
A25: Río Negro...................... | C25: 1473 | D25: 185 | E25: 381 | F25: 440 | G25: 377 | H25: 72 | I25: 18
A26: Rivera....................... | C26: 2191 | D26: 307 | E26: 548 | F26: 602 | G26: 568 | H26: 152 | I26: 14
A27: Rocha......................... | C27: 1290 | D27: 186 | E27: 343 | F27: 369 | G27: 335 | H27: 56 | I27: 1
A28: Salto........................... | C28: 3241 | D28: 386 | E28: 801 | F28: 941 | G28: 866 | H28: 169 | I28: 78
A29: San José....................... | C29: 1492 | D29: 193 | E29: 354 | F29: 459 | G29: 415 | H29: 62 | I29: 9
A30: Soriano......................... | C30: 1703 | D30: 181 | E30: 380 | F30: 500 | G30: 465 | H30: 156 | I30: 21
A31: Tacuarembó...................... | C31: 1640 | D31: 246 | E31: 423 | F31: 458 | G31: 397 | H31: 110 | I31: 6
A32: Treinta y Tres.................. | C32: 980 | D32: 134 | E32: 254 | F32: 277 | G32: 267 | H32: 44 | I32: 4
A33: Fuente: Procesamiento propio en base a datos proporcionados por:
A34: Registro Nacional de Centros Educativos en la Primera Infancia. MEC
A35: Para CAIF Y CENTROS DIURNOS: SIPI de INAU
A36: Para Programa Nuestros Niños: IMM.
A37: Nota: No se presentan los datos pertenecientes a INAU Centros Diurnos por no
A38: contarse con la desagregación por edades simples.

Sheet II-1.3.1
A1: CONSEJO DE EDUCACIÓN PRIMARIA | D1: PERSONAL DOCENTE
A3: Cuadro Nº II-1.3.1
A5: PERSONAL DOCENTE DE EDUCACIÓN INICIAL PÚBLICA SEGÚN DEPARTAMENTO. AÑO 2010.
A6: CANTIDAD DE ESTABLECIMIENTOS DE PRIMERA INFANCIA POR FORMA DE ADMINISTRACIÓN SEGÚN DEPARTAMENTO. AÑO 2010. | E6: DOCENTES
A9: TOTAL........................... | E9: =SUM(E11:E12) -> 2946
A11: MONTEVIDEO...................... | E11: 1015
A12: RESTO DEL PAÍS....................... | E12: =SUM(E14:E31) -> 1931
A14: Artigas......................... | E14: 83
A15: Canelones....................... | E15: 448
A16: Cerro Largo..................... | E16: 93
A17: Colonia......................... | E17: 104
A18: Durazno......................... | E18: 54
A19: Flores.......................... | E19: 28
A20: Florida.......................... | E20: 76
A21: Lavalleja........................ | E21: 66
A22: Maldonado........................ | E22: 155
A23: Paysandú........................ | E23: 99
A24: Río Negro........................ | E24: 67
A25: Rivera.......................... | E25: 115
A26: Rocha............................. | E26: 77
A27: Salto...........................… | E27: 129
A28: San José......................... | E28: 94
A29: Soriano......................... | E29: 89
A30: Tacuarembó....................... | E30: 89
A31: Treinta y Tres.................. | E31: 65
A33: Fuente: D.E.E. - C.E.P.
A34: Nota: Listado de Cargos de la División Planeamiento Administrativo. Departamento de Cómputos. Julio de 2010.

Sheet II-1.3.2
A1: CONSEJO DE EDUCACIÓN PRIMARIA | E1: PERSONAL DOCENTE
A3: Cuadro Nº II-1.3.2
A5: PERSONAL DOCENTE DE EDUCACIÓN INICIAL PRIVADA SEGÚN DEPARTAMENTO. AÑO 2010.
A6: CANTIDAD DE ESTABLECIMIENTOS DE PRIMERA INFANCIA POR FORMA DE ADMINISTRACIÓN SEGÚN DEPARTAMENTO. AÑO 2010. | D6: DOCENTES
C8: TOTAL | D8: Colegios Habilitados | E8: Colegios Autorizados
A10: TOTAL.......................... | C10: =SUM(C12:C13) -> 825 | D10: =SUM(D12:D13) -> 781 | E10: =SUM(E12:E13) -> 44
A12: MONTEVIDEO..................... | C12: =+D12+E12 -> 495 | D12: 465 | E12: 30
A13: RESTO DEL PAÍS.......................... | C13: =SUM(C15:C32) -> 330 | D13: =SUM(D15:D32) -> 316 | E13: =SUM(E15:E32) -> 14
A15: Artigas........................ | C15: =+D15+E15 -> 2 | D15: 2 | E15: 0
A16: Canelones................. | C16: 128 | D16: 118 | E16: 10
A17: Cerro Largo................... | C17: 7 | D17: 7 | E17: 0
A18: Colonia....................... | C18: 21 | D18: 21 | E18: 0
A19: Durazno........................ | C19: 5 | D19: 5 | E19: 0
A20: Flores......................... | C20: 6 | D20: 6 | E20: 0
A21: Florida....................... | C21: 4 | D21: 4 | E21: 0
A22: Lavalleja...................... | C22: 8 | D22: 8 | E22: 0
A23: Maldonado.................... | C23: 54 | D23: 54 | E23: 0
A24: Paysandú..................... | C24: 18 | D24: 18 | E24: 0
A25: Río Negro..................... | C25: 13 | D25: 10 | E25: 3
A26: Rivera.......................... | C26: 11 | D26: 11 | E26: 0
A27: Rocha........................... | C27: 8 | D27: 8 | E27: 0
A28: Salto........................... | C28: 14 | D28: 14 | E28: 0
A29: San José........................ | C29: 9 | D29: 8 | E29: 1
A30: Soriano........................ | C30: 10 | D30: 10 | E30: 0
A31: Tacuarembó..................... | C31: 12 | D31: 12 | E31: 0
A32: Treinta y Tres.................. | C32: 0 | D32: 0 | E32: 0
A34: Fuente: D.E.E. — C.E.P.
A35: Nota: Incluye información de las Clases Jardineras Privadas. No incluye información de Jardines de Infantes Privados.

Sheet PRIMARIA
A11: ESTABLECIMIENTOS DE EDUCACIÓN PRIMARIA
A12: Cuadro Nº II-2.1.1
A13: ='II-2.1.1'!A5:G5 -> ESTABLECIMIENTOS DE EDUCACIÓN PRIMARIA POR FORMA DE ADMINISTRACIÓN Y TIPO DE EDUCACIÓN SEGÚN DEPARTAMENTO. AÑO 2010.
A15: Cuadro Nº II-2.1.2
A16: =' II-2.1.2 '!A5:L5 -> ESTABLECIMIENTOS DE EDUCACIÓN PRIMARIA PÚBLICA COMÚN POR ÁREA DEMOGRÁFICA Y CATEGORÍA SEGÚN DEPARTAMENTO. AÑO 2010.
A18: Cuadro Nº II-2.1.3
A19: ='II-2.1.3'!A5:F5 -> ESTABLECIMIENTOS DE EDUCACIÓN PRIMARIA PÚBLICA ESPECIAL POR TIPO DE DISCAPACIDAD SEGÚN DEPARTAMENTO. AÑO 2010.
A21: Cuadro Nº II-2.1.4
A22: ='II-2.1.4'!A5:H5 -> ESTABLECIMIENTOS DE EDUCACIÓN PRIMARIA PRIVADA POR TIPO DE EDUCACIÓN SEGÚN DEPARTAMENTO. AÑO 2010.
A24: ALUMNOS MATRICULADOS EN EDUCACIÓN PRIMARIA
A25: Cuadro Nº II-2.2.1
A26: ='II-2.2.1'!A5:L5 -> ALUMNOS MATRICULADOS EN EDUCACIÓN PRIMARIA COMÚN POR FORMA DE ADMINISTRACIÓN Y SEXO SEGÚN DEPARTAMENTO. AÑO 2010.
A28: Cuadro Nº II-2.2.2
A29: ='II-2.2.2'!A5:J5 -> ALUMNOS MATRICULADOS EN EDUCACIÓN PRIMARIA PÚBLICA POR TIPO DE EDUCACIÓN Y SEXO SEGÚN DEPARTAMENTO. AÑO 2010.
A31: Cuadro Nº II-2.2.3
A32: ='II-2.2.3'!A5:L5 -> ALUMNOS MATRICULADOS EN EDUCACIÓN PRIMARIA PÚBLICA COMÚN POR ÁREA DEMOGRÁFICA Y CATEGORÍA SEGÚN DEPARTAMENTO. AÑO 2010.
A34: Cuadro Nº II-2.2.4
A35: ='II-2.2.4'!A5:G5 -> ALUMNOS MATRICULADOS EN EDUCACIÓN PRIMARIA PÚBLICA ESPECIAL POR TIPO DE DISCAPACIDAD SEGÚN DEPARTAMENTO. AÑO 2010.
A37: Cuadro Nº II-2.2.5
A38: ='II-2.2.5'!A5:G5 -> ALUMNOS MATRICULADOS EN EDUCACIÓN PRIMARIA PRIVADA POR TIPO DE EDUCACIÓN SEGÚN DEPARTAMENTO. AÑO 2010.
A40: Cuadro Nº II-2.2.6
A41: ='II-2.2.6'!A5:R5 -> ALUMNOS MATRICULADOS EN EDUCACIÓN PRIMARIA POR FORMA DE ADMINISTRACIÓN, TIPO DE EDUCACIÓN Y SEXO SEGÚN EDAD. AÑO 2010.
A43: Cuadro Nº II-2.2.7
A44: ='II-2.2.7'!A5:Q5 -> ALUMNOS MATRICULADOS EN EDUCACIÓN PRIMARIA POR GRADO Y FORMA DE ADMINISTRACIÓN SEGÚN EDAD. AÑO 2010.
A46: Cuadro Nº II-2.2.8
A47: ='II-2.2.8'!A5:R5 -> ALUMNOS MATRICULADOS EN EDUCACIÓN PRIMARIA COMÚN PÚBLICA POR GRADO Y SEXO SEGÚN EDAD. AÑO 2010.
A49: Cuadro Nº II-2.2.9
A50: ='II-2.2.9'!A5:R5 -> ALUMNOS MATRICULADOS EN EDUCACIÓN PRIMARIA COMÚN PRIVADA POR GRADO Y SEXO SEGÚN EDAD. AÑO 2010.
A52: Cuadro Nº II-2.2.10
A53: ='II-2.2.10'!A5:O5 -> ALUMNOS MATRICULADOS EN EDUCACIÓN PRIMARIA COMÚN POR GRADO Y FORMA DE ADMINISTRACIÓN SEGÚN DEPARTAMENTO. AÑO 2010.
A55: Cuadro Nº II-2.2.11
A56: ='II-2.2.11'!A5:G5 -> ALUMNOS MATRICULADOS EN EDUCACIÓN PRIMARIA COMÚN PÚBLICA POR RENDIMIENTO ESCOLAR Y ÁREA DEMOGRÁFICA SEGÚN DEPARTAMENTO. AÑO 2010.
A58: Cuadro Nº II-2.2.12
A59: ='II-2.2.12'!A5:G5 -> ALUMNOS MATRICULADOS EN EDUCACIÓN PRIMARIA COMÚN PÚBLICA POR RENDIMIENTO ESCOLAR Y ÁREA DEMOGRÁFICA SEGÚN GRADO. AÑO 2010.
A61: Cuadro Nº II-2.2.13
A62: ='II-2.2.13 '!A5:G5 -> ALUMNOS MATRICULADOS EN EDUCACIÓN PRIMARIA COMÚN PÚBLICA POR RENDIMIENTO ESCOLAR Y SEXO SEGÚN DEPARTAMENTO. AÑO 2010.
A64: Cuadro Nº II-2.2.14
A65: ='II-2.2.14'!A5:G5 -> ALUMNOS MATRICULADOS EN EDUCACIÓN PRIMARIA COMÚN PRIVADA POR RENDIMIENTO ESCOLAR Y SEXO SEGÚN DEPARTAMENTO. AÑO 2010.
A67: Cuadro Nº II-2.2.15
A68: ='II-2.2.15 '!A5:D5 -> ALUMNOS MATRICULADOS EGRESADOS DE EDUCACIÓN PRIMARIA COMÚN PÚBLICA POR ÁREA DEMOGRÁFICA SEGÚN DEPARTAMENTO. AÑO 2010.
A70: Cuadro Nº II-2.2.16
A71: ='II-2.2.16 '!A5:I5 -> ALUMNOS MATRICULADOS Y EGRESADOS DE EDUCACIÓN PRIMARIA COMÚN POR FORMA DE ADMINISTRACIÓN SEGÚN DEPARTAMENTO. AÑO 2010.
A73: Cuadro Nº II-2.2.17
A74: ='II-2.2.17 '!A5:G5 -> ASISTENCIA INSUFICIENTE Y ABANDONO INTERMITENTE DE 1º GRADO Y 1º A 6º GRADO EN EDUCACIÓN COMÚN PÚBLICA SEGÚN DEPARTAMENTO. AÑO 2010.
A76: Cuadro Nº II-2.2.18
A77: ='II-2.2.18'!A5:I5 -> ALUMNOS MATRICULADOS EN EDUCACIÓN PRIMARIA ESPECIAL PÚBLICA POR TIPO DE ESTABLECIMIENTO Y SEXO SEGÚN DEPARTAMENTO. AÑO 2010.
A79: PERSONAL DOCENTE EN EDUCACIÓN PRIMARIA
A80: Cuadro Nº II-2.3.1
A81: ='II-2.3.1'!A5:K5 -> PERSONAL DOCENTE DE EDUCACIÓN PRIMARIA PÚBLICA POR TIPO DE DESEMPEÑO DOCENTE SEGÚN DEPARTAMENTO. AÑO 2010.
A83: Cuadro Nº II-2.3.2
A84: ='II-2.3.2'!A5:L5 -> PERSONAL DOCENTE DE EDUCACIÓN PRIMARIA PRIVADA POR TIPO DE ESTABLECIMIENTO Y TIPO DE DESEMPEÑO DOCENTE SEGÚN DEPARTAMENTO. AÑO 2010.

Sheet II-2.1.1
A1: CONSEJO DE EDUCACIÓN PRIMARIA | F1: ESTABLECIMIENTOS
A3: Cuadro Nº II-2.1.1
A5: ESTABLECIMIENTOS DE EDUCACIÓN PRIMARIA POR FORMA DE ADMINISTRACIÓN Y TIPO DE EDUCACIÓN SEGÚN DEPARTAMENTO. AÑO 2010.
A6: DEPARTAMENTO | D6: FORMA DE ADMINISTRACIÓN
C7: TOTAL | D7: TIPO DE EDUCACIÓN
D8: PÚBLICA | F8: PRIVADA
D9: Común | E9: Especial | F9: Común | G9: Especial
A12: TOTAL.............................. | C12: =+C14+C15 -> 2548 | D12: =SUM(D14:D15) -> 2067 | E12: =SUM(E14:E15) -> 78 | F12: =SUM(F14:F15) -> 339 | G12: =SUM(G14:G15) -> 64
A14: MONTEVIDEO.......................... | C14: =+D14+E14+F14+G14 -> 493 | D14: 256 | E14: 25 | F14: 169 | G14: 43
A15: RESTO DEL PAÍS......................... | C15: =SUM(D15:G15) -> 2055 | D15: =SUM(D17:D34) -> 1811 | E15: =SUM(E17:E34) -> 53 | F15: =SUM(F17:F34) -> 170 | G15: =SUM(G17:G34) -> 21
A17: Artigas............................ | C17: =+D17+E17+F17+G17 -> 79 | D17: 74 | E17: 2 | F17: 1 | G17: 2
A18: Canelones...................... | C18: 303 | D18: 230 | E18: 10 | F18: 62 | G18: 1
A19: Cerro Largo......................... | C19: 127 | D19: 118 | E19: 3 | F19: 6 | G19: 0
A20: Colonia............................ | C20: 140 | D20: 127 | E20: 4 | F20: 9 | G20: 0
A21: Durazno.............................. | C21: 85 | D21: 80 | E21: 2 | F21: 3 | G21: 0
A22: Flores............................. | C22: 40 | D22: 36 | E22: 1 | F22: 3 | G22: 0
A23: Florida............................ | C23: 108 | D23: 101 | E23: 2 | F23: 4 | G23: 1
A24: Lavalleja........................ | C24: 97 | D24: 89 | E24: 2 | F24: 6 | G24: 0
A25: Maldonado...................... | C25: 108 | D25: 77 | E25: 4 | F25: 24 | G25: 3
A26: Paysandú......................... | C26: 118 | D26: 104 | E26: 2 | F26: 8 | G26: 4
A27: Río Negro....................... | C27: 70 | D27: 61 | E27: 2 | F27: 6 | G27: 1
A28: Rivera............................ | C28: 136 | D28: 124 | E28: 4 | F28: 8 | G28: 0
A29: Rocha............................. | C29: 80 | D29: 71 | E29: 3 | F29: 4 | G29: 2
A30: Salto............................ | C30: 115 | D30: 102 | E30: 3 | F30: 8 | G30: 2
A31: San José............................ | C31: 117 | D31: 107 | E31: 3 | F31: 7 | G31: 0
A32: Soriano............................ | C32: 112 | D32: 101 | E32: 3 | F32: 3 | G32: 5
A33: Tacuarembó......................... | C33: 143 | D33: 135 | E33: 2 | F33: 6 | G33: 0
A34: Treinta y Tres..................... | C34: 77 | D34: 74 | E34: 1 | F34: 2 | G34: 0
A36: Fuente: Procesamiento propio en base a datos proporcionados por el D.E.E. — C.E.I.P.

Sheet II-2.1.2
A1: CONSEJO DE EDUCACIÓN PRIMARIA | K1: ESTABLECIMIENTOS
A3: Cuadro Nº II-2.1.2
A5: ESTABLECIMIENTOS DE EDUCACIÓN PRIMARIA PÚBLICA COMÚN POR ÁREA DEMOGRÁFICA Y CATEGORÍA SEGÚN DEPARTAMENTO. AÑO 2010.
A6: DEPARTAMENTO | B6: TOTAL | D6: ÁREA DEMOGRÁFICA
E7: URBANA | K7: RURAL
D8: Total Urbana | E8: CATEGORÍA | J8: Total Rural | K8: CATEGORÍA
E9: Común | F9: De Práctica | G9: C.S.C.C. | H9: Tiempo Completo | I9: JICI | K9: Común | L9: Internado Rural
A12: TOTAL........................ | B12: =+D12+J12 -> 2081 | D12: =+D14+D15 -> 948 | E12: =+E14+E15 -> 400 | F12: =SUM(F14:F15) -> 115 | G12: =SUM(G14:G15) -> 285 | H12: =SUM(H14:H15) -> 134 | I12: =SUM(I14:I15) -> 14 | J12: =+K12+L12 -> 1133 | K12: =SUM(K14:K15) -> 1127 | L12: =SUM(L14:L15) -> 6
A14: MONTEVIDEO.................... | B14: =+D14+J14 -> 259 | D14: =+E14+F14+G14+H14+I14 -> 259 | E14: 114 | F14: 23 | G14: 86 | H14: 33 | I14: 3 | J14: N/C | K14: N/C | L14: N/C
A15: RESTO DEL PAÍS......................... | B15: =SUM(B17:B34) -> 1822 | D15: =SUM(D17:D34) -> 689 | E15: 286 | F15: 92 | G15: 199 | H15: 101 | I15: 11 | J15: =+K15+L15 -> 1133 | K15: =SUM(K17:K34) -> 1127 | L15: =SUM(L17:L34) -> 6
A17: Artigas........................ | B17: =+D17+J17 -> 74 | D17: =+E17+F17+G17+H17+I17 -> 29 | E17: 7 | F17: 4 | G17: 12 | H17: 6 | I17: 0 | J17: =+K17+L17 -> 45 | K17: 44 | L17: 1
A18: Canelones................ | B18: 232 | D18: 134 | E18: 59 | F18: 15 | G18: 43 | H18: 15 | I18: 2 | J18: 98 | K18: 98 | L18: 0
A19: Cerro Largo..................... | B19: 119 | D19: 30 | E19: 7 | F19: 6 | G19: 11 | H19: 5 | I19: 1 | J19: 89 | K19: 89 | L19: 0
A20: Colonia........................ | B20: 128 | D20: 44 | E20: 28 | F20: 5 | G20: 5 | H20: 5 | I20: 1 | J20: 84 | K20: 84 | L20: 0
A21: Durazno....................... | B21: 81 | D21: 25 | E21: 8 | F21: 3 | G21: 9 | H21: 4 | I21: 1 | J21: 56 | K21: 56 | L21: 0
A22: Flores.......................... | B22: 36 | D22: 10 | E22: 5 | F22: 2 | G22: 1 | H22: 2 | I22: 0 | J22: 26 | K22: 25 | L22: 1
A23: Florida........................ | B23: 101 | D23: 31 | E23: 14 | F23: 4 | G23: 7 | H23: 6 | I23: 0 | J23: 70 | K23: 70 | L23: 0
A24: Lavalleja..................... | B24: 90 | D24: 26 | E24: 13 | F24: 4 | G24: 3 | H24: 5 | I24: 1 | J24: 64 | K24: 64 | L24: 0
A25: Maldonado...................... | B25: 77 | D25: 39 | E25: 23 | F25: 4 | G25: 4 | H25: 8 | I25: 0 | J25: 38 | K25: 37 | L25: 1
A26: Paysandú...................... | B26: 105 | D26: 48 | E26: 18 | F26: 7 | G26: 17 | H26: 5 | I26: 1 | J26: 57 | K26: 55 | L26: 2
A27: Río Negro..................... | B27: 62 | D27: 23 | E27: 10 | F27: 3 | G27: 5 | H27: 4 | I27: 1 | J27: 39 | K27: 38 | L27: 1
A28: Rivera......................... | B28: 125 | D28: 40 | E28: 8 | F28: 5 | G28: 22 | H28: 4 | I28: 1 | J28: 85 | K28: 85 | L28: 0
A29: Rocha......................... | B29: 71 | D29: 31 | E29: 14 | F29: 4 | G29: 7 | H29: 6 | I29: 0 | J29: 40 | K29: 40 | L29: 0
A30: Salto........................ | B30: 102 | D30: 41 | E30: 16 | F30: 5 | G30: 12 | H30: 8 | I30: 0 | J30: 61 | K30: 61 | L30: 0
A31: San José....................... | B31: 108 | D31: 37 | E31: 17 | F31: 5 | G31: 9 | H31: 5 | I31: 1 | J31: 71 | K31: 71 | L31: 0
A32: Soriano....................... | B32: 101 | D32: 36 | E32: 18 | F32: 4 | G32: 10 | H32: 4 | I32: 0 | J32: 65 | K32: 65 | L32: 0
A33: Tacuarembó..................... | B33: 135 | D33: 42 | E33: 12 | F33: 6 | G33: 18 | H33: 6 | I33: 0 | J33: 93 | K33: 93 | L33: 0
A34: Treinta y Tres.................. | B34: 75 | D34: 23 | E34: 9 | F34: 6 | G34: 4 | H34: 3 | I34: 1 | J34: 52 | K34: 52 | L34: 0
A36: Fuente: Procesamiento propio en base a datos proporcionados por el D.E.E. — C.E.I.P.

Sheet II-2.1.3
A1: CONSEJO DE EDUCACIÓN PRIMARIA | E1: Establecimientos
A3: Cuadro Nº II-2.1.3
A5: ESTABLECIMIENTOS DE EDUCACIÓN PRIMARIA PÚBLICA ESPECIAL POR TIPO DE DISCAPACIDAD SEGÚN DEPARTAMENTO. AÑO 2010.
A6: DEPARTAMENTO | C6: TOTAL | D6: DISCAPACIDAD
D7: Intelectual | E7: Auditiva | F7: Visual
A10: TOTAL.......................... | C10: =+C12+C13 -> 82 | D10: =SUM(D12:D13) -> 74 | E10: =SUM(E12:E13) -> 4 | F10: =SUM(F12:F13) -> 4
A12: MONTEVIDEO........................ | C12: =+D12+E12+F12 -> 27 | D12: 22 | E12: 1 | F12: 4
A13: RESTO DEL PAÍS......................... | C13: =SUM(C15:C32) -> 55 | D13: =SUM(D15:D32) -> 52 | E13: =SUM(E15:E32) -> 3 | F13: =SUM(F15:F32) -> 0
A15: Artigas........................ | C15: =+D15+E15+F15 -> 2 | D15: 2 | E15: 0 | F15: 0
A16: Canelones................. | C16: 10 | D16: 10 | E16: 0 | F16: 0
A17: Cerro Largo.................... | C17: 3 | D17: 3 | E17: 0 | F17: 0
A18: Colonia....................... | C18: 4 | D18: 4 | E18: 0 | F18: 0
A19: Durazno....................... | C19: 2 | D19: 2 | E19: 0 | F19: 0
A20: Flores........................ | C20: 1 | D20: 1 | E20: 0 | F20: 0
A21: Florida....................... | C21: 2 | D21: 2 | E21: 0 | F21: 0
A22: Lavalleja...................... | C22: 2 | D22: 2 | E22: 0 | F22: 0
A23: Maldonado...................... | C23: 4 | D23: 3 | E23: 1 | F23: 0
A24: Paysandú....................... | C24: 2 | D24: 2 | E24: 0 | F24: 0
A25: Río Negro...................... | C25: 2 | D25: 2 | E25: 0 | F25: 0
A26: Rivera......................... | C26: 4 | D26: 3 | E26: 1 | F26: 0
A27: Rocha......................... | C27: 3 | D27: 3 | E27: 0 | F27: 0
A28: Salto........................... | C28: 3 | D28: 2 | E28: 1 | F28: 0
A29: San José....................... | C29: 5 | D29: 5 | E29: 0 | F29: 0
A30: Soriano........................ | C30: 3 | D30: 3 | E30: 0 | F30: 0
A31: Tacuarembó..................... | C31: 2 | D31: 2 | E31: 0 | F31: 0
A32: Treinta y Tres................ | C32: 1 | D32: 1 | E32: 0 | F32: 0
A34: Fuente: D.E.E. — C.E.P.
A35: Nota: Los establecimientos que atienden discapacidades intelectuales, además de atender niños con disfunciones clásicamente tipificadas como “Intelectuales”, atienden a los niños con discapacidades de orden motriz o de carácter, lo que implica que la matrícula correspondiente los agrupa.

Sheet II-2.1.4
A1: CONSEJO DE EDUCACIÓN PRIMARIA | G1: ESTABLECIMIENTOS
A3: Cuadro Nº II-2.1.4
A5: ESTABLECIMIENTOS DE EDUCACIÓN PRIMARIA PRIVADA POR TIPO DE EDUCACIÓN SEGÚN DEPARTAMENTO. AÑO 2010.
A6: DEPARTAMENTO | C6: TOTAL | F6: TIPO DE EDUCACIÓN
E7: Total | F7: EDUCACIÓN COMÚN | H7: EDUCACIÓN ESPECIAL
F8: Habilitados | G8: Autorizados
A11: TOTAL DEL PAÍS............. | C11: =+C13+C14 -> 403 | E11: =+E13+E14 -> 339 | F11: =+F13+F14 -> 21 | G11: =+G13+G14 -> 318 | H11: =+H13+H14 -> 64
A13: MONTEVIDEO........................ | C13: =+E13+H13 -> 211 | E13: =+F13+G13 -> 168 | F13: 11 | G13: 157 | H13: ='II-2.1.1'!G14 -> 43
A14: RESTO DEL PAÍS......................... | C14: =SUM(C16:C33) -> 192 | E14: =SUM(E16:E33) -> 171 | F14: =SUM(F16:F33) -> 10 | G14: =SUM(G16:G33) -> 161 | H14: =SUM(H16:H33) -> 21
A16: Artigas........................ | C16: =+E16+H16 -> 3 | E16: =+F16+G16 -> 1 | F16: 0 | G16: 1 | H16: ='II-2.1.1'!G17 -> 2
A17: Canelones................. | C17: 63 | E17: 62 | F17: 5 | G17: 57 | H17: ='II-2.1.1'!G18 -> 1
A18: Cerro Largo.................... | C18: 6 | E18: 6 | F18: 1 | G18: 5 | H18: ='II-2.1.1'!G19 -> 0
A19: Colonia....................... | C19: 9 | E19: 9 | F19: 0 | G19: 9 | H19: ='II-2.1.1'!G20 -> 0
A20: Durazno....................... | C20: 3 | E20: 3 | F20: 0 | G20: 3 | H20: ='II-2.1.1'!G21 -> 0
A21: Flores........................ | C21: 3 | E21: 3 | F21: 0 | G21: 3 | H21: ='II-2.1.1'!G22 -> 0
A22: Florida....................... | C22: 5 | E22: 4 | F22: 0 | G22: 4 | H22: ='II-2.1.1'!G23 -> 1
A23: Lavalleja...................... | C23: 6 | E23: 6 | F23: 0 | G23: 6 | H23: ='II-2.1.1'!G24 -> 0
A24: Maldonado...................... | C24: 27 | E24: 24 | F24: 0 | G24: 24 | H24: ='II-2.1.1'!G25 -> 3
A25: Paysandú....................... | C25: 13 | E25: 9 | F25: 1 | G25: 8 | H25: ='II-2.1.1'!G26 -> 4
A26: Río Negro...................... | C26: 7 | E26: 6 | F26: 2 | G26: 4 | H26: ='II-2.1.1'!G27 -> 1
A27: Rivera......................... | C27: 8 | E27: 8 | F27: 0 | G27: 8 | H27: ='II-2.1.1'!G28 -> 0
A28: Rocha......................... | C28: 6 | E28: 4 | F28: 0 | G28: 4 | H28: ='II-2.1.1'!G29 -> 2
A29: Salto........................... | C29: 10 | E29: 8 | F29: 0 | G29: 8 | H29: ='II-2.1.1'!G30 -> 2
A30: San José....................... | C30: 7 | E30: 7 | F30: 1 | G30: 6 | H30: ='II-2.1.1'!G31 -> 0
A31: Soriano........................ | C31: 8 | E31: 3 | F31: 0 | G31: 3 | H31: ='II-2.1.1'!G32 -> 5
A32: Tacuarembó..................... | C32: 6 | E32: 6 | F32: 0 | G32: 6 | H32: ='II-2.1.1'!G33 -> 0
A33: Treinta y Tres................ | C33: 2 | E33: 2 | F33: 0 | G33: 2 | H33: ='II-2.1.1'!G34 -> 0
A35: Fuente: Procesamiento propio en base a datos proporcionados por el D.E.E. — C.E.I.P.

Sheet II-2.2.1
A1: CONSEJO DE EDUCACIÓN PRIMARIA | J1: ALUMNOS MATRICULADOS
A3: Cuadro Nº II-2.2.1
A5: ALUMNOS MATRICULADOS EN EDUCACIÓN PRIMARIA COMÚN POR FORMA DE ADMINISTRACIÓN Y SEXO SEGÚN DEPARTAMENTO. AÑO 2010.
A6: DEPARTAMENTO | B6: TOTAL | D6: FORMA DE ADMINISTRACIÓN
D7: TOTAL | G7: PÚBLICA | J7: PRIVADA
G8: TOTAL | H8: SEXO | J8: TOTAL | K8: SEXO
D9: M | E9: F | H9: M | I9: F | K9: M | L9: F
A12: TOTAL........................... | B12: =+B14+B15 -> 329772 | D12: =D14+D15 -> 169914 | E12: =E14+E15 -> 159858 | G12: =+G14+G15 -> 278669 | H12: =+H14+H15 -> 144001 | I12: =I14+I15 -> 134668 | J12: =+J14+J15 -> 51103 | K12: =K14+K15 -> 25913 | L12: =L14+L15 -> 25190
A14: MONTEVIDEO................... | B14: =+D14+E14 -> 116278 | D14: =+H14+K14 -> 59532 | E14: =+I14+L14 -> 56746 | G14: =+H14+I14 -> 85218 | H14: 43799 | I14: 41419 | J14: =SUM(K14:L14) -> 31060 | K14: 15733 | L14: 15327
A15: RESTO DEL PAÍS......................... | B15: =SUM(D15:E15) -> 213494 | D15: =SUM(D17:D34) -> 110382 | E15: =SUM(E17:E34) -> 103112 | G15: =+H15+I15 -> 193451 | H15: =SUM(H17:H34) -> 100202 | I15: =SUM(I17:I34) -> 93249 | J15: =+K15+L15 -> 20043 | K15: =SUM(K17:K34) -> 10180 | L15: =SUM(L17:L34) -> 9863
A17: Artigas...................... | B17: =+D17+E17 -> 9295 | D17: =+H17+K17 -> 4803 | E17: =+I17+L17 -> 4492 | G17: =+H17+I17 -> 9208 | H17: 4761 | I17: 4447 | J17: =SUM(K17,L17) -> 87 | K17: 42 | L17: 45
A18: Canelones.................... | B18: 52916 | D18: 27481 | E18: 25435 | G18: 45753 | H18: 23793 | I18: 21960 | J18: 7163 | K18: 3688 | L18: 3475
A19: Cerro Largo.................... | B19: 9959 | D19: 5119 | E19: 4840 | G19: 9373 | H19: 4821 | I19: 4552 | J19: 586 | K19: 298 | L19: 288
A20: Colonia....................... | B20: 11356 | D20: 5829 | E20: 5527 | G20: 10629 | H20: 5482 | I20: 5147 | J20: 727 | K20: 347 | L20: 380
A21: Durazno........................ | B21: 6514 | D21: 3414 | E21: 3100 | G21: 5946 | H21: 3144 | I21: 2802 | J21: 568 | K21: 270 | L21: 298
A22: Flores......................... | B22: 2625 | D22: 1304 | E22: 1321 | G22: 2262 | H22: 1120 | I22: 1142 | J22: 363 | K22: 184 | L22: 179
A23: Florida......................... | B23: 6732 | D23: 3458 | E23: 3274 | G23: 6435 | H23: 3312 | I23: 3123 | J23: 297 | K23: 146 | L23: 151
A24: Lavalleja.................... | B24: 5883 | D24: 3023 | E24: 2860 | G24: 5234 | H24: 2711 | I24: 2523 | J24: 649 | K24: 312 | L24: 337
A25: Maldonado..................... | B25: 17566 | D25: 9054 | E25: 8512 | G25: 13697 | H25: 7087 | I25: 6610 | J25: 3869 | K25: 1967 | L25: 1902
A26: Paysandú..................... | B26: 13413 | D26: 6914 | E26: 6499 | G26: 12227 | H26: 6324 | I26: 5903 | J26: 1186 | K26: 590 | L26: 596
A27: Río Negro.................... | B27: 6399 | D27: 3338 | E27: 3061 | G27: 5965 | H27: 3103 | I27: 2862 | J27: 434 | K27: 235 | L27: 199
A28: Rivera.......................... | B28: 12480 | D28: 6543 | E28: 5937 | G28: 11815 | H28: 6190 | I28: 5625 | J28: 665 | K28: 353 | L28: 312
A29: Rocha......................... | B29: 7341 | D29: 3807 | E29: 3534 | G29: 6936 | H29: 3601 | I29: 3335 | J29: 405 | K29: 206 | L29: 199
A30: Salto.......................... | B30: 15045 | D30: 7842 | E30: 7203 | G30: 13933 | H30: 7283 | I30: 6650 | J30: 1112 | K30: 559 | L30: 553
A31: San José..................... | B31: 10653 | D31: 5517 | E31: 5136 | G31: 10043 | H31: 5204 | I31: 4839 | J31: 610 | K31: 313 | L31: 297
A32: Soriano...................... | B32: 9191 | D32: 4691 | E32: 4500 | G32: 8724 | H32: 4466 | I32: 4258 | J32: 467 | K32: 225 | L32: 242
A33: Tacuarembó..................... | B33: 10774 | D33: 5466 | E33: 5308 | G33: 10113 | H33: 5128 | I33: 4985 | J33: 661 | K33: 338 | L33: 323
A34: Treinta y Tres.............. | B34: 5352 | D34: 2779 | E34: 2573 | G34: 5158 | H34: 2672 | I34: 2486 | J34: 194 | K34: 107 | L34: 87
A36: Fuente: Procesamiento propio en base a datos proporcionados por el D.E.E. — C.E.I.P.
A37: Nota: No incluye JICI

Sheet II-2.2.2
A1: CONSEJO DE EDUCACIÓN PRIMARIA | H1: ALUMNOS MATRICULADOS
A3: Cuadro Nº II-2.2.2
A5: ALUMNOS MATRICULADOS EN EDUCACIÓN PRIMARIA PÚBLICA POR TIPO DE EDUCACIÓN Y SEXO SEGÚN DEPARTAMENTO. AÑO 2010.
A6: DEPARTAMENTO | B6: TOTAL | E6: TIPO DE EDUCACIÓN
C7: TOTAL SEXO | E7: COMÚN | H7: ESPECIAL
E8: SEXO
C9: M | D9: F | E9: Total | F9: M | G9: F | H9: Total | I9: M | J9: F | EJ9: COMPARABLE CON ANTERIOR | EL9: BASE DE ESPECIAL 1 a 6 | EN9: Clases Especiales | EP9: TOTAL 1a6 esc y clases | ER9: TOTAL inic; 1a6 esc y clases
A10: TOTAL........................... | B10: =+E10+H10 -> 286861 | C10: =C11+C12 -> 148979 | D10: =D11+D12 -> 137882 | E10: =+E11+E12 -> 279445 | F10: =+F11+F12 -> 144404 | G10: =G11+G12 -> 135041 | H10: =+H11+H12 -> 7416 | I10: =I11+I12 -> 4575 | J10: =J11+J12 -> 2841 | EI10: Montveo | EJ10: 1825 | EK10: 1155 | EL10: 1169 | EM10: 729 | EN10: 0 | EO10: 0 | EP10: =EL10+EN10 -> 1169 | EQ10: =EM10+EO10 -> 729 | ER10: =EJ10+EN10 -> 1825 | ES10: =EK10+EO10 -> 1155
A11: MONTEVIDEO................... | B11: =+C11+D11 -> 88439 | C11: =+F11+I11 -> 45750 | D11: =+G11+J11 -> 42689 | E11: =+F11+G11 -> 85459 | F11: 43925 | G11: 41534 | H11: =+I11+J11 -> 2980 | I11: 1825 | J11: 1155
A12: RESTO DEL PAÍS......................... | B12: =+C12+D12 -> 198422 | C12: =SUM(C14:C31) -> 103229 | D12: =SUM(D14:D31) -> 95193 | E12: =+F12+G12 -> 193986 | F12: =SUM(F14:F31) -> 100479 | G12: =SUM(G14:G31) -> 93507 | H12: =+I12+J12 -> 4436 | I12: =SUM(I14:I31) -> 2750 | J12: =SUM(J14:J31) -> 1686
A14: Artigas...................... | B14: =+C14+D14 -> 9429 | C14: =+F14+I14 -> 4891 | D14: =+G14+J14 -> 4538 | E14: =+F14+G14 -> 9208 | F14: 4761 | G14: 4447 | H14: =+I14+J14 -> 221 | I14: 130 | J14: 91 | EJ14: 119 | EK14: 87 | EL14: 81 | EM14: 52 | EN14: 11 | EO14: 4 | EP14: =EL14+EN14 -> 92 | EQ14: =EM14+EO14 -> 56 | ER14: =EJ14+EN14 -> 130 | ES14: =EK14+EO14 -> 91
A15: Canelones.................... | B15: 46620 | C15: 24335 | D15: 22285 | E15: 45847 | F15: 23851 | G15: 21996 | H15: =+I15+J15 -> 773 | I15: 484 | J15: 289 | EJ15: 449 | EK15: 275 | EL15: 377 | EM15: 206 | EN15: 35 | EO15: 14 | EP15: =EL15+EN15 -> 412 | EQ15: 220 | ER15: =EJ15+EN15 -> 484 | ES15: =EK15+EO15 -> 289
A16: Cerro Largo.................... | B16: 9678 | C16: 5004 | D16: 4674 | E16: 9424 | F16: 4846 | G16: 4578 | H16: 254 | I16: 158 | J16: 96 | EJ16: 149 | EK16: 91 | EL16: 120 | EM16: 78 | EN16: 9 | EO16: 5 | EP16: 129 | EQ16: 83 | ER16: 158 | ES16: 96
A17: Colonia....................... | B17: 10921 | C17: 5664 | D17: 5257 | E17: 10664 | F17: 5499 | G17: 5165 | H17: 257 | I17: 165 | J17: 92 | EJ17: 155 | EK17: 90 | EL17: 104 | EM17: 67 | EN17: 10 | EO17: 2 | EP17: 114 | EQ17: 69 | ER17: 165 | ES17: 92
A18: Durazno........................ | B18: 6217 | C18: 3302 | D18: 2915 | E18: 5991 | F18: 3168 | G18: 2823 | H18: 226 | I18: 134 | J18: 92 | EJ18: 118 | EK18: 82 | EL18: 77 | EM18: 53 | EN18: 16 | EO18: 10 | EP18: 93 | EQ18: 63 | ER18: 134 | ES18: 92
A19: Flores......................... | B19: 2323 | C19: 1156 | D19: 1167 | E19: 2262 | F19: 1120 | G19: 1142 | H19: 61 | I19: 36 | J19: 25 | EJ19: 36 | EK19: 25 | EL19: 31 | EM19: 16 | EN19: 0 | EO19: 0 | EP19: 31 | EQ19: 16 | ER19: 36 | ES19: 25
A20: Florida......................... | B20: 6599 | C20: 3418 | D20: 3181 | E20: 6435 | F20: 3312 | G20: 3123 | H20: 164 | I20: 106 | J20: 58 | EJ20: 103 | EK20: 55 | EL20: 80 | EM20: 44 | EN20: 3 | EO20: 3 | EP20: 83 | EQ20: 47 | ER20: 106 | ES20: 58
A21: Lavalleja.................... | B21: 5404 | C21: 2814 | D21: 2590 | E21: 5255 | F21: 2720 | G21: 2535 | H21: 149 | I21: 94 | J21: 55 | EJ21: 88 | EK21: 54 | EL21: 47 | EM21: 26 | EN21: 6 | EO21: 1 | EP21: 53 | EQ21: 27 | ER21: 94 | ES21: 55
A22: Maldonado..................... | B22: 13985 | C22: 7256 | D22: 6729 | E22: 13697 | F22: 7087 | G22: 6610 | H22: 288 | I22: 169 | J22: 119 | EJ22: 169 | EK22: 119 | EL22: 129 | EM22: 83 | EN22: 0 | EO22: 0 | EP22: 129 | EQ22: 83 | ER22: 169 | ES22: 119
A23: Paysandú..................... | B23: 12457 | C23: 6464 | D23: 5993 | E23: 12246 | F23: 6333 | G23: 5913 | H23: 211 | I23: 131 | J23: 80 | EJ23: 117 | EK23: 74 | EL23: 96 | EM23: 57 | EN23: 14 | EO23: 6 | EP23: 110 | EQ23: 63 | ER23: 131 | ES23: 80
A24: Río Negro.................... | B24: 6181 | C24: 3214 | D24: 2967 | E24: 6003 | F24: 3124 | G24: 2879 | H24: 178 | I24: 90 | J24: 88 | EJ24: 89 | EK24: 85 | EL24: 60 | EM24: 60 | EN24: 1 | EO24: 3 | EP24: 61 | EQ24: 63 | ER24: 90 | ES24: 88
A25: Rivera.......................... | B25: 12152 | C25: 6401 | D25: 5751 | E25: 11894 | F25: 6233 | G25: 5661 | H25: 258 | I25: 168 | J25: 90 | EJ25: 168 | EK25: 90 | EL25: 134 | EM25: 79 | EN25: 0 | EO25: 0 | EP25: 134 | EQ25: 79 | ER25: 168 | ES25: 90
A26: Rocha......................... | B26: 7185 | C26: 3754 | D26: 3431 | E26: 6936 | F26: 3601 | G26: 3335 | H26: 249 | I26: 153 | J26: 96 | EJ26: 151 | EK26: 88 | EL26: 126 | EM26: 64 | EN26: 2 | EO26: 8 | EP26: 128 | EQ26: 72 | ER26: 153 | ES26: 96
A27: Salto.......................... | B27: 14275 | C27: 7500 | D27: 6775 | E27: 13933 | F27: 7283 | G27: 6650 | H27: 342 | I27: 217 | J27: 125 | EJ27: 212 | EK27: 122 | EL27: 119 | EM27: 72 | EN27: 5 | EO27: 3 | EP27: 124 | EQ27: 75 | ER27: 217 | ES27: 125
A28: San José..................... | B28: 10402 | C28: 5420 | D28: 4982 | E28: 10144 | F28: 5251 | G28: 4893 | H28: 258 | I28: 169 | J28: 89 | EJ28: 164 | EK28: 88 | EL28: 132 | EM28: 74 | EN28: 5 | EO28: 1 | EP28: 137 | EQ28: 75 | ER28: 169 | ES28: 89
A29: Soriano...................... | B29: 8950 | C29: 4608 | D29: 4342 | E29: 8724 | F29: 4466 | G29: 4258 | H29: 226 | I29: 142 | J29: 84 | EJ29: 139 | EK29: 83 | EL29: 105 | EM29: 61 | EN29: 3 | EO29: 1 | EP29: 108 | EQ29: 62 | ER29: 142 | ES29: 84
A30: Tacuarembó..................... | B30: 10308 | C30: 5251 | D30: 5057 | E30: 10113 | F30: 5128 | G30: 4985 | H30: 195 | I30: 123 | J30: 72 | EJ30: 115 | EK30: 63 | EL30: 90 | EM30: 48 | EN30: 8 | EO30: 9 | EP30: 98 | EQ30: 57 | ER30: 123 | ES30: 72
A31: Treinta y Tres.............. | B31: 5336 | C31: 2777 | D31: 2559 | E31: 5210 | F31: 2696 | G31: 2514 | H31: 126 | I31: 81 | J31: 45 | EJ31: 78 | EK31: 43 | EL31: 72 | EM31: 38 | EN31: 3 | EO31: 2 | EP31: 75 | EQ31: 40 | ER31: 81 | ES31: 45
A32: Fuente: Procesamiento propio en base a datos proporcionados por el D.E.E. — C.E.I.P.
A33: Nota: Educación Especial incluye Escuelas Especiales y Clases Especiales en Escuelas
A34: Comunes.
A35: Educación Especial Pública incluye Instrucción Temprana (29 alumnos); Inicial (184 alumnos); Preparatorio
A36: (432 alumnos); y Talleres (1512 alumnos)

Sheet II-2.2.3
A1: CONSEJO DE EDUCACIÓN PRIMARIA | K1: ALUMNOS MATRICULADOS
A3: Cuadro Nº II-2.2.3
A5: ALUMNOS MATRICULADOS EN EDUCACIÓN PRIMARIA PÚBLICA COMÚN POR ÁREA DEMOGRÁFICA Y CATEGORÍA SEGÚN DEPARTAMENTO. AÑO 2010.
A6: DEPARTAMENTO | B6: TOTAL | D6: ÁREA DEMOGRÁFICA
D7: URBANA | J7: RURAL
D8: Total Urbana | E8: CATEGORÍA | J8: Total Rural | K8: CATEGORÍA
E9: Común | F9: De Práctica | G9: C.S.C.C. | H9: Tiempo Completo | I9: JICI | K9: Común | L9: Internado Rural
A12: TOTAL........................ | B12: =+B14+B15 -> 279445 | D12: =+D14+D15 -> 262192 | E12: =+E14+E15 -> 111705 | F12: =SUM(F14:F15) -> 40279 | G12: =SUM(G14:G15) -> 83772 | H12: =SUM(H14:H15) -> 25660 | I12: =SUM(I14:I15) -> 776 | J12: =+K12+L12 -> 17253 | K12: =SUM(K14:K15) -> 17121 | L12: =SUM(L14:L15) -> 132
A14: MONTEVIDEO.................... | B14: =+D14+J14 -> 85459 | D14: =+E14+F14+G14+H14+I14 -> 85459 | E14: 37611 | F14: 6748 | G14: 32971 | H14: 7888 | I14: 241 | J14: N/C | K14: N/C | L14: N/C
A15: RESTO DEL PAÍS......................... | B15: =+D15+J15 -> 193986 | D15: =SUM(D17:D34) -> 176733 | E15: 74094 | F15: 33531 | G15: 50801 | H15: 17772 | I15: 535 | J15: =SUM(J17:J34) -> 17253 | K15: =SUM(K17:K34) -> 17121 | L15: =SUM(L17:L34) -> 132
A17: Artigas........................ | B17: =+D17+J17 -> 9208 | D17: =+E17+F17+G17+H17+I17 -> 8374 | E17: 2415 | F17: 1633 | G17: 3143 | H17: 1183 | I17: 0 | J17: =+K17+L17 -> 834 | K17: 795 | L17: 39
A18: Canelones................ | B18: 45847 | D18: 43084 | E18: 19994 | F18: 6176 | G18: 13938 | H18: 2882 | I18: 94 | J18: 2763 | K18: 2763 | L18: 0
A19: Cerro Largo..................... | B19: 9424 | D19: 8389 | E19: 2457 | F19: 2361 | G19: 2741 | H19: 779 | I19: 51 | J19: 1035 | K19: 1035 | L19: 0
A20: Colonia........................ | B20: 10664 | D20: 9518 | E20: 6440 | F20: 1570 | G20: 637 | H20: 836 | I20: 35 | J20: 1146 | K20: 1146 | L20: 0
A21: Durazno....................... | B21: 5991 | D21: 5480 | E21: 1544 | F21: 1197 | G21: 1998 | H21: 696 | I21: 45 | J21: 511 | K21: 511 | L21: 0
A22: Flores.......................... | B22: 2262 | D22: 1983 | E22: 921 | F22: 569 | G22: 224 | H22: 269 | I22: 0 | J22: 279 | K22: 256 | L22: 23
A23: Florida........................ | B23: 6435 | D23: 5666 | E23: 2583 | F23: 1246 | G23: 1053 | H23: 784 | I23: 0 | J23: 769 | K23: 769 | L23: 0
A24: Lavalleja..................... | B24: 5255 | D24: 4761 | E24: 2279 | F24: 1406 | G24: 257 | H24: 798 | I24: 21 | J24: 494 | K24: 494 | L24: 0
A25: Maldonado...................... | B25: 13697 | D25: 13010 | E25: 8186 | F25: 2002 | G25: 1758 | H25: 1064 | I25: 0 | J25: 687 | K25: 668 | L25: 19
A26: Paysandú...................... | B26: 12246 | D26: 11106 | E26: 3291 | F26: 2406 | G26: 4178 | H26: 1212 | I26: 19 | J26: 1140 | K26: 1105 | L26: 35
A27: Río Negro..................... | B27: 6003 | D27: 5384 | E27: 2705 | F27: 918 | G27: 1199 | H27: 524 | I27: 38 | J27: 619 | K27: 603 | L27: 16
A28: Rivera......................... | B28: 11894 | D28: 10655 | E28: 2142 | F28: 1439 | G28: 6117 | H28: 878 | I28: 79 | J28: 1239 | K28: 1239 | L28: 0
A29: Rocha......................... | B29: 6936 | D29: 6604 | E29: 4021 | F29: 1112 | G29: 661 | H29: 810 | I29: 0 | J29: 332 | K29: 332 | L29: 0
A30: Salto........................ | B30: 13933 | D30: 12419 | E30: 4118 | F30: 2273 | G30: 4098 | H30: 1930 | I30: 0 | J30: 1514 | K30: 1514 | L30: 0
A31: San José....................... | B31: 10144 | D31: 8919 | E31: 3448 | F31: 1564 | G31: 2614 | H31: 1192 | I31: 101 | J31: 1225 | K31: 1225 | L31: 0
A32: Soriano....................... | B32: 8724 | D32: 7993 | E32: 3486 | F32: 1789 | G32: 2230 | H32: 488 | I32: 0 | J32: 731 | K32: 731 | L32: 0
A33: Tacuarembó..................... | B33: 10113 | D33: 8622 | E33: 2439 | F33: 1733 | G33: 3408 | H33: 1042 | I33: 0 | J33: 1491 | K33: 1491 | L33: 0
A34: Treinta y Tres.................. | B34: 5210 | D34: 4766 | E34: 1625 | F34: 2137 | G34: 547 | H34: 405 | I34: 52 | J34: 444 | K34: 444 | L34: 0
A36: Fuente: Procesamiento propio en base a datos proporcionados por el D.E.E. — C.E.I.P.

Sheet II-2.2.4
A1: CONSEJO DE EDUCACIÓN PRIMARIA | F1: Alumnos matriculados
A3: Cuadro Nº II-2.2.4
A5: ALUMNOS MATRICULADOS EN EDUCACIÓN PRIMARIA PÚBLICA ESPECIAL POR TIPO DE DISCAPACIDAD SEGÚN DEPARTAMENTO. AÑO 2010.
A6: DEPARTAMENTO | D6: TOTAL | E6: DISCAPACIDAD
E7: Intelectual | F7: Auditiva | G7: Visual
A10: TOTAL.......................... | D10: =+D12+D13 -> 7416 | E10: =SUM(E12:E13) -> 6965 | F10: =SUM(F12:F13) -> 355 | G10: =SUM(G12:G13) -> 96
A12: MONTEVIDEO........................ | D12: =+E12+F12+G12 -> 2980 | E12: 2792 | F12: 113 | G12: 75
A13: RESTO DEL PAÍS......................... | D13: =SUM(D15:D32) -> 4436 | E13: =SUM(E15:E32) -> 4173 | F13: =SUM(F15:F32) -> 242 | G13: =SUM(G15:G32) -> 21
A15: Artigas........................ | D15: =+E15+F15+G15 -> 221 | E15: 206 | F15: 15 | G15: 0
A16: Canelones................. | D16: 773 | E16: 744 | F16: 29 | G16: 0
A17: Cerro Largo.................... | D17: 254 | E17: 247 | F17: 7 | G17: 0
A18: Colonia....................... | D18: 257 | E18: 245 | F18: 12 | G18: 0
A19: Durazno....................... | D19: 226 | E19: 211 | F19: 14 | G19: 1
A20: Flores........................ | D20: 61 | E20: 61 | F20: 0 | G20: 0
A21: Florida....................... | D21: 164 | E21: 158 | F21: 6 | G21: 0
A22: Lavalleja...................... | D22: 149 | E22: 142 | F22: 7 | G22: 0
A23: Maldonado...................... | D23: 288 | E23: 260 | F23: 28 | G23: 0
A24: Paysandú....................... | D24: 211 | E24: 191 | F24: 14 | G24: 6
A25: Río Negro...................... | D25: 178 | E25: 174 | F25: 4 | G25: 0
A26: Rivera......................... | D26: 258 | E26: 241 | F26: 17 | G26: 0
A27: Rocha......................... | D27: 249 | E27: 239 | F27: 10 | G27: 0
A28: Salto........................... | D28: 342 | E28: 281 | F28: 53 | G28: 8
A29: San José....................... | D29: 258 | E29: 252 | F29: 6 | G29: 0
A30: Soriano........................ | D30: 226 | E30: 222 | F30: 4 | G30: 0
A31: Tacuarembó..................... | D31: 195 | E31: 178 | F31: 11 | G31: 6
A32: Treinta y Tres................ | D32: 126 | E32: 121 | F32: 5 | G32: 0
A34: Fuente: D.E.E. — C.E.P.
A35: Nota: Incluyen Escuelas Especiales y Clases Especiales en Escuelas Comunes.
A36: En el Interior son clases de Discapacitados Visuales en Escuelas Comunes.
A37: En Interior son clases de Fonoaudiología en Escuelas Comunes, excepto en Maldonado,
A38: Rivera y Salto donde funcionan Escuelas de Fonoaudiología.

Sheet II-2.2.5
A1: CONSEJO DE EDUCACIÓN PRIMARIA | F1: ALUMNOS MATRICULADOS
A3: Cuadro Nº II-2.2.5
A5: ALUMNOS MATRICULADOS EN EDUCACIÓN PRIMARIA PRIVADA POR TIPO DE EDUCACIÓN SEGÚN DEPARTAMENTO. AÑO 2010.
B6: TIPO DE EDUCACIÓN
A7: DEPARTAMENTO | B7: TOTAL | D7: EDUCACIÓN COMÚN | G7: EDUCACIÓN ESPECIAL
D8: Total | E8: Habilitados | F8: Autorizados
A11: TOTAL DEL PAÍS............. | B11: =+B13+B14 -> 55495 | D11: =+D13+D14 -> 51103 | E11: =+E13+E14 -> 48441 | F11: =+F13+F14 -> 2662 | G11: =+G13+G14 -> 4392 | AW11: TOTAL 16 Cesp | AX11: Especial 1º6º | AY11: Clases Especiales | BA11: TOTAL DE BASE ESPECIAL (incluye instrucción temprana, inicial, preparatorio y talleres)
A13: MONTEVIDEO........................ | B13: =+D13+G13 -> 33623 | D13: =+E13+F13 -> 31060 | E13: 28916 | F13: 2144 | G13: 2563 | AU13: MONTEVIDEO | AW13: =AX13+AY13 -> 779 | AX13: 760 | AY13: 19 | BA13: 2544 | BC13: =AY13+BA13 -> 2563
A14: RESTO DEL PAÍS......................... | B14: =SUM(B16:B33) -> 21872 | D14: =SUM(D16:D33) -> 20043 | E14: =SUM(E16:E33) -> 19525 | F14: =SUM(F16:F33) -> 518 | G14: =SUM(G16:G33) -> 1829 | AU14: RESTO DEL PAÍS
A16: Artigas........................ | B16: =+D16+G16 -> 237 | D16: =+E16+F16 -> 87 | E16: 87 | F16: 0 | G16: 150 | AU16: Artigas | AW16: =AX16+AY16 -> 39 | AX16: 39 | AY16: 0 | BA16: 150 | BC16: =AY16+BA16 -> 150
A17: Canelones................. | B17: =+D17+G17 -> 7223 | D17: 7163 | E17: 6800 | F17: 363 | G17: 60 | AU17: Canelones | AW17: 21 | AX17: 21 | AY17: 0 | BA17: 60 | BC17: =AY17+BA17 -> 60
A18: Cerro Largo.................... | B18: 586 | D18: 586 | E18: 475 | F18: 111 | G18: 0 | AU18: Cerro Largo | AW18: 0 | AX18: 0 | AY18: 0 | BA18: 0 | BC18: 0
A19: Colonia....................... | B19: 727 | D19: 727 | E19: 727 | F19: 0 | G19: 0 | AU19: Colonia | AW19: 0 | AX19: 0 | AY19: 0 | BA19: 0 | BC19: 0
A20: Durazno....................... | B20: 568 | D20: 568 | E20: 568 | F20: 0 | G20: 0 | AU20: Durazno | AW20: 0 | AX20: 0 | AY20: 0 | BA20: 0 | BC20: 0
A21: Flores........................ | B21: 384 | D21: 363 | E21: 363 | F21: 0 | G21: 21 | AU21: Flores | AW21: 21 | AX21: 0 | AY21: 21 | BA21: 0 | BC21: 21
A22: Florida....................... | B22: 387 | D22: 297 | E22: 297 | F22: 0 | G22: 90 | AU22: Florida | AW22: 0 | AX22: 0 | AY22: 0 | BA22: 90 | BC22: 90
A23: Lavalleja...................... | B23: 649 | D23: 649 | E23: 649 | F23: 0 | G23: 0 | AU23: Lavalleja | AW23: 0 | AX23: 0 | AY23: 0 | BA23: 0 | BC23: 0
A24: Maldonado...................... | B24: 4020 | D24: 3869 | E24: 3869 | F24: 0 | G24: 151 | AU24: Maldonado | AW24: 70 | AX24: 70 | AY24: 0 | BA24: 151 | BC24: 151
A25: Paysandú....................... | B25: 1464 | D25: 1186 | E25: 1186 | F25: 0 | G25: 278 | AU25: Paysandú | AW25: 100 | AX25: 100 | AY25: 0 | BA25: 278 | BC25: 278
A26: Río Negro...................... | B26: 579 | D26: 434 | E26: 408 | F26: 26 | G26: 145 | AU26: Río Negro | AW26: 92 | AX26: 62 | AY26: 30 | BA26: 115 | BC26: 145
A27: Rivera......................... | B27: 665 | D27: 665 | E27: 665 | F27: 0 | G27: 0 | AU27: Rivera | AW27: 0 | AX27: 0 | AY27: 0 | BA27: 0 | BC27: 0
A28: Rocha......................... | B28: 494 | D28: 405 | E28: 405 | F28: 0 | G28: 89 | AU28: Rocha | AW28: 14 | AX28: 14 | AY28: 0 | BA28: 89 | BC28: 89
A29: Salto........................... | B29: 1334 | D29: 1112 | E29: 1112 | F29: 0 | G29: 222 | AU29: Salto | AW29: 168 | AX29: 168 | AY29: 0 | BA29: 222 | BC29: 222
A30: San José....................... | B30: 610 | D30: 610 | E30: 592 | F30: 18 | G30: 0 | AU30: San José | AW30: 0 | AX30: 0 | AY30: 0 | BA30: 0 | BC30: 0
A31: Soriano........................ | B31: 1090 | D31: 467 | E31: 467 | F31: 0 | G31: 623 | AU31: Soriano | AW31: 196 | AX31: 196 | AY31: 0 | BA31: 623 | BC31: 623
A32: Tacuarembó..................... | B32: 661 | D32: 661 | E32: 661 | F32: 0 | G32: 0 | AU32: Tacuarembó | AW32: 0 | AX32: 0 | AY32: 0 | BA32: 0 | BC32: 0
A33: Treinta y Tres................ | B33: 194 | D33: 194 | E33: 194 | F33: 0 | G33: 0 | AU33: Treinta y Tres | AW33: 0 | AX33: 0 | AY33: 0 | BA33: 0 | BC33: 0
A35: Fuente: Procesamiento propio en base a datos proporcionados por el D.E.E. — C.E.I.P.
A36: Nota: Especial incluye la matrícula de clases especiales en escuelas comunes,
A37: Instrucción Temprana, Educación Inicial, Preparatorio y Talleres.
A38: En este sentido, se agregó un boton que permite al lector excluir estas
A39: categorías de los totales.

Sheet II-2.2.6
A1: CONSEJO DE EDUCACIÓN PRIMARIA | P1: ALUMNOS MATRICULADOS
A3: Cuadro Nº II-2.2.6
A5: ALUMNOS MATRICULADOS EN EDUCACIÓN PRIMARIA POR FORMA DE ADMINISTRACIÓN, TIPO DE EDUCACIÓN Y SEXO SEGÚN EDAD. AÑO 2010.
A6: EDAD | I6: FORMA DE ADMINISTRACIÓN
I7: PÚBLICA | P7: PRIVADA
D8: Total | I8: TIPO DE EDUCACIÓN | P8: TIPO DE EDUCACIÓN
I9: Común | L9: Especial | P9: Común | S9: Especial
F10: SEXO | I10: Total | J10: SEXO | L10: Total | M10: SEXO | P10: Total | Q10: SEXO | S10: Total | T10: SEXO
F11: M | G11: F | J11: M | K11: F | M11: M | N11: F | Q11: M | R11: F | T11: M | U11: F
A14: TOTAL............................... | D14: =+F14+G14 -> 339150 | F14: =SUM(F16:F25) -> 175632 | G14: 163518 | I14: 278669 | J14: 144001 | K14: 134668 | L14: 5056 | M14: 3149 | N14: 1907 | P14: 51103 | Q14: 25913 | R14: 25190 | S14: =SUM(S16:S25) -> 4322 | T14: =SUM(T16:T25) -> 2569 | U14: =SUM(U16:U25) -> 1753
A16: Menos de 6 años............................. | D16: =+I16+L16+P16+S16 -> 308 | F16: =+J16+Q16+M16+T16 -> 172 | G16: =+K16+R16+N16+U16 -> 136 | I16: N/C | J16: N/C | K16: N/C | L16: =+M16+N16 -> 0 | M16: 0 | N16: 0 | P16: N/C | Q16: N/C | R16: N/C | S16: =+T16+U16 -> 308 | T16: 172 | U16: 136
A17: 6 años............................. | D17: =+I17+L17+P17+S17 -> 42722 | F17: =+J17+Q17+M17+T17 -> 21779 | G17: =+K17+R17+N17+U17 -> 20943 | I17: =+J17+K17 -> 35004 | J17: =SUM('II-2.2.8'!G15+'II-2.2.8'!I15+'II-2.2.8'!K15+'II-2.2.8'!M15+'II-2.2.8'!O15+'II-2.2.8'!Q15) -> 17868 | K17: =SUM('II-2.2.8'!H15+'II-2.2.8'!J15+'II-2.2.8'!L15+'II-2.2.8'!N15+'II-2.2.8'!P15+'II-2.2.8'!R15) -> 17136 | L17: =+M17+N17 -> 63 | M17: 35 | N17: 28 | P17: =+Q17+R17 -> 7473 | Q17: ='II-2.2.9'!G15+'II-2.2.9'!I15+'II-2.2.9'!K15+'II-2.2.9'!M15+'II-2.2.9'!O15+'II-2.2.9'!Q15 -> 3764 | R17: ='II-2.2.9'!H15+'II-2.2.9'!J15+'II-2.2.9'!L15+'II-2.2.9'!N15+'II-2.2.9'!P15+'II-2.2.9'!R15 -> 3709 | S17: =+T17+U17 -> 182 | T17: 112 | U17: 70
A18: 7 años............................ | D18: 51482 | F18: =+J18+Q18+M18+T18 -> 26178 | G18: 25304 | I18: =+J18+K18 -> 42138 | J18: =SUM('II-2.2.8'!G16+'II-2.2.8'!I16+'II-2.2.8'!K16+'II-2.2.8'!M16+'II-2.2.8'!O16+'II-2.2.8'!Q16) -> 21440 | K18: =SUM('II-2.2.8'!H16+'II-2.2.8'!J16+'II-2.2.8'!L16+'II-2.2.8'!N16+'II-2.2.8'!P16+'II-2.2.8'!R16) -> 20698 | L18: 201 | M18: 117 | N18: 84 | P18: =+Q18+R18 -> 8904 | Q18: ='II-2.2.9'!G16+'II-2.2.9'!I16+'II-2.2.9'!K16+'II-2.2.9'!M16+'II-2.2.9'!O16+'II-2.2.9'!Q16 -> 4462 | R18: ='II-2.2.9'!H16+'II-2.2.9'!J16+'II-2.2.9'!L16+'II-2.2.9'!N16+'II-2.2.9'!P16+'II-2.2.9'!R16 -> 4442 | S18: 239 | T18: 159 | U18: 80
A19: 8 años............................. | D19: 51515 | F19: 26447 | G19: 25068 | I19: 42308 | J19: =SUM('II-2.2.8'!G17+'II-2.2.8'!I17+'II-2.2.8'!K17+'II-2.2.8'!M17+'II-2.2.8'!O17+'II-2.2.8'!Q17) -> 21714 | K19: =SUM('II-2.2.8'!H17+'II-2.2.8'!J17+'II-2.2.8'!L17+'II-2.2.8'!N17+'II-2.2.8'!P17+'II-2.2.8'!R17) -> 20594 | L19: 437 | M19: 257 | N19: 180 | P19: 8496 | Q19: ='II-2.2.9'!G17+'II-2.2.9'!I17+'II-2.2.9'!K17+'II-2.2.9'!M17+'II-2.2.9'!O17+'II-2.2.9'!Q17 -> 4310 | R19: ='II-2.2.9'!H17+'II-2.2.9'!J17+'II-2.2.9'!L17+'II-2.2.9'!N17+'II-2.2.9'!P17+'II-2.2.9'!R17 -> 4186 | S19: 274 | T19: 166 | U19: 108
A20: 9 años............................. | D20: 52454 | F20: 26866 | G20: 25588 | I20: 43312 | J20: =SUM('II-2.2.8'!G18+'II-2.2.8'!I18+'II-2.2.8'!K18+'II-2.2.8'!M18+'II-2.2.8'!O18+'II-2.2.8'!Q18) -> 22104 | K20: =SUM('II-2.2.8'!H18+'II-2.2.8'!J18+'II-2.2.8'!L18+'II-2.2.8'!N18+'II-2.2.8'!P18+'II-2.2.8'!R18) -> 21208 | L20: 633 | M20: 396 | N20: 237 | P20: 8231 | Q20: ='II-2.2.9'!G18+'II-2.2.9'!I18+'II-2.2.9'!K18+'II-2.2.9'!M18+'II-2.2.9'!O18+'II-2.2.9'!Q18 -> 4200 | R20: ='II-2.2.9'!H18+'II-2.2.9'!J18+'II-2.2.9'!L18+'II-2.2.9'!N18+'II-2.2.9'!P18+'II-2.2.9'!R18 -> 4031 | S20: 278 | T20: 166 | U20: 112
A21: 10 años............................. | D21: 52947 | F21: 26954 | G21: 25993 | I21: 43849 | J21: =SUM('II-2.2.8'!G19+'II-2.2.8'!I19+'II-2.2.8'!K19+'II-2.2.8'!M19+'II-2.2.8'!O19+'II-2.2.8'!Q19) -> 22252 | K21: =SUM('II-2.2.8'!H19+'II-2.2.8'!J19+'II-2.2.8'!L19+'II-2.2.8'!N19+'II-2.2.8'!P19+'II-2.2.8'!R19) -> 21597 | L21: 680 | M21: 436 | N21: 244 | P21: 8140 | Q21: ='II-2.2.9'!G19+'II-2.2.9'!I19+'II-2.2.9'!K19+'II-2.2.9'!M19+'II-2.2.9'!O19+'II-2.2.9'!Q19 -> 4086 | R21: ='II-2.2.9'!H19+'II-2.2.9'!J19+'II-2.2.9'!L19+'II-2.2.9'!N19+'II-2.2.9'!P19+'II-2.2.9'!R19 -> 4054 | S21: 278 | T21: 180 | U21: 98
A22: 11 años............................ | D22: 52287 | F22: 26741 | G22: 25546 | I22: 43513 | J22: =SUM('II-2.2.8'!G20+'II-2.2.8'!I20+'II-2.2.8'!K20+'II-2.2.8'!M20+'II-2.2.8'!O20+'II-2.2.8'!Q20) -> 22197 | K22: =SUM('II-2.2.8'!H20+'II-2.2.8'!J20+'II-2.2.8'!L20+'II-2.2.8'!N20+'II-2.2.8'!P20+'II-2.2.8'!R20) -> 21316 | L22: 687 | M22: 424 | N22: 263 | P22: 7842 | Q22: ='II-2.2.9'!G20+'II-2.2.9'!I20+'II-2.2.9'!K20+'II-2.2.9'!M20+'II-2.2.9'!O20+'II-2.2.9'!Q20 -> 3965 | R22: ='II-2.2.9'!H20+'II-2.2.9'!J20+'II-2.2.9'!L20+'II-2.2.9'!N20+'II-2.2.9'!P20+'II-2.2.9'!R20 -> 3877 | S22: 245 | T22: 155 | U22: 90
A23: 12 años.......................... | D23: 22512 | F23: 12658 | G23: 9854 | I23: 19685 | J23: =SUM('II-2.2.8'!G21+'II-2.2.8'!I21+'II-2.2.8'!K21+'II-2.2.8'!M21+'II-2.2.8'!O21+'II-2.2.8'!Q21) -> 11026 | K23: =SUM('II-2.2.8'!H21+'II-2.2.8'!J21+'II-2.2.8'!L21+'II-2.2.8'!N21+'II-2.2.8'!P21+'II-2.2.8'!R21) -> 8659 | L23: 789 | M23: 495 | N23: 294 | P23: 1804 | Q23: ='II-2.2.9'!G21+'II-2.2.9'!I21+'II-2.2.9'!K21+'II-2.2.9'!M21+'II-2.2.9'!O21+'II-2.2.9'!Q21 -> 996 | R23: ='II-2.2.9'!H21+'II-2.2.9'!J21+'II-2.2.9'!L21+'II-2.2.9'!N21+'II-2.2.9'!P21+'II-2.2.9'!R21 -> 808 | S23: 234 | T23: 141 | U23: 93
A24: 13 años.......................... | D24: 8181 | F24: 4956 | G24: 3225 | I24: 7101 | J24: =SUM('II-2.2.8'!G22+'II-2.2.8'!I22+'II-2.2.8'!K22+'II-2.2.8'!M22+'II-2.2.8'!O22+'II-2.2.8'!Q22) -> 4279 | K24: =SUM('II-2.2.8'!H22+'II-2.2.8'!J22+'II-2.2.8'!L22+'II-2.2.8'!N22+'II-2.2.8'!P22+'II-2.2.8'!R22) -> 2822 | L24: 714 | M24: 451 | N24: 263 | P24: 169 | Q24: ='II-2.2.9'!G22+'II-2.2.9'!I22+'II-2.2.9'!K22+'II-2.2.9'!M22+'II-2.2.9'!O22+'II-2.2.9'!Q22 -> 99 | R24: ='II-2.2.9'!H22+'II-2.2.9'!J22+'II-2.2.9'!L22+'II-2.2.9'!N22+'II-2.2.9'!P22+'II-2.2.9'!R22 -> 70 | S24: 197 | T24: 127 | U24: 70
A25: 14 años y más..................... | D25: 4742 | F25: 2881 | G25: 1861 | I25: 1759 | J25: =SUM('II-2.2.8'!G23+'II-2.2.8'!I23+'II-2.2.8'!K23+'II-2.2.8'!M23+'II-2.2.8'!O23+'II-2.2.8'!Q23) -> 1121 | K25: =SUM('II-2.2.8'!H23+'II-2.2.8'!J23+'II-2.2.8'!L23+'II-2.2.8'!N23+'II-2.2.8'!P23+'II-2.2.8'!R23) -> 638 | L25: 852 | M25: 538 | N25: 314 | P25: 44 | Q25: ='II-2.2.9'!G23+'II-2.2.9'!I23+'II-2.2.9'!K23+'II-2.2.9'!M23+'II-2.2.9'!O23+'II-2.2.9'!Q23 -> 31 | R25: ='II-2.2.9'!H23+'II-2.2.9'!J23+'II-2.2.9'!L23+'II-2.2.9'!N23+'II-2.2.9'!P23+'II-2.2.9'!R23 -> 13 | S25: 2087 | T25: 1191 | U25: 896
A27: Fuente: Procesamiento propio en base a datos proporcionados por el D.E.E. — C.E.I.P.
A28: Nota: Educación privada especial no incluye los 70 alumnos inscriptos en clases especiales en establecimientos comunes.
A29: Educación Común Pública no incluye JICI. (776 alumnos), lo que explica la diferencia con el total del cuadro II-2.2.2
A30: Educación Especial Pública no incluye Clases Especiales en Escuelas comunes (203 alumnos).
A31: Educación Especial Pública no incluye Instrucción Temprana (29 alumnos); Inicial (184 alumnos); Preparatorio (432 alumnos); y Talleres (1512 alumnos).

Sheet II-2.2.7
A1: CONSEJO DE EDUCACIÓN PRIMARIA | O1: ALUMNOS MATRICULADOS
A3: Cuadro Nº II-2.2.7
A5: ALUMNOS MATRICULADOS EN EDUCACIÓN PRIMARIA POR GRADO Y FORMA DE ADMINISTRACIÓN SEGÚN EDAD. AÑO 2010.
A6: EDAD | F6: GRADO
D7: TOTAL | F7: Primero | H7: Segundo | J7: Tercero | L7: Cuarto | N7: Quinto | P7: Sexto
F9: FORMA DE ADMINISTRACIÓN
D10: Pública | E10: Privada | F10: Pública | G10: Privada | H10: Pública | I10: Privada | J10: Pública | K10: Privada | L10: Pública | M10: Privada | N10: Pública | O10: Privada | P10: Pública | Q10: Privada
A13: TOTAL............................... | D13: =SUM(D15:D23) -> 278669 | E13: 51103 | F13: 47163 | G13: 9169 | H13: 46299 | I13: 8770 | J13: 46216 | K13: 8532 | L13: 45645 | M13: 8503 | N13: 46435 | O13: 8211 | P13: 46911 | Q13: 7918
A15: 6 años............................. | D15: =+F15+H15+J15+L15+N15+P15 -> 35004 | E15: =+G15+I15+K15+M15+O15+Q15 -> 7473 | F15: ='II-2.2.8'!G15+'II-2.2.8'!H15 -> 35004 | G15: ='II-2.2.9'!G15+'II-2.2.9'!H15 -> 7473 | H15: ='II-2.2.8'!I15+'II-2.2.8'!J15 -> 0 | I15: ='II-2.2.9'!I15+'II-2.2.9'!J15 -> 0 | J15: ='II-2.2.8'!K15+'II-2.2.8'!L15 -> 0 | K15: ='II-2.2.9'!K15+'II-2.2.9'!L15 -> 0 | L15: ='II-2.2.8'!M15+'II-2.2.8'!N15 -> 0 | M15: ='II-2.2.9'!M15+'II-2.2.9'!N15 -> 0 | N15: ='II-2.2.8'!O15+'II-2.2.8'!P15 -> 0 | O15: ='II-2.2.9'!O15+'II-2.2.9'!P15 -> 0 | P15: ='II-2.2.8'!Q15+'II-2.2.8'!R15 -> 0 | Q15: ='II-2.2.9'!Q15+'II-2.2.9'!R15 -> 0
A16: 7 años............................ | D16: 42138 | E16: 8904 | F16: ='II-2.2.8'!G16+'II-2.2.8'!H16 -> 10859 | G16: ='II-2.2.9'!G16+'II-2.2.9'!H16 -> 1642 | H16: ='II-2.2.8'!I16+'II-2.2.8'!J16 -> 31279 | I16: ='II-2.2.9'!I16+'II-2.2.9'!J16 -> 7262 | J16: ='II-2.2.8'!K16+'II-2.2.8'!L16 -> 0 | K16: ='II-2.2.9'!K16+'II-2.2.9'!L16 -> 0 | L16: ='II-2.2.8'!M16+'II-2.2.8'!N16 -> 0 | M16: ='II-2.2.9'!M16+'II-2.2.9'!N16 -> 0 | N16: ='II-2.2.8'!O16+'II-2.2.8'!P16 -> 0 | O16: ='II-2.2.9'!O16+'II-2.2.9'!P16 -> 0 | P16: ='II-2.2.8'!Q16+'II-2.2.8'!R16 -> 0 | Q16: ='II-2.2.9'!Q16+'II-2.2.9'!R16 -> 0
A17: 8 años............................. | D17: 42308 | E17: 8496 | F17: ='II-2.2.8'!G17+'II-2.2.8'!H17 -> 1198 | G17: ='II-2.2.9'!G17+'II-2.2.9'!H17 -> 41 | H17: ='II-2.2.8'!I17+'II-2.2.8'!J17 -> 12281 | I17: ='II-2.2.9'!I17+'II-2.2.9'!J17 -> 1443 | J17: ='II-2.2.8'!K17+'II-2.2.8'!L17 -> 28829 | K17: ='II-2.2.9'!K17+'II-2.2.9'!L17 -> 7012 | L17: ='II-2.2.8'!M17+'II-2.2.8'!N17 -> 0 | M17: ='II-2.2.9'!M17+'II-2.2.9'!N17 -> 0 | N17: ='II-2.2.8'!O17+'II-2.2.8'!P17 -> 0 | O17: ='II-2.2.9'!O17+'II-2.2.9'!P17 -> 0 | P17: ='II-2.2.8'!Q17+'II-2.2.8'!R17 -> 0 | Q17: ='II-2.2.9'!Q17+'II-2.2.9'!R17 -> 0
A18: 9 años............................. | D18: 43312 | E18: 8231 | F18: ='II-2.2.8'!G18+'II-2.2.8'!H18 -> 91 | G18: ='II-2.2.9'!G18+'II-2.2.9'!H18 -> 9 | H18: ='II-2.2.8'!I18+'II-2.2.8'!J18 -> 2402 | I18: ='II-2.2.9'!I18+'II-2.2.9'!J18 -> 54 | J18: ='II-2.2.8'!K18+'II-2.2.8'!L18 -> 13040 | K18: ='II-2.2.9'!K18+'II-2.2.9'!L18 -> 1431 | L18: ='II-2.2.8'!M18+'II-2.2.8'!N18 -> 27779 | M18: ='II-2.2.9'!M18+'II-2.2.9'!N18 -> 6737 | N18: ='II-2.2.8'!O18+'II-2.2.8'!P18 -> 0 | O18: ='II-2.2.9'!O18+'II-2.2.9'!P18 -> 0 | P18: ='II-2.2.8'!Q18+'II-2.2.8'!R18 -> 0 | Q18: ='II-2.2.9'!Q18+'II-2.2.9'!R18 -> 0
A19: 10 años............................. | D19: 43849 | E19: 8140 | F19: ='II-2.2.8'!G19+'II-2.2.8'!H19 -> 8 | G19: ='II-2.2.9'!G19+'II-2.2.9'!H19 -> 1 | H19: ='II-2.2.8'!I19+'II-2.2.8'!J19 -> 306 | I19: ='II-2.2.9'!I19+'II-2.2.9'!J19 -> 6 | J19: ='II-2.2.8'!K19+'II-2.2.8'!L19 -> 3640 | K19: ='II-2.2.9'!K19+'II-2.2.9'!L19 -> 76 | L19: ='II-2.2.8'!M19+'II-2.2.8'!N19 -> 12891 | M19: ='II-2.2.9'!M19+'II-2.2.9'!N19 -> 1635 | N19: ='II-2.2.8'!O19+'II-2.2.8'!P19 -> 27004 | O19: ='II-2.2.9'!O19+'II-2.2.9'!P19 -> 6422 | P19: ='II-2.2.8'!Q19+'II-2.2.8'!R19 -> 0 | Q19: ='II-2.2.9'!Q19+'II-2.2.9'!R19 -> 0
A20: 11 años............................ | D20: 43513 | E20: 7842 | F20: ='II-2.2.8'!G20+'II-2.2.8'!H20 -> 2 | G20: ='II-2.2.9'!G20+'II-2.2.9'!H20 -> 1 | H20: ='II-2.2.8'!I20+'II-2.2.8'!J20 -> 23 | I20: ='II-2.2.9'!I20+'II-2.2.9'!J20 -> 5 | J20: ='II-2.2.8'!K20+'II-2.2.8'!L20 -> 595 | K20: ='II-2.2.9'!K20+'II-2.2.9'!L20 -> 9 | L20: ='II-2.2.8'!M20+'II-2.2.8'!N20 -> 3930 | M20: ='II-2.2.9'!M20+'II-2.2.9'!N20 -> 112 | N20: ='II-2.2.8'!O20+'II-2.2.8'!P20 -> 12965 | O20: ='II-2.2.9'!O20+'II-2.2.9'!P20 -> 1594 | P20: ='II-2.2.8'!Q20+'II-2.2.8'!R20 -> 25998 | Q20: ='II-2.2.9'!Q20+'II-2.2.9'!R20 -> 6121
A21: 12 años.......................... | D21: 19685 | E21: 1804 | F21: ='II-2.2.8'!G21+'II-2.2.8'!H21 -> 1 | G21: ='II-2.2.9'!G21+'II-2.2.9'!H21 -> 1 | H21: ='II-2.2.8'!I21+'II-2.2.8'!J21 -> 7 | I21: ='II-2.2.9'!I21+'II-2.2.9'!J21 -> 0 | J21: ='II-2.2.8'!K21+'II-2.2.8'!L21 -> 93 | K21: ='II-2.2.9'!K21+'II-2.2.9'!L21 -> 2 | L21: ='II-2.2.8'!M21+'II-2.2.8'!N21 -> 891 | M21: ='II-2.2.9'!M21+'II-2.2.9'!N21 -> 14 | N21: ='II-2.2.8'!O21+'II-2.2.8'!P21 -> 4918 | O21: ='II-2.2.9'!O21+'II-2.2.9'!P21 -> 169 | P21: ='II-2.2.8'!Q21+'II-2.2.8'!R21 -> 13775 | Q21: ='II-2.2.9'!Q21+'II-2.2.9'!R21 -> 1618
A22: 13 años.......................... | D22: 7101 | E22: 169 | F22: ='II-2.2.8'!G22+'II-2.2.8'!H22 -> 0 | G22: ='II-2.2.9'!G22+'II-2.2.9'!H22 -> 1 | H22: ='II-2.2.8'!I22+'II-2.2.8'!J22 -> 1 | I22: ='II-2.2.9'!I22+'II-2.2.9'!J22 -> 0 | J22: ='II-2.2.8'!K22+'II-2.2.8'!L22 -> 15 | K22: ='II-2.2.9'!K22+'II-2.2.9'!L22 -> 0 | L22: ='II-2.2.8'!M22+'II-2.2.8'!N22 -> 134 | M22: ='II-2.2.9'!M22+'II-2.2.9'!N22 -> 2 | N22: ='II-2.2.8'!O22+'II-2.2.8'!P22 -> 1373 | O22: ='II-2.2.9'!O22+'II-2.2.9'!P22 -> 18 | P22: ='II-2.2.8'!Q22+'II-2.2.8'!R22 -> 5578 | Q22: ='II-2.2.9'!Q22+'II-2.2.9'!R22 -> 148
A23: 14 años y más..................... | D23: 1759 | E23: 44 | F23: ='II-2.2.8'!G23+'II-2.2.8'!H23 -> 0 | G23: ='II-2.2.9'!G23+'II-2.2.9'!H23 -> 0 | H23: ='II-2.2.8'!I23+'II-2.2.8'!J23 -> 0 | I23: ='II-2.2.9'!I23+'II-2.2.9'!J23 -> 0 | J23: ='II-2.2.8'!K23+'II-2.2.8'!L23 -> 4 | K23: ='II-2.2.9'!K23+'II-2.2.9'!L23 -> 2 | L23: ='II-2.2.8'!M23+'II-2.2.8'!N23 -> 20 | M23: ='II-2.2.9'!M23+'II-2.2.9'!N23 -> 3 | N23: ='II-2.2.8'!O23+'II-2.2.8'!P23 -> 175 | O23: ='II-2.2.9'!O23+'II-2.2.9'!P23 -> 8 | P23: ='II-2.2.8'!Q23+'II-2.2.8'!R23 -> 1560 | Q23: ='II-2.2.9'!Q23+'II-2.2.9'!R23 -> 31
A25: Fuente: Procesamiento propio en base a datos proporcionados por el D.E.E. — C.E.I.P.
A26: Nota: Primaria Pública no incluye la matrícula correspondiente a JICI (776 alumnos).

Sheet II-2.2.8
A1: CONSEJO DE EDUCACIÓN PRIMARIA | P1: ALUMNOS MATRICULADOS
A3: Cuadro Nº II-2.2.8
A5: ALUMNOS MATRICULADOS EN EDUCACIÓN PRIMARIA COMÚN PÚBLICA POR GRADO Y SEXO SEGÚN EDAD. AÑO 2010.
A6: EDAD | G6: GRADO
D7: TOTAL SEXO | G7: Primero | I7: Segundo | K7: Tercero | M7: Cuarto | O7: Quinto | Q7: Sexto
G9: SEXO
D10: TOTAL | E10: M | F10: F | G10: M | H10: F | I10: M | J10: F | K10: M | L10: F | M10: M | N10: F | O10: M | P10: F | Q10: M | R10: F
A13: TOTAL............................... | D13: =SUM(D15:D23) -> 278669 | E13: 144001 | F13: 134668 | G13: 24717 | H13: 22446 | I13: 23956 | J13: 22343 | K13: 24076 | L13: 22140 | M13: 23486 | N13: 22159 | O13: 23717 | P13: 22718 | Q13: 24049 | R13: 22862
A15: 6 años............................. | D15: =+E15+F15 -> 35004 | E15: =+G15+I15+K15+M15+O15+Q15 -> 17868 | F15: =+H15+J15+L15+N15+P15+R15 -> 17136 | G15: 17868 | H15: 17136 | I15: 0 | J15: 0 | K15: 0 | L15: 0 | M15: 0 | N15: 0 | O15: 0 | P15: 0 | Q15: 0 | R15: 0
A16: 7 años............................ | D16: 42138 | E16: =+G16+I16+K16+M16+O16+Q16 -> 21440 | F16: =+H16+J16+L16+N16+P16+R16 -> 20698 | G16: 6038 | H16: 4821 | I16: 15402 | J16: 15877 | K16: 0 | L16: 0 | M16: 0 | N16: 0 | O16: 0 | P16: 0 | Q16: 0 | R16: 0
A17: 8 años............................. | D17: 42308 | E17: 21714 | F17: 20594 | G17: 737 | H17: 461 | I17: 6843 | J17: 5438 | K17: 14134 | L17: 14695 | M17: 0 | N17: 0 | O17: 0 | P17: 0 | Q17: 0 | R17: 0
A18: 9 años............................. | D18: 43312 | E18: 22104 | F18: 21208 | G18: 63 | H18: 28 | I18: 1485 | J18: 917 | K18: 7232 | L18: 5808 | M18: 13324 | N18: 14455 | O18: 0 | P18: 0 | Q18: 0 | R18: 0
A19: 10 años............................. | D19: 43849 | E19: 22252 | F19: 21597 | G19: 8 | H19: 0 | I19: 204 | J19: 102 | K19: 2235 | L19: 1405 | M19: 7036 | N19: 5855 | O19: 12769 | P19: 14235 | Q19: 0 | R19: 0
A20: 11 años............................ | D20: 43513 | E20: 22197 | F20: 21316 | G20: 2 | H20: 0 | I20: 16 | J20: 7 | K20: 394 | L20: 201 | M20: 2443 | N20: 1487 | O20: 6967 | P20: 5998 | Q20: 12375 | R20: 13623
A21: 12 años.......................... | D21: 19685 | E21: 11026 | F21: 8659 | G21: 1 | H21: 0 | I21: 5 | J21: 2 | K21: 63 | L21: 30 | M21: 585 | N21: 306 | O21: 3013 | P21: 1905 | Q21: 7359 | R21: 6416
A22: 13 años.......................... | D22: 7101 | E22: 4279 | F22: 2822 | G22: 0 | H22: 0 | I22: 1 | J22: 0 | K22: 14 | L22: 1 | M22: 81 | N22: 53 | O22: 851 | P22: 522 | Q22: 3332 | R22: 2246
A23: 14 años y más..................... | D23: 1759 | E23: 1121 | F23: 638 | G23: 0 | H23: 0 | I23: 0 | J23: 0 | K23: 4 | L23: 0 | M23: 17 | N23: 3 | O23: 117 | P23: 58 | Q23: 983 | R23: 577
A25: Fuente: Procesamiento propio en base a datos proporcionados por el D.E.E. — C.E.I.P.
A26: Nota: Primaria Pública no incluye la matrícula correspondiente a JICI (776 alumnos).

Sheet II-2.2.9
A1: CONSEJO DE EDUCACIÓN PRIMARIA | P1: ALUMNOS MATRICULADOS
A3: Cuadro Nº II-2.2.9
A5: ALUMNOS MATRICULADOS EN EDUCACIÓN PRIMARIA COMÚN PRIVADA POR GRADO Y SEXO SEGÚN EDAD. AÑO 2010.
A6: EDAD | G6: GRADO
D7: TOTAL SEXO | G7: Primero | I7: Segundo | K7: Tercero | M7: Cuarto | O7: Quinto | Q7: Sexto
G9: SEXO
D10: TOTAL | E10: M | F10: F | G10: M | H10: F | I10: M | J10: F | K10: M | L10: F | M10: M | N10: F | O10: M | P10: F | Q10: M | R10: F
A13: TOTAL............................... | D13: =SUM(D15:D23) -> 51103 | E13: 25913 | F13: 25190 | G13: 4683 | H13: 4486 | I13: 4394 | J13: 4376 | K13: 4339 | L13: 4193 | M13: 4325 | N13: 4178 | O13: 4135 | P13: 4076 | Q13: 4037 | R13: 3881
A15: 6 años............................. | D15: =+E15+F15 -> 7473 | E15: =+G15+I15+K15+M15+O15+Q15 -> 3764 | F15: =+H15+J15+L15+N15+P15+R15 -> 3709 | G15: 3764 | H15: 3709 | I15: 0 | J15: 0 | K15: 0 | L15: 0 | M15: 0 | N15: 0 | O15: 0 | P15: 0 | Q15: 0 | R15: 0
A16: 7 años............................ | D16: 8904 | E16: 4462 | F16: 4442 | G16: 891 | H16: 751 | I16: 3571 | J16: 3691 | K16: 0 | L16: 0 | M16: 0 | N16: 0 | O16: 0 | P16: 0 | Q16: 0 | R16: 0
A17: 8 años............................. | D17: 8496 | E17: 4310 | F17: 4186 | G17: 21 | H17: 20 | I17: 786 | J17: 657 | K17: 3503 | L17: 3509 | M17: 0 | N17: 0 | O17: 0 | P17: 0 | Q17: 0 | R17: 0
A18: 9 años............................. | D18: 8231 | E18: 4200 | F18: 4031 | G18: 4 | H18: 5 | I18: 32 | J18: 22 | K18: 784 | L18: 647 | M18: 3380 | N18: 3357 | O18: 0 | P18: 0 | Q18: 0 | R18: 0
A19: 10 años............................. | D19: 8140 | E19: 4086 | F19: 4054 | G19: 1 | H19: 0 | I19: 3 | J19: 3 | K19: 47 | L19: 29 | M19: 865 | N19: 770 | O19: 3170 | P19: 3252 | Q19: 0 | R19: 0
A20: 11 años............................ | D20: 7842 | E20: 3965 | F20: 3877 | G20: 1 | H20: 0 | I20: 2 | J20: 3 | K20: 4 | L20: 5 | M20: 68 | N20: 44 | O20: 850 | P20: 744 | Q20: 3040 | R20: 3081
A21: 12 años.......................... | D21: 1804 | E21: 996 | F21: 808 | G21: 1 | H21: 0 | I21: 0 | J21: 0 | K21: 1 | L21: 1 | M21: 10 | N21: 4 | O21: 101 | P21: 68 | Q21: 883 | R21: 735
A22: 13 años.......................... | D22: 169 | E22: 99 | F22: 70 | G22: 0 | H22: 1 | I22: 0 | J22: 0 | K22: 0 | L22: 0 | M22: 1 | N22: 1 | O22: 8 | P22: 10 | Q22: 90 | R22: 58
A23: 14 años y más..................... | D23: 44 | E23: 31 | F23: 13 | G23: 0 | H23: 0 | I23: 0 | J23: 0 | K23: 0 | L23: 2 | M23: 1 | N23: 2 | O23: 6 | P23: 2 | Q23: 24 | R23: 7
A25: Fuente: Procesamiento propio en base a datos proporcionados por el D.E.E. — C.E.I.P.

Sheet II-2.2.10
A1: CONSEJO DE EDUCACIÓN PRIMARIA | M1: ALUMNOS MATRICULADOS
A3: Cuadro Nº II-2.2.10
A5: ALUMNOS MATRICULADOS EN EDUCACIÓN PRIMARIA COMÚN POR GRADO Y FORMA DE ADMINISTRACIÓN SEGÚN DEPARTAMENTO. AÑO 2010.
A6: DEPARTAMENTO | B6: GRADO
B7: TOTAL | D7: Primero | F7: Segundo | H7: Tercero | J7: Cuarto | L7: Quinto | N7: Sexto
D8: FORMA DE ADMINISTRACIÓN
B9: Pública | C9: Privada | D9: Pública | E9: Privada | F9: Pública | G9: Privada | H9: Pública | I9: Privada | J9: Pública | K9: Privada | L9: Pública | M9: Privada | N9: Pública | O9: Privada
A12: TOTAL............................... | B12: =+B14+B15 -> 278669 | C12: 51103 | D12: 47163 | E12: 9169 | F12: 46299 | G12: 8770 | H12: 46216 | I12: 8532 | J12: 45645 | K12: 8503 | L12: 46435 | M12: 8211 | N12: 46911 | O12: 7918
A14: MONTEVIDEO........................ | B14: =+D14+F14+H14+J14+L14+N14 -> 85218 | C14: =+E14+G14+I14+K14+M14+O14 -> 31060 | D14: 14989 | E14: 5650 | F14: 14499 | G14: 5390 | H14: 14267 | I14: 5188 | J14: 13611 | K14: 5089 | L14: 13901 | M14: 4964 | N14: 13951 | O14: 4779
A15: RESTO DEL PAÍS......................... | B15: =SUM(B17:B34) -> 193451 | C15: 20043 | D15: 32174 | E15: 3519 | F15: 31800 | G15: 3380 | H15: 31949 | I15: 3344 | J15: 32034 | K15: 3414 | L15: 32534 | M15: 3247 | N15: 32960 | O15: 3139
A17: Artigas........................ | B17: =+D17+F17+H17+J17+L17+N17 -> 9208 | C17: =+E17+G17+I17+K17+M17+O17 -> 87 | D17: 1484 | E17: 18 | F17: 1457 | G17: 12 | H17: 1582 | I17: 12 | J17: 1514 | K17: 20 | L17: 1560 | M17: 11 | N17: 1611 | O17: 14
A18: Canelones................. | B18: 45753 | C18: 7163 | D18: 7717 | E18: 1344 | F18: 7668 | G18: 1212 | H18: 7483 | I18: 1194 | J18: 7696 | K18: 1260 | L18: 7642 | M18: 1096 | N18: 7547 | O18: 1057
A19: Cerro Largo.................... | B19: 9373 | C19: 586 | D19: 1630 | E19: 105 | F19: 1510 | G19: 85 | H19: 1562 | I19: 107 | J19: 1513 | K19: 97 | L19: 1617 | M19: 96 | N19: 1541 | O19: 96
A20: Colonia....................... | B20: 10629 | C20: 727 | D20: 1867 | E20: 125 | F20: 1731 | G20: 128 | H20: 1737 | I20: 131 | J20: 1750 | K20: 106 | L20: 1711 | M20: 124 | N20: 1833 | O20: 113
A21: Durazno....................... | B21: 5946 | C21: 568 | D21: 929 | E21: 108 | F21: 1025 | G21: 100 | H21: 979 | I21: 98 | J21: 980 | K21: 103 | L21: 979 | M21: 91 | N21: 1054 | O21: 68
A22: Flores........................ | B22: 2262 | C22: 363 | D22: 412 | E22: 60 | F22: 386 | G22: 68 | H22: 367 | I22: 56 | J22: 351 | K22: 63 | L22: 374 | M22: 65 | N22: 372 | O22: 51
A23: Florida....................... | B23: 6435 | C23: 297 | D23: 1126 | E23: 44 | F23: 1086 | G23: 56 | H23: 1090 | I23: 44 | J23: 1064 | K23: 64 | L23: 1018 | M23: 38 | N23: 1051 | O23: 51
A24: Lavalleja...................... | B24: 5234 | C24: 649 | D24: 869 | E24: 104 | F24: 860 | G24: 110 | H24: 844 | I24: 100 | J24: 855 | K24: 122 | L24: 896 | M24: 110 | N24: 910 | O24: 103
A25: Maldonado...................... | B25: 13697 | C25: 3869 | D25: 2263 | E25: 601 | F25: 2333 | G25: 658 | H25: 2217 | I25: 668 | J25: 2243 | K25: 642 | L25: 2335 | M25: 658 | N25: 2306 | O25: 642
A26: Paysandú....................... | B26: 12227 | C26: 1186 | D26: 2001 | E26: 225 | F26: 2000 | G26: 186 | H26: 2061 | I26: 212 | J26: 2090 | K26: 196 | L26: 2072 | M26: 179 | N26: 2003 | O26: 188
A27: Río Negro...................... | B27: 5965 | C27: 434 | D27: 997 | E27: 85 | F27: 940 | G27: 69 | H27: 986 | I27: 68 | J27: 1029 | K27: 82 | L27: 1005 | M27: 64 | N27: 1008 | O27: 66
A28: Rivera......................... | B28: 11815 | C28: 665 | D28: 1900 | E28: 104 | F28: 1867 | G28: 118 | H28: 1915 | I28: 102 | J28: 1942 | K28: 119 | L28: 2008 | M28: 111 | N28: 2183 | O28: 111
A29: Rocha......................... | B29: 6936 | C29: 405 | D29: 1170 | E29: 75 | F29: 1102 | G29: 68 | H29: 1162 | I29: 54 | J29: 1112 | K29: 61 | L29: 1188 | M29: 81 | N29: 1202 | O29: 66
A30: Salto........................... | B30: 13933 | C30: 1112 | D30: 2185 | E30: 172 | F30: 2346 | G30: 196 | H30: 2269 | I30: 178 | J30: 2330 | K30: 174 | L30: 2418 | M30: 204 | N30: 2385 | O30: 188
A31: San José....................... | B31: 10043 | C31: 610 | D31: 1736 | E31: 99 | F31: 1646 | G31: 114 | H31: 1624 | I31: 91 | J31: 1679 | K31: 100 | L31: 1639 | M31: 102 | N31: 1719 | O31: 104
A32: Soriano........................ | B32: 8724 | C32: 467 | D32: 1495 | E32: 93 | F32: 1421 | G32: 67 | H32: 1507 | I32: 84 | J32: 1400 | K32: 78 | L32: 1419 | M32: 70 | N32: 1482 | O32: 75
A33: Tacuarembó..................... | B33: 10113 | C33: 661 | D33: 1575 | E33: 129 | F33: 1609 | G33: 100 | H33: 1734 | I33: 111 | J33: 1640 | K33: 97 | L33: 1751 | M33: 109 | N33: 1804 | O33: 115
A34: Treinta y Tres................ | B34: 5158 | C34: 194 | D34: 818 | E34: 28 | F34: 813 | G34: 33 | H34: 830 | I34: 34 | J34: 846 | K34: 30 | L34: 902 | M34: 38 | N34: 949 | O34: 31
A36: Fuente: Procesamiento propio en base a datos proporcionados por el D.E.E. — C.E.I.P.
A37: Nota: Primaria Pública no incluye la matrícula correspondiente a JICI (776 alumnos).

Sheet II-2.2.11
A1: CONSEJO DE EDUCACIÓN PRIMARIA | F1: ALUMNOS MATRICULADOS
A3: Cuadro Nº II-2.2.11
A5: ALUMNOS MATRICULADOS EN EDUCACIÓN PRIMARIA COMÚN PÚBLICA POR RENDIMIENTO ESCOLAR Y ÁREA DEMOGRÁFICA SEGÚN DEPARTAMENTO. AÑO 2010.
A6: DEPARTAMENTO | B6: RENDIMIENTO ESCOLAR
B7: PROMOVIDOS | F7: NO PROMOVIDOS
B8: TOTAL | C8: ÁREA DEMOGRÁFICA | E8: TOTAL | F8: ÁREA DEMOGRÁFICA
C9: Urbana | D9: Rural | F9: Urbana | G9: Rural
A12: TOTAL............................ | B12: =SUM(C12:D12) -> 261365 | C12: =SUM(C14:C15) -> 244980 | D12: =SUM(D14:D15) -> 16385 | E12: =SUM(F12:G12) -> 17304 | F12: =SUM(F14:F15) -> 16436 | G12: =SUM(G14:G15) -> 868
A14: MONTEVIDEO................... | B14: =SUM(C14:D14) -> 77666 | C14: 77666 | D14: N/C | E14: =SUM(F14:G14) -> 7552 | F14: 7552 | G14: N/C
A15: RESTO DEL PAÍS......................... | B15: =SUM(C15:D15) -> 183699 | C15: =SUM(C17:C34) -> 167314 | D15: =SUM(D17:D34) -> 16385 | E15: =SUM(F15:G15) -> 9752 | F15: =SUM(F17:F34) -> 8884 | G15: =SUM(G17:G34) -> 868
A17: Artigas.......................... | B17: =+C17+D17 -> 8896 | C17: 8090 | D17: 806 | E17: =+F17+G17 -> 312 | F17: 284 | G17: 28
A18: Canelones..................... | B18: 42672 | C18: 40072 | D18: 2600 | E18: 3081 | F18: 2918 | G18: 163
A19: Cerro Largo.................. | B19: 8584 | C19: 7632 | D19: 952 | E19: 789 | F19: 706 | G19: 83
A20: Colonia.......................... | B20: 10321 | C20: 9215 | D20: 1106 | E20: 308 | F20: 268 | G20: 40
A21: Durazno.......................... | B21: 5786 | C21: 5287 | D21: 499 | E21: 160 | F21: 148 | G21: 12
A22: Flores.......................... | B22: 2227 | C22: 1954 | D22: 273 | E22: 35 | F22: 29 | G22: 6
A23: Florida.......................... | B23: 6152 | C23: 5414 | D23: 738 | E23: 283 | F23: 252 | G23: 31
A24: Lavalleja........................ | B24: 4946 | C24: 4478 | D24: 468 | E24: 288 | F24: 262 | G24: 26
A25: Maldonado......................... | B25: 13063 | C25: 12416 | D25: 647 | E25: 634 | F25: 594 | G25: 40
A26: Paysandú.......................... | B26: 11427 | C26: 10348 | D26: 1079 | E26: 800 | F26: 739 | G26: 61
A27: Río Negro........................ | B27: 5663 | C27: 5086 | D27: 577 | E27: 302 | F27: 260 | G27: 42
A28: Rivera........................... | B28: 11399 | C28: 10231 | D28: 1168 | E28: 416 | F28: 345 | G28: 71
A29: Rocha............................. | B29: 6748 | C29: 6430 | D29: 318 | E29: 188 | F29: 174 | G29: 14
A30: Salto........................... | B30: 13104 | C30: 11682 | D30: 1422 | E30: 829 | F30: 737 | G30: 92
A31: San José......................... | B31: 9510 | C31: 8343 | D31: 1167 | E31: 533 | F31: 475 | G31: 58
A32: Soriano........................... | B32: 8412 | C32: 7711 | D32: 701 | E32: 312 | F32: 282 | G32: 30
A33: Tacuarembó........................ | B33: 9810 | C33: 8370 | D33: 1440 | E33: 303 | F33: 252 | G33: 51
A34: Treinta y Tres................... | B34: 4979 | C34: 4555 | D34: 424 | E34: 179 | F34: 159 | G34: 20
A36: Fuente: Procesamiento propio en base a datos proporcionados por el D.E.E. — C.E.I.P.
A37: Nota: No incluye datos correspondientes a JICI

Sheet II-2.2.12
A1: CONSEJO DE EDUCACIÓN PRIMARIA | F1: ALUMNOS MATRICULADOS
A3: Cuadro Nº II-2.2.12
A5: ALUMNOS MATRICULADOS EN EDUCACIÓN PRIMARIA COMÚN PÚBLICA POR RENDIMIENTO ESCOLAR Y ÁREA DEMOGRÁFICA SEGÚN GRADO. AÑO 2010.
A6: GRADO | B6: RENDIMIENTO ESCOLAR
B7: PROMOVIDOS | E7: NO PROMOVIDOS
B8: TOTAL | C8: ÁREA DEMOGRÁFICA | E8: TOTAL | F8: ÁREA DEMOGRÁFICA
C9: Urbana | D9: Rural | F9: Urbana | G9: Rural
A12: TOTAL............................ | B12: =SUM(C12:D12) -> 261365 | C12: =SUM(C14:C19) -> 244980 | D12: =SUM(D14:D19) -> 16385 | E12: =SUM(F12:G12) -> 17304 | F12: =SUM(F14:F19) -> 16436 | G12: =SUM(G14:G19) -> 868
A14: Primero.............................. | B14: =+C14+D14 -> 40605 | C14: 38105 | D14: 2500 | E14: =+F14+G14 -> 6558 | F14: 6206 | G14: 352
A15: Segundo.............................. | B15: 42467 | C15: 39797 | D15: 2670 | E15: 3832 | F15: 3622 | G15: 210
A16: Tercero.............................. | B16: 43692 | C16: 40907 | D16: 2785 | E16: 2524 | F16: 2412 | G16: 112
A17: Cuarto.................................. | B17: 43662 | C17: 40922 | D17: 2740 | E17: 1983 | F17: 1906 | G17: 77
A18: Quinto.................................. | B18: 44854 | C18: 42107 | D18: 2747 | E18: 1581 | F18: 1509 | G18: 72
A19: Sexto................................... | B19: 46085 | C19: 43142 | D19: 2943 | E19: 826 | F19: 781 | G19: 45
A21: Fuente: Procesamiento propio en base a datos proporcionados por el D.E.E. — C.E.I.P.
A22: Nota: No se presenta información para la Educación Primaria Privada porque no existen establecimientos privados en el área demográfica rural.
A23: No incluye datos correspondientes a JICI (776 alumnos).

Sheet II-2.2.13
A1: CONSEJO DE EDUCACIÓN PRIMARIA | F1: ALUMNOS MATRICULADOS
A3: Cuadro Nº II-2.2.13
A5: ALUMNOS MATRICULADOS EN EDUCACIÓN PRIMARIA COMÚN PÚBLICA POR RENDIMIENTO ESCOLAR Y SEXO SEGÚN DEPARTAMENTO. AÑO 2010.
A6: DEPARTAMENTO | B6: RENDIMIENTO ESCOLAR
B7: PROMOVIDOS | E7: NO PROMOVIDOS
B8: TOTAL | C8: SEXO | E8: TOTAL | F8: SEXO
C9: M | D9: F | F9: M | G9: F
A12: TOTAL............................ | B12: =SUM(C12:D12) -> 261365 | C12: =SUM(C14:C15) -> 133312 | D12: =SUM(D14:D15) -> 128053 | E12: =SUM(F12:G12) -> 17304 | F12: =SUM(F14:F15) -> 10689 | G12: =SUM(G14:G15) -> 6615
A14: MONTEVIDEO................... | B14: =SUM(C14:D14) -> 77666 | C14: 39231 | D14: 38435 | E14: =SUM(F14:G14) -> 7552 | F14: 4568 | G14: 2984
A15: RESTO DEL PAÍS......................... | B15: =SUM(C15:D15) -> 183699 | C15: =SUM(C17:C34) -> 94081 | D15: =SUM(D17:D34) -> 89618 | E15: =SUM(F15:G15) -> 9752 | F15: =SUM(F17:F34) -> 6121 | G15: =SUM(G17:G34) -> 3631
A17: Artigas.......................... | B17: =SUM(C17:D17) -> 8896 | C17: 4557 | D17: 4339 | E17: =SUM(F17:G17) -> 312 | F17: 204 | G17: 108
A18: Canelones..................... | B18: 42672 | C18: 21831 | D18: 20841 | E18: 3081 | F18: 1962 | G18: 1119
A19: Cerro Largo.................. | B19: 8584 | C19: 4343 | D19: 4241 | E19: 789 | F19: 478 | G19: 311
A20: Colonia.......................... | B20: 10321 | C20: 5302 | D20: 5019 | E20: 308 | F20: 180 | G20: 128
A21: Durazno.......................... | B21: 5786 | C21: 3043 | D21: 2743 | E21: 160 | F21: 101 | G21: 59
A22: Flores.......................... | B22: 2227 | C22: 1099 | D22: 1128 | E22: 35 | F22: 21 | G22: 14
A23: Florida.......................... | B23: 6152 | C23: 3129 | D23: 3023 | E23: 283 | F23: 183 | G23: 100
A24: Lavalleja........................ | B24: 4946 | C24: 2545 | D24: 2401 | E24: 288 | F24: 166 | G24: 122
A25: Maldonado......................... | B25: 13063 | C25: 6708 | D25: 6355 | E25: 634 | F25: 379 | G25: 255
A26: Paysandú.......................... | B26: 11427 | C26: 5832 | D26: 5595 | E26: 800 | F26: 492 | G26: 308
A27: Río Negro........................ | B27: 5663 | C27: 2894 | D27: 2769 | E27: 302 | F27: 209 | G27: 93
A28: Rivera........................... | B28: 11399 | C28: 5914 | D28: 5485 | E28: 416 | F28: 276 | G28: 140
A29: Rocha............................. | B29: 6748 | C29: 3489 | D29: 3259 | E29: 188 | F29: 112 | G29: 76
A30: Salto........................... | B30: 13104 | C30: 6765 | D30: 6339 | E30: 829 | F30: 518 | G30: 311
A31: San José......................... | B31: 9510 | C31: 4864 | D31: 4646 | E31: 533 | F31: 340 | G31: 193
A32: Soriano........................... | B32: 8412 | C32: 4272 | D32: 4140 | E32: 312 | F32: 194 | G32: 118
A33: Tacuarembó........................ | B33: 9810 | C33: 4941 | D33: 4869 | E33: 303 | F33: 187 | G33: 116
A34: Treinta y Tres................... | B34: 4979 | C34: 2553 | D34: 2426 | E34: 179 | F34: 119 | G34: 60
A36: Fuente: Procesamiento propio en base a datos proporcionados por el D.E.E. — C.E.I.P.
A37: Nota: No incluye datos correspondientes a JICI (776 alumnos).

Sheet II-2.2.14
A1: CONSEJO DE EDUCACIÓN PRIMARIA | F1: ALUMNOS MATRICULADOS
A3: Cuadro Nº II-2.2.14
A5: ALUMNOS MATRICULADOS EN EDUCACIÓN PRIMARIA COMÚN PRIVADA POR RENDIMIENTO ESCOLAR Y SEXO SEGÚN DEPARTAMENTO. AÑO 2010.
A6: DEPARTAMENTO | B6: RENDIMIENTO ESCOLAR
B7: PROMOVIDOS | E7: NO PROMOVIDOS
B8: TOTAL | C8: SEXO | E8: TOTAL | F8: SEXO
C9: M | D9: F | F9: M | G9: F
A12: TOTAL............................ | B12: =+B14+B15 -> 50329 | C12: =SUM(C14:C15) -> 25412 | D12: =SUM(D14:D15) -> 24917 | E12: =+F12+G12 -> 774 | F12: =SUM(F14:F15) -> 501 | G12: =SUM(G14:G15) -> 273
A14: MONTEVIDEO................... | B14: =SUM(C14:D14) -> 30556 | C14: 15417 | D14: 15139 | E14: =SUM(F14:G14) -> 504 | F14: 316 | G14: 188
A15: RESTO DEL PAÍS......................... | B15: =SUM(C15:D15) -> 19773 | C15: =SUM(C17:C34) -> 9995 | D15: =SUM(D17:D34) -> 9778 | E15: =SUM(F15:G15) -> 270 | F15: =SUM(F17:F34) -> 185 | G15: =SUM(G17:G34) -> 85
A17: Artigas.......................... | B17: =SUM(C17:D17) -> 86 | C17: 41 | D17: 45 | E17: =SUM(F17:G17) -> 1 | F17: 1 | G17: 0
A18: Canelones..................... | B18: 7057 | C18: 3612 | D18: 3445 | E18: 106 | F18: 76 | G18: 30
A19: Cerro Largo.................. | B19: 577 | C19: 290 | D19: 287 | E19: 9 | F19: 8 | G19: 1
A20: Colonia.......................... | B20: 720 | C20: 343 | D20: 377 | E20: 7 | F20: 4 | G20: 3
A21: Durazno.......................... | B21: 562 | C21: 268 | D21: 294 | E21: 6 | F21: 2 | G21: 4
A22: Flores.......................... | B22: 351 | C22: 178 | D22: 173 | E22: 12 | F22: 6 | G22: 6
A23: Florida.......................... | B23: 297 | C23: 146 | D23: 151 | E23: 0 | F23: 0 | G23: 0
A24: Lavalleja........................ | B24: 632 | C24: 303 | D24: 329 | E24: 17 | F24: 9 | G24: 8
A25: Maldonado......................... | B25: 3802 | C25: 1918 | D25: 1884 | E25: 67 | F25: 49 | G25: 18
A26: Paysandú.......................... | B26: 1176 | C26: 582 | D26: 594 | E26: 10 | F26: 8 | G26: 2
A27: Río Negro........................ | B27: 433 | C27: 234 | D27: 199 | E27: 1 | F27: 1 | G27: 0
A28: Rivera........................... | B28: 653 | C28: 346 | D28: 307 | E28: 12 | F28: 7 | G28: 5
A29: Rocha............................. | B29: 405 | C29: 206 | D29: 199 | E29: 0 | F29: 0 | G29: 0
A30: Salto........................... | B30: 1104 | C30: 553 | D30: 551 | E30: 8 | F30: 6 | G30: 2
A31: San José......................... | B31: 603 | C31: 309 | D31: 294 | E31: 7 | F31: 4 | G31: 3
A32: Soriano........................... | B32: 465 | C32: 223 | D32: 242 | E32: 2 | F32: 2 | G32: 0
A33: Tacuarembó........................ | B33: 659 | C33: 337 | D33: 322 | E33: 2 | F33: 1 | G33: 1
A34: Treinta y Tres................... | B34: 191 | C34: 106 | D34: 85 | E34: 3 | F34: 1 | G34: 2
A36: Fuente: Procesamiento propio en base a datos proporcionados por el D.E.E. — C.E.I.P.

Sheet II-2.2.15
A1: CONSEJO DE EDUCACIÓN PRIMARIA | C1: ALUMNOS MATRICULADOS
A3: Cuadro Nº II-2.2.15
A5: ALUMNOS MATRICULADOS EGRESADOS DE EDUCACIÓN PRIMARIA COMÚN PÚBLICA POR ÁREA DEMOGRÁFICA SEGÚN DEPARTAMENTO. AÑO 2010.
A6: DEPARTAMENTO | C6: ÁREA DEMOGRÁFICA
B8: TOTAL | C8: Urbana | D8: Rural
A11: TOTAL.......................... | B11: =SUM(B13:B14) -> 46085 | C11: =SUM(C13:C14) -> 43142 | D11: =SUM(D13:D14) -> 2943
A13: MONTEVIDEO..................... | B13: =SUM(C13:D13) -> 13649 | C13: 13649 | D13: N/C
A14: RESTO DEL PAÍS.......................... | B14: =SUM(C14:D14) -> 32436 | C14: =SUM(C16:C33) -> 29493 | D14: =SUM(D16:D33) -> 2943
A16: Artigas........................ | B16: =SUM(C16:D16) -> 1597 | C16: 1438 | D16: 159
A17: Canelones................. | B17: 7387 | C17: 6923 | D17: 464
A18: Cerro Largo................... | B18: 1497 | C18: 1310 | D18: 187
A19: Colonia....................... | B19: 1819 | C19: 1623 | D19: 196
A20: Durazno........................ | B20: 1051 | C20: 968 | D20: 83
A21: Flores......................... | B21: 369 | C21: 313 | D21: 56
A22: Florida....................... | B22: 1042 | C22: 927 | D22: 115
A23: Lavalleja...................... | B23: 888 | C23: 804 | D23: 84
A24: Maldonado.................... | B24: 2276 | C24: 2153 | D24: 123
A25: Paysandú..................... | B25: 1969 | C25: 1789 | D25: 180
A26: Río Negro..................... | B26: 992 | C26: 895 | D26: 97
A27: Rivera.......................... | B27: 2148 | C27: 1938 | D27: 210
A28: Rocha........................... | B28: 1196 | C28: 1141 | D28: 55
A29: Salto........................... | B29: 2322 | C29: 2058 | D29: 264
A30: San José........................ | B30: 1692 | C30: 1477 | D30: 215
A31: Soriano........................ | B31: 1468 | C31: 1332 | D31: 136
A32: Tacuarembó..................... | B32: 1785 | C32: 1536 | D32: 249
A33: Treinta y Tres.................. | B33: 938 | C33: 868 | D33: 70
A35: Fuente: Procesamiento propio en base a datos proporcionados por el D.E.E. — C.E.I.P.
A36: Nota: No se presenta información para Montevideo Rural por que no existen establecimientos en el área demográfica rural.

Sheet II-2.2.16
A1: CONSEJO DE EDUCACIÓN PRIMARIA | G1: ALUMNOS MATRICULADOS
A3: Cuadro Nº II-2.2.16
A5: ALUMNOS MATRICULADOS Y EGRESADOS DE EDUCACIÓN PRIMARIA COMÚN POR FORMA DE ADMINISTRACIÓN SEGÚN DEPARTAMENTO. AÑO 2010.
A6: DEPARTAMENTO | B6: TOTAL | D6: PÚBLICA | G6: PRIVADA
D7: TOTAL | E7: SEXO | G7: TOTAL | H7: SEXO
E8: M | F8: F | H8: M | I8: F
A11: TOTAL............................ | B11: =+D11+G11 -> 53973 | D11: =SUM(E11:F11) -> 46085 | E11: =SUM(E13:E14) -> 23516 | F11: =SUM(F13:F14) -> 22569 | G11: =SUM(H11:I11) -> 7888 | H11: =SUM(H13:H14) -> 4015 | I11: =SUM(I13:I14) -> 3873
A13: MONTEVIDEO................... | B13: =+D13+G13 -> 18407 | D13: =+E13+F13 -> 13649 | E13: 6885 | F13: 6764 | G13: =+H13+I13 -> 4758 | H13: 2410 | I13: 2348
A14: RESTO DEL PAÍS......................... | B14: =+D14+G14 -> 35566 | D14: =+E14+F14 -> 32436 | E14: =SUM(E16:E33) -> 16631 | F14: =SUM(F16:F33) -> 15805 | G14: =+H14+I14 -> 3130 | H14: =SUM(H16:H33) -> 1605 | I14: =SUM(I16:I33) -> 1525
A16: Artigas.......................... | B16: =+D16+G16 -> 1611 | D16: =+E16+F16 -> 1597 | E16: 816 | F16: 781 | G16: =+H16+I16 -> 14 | H16: 8 | I16: 6
A17: Canelones..................... | B17: 8440 | D17: 7387 | E17: 3804 | F17: 3583 | G17: 1053 | H17: 559 | I17: 494
A18: Cerro Largo.................. | B18: 1592 | D18: 1497 | E18: 748 | F18: 749 | G18: 95 | H18: 44 | I18: 51
A19: Colonia.......................... | B19: 1931 | D19: 1819 | E19: 911 | F19: 908 | G19: 112 | H19: 55 | I19: 57
A20: Durazno.......................... | B20: 1119 | D20: 1051 | E20: 567 | F20: 484 | G20: 68 | H20: 35 | I20: 33
A21: Flores.......................... | B21: 420 | D21: 369 | E21: 190 | F21: 179 | G21: 51 | H21: 23 | I21: 28
A22: Florida.......................... | B22: 1093 | D22: 1042 | E22: 527 | F22: 515 | G22: 51 | H22: 23 | I22: 28
A23: Lavalleja........................ | B23: 990 | D23: 888 | E23: 451 | F23: 437 | G23: 102 | H23: 52 | I23: 50
A24: Maldonado......................... | B24: 2917 | D24: 2276 | E24: 1169 | F24: 1107 | G24: 641 | H24: 316 | I24: 325
A25: Paysandú.......................... | B25: 2157 | D25: 1969 | E25: 978 | F25: 991 | G25: 188 | H25: 95 | I25: 93
A26: Río Negro........................ | B26: 1058 | D26: 992 | E26: 512 | F26: 480 | G26: 66 | H26: 38 | I26: 28
A27: Rivera........................... | B27: 2258 | D27: 2148 | E27: 1128 | F27: 1020 | G27: 110 | H27: 57 | I27: 53
A28: Rocha............................. | B28: 1262 | D28: 1196 | E28: 633 | F28: 563 | G28: 66 | H28: 36 | I28: 30
A29: Salto........................... | B29: 2510 | D29: 2322 | E29: 1219 | F29: 1103 | G29: 188 | H29: 99 | I29: 89
A30: San José......................... | B30: 1796 | D30: 1692 | E30: 845 | F30: 847 | G30: 104 | H30: 50 | I30: 54
A31: Soriano........................... | B31: 1543 | D31: 1468 | E31: 766 | F31: 702 | G31: 75 | H31: 34 | I31: 41
A32: Tacuarembó........................ | B32: 1900 | D32: 1785 | E32: 888 | F32: 897 | G32: 115 | H32: 66 | I32: 49
A33: Treinta y Tres................... | B33: 969 | D33: 938 | E33: 479 | F33: 459 | G33: 31 | H33: 15 | I33: 16
A35: Fuente: Procesamiento propio en base a datos proporcionados por el D.E.E. — C.E.I.P.

Sheet II-2.2.17
A1: CONSEJO DE EDUCACIÓN PRIMARIA | F1: ALUMNOS MATRICULADOS
A3: Cuadro Nº II-2.2.17
A5: ASISTENCIA INSUFICIENTE Y ABANDONO INTERMITENTE DE 1º GRADO Y 1º A 6º GRADO EN EDUCACIÓN COMÚN PÚBLICA SEGÚN DEPARTAMENTO. AÑO 2010.
C6: Matrícula a diciembre (1º a 6º años)
D7: ASISTENCIA INSUFICIENTE | F7: ABANDONO INTERMITENTE
D8: Sólo 1° año | E8: 1º a 6º años | F8: Sólo 1° año | G8: 1º a 6º años
A10: TOTAL............................ | C10: =+C12+C13 -> 278669 | D10: =+D12+D13 -> 5099 | E10: =+E12+E13 -> 20119 | F10: =+F12+F13 -> 797 | G10: =+G12+G13 -> 3352
A12: MONTEVIDEO................... | C12: ='II-2.2.10'!B14 -> 85218 | D12: 2202 | E12: 8168 | F12: 355 | G12: 1400
A13: RESTO DEL PAÍS......................... | C13: =SUM(C15:C32) -> 193451 | D13: =SUM(D15:D32) -> 2897 | E13: =SUM(E15:E32) -> 11951 | F13: =SUM(F15:F32) -> 442 | G13: =SUM(G15:G32) -> 1952
A15: Artigas.......................... | C15: ='II-2.2.10'!B17 -> 9208 | D15: 99 | E15: 493 | F15: 13 | G15: 96
A16: Canelones..................... | C16: ='II-2.2.10'!B18 -> 45753 | D16: 851 | E16: 3363 | F16: 150 | G16: 551
A17: Cerro Largo.................. | C17: ='II-2.2.10'!B19 -> 9373 | D17: 153 | E17: 608 | F17: 13 | G17: 76
A18: Colonia.......................... | C18: ='II-2.2.10'!B20 -> 10629 | D18: 122 | E18: 409 | F18: 36 | G18: 84
A19: Durazno.......................... | C19: ='II-2.2.10'!B21 -> 5946 | D19: 102 | E19: 450 | F19: 23 | G19: 113
A20: Flores.......................... | C20: ='II-2.2.10'!B22 -> 2262 | D20: 24 | E20: 97 | F20: 2 | G20: 15
A21: Florida.......................... | C21: ='II-2.2.10'!B23 -> 6435 | D21: 106 | E21: 405 | F21: 10 | G21: 54
A22: Lavalleja........................ | C22: ='II-2.2.10'!B24 -> 5234 | D22: 84 | E22: 393 | F22: 8 | G22: 51
A23: Maldonado......................... | C23: ='II-2.2.10'!B25 -> 13697 | D23: 272 | E23: 1050 | F23: 25 | G23: 116
A24: Paysandú.......................... | C24: ='II-2.2.10'!B26 -> 12227 | D24: 179 | E24: 867 | F24: 34 | G24: 150
A25: Río Negro........................ | C25: ='II-2.2.10'!B27 -> 5965 | D25: 85 | E25: 300 | F25: 8 | G25: 45
A26: Rivera........................... | C26: ='II-2.2.10'!B28 -> 11815 | D26: 151 | E26: 666 | F26: 46 | G26: 169
A27: Rocha............................. | C27: ='II-2.2.10'!B29 -> 6936 | D27: 85 | E27: 396 | F27: 10 | G27: 72
A28: Salto........................... | C28: ='II-2.2.10'!B30 -> 13933 | D28: 203 | E28: 793 | F28: 17 | G28: 113
A29: San José......................... | C29: ='II-2.2.10'!B31 -> 10043 | D29: 136 | E29: 566 | F29: 15 | G29: 63
A30: Soriano........................... | C30: ='II-2.2.10'!B32 -> 8724 | D30: 102 | E30: 426 | F30: 3 | G30: 45
A31: Tacuarembó........................ | C31: ='II-2.2.10'!B33 -> 10113 | D31: 84 | E31: 393 | F31: 14 | G31: 76
A32: Treinta y Tres................... | C32: ='II-2.2.10'!B34 -> 5158 | D32: 59 | E32: 276 | F32: 15 | G32: 63
A34: Fuente: Procesamiento propio en base a datos proporcionados por el D.E.E. — C.E.I.P.
A35: No incluye datos correspondientes a JICI (727 alumnos).

Sheet II-2.2.18
A1: CONSEJO DE EDUCACIÓN PRIMARIA | G1: ALUMNOS MATRICULADOS
A3: Cuadro Nº II-2.2.18
A5: ALUMNOS MATRICULADOS EN EDUCACIÓN PRIMARIA ESPECIAL PÚBLICA POR TIPO DE ESTABLECIMIENTO Y SEXO SEGÚN DEPARTAMENTO. AÑO 2010.
A6: DEPARTAMENTO | E6: ESCUELAS ESPECIALES | H6: ESCUELAS COMUNES
D7: TOTAL | E7: SEXO | G7: TOTAL | H7: SEXO
E8: M | F8: F | H8: M | I8: F
A11: TOTAL............................ | D11: =SUM(E11:F11) -> 7416 | E11: =SUM(E13:E14) -> 4575 | F11: =SUM(F13:F14) -> 2841 | G11: =SUM(H11:I11) -> 203 | H11: =SUM(H13:H14) -> 131 | I11: =SUM(I13:I14) -> 72
A13: MONTEVIDEO................... | D13: =SUM(E13:F13) -> 2980 | E13: ='II-2.2.2'!I11 -> 1825 | F13: ='II-2.2.2'!J11 -> 1155 | G13: =SUM(H13:I13) -> 0 | H13: 0 | I13: 0
A14: RESTO DEL PAÍS......................... | D14: =SUM(E14:F14) -> 4436 | E14: =SUM(E16:E33) -> 2750 | F14: =SUM(F16:F33) -> 1686 | G14: =SUM(H14:I14) -> 203 | H14: =SUM(H16:H33) -> 131 | I14: =SUM(I16:I33) -> 72
A16: Artigas.......................... | D16: =SUM(E16:F16) -> 221 | E16: ='II-2.2.2'!I14 -> 130 | F16: ='II-2.2.2'!J14 -> 91 | G16: =SUM(H16:I16) -> 15 | H16: ='II-2.2.2'!EN14 -> 11 | I16: ='II-2.2.2'!EO14 -> 4
A17: Canelones..................... | D17: 773 | E17: ='II-2.2.2'!I15 -> 484 | F17: ='II-2.2.2'!J15 -> 289 | G17: 49 | H17: ='II-2.2.2'!EN15 -> 35 | I17: ='II-2.2.2'!EO15 -> 14
A18: Cerro Largo.................. | D18: 254 | E18: ='II-2.2.2'!I16 -> 158 | F18: ='II-2.2.2'!J16 -> 96 | G18: 14 | H18: ='II-2.2.2'!EN16 -> 9 | I18: ='II-2.2.2'!EO16 -> 5
A19: Colonia.......................... | D19: 257 | E19: ='II-2.2.2'!I17 -> 165 | F19: ='II-2.2.2'!J17 -> 92 | G19: 12 | H19: ='II-2.2.2'!EN17 -> 10 | I19: ='II-2.2.2'!EO17 -> 2
A20: Durazno.......................... | D20: 226 | E20: ='II-2.2.2'!I18 -> 134 | F20: ='II-2.2.2'!J18 -> 92 | G20: 26 | H20: ='II-2.2.2'!EN18 -> 16 | I20: ='II-2.2.2'!EO18 -> 10
A21: Flores.......................... | D21: 61 | E21: ='II-2.2.2'!I19 -> 36 | F21: ='II-2.2.2'!J19 -> 25 | G21: 0 | H21: ='II-2.2.2'!EN19 -> 0 | I21: ='II-2.2.2'!EO19 -> 0
A22: Florida.......................... | D22: 164 | E22: ='II-2.2.2'!I20 -> 106 | F22: ='II-2.2.2'!J20 -> 58 | G22: 6 | H22: ='II-2.2.2'!EN20 -> 3 | I22: ='II-2.2.2'!EO20 -> 3
A23: Lavalleja........................ | D23: 149 | E23: ='II-2.2.2'!I21 -> 94 | F23: ='II-2.2.2'!J21 -> 55 | G23: 7 | H23: ='II-2.2.2'!EN21 -> 6 | I23: ='II-2.2.2'!EO21 -> 1
A24: Maldonado......................... | D24: 288 | E24: ='II-2.2.2'!I22 -> 169 | F24: ='II-2.2.2'!J22 -> 119 | G24: 0 | H24: ='II-2.2.2'!EN22 -> 0 | I24: ='II-2.2.2'!EO22 -> 0
A25: Paysandú.......................... | D25: 211 | E25: ='II-2.2.2'!I23 -> 131 | F25: ='II-2.2.2'!J23 -> 80 | G25: 20 | H25: ='II-2.2.2'!EN23 -> 14 | I25: ='II-2.2.2'!EO23 -> 6
A26: Río Negro........................ | D26: 178 | E26: ='II-2.2.2'!I24 -> 90 | F26: ='II-2.2.2'!J24 -> 88 | G26: 4 | H26: ='II-2.2.2'!EN24 -> 1 | I26: ='II-2.2.2'!EO24 -> 3
A27: Rivera........................... | D27: 258 | E27: ='II-2.2.2'!I25 -> 168 | F27: ='II-2.2.2'!J25 -> 90 | G27: 0 | H27: ='II-2.2.2'!EN25 -> 0 | I27: ='II-2.2.2'!EO25 -> 0
A28: Rocha............................. | D28: 249 | E28: ='II-2.2.2'!I26 -> 153 | F28: ='II-2.2.2'!J26 -> 96 | G28: 10 | H28: ='II-2.2.2'!EN26 -> 2 | I28: ='II-2.2.2'!EO26 -> 8
A29: Salto........................... | D29: 342 | E29: ='II-2.2.2'!I27 -> 217 | F29: ='II-2.2.2'!J27 -> 125 | G29: 8 | H29: ='II-2.2.2'!EN27 -> 5 | I29: ='II-2.2.2'!EO27 -> 3
A30: San José......................... | D30: 258 | E30: ='II-2.2.2'!I28 -> 169 | F30: ='II-2.2.2'!J28 -> 89 | G30: 6 | H30: ='II-2.2.2'!EN28 -> 5 | I30: ='II-2.2.2'!EO28 -> 1
A31: Soriano........................... | D31: 226 | E31: ='II-2.2.2'!I29 -> 142 | F31: ='II-2.2.2'!J29 -> 84 | G31: 4 | H31: ='II-2.2.2'!EN29 -> 3 | I31: ='II-2.2.2'!EO29 -> 1
A32: Tacuarembó........................ | D32: 195 | E32: ='II-2.2.2'!I30 -> 123 | F32: ='II-2.2.2'!J30 -> 72 | G32: 17 | H32: ='II-2.2.2'!EN30 -> 8 | I32: ='II-2.2.2'!EO30 -> 9
A33: Treinta y Tres................... | D33: 126 | E33: ='II-2.2.2'!I31 -> 81 | F33: ='II-2.2.2'!J31 -> 45 | G33: 5 | H33: ='II-2.2.2'!EN31 -> 3 | I33: ='II-2.2.2'!EO31 -> 2
A35: Fuente: Procesamiento propio en base a datos proporcionados por el D.E.E. — C.E.I.P.
A36: Nota: La categoría "Escuelas Comunes" presenta la matrícula de niños con discapacidades que concurren a clases especiales específicas a sus necesidades, en establecimientos comunes.

Sheet II-2.3.1
A1: CONSEJO DE EDUCACIÓN PRIMARIA | I1: PERSONAL DOCENTE
A3: Cuadro Nº II-2.3.1
A5: PERSONAL DOCENTE DE EDUCACIÓN PRIMARIA PÚBLICA POR TIPO DE DESEMPEÑO DOCENTE SEGÚN DEPARTAMENTO. AÑO 2010.
A6: DEPARTAMENTO | E6: TIPO DE DESEMPEÑO DOCENTE
D7: TOTAL | E7: Inspección | F7: Educación Común | G7: Educación en Colonias | H7: Educación Especial | I7: Servicios Docentes Especiales | J7: Profesores Especiales | K7: Coordinación Apoyo
A10: TOTAL............................. | D10: =SUM(D12:D13) -> 18577 | E10: 261 | F10: 14748 | G10: 38 | H10: 961 | I10: 147 | J10: 2330 | K10: 92
A12: MONTEVIDEO................... | D12: =SUM(E12:K12) -> 5569 | E12: 92 | F12: 4130 | G12: 14 | H12: 409 | I12: 92 | J12: 819 | K12: 13
A13: RESTO DEL PAÍS......................... | D13: =SUM(D15:D32) -> 13008 | E13: 169 | F13: 10618 | G13: 24 | H13: 552 | I13: 55 | J13: 1511 | K13: 79
A15: Artigas.......................... | D15: =SUM(E15:K15) -> 626 | E15: 7 | F15: 503 | G15: 0 | H15: 23 | I15: 0 | J15: 89 | K15: 4
A16: Canelones..................... | D16: 2653 | E16: 32 | F16: 2234 | G16: 0 | H16: 108 | I16: 14 | J16: 253 | K16: 12
A17: Cerro Largo.................. | D17: 641 | E17: 9 | F17: 528 | G17: 0 | H17: 31 | I17: 4 | J17: 65 | K17: 4
A18: Colonia.......................... | D18: 763 | E18: 9 | F18: 612 | G18: 0 | H18: 36 | I18: 3 | J18: 99 | K18: 4
A19: Durazno.......................... | D19: 449 | E19: 7 | F19: 367 | G19: 0 | H19: 22 | I19: 0 | J19: 49 | K19: 4
A20: Flores.......................... | D20: 194 | E20: 3 | F20: 152 | G20: 0 | H20: 9 | I20: 0 | J20: 27 | K20: 3
A21: Florida.......................... | D21: 502 | E21: 7 | F21: 396 | G21: 0 | H21: 23 | I21: 5 | J21: 67 | K21: 4
A22: Lavalleja........................ | D22: 419 | E22: 6 | F22: 335 | G22: 0 | H22: 20 | I22: 4 | J22: 50 | K22: 4
A23: Maldonado......................... | D23: 804 | E23: 11 | F23: 627 | G23: 15 | H23: 37 | I23: 7 | J23: 103 | K23: 4
A24: Paysandú.......................... | D24: 780 | E24: 10 | F24: 640 | G24: 0 | H24: 37 | I24: 5 | J24: 84 | K24: 4
A25: Río Negro........................ | D25: 426 | E25: 5 | F25: 345 | G25: 0 | H25: 21 | I25: 0 | J25: 51 | K25: 4
A26: Rivera........................... | D26: 846 | E26: 11 | F26: 688 | G26: 0 | H26: 31 | I26: 1 | J26: 111 | K26: 4
A27: Rocha............................. | D27: 511 | E27: 7 | F27: 398 | G27: 0 | H27: 27 | I27: 3 | J27: 72 | K27: 4
A28: Salto........................... | D28: 927 | E28: 11 | F28: 743 | G28: 9 | H28: 32 | I28: 2 | J28: 125 | K28: 5
A29: San José......................... | D29: 677 | E29: 9 | F29: 576 | G29: 0 | H29: 29 | I29: 0 | J29: 59 | K29: 4
A30: Soriano........................... | D30: 630 | E30: 9 | F30: 511 | G30: 0 | H30: 29 | I30: 2 | J30: 75 | K30: 4
A31: Tacuarembó........................ | D31: 768 | E31: 10 | F31: 643 | G31: 0 | H31: 22 | I31: 5 | J31: 85 | K31: 3
A32: Treinta y Tres................... | D32: 392 | E32: 6 | F32: 320 | G32: 0 | H32: 15 | I32: 0 | J32: 47 | K32: 4
A34: Fuente: D.E.E. — C.E.P. Listado de cargos de la División Hacienda a Julio 2010.
A35: Nota: Personal docente refiere a cargos de dos tipos: vacantes y ocupados.

Sheet II-2.3.2
A1: CONSEJO DE EDUCACIÓN PRIMARIA | K1: PERSONAL DOCENTE
A3: Cuadro Nº II-2.3.2
A5: PERSONAL DOCENTE DE EDUCACIÓN PRIMARIA PRIVADA POR TIPO DE ESTABLECIMIENTO Y TIPO DE DESEMPEÑO DOCENTE SEGÚN DEPARTAMENTO. AÑO 2010.
A6: DEPARTAMENTO | D6: TOTAL | E6: MAESTROS | F6: PROFESORES | G6: ESTABLECIMIENTOS
G7: HABILITADOS | J7: AUTORIZADOS
G8: Total | H8: Maestros | I8: Profesores | J8: Total | K8: Maestros | L8: Profesores
A11: TOTAL.......................... | D11: =+E11+F11 -> 6708 | E11: =+H11+K11 -> 2613 | F11: =+I11+L11 -> 4095 | G11: =+G13+G14 -> 6303 | H11: =H13+H14 -> 2476 | I11: =I13+I14 -> 3827 | J11: =+J13+J14 -> 405 | K11: =K13+K14 -> 137 | L11: =L13+L14 -> 268
A13: MONTEVIDEO..................... | D13: =+E13+F13 -> 4096 | E13: =+H13+K13 -> 1525 | F13: =+I13+L13 -> 2571 | G13: =+H13+I13 -> 3764 | H13: 1426 | I13: 2338 | J13: =+K13+L13 -> 332 | K13: 99 | L13: 233
A14: RESTO DEL PAÍS..................... | D14: =+E14+F14 -> 2612 | E14: =+H14+K14 -> 1088 | F14: =+I14+L14 -> 1524 | G14: =+H14+I14 -> 2539 | H14: =SUM(H16:H33) -> 1050 | I14: =SUM(I16:I33) -> 1489 | J14: =+K14+L14 -> 73 | K14: =SUM(K16:K33) -> 38 | L14: =SUM(L16:L33) -> 35
A16: Artigas......................... | D16: =+E16+F16 -> 14 | E16: =+H16+K16 -> 6 | F16: =+I16+L16 -> 8 | G16: =+H16+I16 -> 14 | H16: 6 | I16: 8 | J16: =+K16+L16 -> 0 | K16: 0 | L16: 0
A17: Canelones...................... | D17: 897 | E17: 396 | F17: 501 | G17: =+H17+I17 -> 841 | H17: 372 | I17: 469 | J17: =+K17+L17 -> 56 | K17: 24 | L17: 32
A18: Cerro Largo..................... | D18: 81 | E18: 34 | F18: 47 | G18: 73 | H18: 28 | I18: 45 | J18: 8 | K18: 6 | L18: 2
A19: Colonia........................... | D19: 93 | E19: 50 | F19: 43 | G19: 93 | H19: 50 | I19: 43 | J19: 0 | K19: 0 | L19: 0
A20: Durazno....................... | D20: 52 | E20: 29 | F20: 23 | G20: 52 | H20: 29 | I20: 23 | J20: 0 | K20: 0 | L20: 0
A21: Flores......................... | D21: 52 | E21: 19 | F21: 33 | G21: 52 | H21: 19 | I21: 33 | J21: 0 | K21: 0 | L21: 0
A22: Florida......................... | D22: 48 | E22: 19 | F22: 29 | G22: 48 | H22: 19 | I22: 29 | J22: 0 | K22: 0 | L22: 0
A23: Lavalleja........................ | D23: 87 | E23: 39 | F23: 48 | G23: 87 | H23: 39 | I23: 48 | J23: 0 | K23: 0 | L23: 0
A24: Maldonado........................ | D24: 416 | E24: 174 | F24: 242 | G24: 413 | H24: 171 | I24: 242 | J24: 3 | K24: 3 | L24: 0
A25: Paysandú.......................... | D25: 155 | E25: 70 | F25: 85 | G25: 155 | H25: 70 | I25: 85 | J25: 0 | K25: 0 | L25: 0
A26: Río Negro........................ | D26: 94 | E26: 29 | F26: 65 | G26: 90 | H26: 25 | I26: 65 | J26: 4 | K26: 4 | L26: 0
A27: Rivera.......................... | D27: 110 | E27: 42 | F27: 68 | G27: 110 | H27: 42 | I27: 68 | J27: 0 | K27: 0 | L27: 0
A28: Rocha.......................... | D28: 62 | E28: 23 | F28: 39 | G28: 62 | H28: 23 | I28: 39 | J28: 0 | K28: 0 | L28: 0
A29: Salto............................ | D29: 155 | E29: 51 | F29: 104 | G29: 155 | H29: 51 | I29: 104 | J29: 0 | K29: 0 | L29: 0
A30: San José....................... | D30: 90 | E30: 36 | F30: 54 | G30: 88 | H30: 35 | I30: 53 | J30: =+K30+L30 -> 2 | K30: 1 | L30: 1
A31: Soriano........................ | D31: 63 | E31: 24 | F31: 39 | G31: 63 | H31: 24 | I31: 39 | J31: 0 | K31: 0 | L31: 0
A32: Tacuarembó..................... | D32: 124 | E32: 38 | F32: 86 | G32: 124 | H32: 38 | I32: 86 | J32: 0 | K32: 0 | L32: 0
A33: Treinta y Tres................ | D33: 19 | E33: 9 | F33: 10 | G33: 19 | H33: 9 | I33: 10 | J33: 0 | K33: 0 | L33: 0
A35: Fuente: D.E.E. — C.E.P. Planillas enviadas por las Inspecciones Departamentales a abril de 2010.
A36: NOTA: El personal docente incluye exclusivamente docencia directa.

Sheet MEDIA BÁSICA
A11: CONSEJO DE EDUCACIÓN SECUNDARIA Y CONSEJO DE EDUCACIÓN TÉCNICO PROFESIONAL (UTU)
A12: ESTABLECIMIENTOS
A14: Cuadro Nº II-3.1.1
A15: ='II-3.1.1'!A5:I5 -> ESTABLECIMIENTOS DE EDUCACIÓN MEDIA BÁSICA POR MODALIDAD Y FORMA DE ADMINISTRACIÓN SEGÚN DEPARTAMENTO. AÑO 2010.
A17: CONSEJO DE EDUCACIÓN SECUNDARIA Y CONSEJO DE EDUCACIÓN TÉCNICO PROFESIONAL (UTU)
A18: ALUMNOS MATRICULADOS
A20: Cuadro Nº II-3.2.1
A21: ='II-3.2.1'!A5:J5 -> ALUMNOS MATRICULADOS EN CICLO BÁSICO DE EDUCACIÓN SECUNDARIA POR GRADO SEGÚN GRANDES ÁREAS Y FORMA DE ADMINISTRACIÓN. AÑO 2010.
A23: Cuadro Nº II-3.2.2
A24: ='II-3.2.2'!A5:D5 -> ALUMNOS MATRICULADOS EN EL CETP EN EDUCACIÓN MEDIA BÁSICA POR TIPO DE CURSO SEGÚN GRANDES ÁREAS, DEPARTAMENTO Y SEXO. AÑO 2010.
A26: Cuadro Nº II-3.2.3
A27: ='II-3.2.3'!A5:M5 -> ALUMNOS MATRICULADOS EN SÉPTIMO, OCTAVO Y NOVENO GRADO DE CICLO BÁSICO RURAL POR SEXO SEGÚN DEPARTAMENTO AÑO 2010.
A29: Cuadro Nº II-3.2.4
A30: ='II-3.2.4'!A5:H5 -> ALUMNOS MATRICULADOS DE CICLO BÁSICO DE EDUCACIÓN SECUNDARIA POR GRADO Y FORMA DE ADMINISTRACIÓN SEGÚN DEPARTAMENTO. AÑO 2010.
A32: Cuadro Nº II-3.2.5
A33: ='II-3.2.5 '!A5:D5 -> ALUMNOS MATRICULADOS EN EDUCACIÓN TÉCNICA MEDIA BÁSICA POR TIPO DE CURSO SEGÚN EDAD. AÑO 2010.
A35: Cuadro Nº II-3.2.6
A36: ='II-3.2.6 '!A5:D5 -> ALUMNOS MATRICULADOS EN EL CETP EN EDUCACIÓN MEDIA BÁSICA POR TIPO DE CURSO SEGÚN SECTORES DE ESTUDIO. AÑO 2010.
A38: CONSEJO DE EDUCACIÓN SECUNDARIA Y CONSEJO DE EDUCACIÓN TÉCNICO PROFESIONAL (UTU)
A39: PERSONAL DOCENTE Y HORAS DOCENTES
A41: Cuadro Nº II-3.3.1
A42: ='II-3.3.1'!A5:G5 -> PERSONAL DOCENTE Y HORAS DOCENTES DE CICLO BÁSICO DE EDUCACIÓN SECUNDARIA POR TITULACIÓN SEGÚN ASIGNATURAS. AÑO 2010.
A44: Cuadro Nº II-3.3.2
A45: ='II-3.3.2'!A5:D5 -> PERSONAL DOCENTE EN EDUCACIÓN MEDIA BÁSICA TECNOLÓGICA POR TIPO DE CURSO. AÑO 2010.
A47: CONSEJO DE EDUCACIÓN SECUNDARIA Y CONSEJO DE EDUCACIÓN TÉCNICO PROFESIONAL (UTU)
A48: GRUPOS
A50: Cuadro Nº II-3.4.1
A51: ='II-3.4.1'!A5:F5 -> GRUPOS DE CICLO BÁSICO DE EDUCACIÓN SECUNDARIA COMPARADOS CON EL TOTAL DE AMBOS CICLOS SEGÚN GRANDES ÁREAS Y FORMA DE ADMINISTRACIÓN. AÑO 2010.

Sheet II-3.1.1
A1: CONSEJO DE EDUCACIÓN SECUNDARIA Y CONSEJO DE EDUCACIÓN TÉCNICO PROFESIONAL (UTU) | I1: ESTABLECIMIENTOS
A3: Cuadro Nº II-3.1.1
A5: ESTABLECIMIENTOS DE EDUCACIÓN MEDIA BÁSICA POR MODALIDAD Y FORMA DE ADMINISTRACIÓN SEGÚN DEPARTAMENTO. AÑO 2010.
A6: DEPARTAMENTO | B6: MODALIDAD
B7: TOTAL | D7: CES | I7: CETP
D8: TOTAL | E8: FORMA DE ADMINISTRACIÓN
E9: PÚBLICOS (Oficiales) | F9: PRIVADOS | G9: Escuelas con Ciclo Básico Rural | I9: Centros de Ciclo Básico Tecnológico
A12: TOTAL.......................... | B12: =+B14+B15 -> 539 | D12: =+D14+D15 -> 539 | E12: =E14+E15 -> 280 | F12: =F14+F15 -> 186 | G12: =G14+G15 -> 59 | I12: =I14+I15 -> 73
A14: MONTEVIDEO.................... | B14: =+D14 -> 184 | D14: =+E14+F14+I14 -> 184 | E14: 69 | F14: 107 | G14: 1 | I14: 8
A15: RESTO DEL PAÍS...................... | B15: =SUM(B17:B34) -> 355 | D15: =SUM(D17:D34) -> 355 | E15: =SUM(E17:E34) -> 211 | F15: =SUM(F17:F34) -> 79 | G15: =SUM(G17:G34) -> 58 | I15: =SUM(I17:I34) -> 65
A17: Artigas............................ | B17: =D17 -> 14 | D17: =+E17+F17+I17 -> 14 | E17: 11 | F17: 1 | G17: 3 | I17: 2
A18: Canelones....................... | B18: =D18 -> 83 | D18: =+E18+F18+I18 -> 83 | E18: 47 | F18: 26 | G18: 0 | I18: 10
A19: Cerro Largo.................... | B19: 13 | D19: 13 | E19: 6 | F19: 2 | G19: 4 | I19: 5
A20: Colonia......................... | B20: 22 | D20: 22 | E20: 14 | F20: 1 | G20: 6 | I20: 7
A21: Durazno............................ | B21: 13 | D21: 13 | E21: 8 | F21: 2 | G21: 1 | I21: 3
A22: Flores........................... | B22: 8 | D22: 8 | E22: 3 | F22: 3 | G22: 1 | I22: 2
A23: Florida.......................... | B23: 15 | D23: 15 | E23: 12 | F23: 2 | G23: 2 | I23: 1
A24: Lavalleja......................... | B24: 11 | D24: 11 | E24: 8 | F24: 2 | G24: 2 | I24: 1
A25: Maldonado......................... | B25: 27 | D25: 27 | E25: 11 | F25: 12 | G25: 2 | I25: 4
A26: Paysandú............................ | B26: 22 | D26: 22 | E26: 14 | F26: 4 | G26: 10 | I26: 4
A27: Río Negro........................ | B27: 13 | D27: 13 | E27: 8 | F27: 2 | G27: 5 | I27: 3
A28: Rivera............................ | B28: 18 | D28: 18 | E28: 10 | F28: 6 | G28: 4 | I28: 2
A29: Rocha............................. | B29: 16 | D29: 16 | E29: 11 | F29: 2 | G29: 2 | I29: 3
A30: Salto............................. | B30: 19 | D30: =+E30+F30+I30 -> 19 | E30: 11 | F30: 5 | G30: 1 | I30: 3
A31: San José......................... | B31: 16 | D31: 16 | E31: 9 | F31: 2 | G31: 8 | I31: 5
A32: Soriano.......................... | B32: 16 | D32: 16 | E32: 9 | F32: 1 | G32: 1 | I32: 6
A33: Tacuarembó....................... | B33: 18 | D33: 18 | E33: 12 | F33: 4 | G33: 4 | I33: 2
A34: Treinta y Tres................ | B34: 11 | D34: 11 | E34: 7 | F34: 2 | G34: 2 | I34: 2
A36: Fuente: D.E. — C.E.S, CETP
A37: Notas: 1- La disminución en la cantidad de liceos se explica por la unificación de los liceos nocturnos bajo una misma administración. Lo cual no implica disminución de los establecimientos físicos. 2- Los establecimientos considerados en el Tipo de Educación “Escuelas con Ciclo Básico Rural” ya fueron considerados en los totales de establecimientos de Educación Primaria, por lo cual, si bien se presentan en la columna correspondiente, no participan en el “Total” del presente cuadro. 3- En un mismo establecimiento del CETP, coexisten ofertas educativas de diferentes niveles. Los establecimientos fueron contabilizados por nivel educativo, por lo tanto cada dependencia física será contada tantas veces como niveles educativos contenga. Por ello el presente cuadro computa los establecimientos con cursos de Educación Media Básica, independientemente que en el mismo espacio locativo se dicten ofertas de otros niveles.

Sheet II-3.2.1
A1: CONSEJO DE EDUCACIÓN SECUNDARIA | G1: ALUMNOS MATRICULADOS
A3: Cuadro Nº II-3.2.1
A5: ALUMNOS MATRICULADOS EN CICLO BÁSICO DE EDUCACIÓN SECUNDARIA POR GRADO SEGÚN GRANDES ÁREAS Y FORMA DE ADMINISTRACIÓN. AÑO 2010.
A7: GRANDES ÁREAS Y FORMA DE ADMINISTRACIÓN | F7: GRADO
D8: TOTAL
F9: PRIMERO | H9: SEGUNDO | J9: TERCERO
A13: TOTAL DEL PAÍS..................................... | D13: =+D21+D29 -> 155444 | F13: =+F21+F29 -> 57664 | H13: =+H21+H29 -> 50119 | J13: =+J21+J29 -> 47661
A15: CICLO BÁSICO PÚBLICA................. | D15: =+D23+D31 -> 130073 | F15: =+F16+F17 -> 49063 | H15: =+H16+H17 -> 41608 | J15: =+J16+J17 -> 39402
A16: Diurna.................................... | D16: =+F16+H16+J16 -> 116580 | F16: =+F24+F32 -> 45899 | H16: =+H24+H32 -> 37659 | J16: =+J24+J32 -> 33022
A17: Nocturna............................................ | D17: =+F17+H17+J17 -> 13493 | F17: =+F25+F33 -> 3164 | H17: =+H25+H33 -> 3949 | J17: =+J25+J33 -> 6380
A19: CICLO BÁSICO PRIVADA.................. | D19: =+D27+D35 -> 25371 | F19: =+F27+F35 -> 8601 | H19: =+H27+H35 -> 8511 | J19: =+J27+J35 -> 8259
A21: TOTAL MONTEVIDEO.................... | D21: =+D23+D27 -> 57787 | F21: =+F23+F27 -> 21667 | H21: =+H23+H27 -> 18510 | J21: =+J23+J27 -> 17610
A23: CICLO BÁSICO PÚBLICA................. | D23: =+D24+D25 -> 41501 | F23: =SUM(F24:F25) -> 16098 | H23: =SUM(H24:H25) -> 13122 | J23: =SUM(J24:J25) -> 12281
A24: Diurna.................................... | D24: =F24+H24+J24 -> 36645 | F24: 15033 | H24: 11707 | J24: 9905
A25: Nocturna............................................ | D25: =F25+H25+J25 -> 4856 | F25: 1065 | H25: 1415 | J25: 2376
A27: CICLO BÁSICO PRIVADA..................... | D27: =F27+H27+J27 -> 16286 | F27: 5569 | H27: 5388 | J27: 5329
A29: TOTAL RESTO DEL PAÍS...................... | D29: =+D31+D35 -> 97657 | F29: =+F31+F35 -> 35997 | H29: =+H31+H35 -> 31609 | J29: =+J31+J35 -> 30051
A31: CICLO BÁSICO PÚBLICA................. | D31: =F31+H31+J31 -> 88572 | F31: =SUM(F32:F33) -> 32965 | H31: =SUM(H32:H33) -> 28486 | J31: =SUM(J32:J33) -> 27121
A32: Diurna.................................... | D32: =F32+H32+J32 -> 79935 | F32: 30866 | H32: 25952 | J32: 23117
A33: Nocturna............................................ | D33: =F33+H33+J33 -> 8637 | F33: 2099 | H33: 2534 | J33: 4004
A35: CICLO BÁSICO PRIVADA..................... | D35: =F35+H35+J35 -> 9085 | F35: 3032 | H35: 3123 | J35: 2930
A37: Fuente: D.E. — C.E.S.
A38: Nota: La referencia "Privada", (incluye los Habilitados "Liceo Naval" y "Liceo Militar"), se corresponde con la de "Liceos Habilitados" presente en ediciones anteriores del Anuario Estadístico del MEC.

Sheet II-3.2.2
A1: CONSEJO DE EDUCACIÓN TÉCNICO PROFESIONAL (U.T.U.) | D1: ALUMNOS MATRICULADOS
A3: Cuadro Nº II-3.2.2
A5: ALUMNOS MATRICULADOS EN EL CETP EN EDUCACIÓN MEDIA BÁSICA POR TIPO DE CURSO SEGÚN GRANDES ÁREAS, DEPARTAMENTO Y SEXO. AÑO 2010.
A6: GRANDES ÁREAS, DEPARTAMENTO Y SEXO | B6: TOTAL
C7: NIVEL BASICO
C8: C.T.B Agrario | D8: Ciclo Básico Tecnológico | E8: Formación Profesional Básica Plan 2007
A10: TOTAL.................................................... | B10: =+B11+B12 -> 20241 | C10: =+C11+C12 -> 947 | D10: =+D11+D12 -> 15285 | E10: =+E11+E12 -> 4009
A11: Masculino.................................................... | B11: =+C11+D11+E11 -> 12407 | C11: =C15+C18 -> 677 | D11: =D15+D18 -> 9170 | E11: 2560
A12: Femenino.................................................... | B12: =+C12+D12+E12 -> 7834 | C12: 270 | D12: 6115 | E12: 1449
A14: MONTEVIDEO................................... | B14: =B15+B16 -> 3279 | C14: =C15+C16 -> 26 | D14: =D15+D16 -> 2387 | E14: =E15+E16 -> 866
A15: Masculino.................................................... | B15: =+C15+D15+E15 -> 2036 | C15: 20 | D15: 1499 | E15: 517
A16: Femenino.................................................... | B16: =+C16+D16+E16 -> 1243 | C16: 6 | D16: 888 | E16: 349
A17: RESTO DEL PAÍS................................... | B17: =B18+B19 -> 16962 | C17: =C18+C19 -> 921 | D17: =D18+D19 -> 12898 | E17: =E18+E19 -> 3143
A18: Masculino.................................................... | B18: =C18+D18+E18 -> 10371 | C18: =C22+C25+C28+C31+C34+C37+C40+C43+C46+C49+C52+C55+C58+C61+C64+C67+C70+C73 -> 657 | D18: 7671 | E18: 2043
A19: Femenino.................................................... | B19: =C19+D19+E19 -> 6591 | C19: 264 | D19: 5227 | E19: 1100
A21: Artigas........................ | B21: =B22+B23 -> 1027 | C21: 0 | D21: 903 | E21: 124
A22: Masculino.................................................... | B22: =+C22+D22+E22 -> 592 | C22: 0 | D22: 529 | E22: 63
A23: Femenino.................................................... | B23: =+C23+D23+E23 -> 435 | C23: 0 | D23: 374 | E23: 61
A24: Canelones................................... | B24: =B25+B26 -> 3188 | C24: 76 | D24: 2244 | E24: 868
A25: Masculino.................................................... | B25: =+C25+D25+E25 -> 1885 | C25: 51 | D25: 1317 | E25: 517
A26: Femenino.................................................... | B26: =+C26+D26+E26 -> 1303 | C26: 25 | D26: 927 | E26: 351
A27: Cerro Largo................................. | B27: =B28+B29 -> 902 | C27: 89 | D27: 731 | E27: 82
A28: Masculino.................................................... | B28: =+C28+D28+E28 -> 554 | C28: 63 | D28: 411 | E28: 80
A29: Femenino.................................................... | B29: =+C29+D29+E29 -> 348 | C29: 26 | D29: 320 | E29: 2
A30: Colonia..................................... | B30: =B31+B32 -> 1317 | C30: 114 | D30: 1143 | E30: 60
A31: Masculino.................................................... | B31: =+C31+D31+E31 -> 770 | C31: 78 | D31: 655 | E31: 37
A32: Femenino.................................................... | B32: =+C32+D32+E32 -> 547 | C32: 36 | D32: 488 | E32: 23
A33: Durazno..................................... | B33: =B34+B35 -> 696 | C33: 109 | D33: 563 | E33: 24
A34: Masculino.................................................... | B34: =+C34+D34+E34 -> 425 | C34: 71 | D34: 337 | E34: 17
A35: Femenino.................................................... | B35: =+C35+D35+E35 -> 271 | C35: 38 | D35: 226 | E35: 7
A36: Flores...................................... | B36: =B37+B38 -> 344 | C36: 0 | D36: 224 | E36: 120
A37: Masculino.................................................... | B37: =+C37+D37+E37 -> 220 | C37: 0 | D37: 148 | E37: 72
A38: Femenino.................................................... | B38: =+C38+D38+E38 -> 124 | C38: 0 | D38: 76 | E38: 48
A39: Florida..................................... | B39: =B40+B41 -> 476 | C39: 0 | D39: 284 | E39: 192
A40: Masculino.................................................... | B40: =+C40+D40+E40 -> 291 | C40: 0 | D40: 180 | E40: 111
A41: Femenino.................................................... | B41: =+C41+D41+E41 -> 185 | C41: 0 | D41: 104 | E41: 81
A42: Lavalleja................................... | B42: =B43+B44 -> 525 | C42: 0 | D42: 338 | E42: 187
A43: Masculino.................................................... | B43: =+C43+D43+E43 -> 346 | C43: 0 | D43: 221 | E43: 125
A44: Femenino.................................................... | B44: =+C44+D44+E44 -> 179 | C44: 0 | D44: 117 | E44: 62
A45: Maldonado................................... | B45: =B46+B47 -> 1243 | C45: 0 | D45: 1079 | E45: 164
A46: Masculino.................................................... | B46: =+C46+D46+E46 -> 759 | C46: 0 | D46: 660 | E46: 99
A47: Femenino.................................................... | B47: =+C47+D47+E47 -> 484 | C47: 0 | D47: 419 | E47: 65
A48: Paysandú.................................... | B48: =B49+B50 -> 1057 | C48: 214 | D48: 600 | E48: 243
A49: Masculino.................................................... | B49: =+C49+D49+E49 -> 669 | C49: 154 | D49: 372 | E49: 143
A50: Femenino.................................................... | B50: =+C50+D50+E50 -> 388 | C50: 60 | D50: 228 | E50: 100
A51: Río Negro................................... | B51: =B52+B53 -> 507 | C51: 0 | D51: 432 | E51: 75
A52: Masculino.................................................... | B52: =+C52+D52+E52 -> 329 | C52: 0 | D52: 268 | E52: 61
A53: Femenino.................................................... | B53: =+C53+D53+E53 -> 178 | C53: 0 | D53: 164 | E53: 14
A54: Rivera...................................... | B54: =B55+B56 -> 559 | C54: 65 | D54: 395 | E54: 99
A55: Masculino.................................................... | B55: =+C55+D55+E55 -> 381 | C55: 49 | D55: 239 | E55: 93
A56: Femenino.................................................... | B56: =+C56+D56+E56 -> 178 | C56: 16 | D56: 156 | E56: 6
A57: Rocha....................................... | B57: =B58+B59 -> 564 | C57: 0 | D57: 543 | E57: 21
A58: Masculino.................................................... | B58: =+C58+D58+E58 -> 324 | C58: 0 | D58: 322 | E58: 2
A59: Femenino.................................................... | B59: =+C59+D59+E59 -> 240 | C59: 0 | D59: 221 | E59: 19
A60: Salto............. .......................... | B60: =B61+B62 -> 433 | C60: 0 | D60: 296 | E60: 137
A61: Masculino.................................................... | B61: =+C61+D61+E61 -> 288 | C61: 0 | D61: 160 | E61: 128
A62: Femenino.................................................... | B62: =+C62+D62+E62 -> 145 | C62: 0 | D62: 136 | E62: 9
A63: San José.................................... | B63: =B64+B65 -> 1361 | C63: 61 | D63: 1121 | E63: 179
A64: Masculino.................................................... | B64: =+C64+D64+E64 -> 835 | C64: 58 | D64: 646 | E64: 131
A65: Femenino.................................................... | B65: =+C65+D65+E65 -> 526 | C65: 3 | D65: 475 | E65: 48
A66: Soriano..................................... | B66: =B67+B68 -> 1378 | C66: 118 | D66: 1093 | E66: 167
A67: Masculino.................................................... | B67: =+C67+D67+E67 -> 830 | C67: 88 | D67: 633 | E67: 109
A68: Femenino.................................................... | B68: =+C68+D68+E68 -> 548 | C68: 30 | D68: 460 | E68: 58
A69: Tacuarembó.................................. | B69: =B70+B71 -> 887 | C69: 0 | D69: 499 | E69: 388
A70: Masculino.................................................... | B70: =+C70+D70+E70 -> 564 | C70: 0 | D70: 313 | E70: 251
A71: Femenino.................................................... | B71: =+C71+D71+E71 -> 323 | C71: 0 | D71: 186 | E71: 137
A72: Treinta y Tres.............................. | B72: =B73+B74 -> 498 | C72: 75 | D72: 410 | E72: 13
A73: Masculino.................................................... | B73: =+C73+D73+E73 -> 309 | C73: 45 | D73: 260 | E73: 4
A74: Femenino.................................................... | B74: =+C74+D74+E74 -> 189 | C74: 30 | D74: 150 | E74: 9
A76: Fuente: Procesamiento propio en base a datos proporcionados por el D.E. - CETP (U.T.U)

Sheet II-3.2.3
A1: CONSEJO DE EDUCACIÓN PRIMARIA | J1: ALUMNOS MATRICULADOS
A3: Cuadro Nº II-3.2.3
A5: ALUMNOS MATRICULADOS EN SÉPTIMO, OCTAVO Y NOVENO GRADO DE CICLO BÁSICO RURAL POR SEXO SEGÚN DEPARTAMENTO AÑO 2010.
A7: DEPARTAMENTO | B7: TOTAL | E7: GRADO
E8: SÉPTIMO | H8: OCTAVO | K8: NOVENO
E9: SEXO | H9: SEXO | K9: SEXO
B10: T | C10: M | D10: F | E10: T | F10: M | G10: F | H10: T | I10: M | J10: F | K10: T | L10: M | M10: F
A13: TOTAL.............................. | B13: =+C13+D13 -> 1934 | C13: =+C15+C16 -> 1015 | D13: =+D15+D16 -> 919 | E13: =+F13+G13 -> 769 | F13: =+F15+F16 -> 414 | G13: =+G15+G16 -> 355 | H13: =+I13+J13 -> 636 | I13: =+I15+I16 -> 340 | J13: =+J15+J16 -> 296 | K13: =+L13+M13 -> 529 | L13: =+L15+L16 -> 261 | M13: =+M15+M16 -> 268
A15: MONTEVIDEO...................... | B15: =+C15+D15 -> 82 | C15: =+F15+I15+L15 -> 34 | D15: =+G15+J15+M15 -> 48 | E15: =+F15+G15 -> 24 | F15: 10 | G15: 14 | H15: =+I15+J15 -> 41 | I15: 19 | J15: 22 | K15: =+L15+M15 -> 17 | L15: 5 | M15: 12
A16: RESTO DEL PAÍS...................... | B16: =+C16+D16 -> 1852 | C16: =+F16+I16+L16 -> 981 | D16: =+G16+J16+M16 -> 871 | E16: =+F16+G16 -> 745 | F16: =SUM(F18:F35) -> 404 | G16: =SUM(G18:G35) -> 341 | H16: =+I16+J16 -> 595 | I16: =SUM(I18:I35) -> 321 | J16: =SUM(J18:J35) -> 274 | K16: =+L16+M16 -> 512 | L16: =SUM(L18:L35) -> 256 | M16: =SUM(M18:M35) -> 256
A18: Artigas.......................... | B18: =+C18+D18 -> 134 | C18: =+F18+I18+L18 -> 76 | D18: =+G18+J18+M18 -> 58 | E18: =+F18+G18 -> 51 | F18: 29 | G18: 22 | H18: =+I18+J18 -> 44 | I18: 27 | J18: 17 | K18: =+L18+M18 -> 39 | L18: 20 | M18: 19
A19: Canelones........................ | B19: 0 | C19: 0 | D19: 0 | E19: 0 | F19: 0 | G19: 0 | H19: 0 | I19: 0 | J19: 0 | K19: 0 | L19: 0 | M19: 0
A20: Cerro Largo..................... | B20: 177 | C20: 91 | D20: 86 | E20: 70 | F20: 35 | G20: 35 | H20: 60 | I20: 27 | J20: 33 | K20: 47 | L20: 29 | M20: 18
A21: Colonia.......................... | B21: 204 | C21: 105 | D21: 99 | E21: 75 | F21: 44 | G21: 31 | H21: 70 | I21: 31 | J21: 39 | K21: 59 | L21: 30 | M21: 29
A22: Durazno........................ | B22: 31 | C22: 16 | D22: 15 | E22: 15 | F22: 8 | G22: 7 | H22: 10 | I22: 4 | J22: 6 | K22: 6 | L22: 4 | M22: 2
A23: Flores.......................... | B23: 18 | C23: 11 | D23: 7 | E23: 12 | F23: 9 | G23: 3 | H23: 6 | I23: 2 | J23: 4 | K23: 0 | L23: 0 | M23: 0
A24: Florida........................ | B24: 65 | C24: 42 | D24: 23 | E24: 33 | F24: 21 | G24: 12 | H24: 19 | I24: 12 | J24: 7 | K24: 13 | L24: 9 | M24: 4
A25: Lavalleja..................... | B25: 65 | C25: 41 | D25: 24 | E25: 35 | F25: 20 | G25: 15 | H25: 16 | I25: 11 | J25: 5 | K25: 14 | L25: 10 | M25: 4
A26: Maldonado...................... | B26: 98 | C26: 62 | D26: 36 | E26: 46 | F26: 25 | G26: 21 | H26: 30 | I26: 23 | J26: 7 | K26: 22 | L26: 14 | M26: 8
A27: Paysandú...................... | B27: 326 | C27: 164 | D27: 162 | E27: 140 | F27: 73 | G27: 67 | H27: 87 | I27: 47 | J27: 40 | K27: 99 | L27: 44 | M27: 55
A28: Río Negro..................... | B28: 107 | C28: 47 | D28: 60 | E28: 32 | F28: 16 | G28: 16 | H28: 39 | I28: 20 | J28: 19 | K28: 36 | L28: 11 | M28: 25
A29: Rivera......................... | B29: 120 | C29: 64 | D29: 56 | E29: 43 | F29: 24 | G29: 19 | H29: 41 | I29: 27 | J29: 14 | K29: 36 | L29: 13 | M29: 23
A30: Rocha.......................... | B30: 53 | C30: 28 | D30: 25 | E30: 22 | F30: 9 | G30: 13 | H30: 20 | I30: 11 | J30: 9 | K30: 11 | L30: 8 | M30: 3
A31: Salto......................... | B31: 27 | C31: 9 | D31: 18 | E31: 9 | F31: 4 | G31: 5 | H31: 10 | I31: 4 | J31: 6 | K31: 8 | L31: 1 | M31: 7
A32: San José....................... | B32: 186 | C32: 98 | D32: 88 | E32: 66 | F32: 34 | G32: 32 | H32: 67 | I32: 35 | J32: 32 | K32: 53 | L32: 29 | M32: 24
A33: Soriano......................... | B33: 31 | C33: 14 | D33: 17 | E33: 12 | F33: 7 | G33: 5 | H33: 11 | I33: 3 | J33: 8 | K33: 8 | L33: 4 | M33: 4
A34: Tacuarembó....................... | B34: 138 | C34: 77 | D34: 61 | E34: 50 | F34: 29 | G34: 21 | H34: 45 | I34: 27 | J34: 18 | K34: 43 | L34: 21 | M34: 22
A35: Treinta y Tres................... | B35: 72 | C35: 36 | D35: 36 | E35: 34 | F35: 17 | G35: 17 | H35: 20 | I35: 10 | J35: 10 | K35: 18 | L35: 9 | M35: 9
A37: Fuente: D.E. — C.E.S.

Sheet II-3.2.4
A1: CONSEJO DE EDUCACIÓN SECUNDARIA | F1: ALUMNOS MATRICULADOS
A3: Cuadro Nº II-3.2.3 | B3: 3.2.4
A5: ALUMNOS MATRICULADOS DE CICLO BÁSICO DE EDUCACIÓN SECUNDARIA POR GRADO Y FORMA DE ADMINISTRACIÓN SEGÚN DEPARTAMENTO. AÑO 2010.
A7: DEPARTAMENTO | C7: GRADO
C9: PRIMERO | E9: SEGUNDO | G9: TERCERO
C11: FORMA DE ADMINISTRACIÓN
C13: Públicos | D13: Privados | E13: Públicos | F13: Privados | G13: Públicos | H13: Privados
A16: TOTAL............. | C16: =C18+C19 -> 49063 | D16: 8601 | E16: 41608 | F16: 8511 | G16: 39402 | H16: 8259
A18: MONTEVIDEO...................... | C18: 16098 | D18: 5569 | E18: 13122 | F18: 5388 | G18: 12281 | H18: 5329
A19: RESTO DEL PAÍS...................... | C19: =SUM(C21:C38) -> 32965 | D19: 3032 | E19: 28486 | F19: 3123 | G19: 27121 | H19: 2930
A21: Artigas........... | C21: 1417 | D21: S/I | E21: 1275 | F21: S/I | G21: 1218 | H21: S/I
A22: Canelones......... | C22: 8574 | D22: 1133 | E22: 7141 | F22: 1113 | G22: 6803 | H22: 994
A23: Cerro Largo....... | C23: 1389 | D23: 71 | E23: 1385 | F23: 90 | G23: 1253 | H23: 99
A24: Colonia........... | C24: 1727 | D24: 18 | E24: 1541 | F24: 10 | G24: 1519 | H24: 18
A25: Durazno........... | C25: 1036 | D25: 97 | E25: 736 | F25: 84 | G25: 726 | H25: 97
A26: Flores............ | C26: 341 | D26: 69 | E26: 309 | F26: 66 | G26: 324 | H26: 56
A27: Florida........... | C27: 1030 | D27: 69 | E27: 929 | F27: 94 | G27: 996 | H27: 55
A28: Lavalleja......... | C28: 1038 | D28: 47 | E28: 835 | F28: 61 | G28: 801 | H28: 39
A29: Maldonado......... | C29: 2198 | D29: 417 | E29: 2218 | F29: 475 | G29: 1847 | H29: 527
A30: Paysandú.......... | C30: 1760 | D30: 193 | E30: 1521 | F30: 209 | G30: 1455 | H30: 198
A31: Río Negro......... | C31: 1044 | D31: 14 | E31: 864 | F31: 13 | G31: 738 | H31: 13
A32: Rivera............ | C32: 2281 | D32: 204 | E32: 1843 | F32: 174 | G32: 1695 | H32: 154
A33: Rocha............. | C33: 1258 | D33: 82 | E33: 1086 | F33: 80 | G33: 1082 | H33: 70
A34: Salto............. | C34: 2369 | D34: 185 | E34: 2030 | F34: 243 | G34: 1924 | H34: 188
A35: San José.......... | C35: 1529 | D35: 123 | E35: 1319 | F35: 124 | G35: 1329 | H35: 114
A36: Soriano........... | C36: 1160 | D36: 72 | E36: 1094 | F36: 77 | G36: 1132 | H36: 82
A37: Tacuarembó........ | C37: 1825 | D37: 147 | E37: 1535 | F37: 130 | G37: 1512 | H37: 133
A38: Treinta y Tres.... | C38: 989 | D38: 91 | E38: 825 | F38: 80 | G38: 767 | H38: 93
A40: Fuente: D.E. — C.E.S.

Sheet II-3.2.5
A1: CONSEJO DE EDUCACIÓN TÉCNICO PROFESIONAL (U.T.U.) | C1: ALUMNOS MATRICULADOS
A3: Cuadro Nº II-3.2.5
A5: ALUMNOS MATRICULADOS EN EDUCACIÓN TÉCNICA MEDIA BÁSICA POR TIPO DE CURSO SEGÚN EDAD. AÑO 2010.
A7: EDAD | B7: TOTAL | C7: TIPO DE CURSO
C8: C.T.B Agrario | D8: Ciclo Básico Tecnológico | E8: Formación Profesional Básica Plan 2007
A10: TOTAL | B10: =+C10+D10+E10 -> 20241 | C10: =+C12+C13+C14++C15+C16+C17+C18+C19+C20+C21+C22+C23 -> 947 | D10: =+D12+D13+D14++D15+D16+D17+D18+D19+D20+D21+D22+D23 -> 15285 | E10: =+E12+E13+E14++E15+E16+E17+E18+E19+E20+E21+E22+E23 -> 4009
A12: 11 y 12 años .............................................................................................. | B12: =+C12+D12+E12 -> 3105 | C12: 243 | D12: 2859 | E12: 3
A13: 13 años .............................................................................................. | B13: =+C13+D13+E13 -> 4766 | C13: 304 | D13: 4441 | E13: 21
A14: 14 años .............................................................................................. | B14: 4876 | C14: 300 | D14: 4402 | E14: 174
A15: 15 años .............................................................................................. | B15: 3284 | C15: 80 | D15: 2164 | E15: 1040
A16: 16 años .............................................................................................. | B16: 2171 | C16: 13 | D16: 1003 | E16: 1155
A17: 17 años .............................................................................................. | B17: 1120 | C17: 3 | D17: 306 | E17: 811
A18: 18 años .............................................................................................. | B18: 355 | C18: 1 | D18: 45 | E18: 309
A19: 19 años .............................................................................................. | B19: 130 | C19: 3 | D19: 10 | E19: 117
A20: 20 a 24 años .............................................................................................. | B20: =+C20+D20+E20 -> 164 | C20: 0 | D20: 17 | E20: 147
A21: 25 a 29 años .............................................................................................. | B21: 83 | C21: 0 | D21: 8 | E21: 75
A22: 30 años y más .............................................................................................. | B22: 184 | C22: 0 | D22: 30 | E22: 154
A23: Edad desc .............................................................................................. | B23: =+C23+D23+E23 -> 3 | C23: 0 | D23: 0 | E23: 3
A25: Fuente: Procesamiento propio en base a datos proporcionados por el D.E. - CETP (U.T.U)

Sheet II-3.2.6
A1: CONSEJO DE EDUCACIÓN TÉCNICO PROFESIONAL (U.T.U.) | C1: ALUMNOS MATRICULADOS
A3: Cuadro Nº II-3.2.6
A5: ALUMNOS MATRICULADOS EN EL CETP EN EDUCACIÓN MEDIA BÁSICA POR TIPO DE CURSO SEGÚN SECTORES DE ESTUDIO. AÑO 2010.
A7: SECTORES DE ESTUDIO | B7: TOTAL | C7: TIPO DE CURSO
C8: Ciclo Básico Tecnológico | D8: Formación Profesional Básica Plan 2007 | E8: CTB AGRARIO
A10: TOTAL.................................................... | B10: =C10+D10+E10 -> 20241 | C10: =SUM(C12:C24) -> 15285 | D10: =SUM(D12:D24) -> 4009 | E10: =SUM(E12:E24) -> 947
A12: Prog. Ciclo Básico. Educación Media | B12: =+C12+D12+E12 -> 16232 | C12: 15285 | D12: 0 | E12: 947
A13: Agropecuario | B13: =+C13+D13+E13 -> 129 | C13: 0 | D13: 129 | E13: 0
A14: Hortifruticultura y Jardinería | B14: 24 | C14: 0 | D14: 24 | E14: 0
A15: Metal - Mecánica | B15: 341 | C15: 0 | D15: 341 | E15: 0
A16: Electricidad y Electrónica | B16: 674 | C16: 0 | D16: 674 | E16: 0
A17: Textil y Confección de Vestimenta | B17: 253 | C17: 0 | D17: 253 | E17: 0
A18: Madera y Muebles | B18: 642 | C18: 0 | D18: 642 | E18: 0
A19: Mant. y Reparación de Vehículos | B19: 486 | C19: 0 | D19: 486 | E19: 0
A20: Gastronomía | B20: 634 | C20: 0 | D20: 634 | E20: 0
A21: Servicios personales | B21: 619 | C21: 0 | D21: 619 | E21: 0
A22: Servicios de seguridad | B22: 54 | C22: 0 | D22: 54 | E22: 0
A23: Informática | B23: 135 | C23: 0 | D23: 135 | E23: 0
A24: Construcción y Arquitectura | B24: 18 | C24: 0 | D24: 18 | E24: 0
A25: Fuente: Procesamiento propio en base a datos proporcionados por el D.E. - CETP (U.T.U)

Sheet II-3.3.1
A1: CONSEJO DE EDUCACIÓN SECUNDARIA | F1: PERSONAL DOCENTE
A3: Cuadro Nº II-3.3.1
A5: PERSONAL DOCENTE Y HORAS DOCENTES DE CICLO BÁSICO DE EDUCACIÓN SECUNDARIA POR TITULACIÓN SEGÚN ASIGNATURAS. AÑO 2010.
A7: ASIGNATURAS | B7: TOTAL DOCENTES | C7: PERSONAL DOCENTE | E7: TOTAL HORAS | F7: HORAS DOCENTES
C8: Titulados | D8: No Titulados | F8: Titulados | G8: No Titulados
A9: TOTAL............................................ | B9: =SUM(C9:D9) -> 16016 | C9: =SUM(C10:C49) -> 8590 | D9: =SUM(D10:D49) -> 7426 | E9: =SUM(F9:G9) -> 223737 | F9: =SUM(F10:F49) -> 126169 | G9: =SUM(G10:G49) -> 97568
A10: ASTRONOMIA.................................................................. | B10: =C10+D10 -> 166 | C10: 40 | D10: 126 | E10: =F10+G10 -> 2037 | F10: 466 | G10: 1571
A11: BIOLOGIA.................................................................. | B11: =C11+D11 -> 1202 | C11: 945 | D11: 257 | E11: =F11+G11 -> 15801 | F11: 13327 | G11: 2474
A12: CONTABILIDAD.................................................................. | B12: 6 | C12: 0 | D12: 6 | E12: 24 | F12: 0 | G12: 24
A13: DIBUJO.................................................................. | B13: 736 | C13: 301 | D13: 435 | E13: 11400 | F13: 5299 | G13: 6101
A14: EDUCACION FISICA.................................................................. | B14: 930 | C14: 792 | D14: 138 | E14: 15031 | F14: 13314 | G14: 1717
A15: EDUCACION MUSICAL.................................................................. | B15: 548 | C15: 94 | D15: 454 | E15: 8424 | F15: 1529 | G15: 6895
A16: EDUCACIÓN CIVICA -DERECHO-.................................................................. | B16: 462 | C16: 368 | D16: 94 | E16: 3962 | F16: 3441 | G16: 521
A17: FILOSOFIA.................................................................. | B17: 371 | C17: 257 | D17: 114 | E17: 4212 | F17: 3173 | G17: 1039
A18: FISICA.................................................................. | B18: 602 | C18: 258 | D18: 344 | E18: 7229 | F18: 3485 | G18: 3744
A19: FRANCES.................................................................. | B19: 65 | C19: 15 | D19: 50 | E19: 1131 | F19: 327 | G19: 804
A20: GEOGRAFIA.................................................................. | B20: 792 | C20: 608 | D20: 184 | E20: 12037 | F20: 9969 | G20: 2068
A21: HISTORIA.................................................................. | B21: 1355 | C21: 1155 | D21: 200 | E21: 17566 | F21: 16037 | G21: 1529
A22: IDIOMA ESPAÑOL.................................................................. | B22: 1102 | C22: 827 | D22: 275 | E22: 18108 | F22: 14539 | G22: 3569
A23: INGLES.................................................................. | B23: 1276 | C23: 381 | D23: 895 | E23: 22143 | F23: 7339 | G23: 14804
A24: ITALIANO.................................................................. | B24: 67 | C24: 22 | D24: 45 | E24: 1079 | F24: 425 | G24: 654
A25: LITERATURA.................................................................. | B25: 740 | C25: 582 | D25: 158 | E25: 9254 | F25: 7837 | G25: 1417
A26: FISICO - QUIMICA.................................................................. | B26: 800 | C26: 404 | D26: 396 | E26: 9292 | F26: 5346 | G26: 3946
A27: MATEMATICA.................................................................. | B27: 1483 | C27: 508 | D27: 975 | E27: 25977 | F27: 9780 | G27: 16197
A28: QUIMICA.................................................................. | B28: 671 | C28: 420 | D28: 251 | E28: 7205 | F28: 4930 | G28: 2275
A29: REC.NATUR.Y PAISAJE AGRARIA.................................................................. | B29: 0 | C29: 0 | D29: 0 | E29: 0 | F29: 0 | G29: 0
A30: GEOLOGIA.................................................................. | B30: 9 | C30: 8 | D30: 1 | E30: 66 | F30: 61 | G30: 5
A31: DIRECTOR DE COROS.................................................................. | B31: 133 | C31: 45 | D31: 88 | E31: 1458 | F31: 554 | G31: 904
A32: PIANISTA ACOMPA･ANTE.................................................................. | B32: 94 | C32: 16 | D32: 78 | E32: 910 | F32: 134 | G32: 776
A33: INFORMATICA.................................................................. | B33: 934 | C33: 152 | D33: 782 | E33: 15876 | F33: 2332 | G33: 13544
A34: EDUCACION VISUAL-DIBUJO.................................................................. | B34: 6 | C34: 4 | D34: 2 | E34: 52 | F34: 38 | G34: 14
A35: LENG.COMU.Y MEDIOS AUDIOVISUAL.................................................................. | B35: 1 | C35: 0 | D35: 1 | E35: 3 | F35: 0 | G35: 3
A36: ESTUDIOS ECONOMICOS Y SOCIALES.................................................................. | B36: 0 | C36: 0 | D36: 0 | E36: 0 | F36: 0 | G36: 0
A37: LABORATORIO INFORMATICA EDUCAT.................................................................. | B37: 256 | C37: 31 | D37: 225 | E37: 5534 | F37: 654 | G37: 4880
A38: MANUALIDADES.................................................................. | B38: 1 | C38: 0 | D38: 1 | E38: 20 | F38: 0 | G38: 20
A39: LENGUA ALEMAN.................................................................. | B39: 6 | C39: 0 | D39: 6 | E39: 92 | F39: 0 | G39: 92
A40: TEATRO.................................................................. | B40: 0 | C40: 0 | D40: 0 | E40: 0 | F40: 0 | G40: 0
A41: LENGUAS PORTUGUES.................................................................. | B41: 70 | C41: 5 | D41: 65 | E41: 1160 | F41: 70 | G41: 1090
A42: EXPRESION CORPORAL Y TEATRO.................................................................. | B42: 0 | C42: 0 | D42: 0 | E42: 0 | F42: 0 | G42: 0
A43: EXPRESION CORPORAL Y DANZA.................................................................. | B43: 0 | C43: 0 | D43: 0 | E43: 0 | F43: 0 | G43: 0
A44: ACT.ADAPTADAS AL MEDIO AMBIENT.................................................................. | B44: 62 | C44: 8 | D44: 54 | E44: 534 | F44: 48 | G44: 486
A45: ECONOMIA.................................................................. | B45: 1 | C45: 0 | D45: 1 | E45: 3 | F45: 0 | G45: 3
A46: ESPACIO CURRICULAR ABIERTO.................................................................. | B46: 995 | C46: 305 | D46: 690 | E46: 5876 | F46: 1610 | G46: 4266
A47: ESPACIO ADOLESCENTE.................................................................. | B47: 1 | C47: 0 | D47: 1 | E47: 2 | F47: 0 | G47: 2
A48: TALLER DE ARTES PLASTICAS.................................................................. | B48: 70 | C48: 39 | D48: 31 | E48: 186 | F48: 105 | G48: 81
A49: LENGUA DE SEÑAS.................................................................. | B49: 3 | C49: 0 | D49: 3 | E49: 53 | F49: 0 | G49: 53
A50: Fuente: Departamento de Computación - División Hacienda — C.E.S.
A51: Nota: Los docentes que dictan más de una asignatura son considerados como personas distintas en cada asignatura.

Sheet II-3.3.2
A1: CONSEJO DE EDUCACIÓN TÉCNICO PROFESIONAL (U.T.U.) | C1: PERSONAL DOCENTE
A3: Cuadro Nº II-3.3.2
A5: PERSONAL DOCENTE EN EDUCACIÓN MEDIA BÁSICA TECNOLÓGICA POR TIPO DE CURSO. AÑO 2010.
A6: EDUCACIÓN MEDIA BÁSICA | B6: TOTAL
A9: TOTAL | B9: =SUM(B10:B13) -> 4028
A10: Ciclo Básico Tecnológico | B10: 2448
A11: Ciclo Básico Tecnológico Agrario | B11: 184
A12: Formación Profesional Básica Plan 2007 | B12: 1370
A13: Articulación Educ.Media Básica | B13: 26
A14: Fuente: U.T.U. División Informática.

Sheet II-3.4.1
A1: CONSEJO DE EDUCACIÓN SECUNDARIA | D1: GRUPOS
A3: Cuadro Nº II-3.4.1
A5: GRUPOS DE CICLO BÁSICO DE EDUCACIÓN SECUNDARIA COMPARADOS CON EL TOTAL DE AMBOS CICLOS SEGÚN GRANDES ÁREAS Y FORMA DE ADMINISTRACIÓN. AÑO 2010.
A6: GRANDES ÁREAS Y FORMA DE ADMINISTRACIÓN | C6: FORMA DE ADMINISTRACIÓN
E8: Total de Grupos
C9: Grupos | E9: en ambos Ciclos
A12: TOTAL DEL PAÍS..................................... | C12: =+C20+C27 -> 5197 | E12: =+E20+E27 -> 9321
A14: CICLO BÁSICO PÚBLICA................. | C14: =+C15+C16 -> 4172 | E14: =+E15+E16 -> 7142
A15: Diurna.................................... | C15: =+C22+C29 -> 3841 | E15: =+E22+E29 -> 6237
A16: Nocturna............................................ | C16: =+C23+C30 -> 331 | E16: =+E23+E30 -> 905
A18: CICLO BÁSICO PRIVADA.................. | C18: =+C25+C32 -> 1025 | E18: =+E25+E32 -> 2179
A20: TOTAL MONTEVIDEO.................... | C20: =+C21+C25 -> 1918 | E20: =+E21+E25 -> 3586
A21: CICLO BÁSICO PÚBLICA................. | C21: =+C22+C23 -> 1281 | E21: =+E22+E23 -> 2141
A22: Diurna.................................... | C22: 1158 | E22: 1787
A23: Nocturna............................................ | C23: 123 | E23: 354
A25: CICLO BÁSICO PRIVADA..................... | C25: 637 | E25: 1445
A27: TOTAL RESTO DEL PAÍS...................... | C27: =+C28+C32 -> 3279 | E27: =+E28+E32 -> 5735
A28: CICLO BÁSICO PÚBLICA................. | C28: =+C29+C30 -> 2891 | E28: =+E29+E30 -> 5001
A29: Diurna.................................... | C29: 2683 | E29: 4450
A30: Nocturna............................................ | C30: 208 | E30: 551
A32: CICLO BÁSICO PRIVADA..................... | C32: 388 | E32: 734
A34: Fuente: D.E. — C.E.S.
A35: Nota: El “Total de ambos Ciclos” presenta de manera agregada la cantidad total de grupos con que cuente Educación Secundaria y es el resultado de adicionar al total de Grupos del presente cuadro (Ciclo Básico de Educación Secundaria), el total de los grupos presentados en el Cuadro II-4.4.1 (Ciclo Superior de Educación Secundaria).

Sheet MEDIA SUPERIOR
A10: CONSEJO DE EDUCACIÓN SECUNDARIA Y CONSEJO DE EDUCACIÓN TÉCNICO PROFESIONAL (UTU)
A11: ESTABLECIMIENTOS
A13: Cuadro Nº II-4.1.1
A14: ='II-4.1.1'!A5:H5 -> ESTABLECIMIENTOS DE EDUCACIÓN MEDIA SUPERIOR POR MODALIDAD Y FORMA DE ADMINISTRACIÓN SEGÚN DEPARTAMENTO. AÑO 2010.
A16: CONSEJO DE EDUCACIÓN SECUNDARIA Y CONSEJO DE EDUCACIÓN TÉCNICO PROFESIONAL (UTU)
A17: ALUMNOS MATRICULADOS
A19: Cuadro Nº II-4.2.1
A20: ='II-4.2.1'!A5:E5 -> ALUMNOS MATRICULADOS EN SECUNDARIA EN EDUCACIÓN MEDIA SUPERIOR POR GRADO SEGÚN GRANDES ÁREAS Y FORMA DE ADMINISTRACIÓN. AÑO 2010.
A22: Cuadro Nº II-4.2.2
A23: ='II-4.2.2 '!A5:H5 -> ALUMNOS MATRICULADOS EN EL CETP EN EDUCACIÓN MEDIA SUPERIOR POR TIPO DE CURSO SEGÚN GRANDES ÁREAS, DEPARTAMENTO Y SEXO. AÑO 2010.
A25: Cuadro Nº II-4.2.3
A26: ='II-4.2.3 '!A5:G5 -> ALUMNOS MATRICULADOS EN EL CETP EN EDUCACIÓN MEDIA SUPERIOR POR TIPO DE CURSO SEGÚN EDAD. AÑO 2010.
A28: Cuadro Nº II-4.2.4
A29: ='II-4.2.4 '!A5:H5 -> ALUMNOS MATRICULADOS EN EL CETP EN EDUCACIÓN MEDIA SUPERIOR POR TIPO DE CURSO SEGÚN SECTORES DE ESTUDIO. AÑO 2010.
A31: Cuadro Nº II-4.2.5
A32: ='II-4.2.5'!A5:I5 -> ALUMNOS MATRICULADOS EN EL CES EN EDUCACIÓN MEDIA SUPERIOR POR GRADO Y FORMA DE ADMINISTRACIÓN SEGÚN DEPARTAMENTO. AÑO 2010.
A34: Cuadro Nº II-4.2.6
A35: ='II-4.2.6'!A5:K5 -> ALUMNOS MATRICULADOS EN EL CES EN QUINTO GRADO DE EDUCACIÓN MEDIA POR PLAN Y ORIENTACIÓN SEGÚN GRANDES ÁREAS Y FORMA DE ADMINISTRACIÓN. AÑO 2010.
A37: Cuadro Nº II-4.2.7
A38: ='II-4.2.7'!A5:AA5 -> ALUMNOS MATRICULADOS EN EL CES EN QUINTO GRADO DE EDUCACIÓN MEDIA PÚBLICA POR PLAN Y ORIENTACIÓN SEGÚN DEPARTAMENTO. AÑO 2010.
A40: Cuadro Nº II-4.2.8
A41: ='II-4.2.8 '!A7:O7 -> ALUMNOS MATRICULADOS DE QUINTO GRADO DE EDUCACIÓN MEDIA SUPERIOR DE EDUCACIÓN SECUNDARIA PRIVADA POR ORIENTACIÓN SEGÚN DEPARTAMENTO. AÑO 2010.
A43: Cuadro Nº II-4.2.9
A44: =II_4_2_9!A5 -> ALUMNOS MATRICULADOS DE SEXTO GRADO DE BACHILLERATO POR OPCIÓN Y PLAN SEGÚN GRANDES ÁREAS Y FORMA DE ADMINISTRACIÓN. AÑO 2010.
A46: Cuadro Nº II-4.2.10
A47: =II_4_2_10!A5 -> ALUMNOS MATRICULADOS EN EL CES EN SEXTO GRADO DE EDUCACIÓN MEDIA PÚBLICA POR PLAN Y OPCIÓN SEGÚN DEPARTAMENTO. AÑO 2010.
A49: Cuadro Nº II-4.2.11
A50: ='II-4.2.11 '!A5:K5 -> ALUMNOS MATRICULADOS DE SEXTO GRADO DE CICLO SUPERIOR DE EDUCACIÓN SECUNDARIA PRIVADA POR OPCIÓN SEGÚN DEPARTAMENTO. AÑO 2010.
A53: CONSEJO DE EDUCACIÓN SECUNDARIA Y CONSEJO DE EDUCACIÓN TÉCNICO PROFESIONAL (UTU)
A54: PERSONAL DOCENTE Y HORAS DOCENTES
A56: Cuadro Nº II-4.3.1
A57: ='II-4.3.1 '!A5:G5 -> PERSONAL DOCENTE Y HORAS DOCENTES DE EDUCACIÓN MEDIA SUPERIOR PÚBLICA POR TITULACIÓN SEGÚN ASIGNATURAS. AÑO 2010.
A59: CONSEJO DE EDUCACIÓN SECUNDARIA
A60: GRUPOS
A62: Cuadro Nº II-4.4.1
A63: ='II-4.4.1'!A5:H5 -> GRUPOS DE EDUCACIÓN MEDIA SUPERIOR COMPARADOS CON EL TOTAL DE AMBOS CICLOS SEGÚN GRANDES ÁREAS Y FORMA DE ADMINISTRACIÓN. AÑO 2010.

Sheet II-4.1.1
A1: CONSEJO DE EDUCACIÓN SECUNDARIA Y CONSEJO DE EDUCACIÓN TÉCNICO PROFESIONAL (UTU) | I1: ESTABLECIMIENTOS
A3: Cuadro Nº II-4.1.1
A5: ESTABLECIMIENTOS DE EDUCACIÓN MEDIA SUPERIOR POR MODALIDAD Y FORMA DE ADMINISTRACIÓN SEGÚN DEPARTAMENTO. AÑO 2010.
A6: DEPARTAMENTO | B6: MODALIDAD
B7: TOTAL | D7: CES | H7: CETP
D8: TOTAL CES | E8: FORMA DE ADMINISTRACIÓN
E9: PÚBLICOS | G9: PRIVADOS | H9: Escuelas de C.B.T. y Técnicas
E10: Oficiales | F10: Habilitados
A12: TOTAL.......................... | B12: =+B14+B15 -> 577 | D12: =+D14+D15 -> 468 | E12: =E14+E15 -> 280 | F12: =F14+F15 -> 2 | G12: =G14+G15 -> 186 | H12: =H14+H15 -> 109
A14: MONTEVIDEO.................... | B14: =+D14+H14 -> 201 | D14: =+E14+F14+G14 -> 178 | E14: 69 | F14: 2 | G14: 107 | H14: 23
A15: RESTO DEL PAÍS...................... | B15: =SUM(B17:B34) -> 376 | D15: =SUM(D17:D34) -> 290 | E15: =SUM(E17:E34) -> 211 | F15: =SUM(F17:F34) -> 0 | G15: =SUM(G17:G34) -> 79 | H15: =SUM(H17:H34) -> 86
A17: Artigas............................ | B17: =D17+H17 -> 16 | D17: =+E17+F17+G17 -> 12 | E17: 11 | F17: 0 | G17: 1 | H17: 4
A18: Canelones....................... | B18: 87 | D18: =+E18+F18+G18 -> 73 | E18: 47 | F18: 0 | G18: 26 | H18: 14
A19: Cerro Largo.................... | B19: 13 | D19: 8 | E19: 6 | F19: 0 | G19: 2 | H19: 5
A20: Colonia......................... | B20: 24 | D20: 15 | E20: 14 | F20: 0 | G20: 1 | H20: 9
A21: Durazno............................ | B21: 13 | D21: 10 | E21: 8 | F21: 0 | G21: 2 | H21: 3
A22: Flores........................... | B22: 8 | D22: 6 | E22: 3 | F22: 0 | G22: 3 | H22: 2
A23: Florida.......................... | B23: 17 | D23: 14 | E23: 12 | F23: 0 | G23: 2 | H23: 3
A24: Lavalleja......................... | B24: 12 | D24: 10 | E24: 8 | F24: 0 | G24: 2 | H24: 2
A25: Maldonado......................... | B25: 27 | D25: 23 | E25: 11 | F25: 0 | G25: 12 | H25: 4
A26: Paysandú............................ | B26: 23 | D26: 18 | E26: 14 | F26: 0 | G26: 4 | H26: 5
A27: Río Negro........................ | B27: 13 | D27: 10 | E27: 8 | F27: 0 | G27: 2 | H27: 3
A28: Rivera............................ | B28: 20 | D28: 16 | E28: 10 | F28: 0 | G28: 6 | H28: 4
A29: Rocha............................. | B29: 18 | D29: 13 | E29: 11 | F29: 0 | G29: 2 | H29: 5
A30: Salto............................. | B30: 20 | D30: 16 | E30: 11 | F30: 0 | G30: 5 | H30: 4
A31: San José......................... | B31: 18 | D31: 11 | E31: 9 | F31: 0 | G31: 2 | H31: 7
A32: Soriano.......................... | B32: 15 | D32: 10 | E32: 9 | F32: 0 | G32: 1 | H32: 5
A33: Tacuarembó....................... | B33: 19 | D33: 16 | E33: 12 | F33: 0 | G33: 4 | H33: 3
A34: Treinta y Tres................ | B34: 13 | D34: 9 | E34: 7 | F34: 0 | G34: 2 | H34: 4
D35: 0
A36: Fuente: D.E. — C.E.S, CETP.
A37: Notas: 1- La disminución en la cantidad de liceos se explica por la unificación de los liceos nocturnos bajo una misma administración. Lo cual no implica disminución de los establecimientos físicos. 2- La referencia "Liceos Públicos Habilitados", (refiere a los Habilitados "Liceo Naval" y "Liceo Militar"), se corresponde con una desagregación de las categorías "Privados" (Anuario Estadístico de Educación 2007 y 2008) o "Liceos Habilitados" presente en ediciones anteriores del Anuario Estadístico del MEC (2006 y anteriores). 3- Como no se cuenta con información desagregada de cuántos establecimientos del CES brindan ofertas en Educación Media Básica, Superior o ambas, este cuadro se replica en el Capítulo 3 con la numeración II-3.1.1, incorporando los liceos habilitados. 4- En un mismo establecimiento del CETP, coexisten ofertas educativas de diferentes niveles. Los establecimientos fueron contabilizados por nivel educativo, por lo tanto cada dependencia física será contada tantas veces como niveles educativos contenga. Por ello el presente cuadro computa los establecimientos con cursos de Educación Media Superior, independientemente que en el mismo espacio locativo se dicten ofertas de otros niveles.

Sheet II-4.2.1
A1: CONSEJO DE EDUCACIÓN SECUNDARIA | C1: ALUMNOS MATRICULADOS
A3: Cuadro Nº II-4.2.1
A5: ALUMNOS MATRICULADOS EN SECUNDARIA EN EDUCACIÓN MEDIA SUPERIOR POR GRADO SEGÚN GRANDES ÁREAS Y FORMA DE ADMINISTRACIÓN. AÑO 2010.
B6: TOTAL
A7: GRANDES ÁREAS Y FORMA DE ADMINISTRACIÓN | C7: GRADO
C8: CUARTO | D8: QUINTO | E8: SEXTO
A11: TOTAL DEL PAÍS..................................... | B11: =+B19+B26 -> 113327 | C11: =+C19+C26 -> 39963 | D11: =+D19+D26 -> 40621 | E11: =+E19+E26 -> 32743
A13: CICLO SUPERIOR PÚBLICA................. | B13: =+B20+B27 -> 96902 | C13: =+C14+C15 -> 33303 | D13: =+D14+D15 -> 35361 | E13: =+E14+E15 -> 28238
A14: Diurna.................................... | B14: =+C14+D14+E14 -> 62886 | C14: =+C21+C28 -> 24938 | D14: 21335 | E14: 16613
A15: Nocturna............................................ | B15: =+C15+D15+E15 -> 34016 | C15: 8365 | D15: 14026 | E15: 11625
A17: CICLO SUPERIOR PRIVADA................ | B17: =+C17+D17+E17 -> 16425 | C17: =+C24+C31 -> 6660 | D17: =+D24+D31 -> 5260 | E17: =+E24+E31 -> 4505
A19: TOTAL MONTEVIDEO.................... | B19: =+B20+B24 -> 47144 | C19: =+C20+C24 -> 14864 | D19: =+D20+D24 -> 17426 | E19: =+E20+E24 -> 14854
A20: CICLO SUPERIOR PÚBLICA................. | B20: =+C20+D20+E20 -> 34916 | C20: =SUM(C21:C22) -> 10308 | D20: =SUM(D21:D22) -> 13312 | E20: =SUM(E21:E22) -> 11296
A21: Diurna.................................... | B21: =+C21+D21+E21 -> 18514 | C21: 7080 | D21: 6414 | E21: 5020
A22: Nocturna............................................ | B22: =+C22+D22+E22 -> 16402 | C22: 3228 | D22: 6898 | E22: 6276
A24: CICLO SUPERIOR PRIVADA.................. | B24: =+C24+D24+E24 -> 12228 | C24: 4556 | D24: 4114 | E24: 3558
A26: TOTAL RESTO DEL PAÍS...................... | B26: =+B27+B31 -> 66183 | C26: =+C27+C31 -> 25099 | D26: =+D27+D31 -> 23195 | E26: =+E27+E31 -> 17889
A27: CICLO SUPERIOR PÚBLICA................. | B27: =+C27+D27+E27 -> 61986 | C27: =SUM(C28:C29) -> 22995 | D27: =SUM(D28:D29) -> 22049 | E27: =SUM(E28:E29) -> 16942
A28: Diurna.................................... | B28: =+C28+D28+E28 -> 44372 | C28: 17858 | D28: 14921 | E28: 11593
A29: Nocturna............................................ | B29: =+C29+D29+E29 -> 17614 | C29: 5137 | D29: 7128 | E29: 5349
A31: CICLO SUPERIOR PRIVADA.................. | B31: =+C31+D31+E31 -> 4197 | C31: 2104 | D31: 1146 | E31: 947
A33: Fuente: D.E. — C.E.S.
A34: Nota: La referencia "Privada" (incluye los Habilitados "Liceo Naval" y "Liceo Militar"), se corresponde con la de "Liceos Habilitados" presente en ediciones anteriores del Anuario Estadístico del MEC.

Sheet II-4.2.2
A1: CONSEJO DE EDUCACIÓN TÉCNICO PROFESIONAL (U.T.U.) | G1: ALUMNOS MATRICULADOS
A3: Cuadro Nº II-4.2.2
A5: ALUMNOS MATRICULADOS EN EL CETP EN EDUCACIÓN MEDIA SUPERIOR POR TIPO DE CURSO SEGÚN GRANDES ÁREAS, DEPARTAMENTO Y SEXO. AÑO 2010.
A7: GRANDES ÁREAS, DEPARTAMENTO Y SEXO | B7: TOTAL | C7: TIPO DE CURSO
C8: NIVEL SUPERIOR
C9: Bachillerato Figari | D9: Bachillerato Profesional | E9: E.M.P Especialización | F9: Educación Media Profesional | G9: Educación Media Tecnológica | H9: Curso de Articulación
A11: TOTAL.................................................... | B11: =+B12+B13 -> 32031 | C11: 62 | D11: 441 | E11: 109 | F11: 12300 | G11: 18834 | H11: 285
A12: Masculino.................................................... | B12: =+C12+D12+E12+F12+G12+H12 -> 18111 | C12: =C16+C19 -> 28 | D12: 424 | E12: 93 | F12: 6511 | G12: 10840 | H12: 215
A13: Femenino.................................................... | B13: =+C13+D13+E13+F13+G13+H13 -> 13920 | C13: 34 | D13: 17 | E13: 16 | F13: 5789 | G13: 7994 | H13: 70
A15: MONTEVIDEO................................... | B15: =B16+B17 -> 14158 | C15: =C16+C17 -> 62 | D15: 244 | E15: 100 | F15: 5445 | G15: 8112 | H15: 195
A16: Masculino.................................................... | B16: =+C16+D16+E16+F16+G16+H16 -> 8637 | C16: 28 | D16: 234 | E16: 84 | F16: 2848 | G16: 5285 | H16: 158
A17: Femenino.................................................... | B17: =+C17+D17+E17+F17+G17+H17 -> 5521 | C17: 34 | D17: 10 | E17: 16 | F17: 2597 | G17: 2827 | H17: 37
A18: RESTO DEL PAÍS................................... | B18: =B19+B20 -> 17873 | C18: 0 | D18: 197 | E18: 9 | F18: 6855 | G18: 10722 | H18: 90
A19: Masculino.................................................... | B19: =B23+B26+B29+B32+B35+B38+B41+B44+B47+B50+B53+B56+B59+B62+B65+B68+B71+B74 -> 9474 | C19: =C23+C26+C29+C32+C35+C38+C41+C44+C47+C50+C53+C56+C59+C62+C65+C68+C71+C74 -> 0 | D19: 190 | E19: 9 | F19: 3663 | G19: 5555 | H19: 57
A20: Femenino.................................................... | B20: =B24+B27++B30+B33+B36+B39+B42+B45+B48+B51+B54+B57+B60+B63+B66+B69+B72+B75 -> 8399 | C20: =C24+C27++C30+C33+C36+C39+C42+C45+C48+C51+C54+C57+C60+C63+C66+C69+C72+C75 -> 0 | D20: 7 | E20: 0 | F20: 3192 | G20: 5167 | H20: 33
A22: Artigas........................ | B22: =B23+B24 -> 930 | C22: 0 | D22: 22 | E22: 9 | F22: 389 | G22: 499 | H22: 11
A23: Masculino.................................................... | B23: =+C23+D23+E23+F23+G23+H23 -> 493 | C23: 0 | D23: 22 | E23: 9 | F23: 267 | G23: 191 | H23: 4
A24: Femenino.................................................... | B24: =+C24+D24+E24+F24+G24+H24 -> 437 | C24: 0 | D24: 0 | E24: 0 | F24: 122 | G24: 308 | H24: 7
A25: Canelones................................... | B25: =B26+B27 -> 3124 | C25: 0 | D25: 29 | E25: 0 | F25: 1292 | G25: 1803 | H25: 0
A26: Masculino.................................................... | B26: =+C26+D26+E26+F26+G26+H26 -> 1460 | C26: 0 | D26: 29 | E26: 0 | F26: 605 | G26: 826 | H26: 0
A27: Femenino.................................................... | B27: =+C27+D27+E27+F27+G27+H27 -> 1664 | C27: 0 | D27: 0 | E27: 0 | F27: 687 | G27: 977 | H27: 0
A28: Cerro Largo................................. | B28: =B29+B30 -> 703 | C28: 0 | D28: 0 | E28: 0 | F28: 398 | G28: 305 | H28: 0
A29: Masculino.................................................... | B29: =+C29+D29+E29+F29+G29+H29 -> 283 | C29: 0 | D29: 0 | E29: 0 | F29: 148 | G29: 135 | H29: 0
